Workbook

Sheet Sample Report (hidden)
A2: Date
A3: Hen
A4: Program
A5: Start at 999999
A6: Sequence component 1 | B6: Time 1 | C6: Seqeunce Component 2 | D6: Time 2 | E6: Seqeunce Component 3 | F6: Time 3 | G6: Correct 0 = No 1=Yes | J6: Seqeunce | K6: Time
A7: 12 | B7: 7 | C7: 12 | D7: 42 | E7: 13 | F7: 18 | G7: if 77 new line, if 31 or 41 = yes new line on 77, | J7: =string of Seqeunce compponent 1, 2 & 3 | K7: =time 3
A8: This continues until ther is a 1 on its own to indicate start of summary data
J9: 10-19 =1
A10: Summary Data | J10: 20-29 =2
A11: Correct | B11: Incorrect | C11: Rft | D11: total | E11: Av Correct | F11: Av Incorrect | G11: Percent correct | H11: Time | J11: in this example the seqeunce would be 111
A12: 40 | B12: 33 | C12: 40 | D12: 73 | E12: 23.95 | F12: 15 | G12: 54 | H12: 806

Sheet Summary
A2: Day | B2: Date | C2: Average Response Rate | D2: Target % | E2: RF for non correct sequence | F2: U Value | K2: Block 1 | L2: Block 2 | M2: Block 3 | N2: Block 4 | O2: Block 5 | P2: Block 6
A3: 1 | B3: ='!N120900.091'!B2:C2 -> <date> | C3: =('!N120900.091'!J152/60)/'!N120900.091'!Q3 -> 2.735502283 | D3: ='!N120900.091'!N44/'!N120900.091'!Q3 -> 0 | E3: =SUM('!N120900.091'!L44:Q44)/'!N120900.091'!Q3 -> 84.04794521 | F3: ='!N120900.091'!Q40 -> 0.3348161461 | J3: Average Response Rate | K3: =AVERAGE(C3:C7) -> 3.232049725 | L3: =AVERAGE(C8:C12) -> 2.784211048 | M3: =AVERAGE(C13:C17) -> 4.299451009 | N3: =AVERAGE(C18:C22) -> 2.814351009 | O3: =AVERAGE(C23:C27) -> 2.633859588 | P3: =AVERAGE(C28:C32) -> 5.191972128
A4: 2 | B4: ='!N121850.091'!B2:C2 -> <date> | C4: =('!N121850.091'!J136/60)/'!N121850.091'!Q3 -> 3.039185751 | D4: ='!N121850.091'!N44/'!N121850.091'!Q3 -> 0.007633587786 | E4: =SUM('!N121850.091'!L44:Q44)/'!N121850.091'!Q3 -> 92.8778626 | F4: ='!N121850.091'!Q40 -> 0.5675807732 | J4: Target % | K4: =AVERAGE(D3:D7) -> 0.01073724387 | L4: =AVERAGE(D8:D12) -> 0.02878514802 | M4: =AVERAGE(D13:D17) -> 0.04481284851 | N4: =AVERAGE(D18:D22) -> 0.03068785385 | O4: =AVERAGE(D23:D27) -> 0.03695935426 | P4: =AVERAGE(D28:D32) -> 0.05277221607
A5: 3 | B5: ='!N122740.091'!B2:C2 -> <date> | C5: =('!N122740.091'!J132/60)/'!N122740.091'!Q3 -> 3.122440945 | D5: ='!N122740.091'!N44/'!N122740.091'!Q3 -> 0 | E5: =SUM('!N122740.091'!L44:Q44)/'!N122740.091'!Q3 -> 88.61417323 | F5: ='!N122740.091'!Q40 -> 0.5407154743 | J5: CCRF | K5: =AVERAGE(E3:E7) -> 130.3704503 | L5: =AVERAGE(E8:E12) -> 141.0179122 | M5: =AVERAGE(E13:E17) -> 117.2821362 | N5: =AVERAGE(E18:E22) -> 139.626741 | O5: =AVERAGE(E23:E27) -> 103.5525877 | P5: =AVERAGE(E28:E32) -> 102.3028593
A6: 4 | B6: ='!N123910.091'!B2:C2 -> <date> | C6: =('!N123910.091'!J92/60)/'!N123910.091'!Q3 -> 4.646124031 | D6: ='!N123910.091'!N44/'!N123910.091'!Q3 -> 0 | E6: =SUM('!N123910.091'!L44:Q44)/'!N123910.091'!Q3 -> 246.9767442 | F6: ='!N123910.091'!Q40 -> 0.5378978346 | J6: U Value | K6: =AVERAGE(F3:F7) -> 0.4959863023 | L6: =AVERAGE(F8:F12) -> 0.4790807165 | M6: =AVERAGE(F13:F17) -> 0.5936917729 | N6: =AVERAGE(F18:F22) -> 0.5562187536 | O6: =AVERAGE(F23:F27) -> 0.5312908996 | P6: =AVERAGE(F28:F32) -> 0.5492112392
A7: 5 | B7: ='!N124840.091'!B2:C2 -> <date> | C7: =('!N124840.091'!J157/60)/'!N124840.091'!Q3 -> 2.616995614 | D7: ='!N124840.091'!N44/'!N124840.091'!Q3 -> 0.04605263158 | E7: =SUM('!N124840.091'!L44:Q44)/'!N124840.091'!Q3 -> 139.3355263 | F7: ='!N124840.091'!Q40 -> 0.4989212833
A8: 6 | B8: ='!N125840.091'!B2:C2 -> <date> | C8: =('!N125840.091'!J162/60)/'!N125840.091'!Q3 -> 2.562606838 | D8: ='!N125840.091'!N44/'!N125840.091'!Q3 -> 0.04487179487 | E8: =SUM('!N125840.091'!L44:Q44)/'!N125840.091'!Q3 -> 71.6025641 | F8: ='!N125840.091'!Q40 -> 0.525744043
A9: 7 | B9: ='!N126810.091'!B2:C2 -> <date> | C9: =('!N126810.091'!J150/60)/'!N126810.091'!Q3 -> 2.76412037 | D9: ='!N126810.091'!N44/'!N126810.091'!Q3 -> 0.04166666667 | E9: =SUM('!N126810.091'!L44:Q44)/'!N126810.091'!Q3 -> 153.9305556 | F9: ='!N126810.091'!Q40 -> 0.5001167116 | G9: =K3 -> 3.232049725 | H9: 2.784211048 | I9: 4.299451009 | J9: 2.814351009 | K9: 2.633859588 | L9: 5.191972128 | M9: =K4 -> 0.01073724387 | N9: 0.02878514802 | O9: 0.04481284851 | P9: 0.03068785385 | Q9: 0.03695935426 | R9: 0.05277221607 | S9: =K6 -> 0.4959863023 | T9: 0.4790807165 | U9: 0.5936917729 | V9: 0.5562187536 | W9: 0.5312908996 | X9: 0.5492112392
A10: 8 | B10: ='!N127930.091'!B2:C2 -> <date> | C10: =('!N127930.091'!J140/60)/'!N127930.091'!Q3 -> 2.943950617 | D10: ='!N127930.091'!N44/'!N127930.091'!Q3 -> 0.01481481481 | E10: =SUM('!N127930.091'!L44:Q44)/'!N127930.091'!Q3 -> 164.2074074 | F10: ='!N127930.091'!Q40 -> 0.4172917456
A11: 9 | B11: ='!N128800.091'!B2:C2 -> <date> | C11: =('!N128800.091'!J144/60)/'!N128800.091'!Q3 -> 2.895169082 | D11: ='!N128800.091'!N44/'!N128800.091'!Q3 -> 0.02173913043 | E11: =SUM('!N128800.091'!L44:Q44)/'!N128800.091'!Q3 -> 161.3768116 | F11: ='!N128800.091'!Q40 -> 0.46449028
A12: 10 | B12: ='!N129850.091'!B2:C2 -> <date> | C12: =('!N129850.091'!J149/60)/'!N129850.091'!Q3 -> 2.755208333 | D12: ='!N129850.091'!N44/'!N129850.091'!Q3 -> 0.02083333333 | E12: =SUM('!N129850.091'!L44:Q44)/'!N129850.091'!Q3 -> 153.9722222 | F12: ='!N129850.091'!Q40 -> 0.4877608022
A13: 11 | B13: ='!N130910.091'!B2:C2 -> <date> | C13: =('!N130910.091'!J86/60)/'!N130910.091'!Q3 -> 4.822708333 | D13: ='!N130910.091'!N44/'!N130910.091'!Q3 -> 0.0125 | E13: =SUM('!N130910.091'!L44:Q44)/'!N130910.091'!Q3 -> 139.25 | F13: ='!N130910.091'!Q40 -> 0.6234385424
A14: 12 | B14: ='!N131810.091'!B2:C2 -> <date> | C14: =('!N131810.091'!J155/60)/'!N131810.091'!Q3 -> 2.681655481 | D14: ='!N131810.091'!N44/'!N131810.091'!Q3 -> 0.04697986577 | E14: =SUM('!N131810.091'!L44:Q44)/'!N131810.091'!Q3 -> 142.1342282 | F14: ='!N131810.091'!Q40 -> 0.6011098602
A15: 13 | B15: ='!N201910.091'!B2:C2 -> <date> | C15: =('!N201910.091'!J142/60)/'!N201910.091'!Q3 -> 2.937009804 | D15: ='!N201910.091'!N44/'!N201910.091'!Q3 -> 0.04411764706 | E15: =SUM('!N201910.091'!L44:Q44)/'!N201910.091'!Q3 -> 163.7647059 | F15: ='!N201910.091'!Q40 -> 0.5664046882
A16: 14 | B16: ='!N202920.091'!B2:C2 -> <date> | C16: =('!N202920.091'!J27/60)/'!N202920.091'!Q3 -> 8.40952381 | D16: ='!N202920.091'!N44/'!N202920.091'!Q3 -> 0.04761904762 | E16: =SUM('!N202920.091'!L44:Q44)/'!N202920.091'!Q3 -> 0.380952381 | F16: ='!N202920.091'!Q40 -> 0.6053024877
A17: 15 | B17: ='!N203940.091'!B2:C2 -> <date> | C17: =('!N203940.091'!J157/60)/'!N203940.091'!Q3 -> 2.646357616 | D17: ='!N203940.091'!N44/'!N203940.091'!Q3 -> 0.07284768212 | E17: =SUM('!N203940.091'!L44:Q44)/'!N203940.091'!Q3 -> 140.8807947 | F17: ='!N203940.091'!Q40 -> 0.5722032859
A18: 16 | B18: ='!N204840.091'!B2:C2 -> <date> | C18: =('!N204840.091'!J135/60)/'!N204840.091'!Q3 -> 3.100129199 | D18: ='!N204840.091'!N44/'!N204840.091'!Q3 -> 0.02325581395 | E18: =SUM('!N204840.091'!L44:Q44)/'!N204840.091'!Q3 -> 86.48837209 | F18: ='!N204840.091'!Q40 -> 0.5936936048
A19: 17 | B19: ='!N206800.091'!B2:C2 -> <date> | C19: =('!N206800.091'!J151/60)/'!N206800.091'!Q3 -> 2.722945205 | D19: ='!N206800.091'!N44/'!N206800.091'!Q3 -> 0.04109589041 | E19: =SUM('!N206800.091'!L44:Q44)/'!N206800.091'!Q3 -> 151.890411 | F19: ='!N206800.091'!Q40 -> 0.5570780839
A20: 18 | B20: ='!N207740.091'!B2:C2 -> <date> | C20: =('!N207740.091'!J143/60)/'!N207740.091'!Q3 -> 2.906934307 | D20: ='!N207740.091'!N44/'!N207740.091'!Q3 -> 0.02189781022 | E20: =SUM('!N207740.091'!L44:Q44)/'!N207740.091'!Q3 -> 161.8248175 | F20: ='!N207740.091'!Q40 -> 0.5389933361
A21: 19 | B21: ='!N210800.091'!B2:C2 -> <date> | C21: =('!N210800.091'!J149/60)/'!N210800.091'!Q3 -> 2.761226852 | D21: ='!N210800.091'!N44/'!N210800.091'!Q3 -> 0.03472222222 | E21: =SUM('!N210800.091'!L44:Q44)/'!N210800.091'!Q3 -> 153.9236111 | F21: ='!N210800.091'!Q40 -> 0.5276234561
A22: 20 | B22: ='!N211820.091'!B2:C2 -> <date> | C22: =('!N211820.091'!J159/60)/'!N211820.091'!Q3 -> 2.580519481 | D22: ='!N211820.091'!N44/'!N211820.091'!Q3 -> 0.03246753247 | E22: =SUM('!N211820.091'!L44:Q44)/'!N211820.091'!Q3 -> 144.0064935 | F22: ='!N211820.091'!Q40 -> 0.5637052872
A23: 21 | B23: ='!N212840.091'!B2:C2 -> <date> | C23: =('!N212840.091'!J154/60)/'!N212840.091'!Q3 -> 2.699436937 | D23: ='!N212840.091'!N44/'!N212840.091'!Q3 -> 0.0472972973 | E23: =SUM('!N212840.091'!L44:Q44)/'!N212840.091'!Q3 -> 143.7027027 | F23: ='!N212840.091'!Q40 -> 0.604719634
A24: 22 | B24: ='!N213820.091'!B2:C2 -> <date> | C24: =('!N213820.091'!J155/60)/'!N213820.091'!Q3 -> 2.68064877 | D24: ='!N213820.091'!N44/'!N213820.091'!Q3 -> 0.03355704698 | E24: =SUM('!N213820.091'!L44:Q44)/'!N213820.091'!Q3 -> 148.7718121 | F24: ='!N213820.091'!Q40 -> 0.5395976429
A25: 23 | B25: ='!N214830.091'!B2:C2 -> <date> | C25: =('!N214830.091'!J163/60)/'!N214830.091'!Q3 -> 2.538216561 | D25: ='!N214830.091'!N44/'!N214830.091'!Q3 -> 0.05095541401 | E25: =SUM('!N214830.091'!L44:Q44)/'!N214830.091'!Q3 -> 71.78980892 | F25: ='!N214830.091'!Q40 -> 0.5148833367
A26: 24 | B26: ='!N216810.091'!B2:C2 -> <date> | C26: =('!N216810.091'!J160/60)/'!N216810.091'!Q3 -> 2.587662338 | D26: ='!N216810.091'!N44/'!N216810.091'!Q3 -> 0.01298701299 | E26: =SUM('!N216810.091'!L44:Q44)/'!N216810.091'!Q3 -> 79.05194805 | F26: ='!N216810.091'!Q40 -> 0.4744310338
A27: 25 | B27: ='!N217850.091'!B2:C2 -> <date> | C27: =('!N217850.091'!J156/60)/'!N217850.091'!Q3 -> 2.663333333 | D27: ='!N217850.091'!N44/'!N217850.091'!Q3 -> 0.04 | E27: =SUM('!N217850.091'!L44:Q44)/'!N217850.091'!Q3 -> 74.44666667 | F27: ='!N217850.091'!Q40 -> 0.5228228508
A28: 26 | B28: ='!N218830.091'!B2:C2 -> <date> | C28: =('!N218830.091'!J152/60)/'!N218830.091'!Q3 -> 2.722716895 | D28: ='!N218830.091'!N44/'!N218830.091'!Q3 -> 0.05479452055 | E28: =SUM('!N218830.091'!L44:Q44)/'!N218830.091'!Q3 -> 152.5273973 | F28: ='!N218830.091'!Q40 -> 0.5770195712
A29: 27 | B29: ='!N219920.091'!B2:C2 -> <date> | C29: =('!N219920.091'!J158/60)/'!N219920.091'!Q3 -> 2.621710526 | D29: ='!N219920.091'!N44/'!N219920.091'!Q3 -> 0.05921052632 | E29: =SUM('!N219920.091'!L44:Q44)/'!N219920.091'!Q3 -> 145.9276316 | F29: ='!N219920.091'!Q40 -> 0.5354875246
A30: 28 | B30: ='!N220840.091'!B2:C2 -> <date> | C30: =('!N220840.091'!J32/60)/'!N220840.091'!Q3 -> 15.34230769 | D30: ='!N220840.091'!N44/'!N220840.091'!Q3 -> 0 | E30: =SUM('!N220840.091'!L44:Q44)/'!N220840.091'!Q3 -> 0.3461538462 | F30: ='!N220840.091'!Q40 -> 0.6206203711
A31: 29 | B31: ='!N221830.091'!B2:C2 -> <date> | C31: =('!N221830.091'!J152/60)/'!N221830.091'!Q3 -> 2.739155251 | D31: ='!N221830.091'!N44/'!N221830.091'!Q3 -> 0.04794520548 | E31: =SUM('!N221830.091'!L44:Q44)/'!N221830.091'!Q3 -> 77.17808219 | F31: ='!N221830.091'!Q40 -> 0.5098687223
A32: 30 | B32: ='!N223850.091'!B2:C2 -> <date> | C32: =('!N223850.091'!J162/60)/'!N223850.091'!Q3 -> 2.533970276 | D32: ='!N223850.091'!N44/'!N223850.091'!Q3 -> 0.101910828 | E32: =SUM('!N223850.091'!L44:Q44)/'!N223850.091'!Q3 -> 135.5350318 | F32: ='!N223850.091'!Q40 -> 0.5030600066
B33: ='!N224910.091'!B2:C2 -> <date> | C33: =('!N224910.091'!J57/60)/'!N224910.091'!Q3 -> 7.838562092 | D33: ='!N224910.091'!N44/'!N224910.091'!Q3 -> 0.03921568627 | E33: =SUM('!N224910.091'!L44:Q44)/'!N224910.091'!Q3 -> 218.4313725 | F33: ='!N224910.091'!Q40 -> 0.5467941411

Sheet Start
F1: Use Folder 51 | H1: Auto Clean Up | J1: Correct sequence
F2: FALSE | H2: TRUE | J2: 21121
A4: Working with Folder | G4: Process All/Or Pick A number: ALL or an integer
A5: E:\Hen Data\Raw Data\91_17\phase 5 var\ | G5: ALL
A6: Filenames:
A7: !N129850.091 | G7: Paint Cells
A8: !N130910.091 | G8: FALSE
A9: !N131810.091
A10: !N201910.091
A11: !N202920.091
A12: !N203940.091
A13: !N204840.091
A14: !N206800.091
A15: !N207740.091
A16: !N210800.091
A17: !N211820.091
A18: !N212840.091
A19: !N213820.091
A20: !N214830.091
A21: !N216810.091
A22: !N217850.091
A23: !N218830.091
A24: !N219920.091
A25: !N220840.091
A26: !N221830.091
A27: !N223850.091
A28: !N224910.091
A29: !N120900.091
A30: !N121850.091
A31: !N122740.091
A32: !N123910.091
A33: !N124840.091
A34: !N125840.091
A35: !N126810.091
A36: !N127930.091
A37: !N128800.091

Sheet !N120900.091
A1: Report for:!N120900.091
A2: Date: | B2: <date>
A3: Hen: | B3: <hen> | F3: Correct Sequence | G3: =Start!J2 -> 21121 | P3: Total Sequences in Data | Q3: =4994-COUNTBLANK(L7:L5000) -> 146 | V3: Total Sequences in Block Data | W3: =COUNTA(L7:L30) -> 24 | AA3: Total Sequences in Block Data | AB3: =COUNTA(L31:L55) -> 25 | AF3: Total Sequences in Block Data | AG3: =COUNTA(L56:L79) -> 24 | AK3: Total Sequences in Block Data | AL3: =COUNTA(L80:L103) -> 24 | AP3: Total Sequences in Block Data | AQ3: =COUNTA(L104:L128) -> 25 | AU3: Total Sequences in Block Data | AV3: =COUNTA(L129:L152) -> 24
P4: Total Sequences in Summary | Q4: =SUM(O7:O38) -> 146 | V4: Total Sequences in Block Summary | W4: =SUM(U7:U38) -> 24 | AA4: Total Sequences in Block Summary | AB4: =SUM(Z7:Z38) -> 25 | AF4: Total Sequences in Block Summary | AG4: =SUM(AE7:AE38) -> 24 | AK4: Total Sequences in Block Summary | AL4: =SUM(AJ7:AJ38) -> 24 | AP4: Total Sequences in Block Summary | AQ4: =SUM(AO7:AO38) -> 25 | AU4: Total Sequences in Block Summary | AV4: =SUM(AT7:AT38) -> 24
T5: Block 1 | Y5: Block 2 | AD5: Block 3 | AI5: Block 4 | AN5: Block 5 | AS5: Block 6
A6: Sequence Component 1 | B6: Time 1 | C6: Sequence Component 2 | D6: Time 2 | E6: Sequence Component 3 | F6: Time 3 | G6: Sequence Component 4 | H6: Time 4 | I6: Sequence Component 5 | J6: Time 5 | K6: Correct? 0=No 1=Yes | L6: Sequence | N6: Frequency | P6: Relative Frequency | Q6: Variability | T6: Frequency | V6: Relative Frequency | W6: Variability | Y6: Frequency | AA6: Relative Frequency | AB6: Variability | AD6: Frequency | AF6: Relative Frequency | AG6: Variability | AI6: Frequency | AK6: Relative Frequency | AL6: Variability | AN6: Frequency | AP6: Relative Frequency | AQ6: Variability | AS6: Frequency | AU6: Relative Frequency | AV6: Variability
A7: 12 | B7: 11 | C7: 24 | D7: 23 | E7: 24 | F7: 33 | G7: 23 | H7: 46 | I7: 24 | J7: 57 | K7: 0 | L7: 12222 | N7: 11111 | O7: =COUNTIF($L$7:$L$500,N7) -> 0 | P7: =O7/$Q$4 -> 0 | Q7: =IF(P7=0,0,(P7*((LOG(P7))/LOG(2)))) -> 0 | T7: =N7 -> 11111 | U7: =COUNTIF(L7:L30,T7) -> 0 | V7: =U7/(W4-U25) -> 0 | W7: =IF(V7=0,0,(V7*((LOG(V7))/LOG(2)))) -> 0 | Y7: =N7 -> 11111 | Z7: =COUNTIF(L31:L55,Y7) -> 0 | AA7: =Z7/(AB4-Z25) -> 0 | AB7: =IF(AA7=0,0,(AA7*((LOG(AA7))/LOG(2)))) -> 0 | AD7: =N7 -> 11111 | AE7: =COUNTIF(L56:L79,AD7) -> 0 | AF7: =AE7/(AG4-AE25) -> 0 | AG7: =IF(AF7=0,0,(AF7*((LOG(AF7))/LOG(2)))) -> 0 | AI7: =N7 -> 11111 | AJ7: =COUNTIF(L80:L103,AI7) -> 0 | AK7: =AJ7/(AL4-AJ25) -> 0 | AL7: =IF(AK7=0,0,(AK7*((LOG(AK7))/LOG(2)))) -> 0 | AN7: =N7 -> 11111 | AO7: =COUNTIF(L104:L128,AN7) -> 0 | AP7: =AO7/(AQ4-AO25) -> 0 | AQ7: =IF(AP7=0,0,(AP7*((LOG(AP7))/LOG(2)))) -> 0 | AS7: =N7 -> 11111 | AT7: =COUNTIF(L129:L152,AS7) -> 0 | AU7: =AT7/(AV4-AT25) -> 0 | AV7: =IF(AU7=0,0,(AU7*((LOG(AU7))/LOG(2)))) -> 0
A8: 12 | B8: 153 | C8: 24 | D8: 167 | E8: 24 | F8: 184 | G8: 23 | H8: 205 | I8: 24 | J8: 216 | K8: 0 | L8: 12222 | N8: 11112 | O8: =COUNTIF($L$7:$L$500,N8) -> 0 | P8: =O8/$Q$4 -> 0 | Q8: =IF(P8=0,0,(P8*((LOG(P8))/LOG(2)))) -> 0 | T8: =N8 -> 11112 | U8: =COUNTIF(L7:L30,T8) -> 0 | V8: =U8/(W4-U25) -> 0 | W8: =IF(V8=0,0,(V8*((LOG(V8))/LOG(2)))) -> 0 | Y8: =N8 -> 11112 | Z8: =COUNTIF(L31:L55,Y8) -> 0 | AA8: =Z8/(AB4-Z25) -> 0 | AB8: =IF(AA8=0,0,(AA8*((LOG(AA8))/LOG(2)))) -> 0 | AD8: =N8 -> 11112 | AE8: =COUNTIF(L56:L79,AD8) -> 0 | AF8: =AE8/(AG4-AE25) -> 0 | AG8: =IF(AF8=0,0,(AF8*((LOG(AF8))/LOG(2)))) -> 0 | AI8: =N8 -> 11112 | AJ8: =COUNTIF(L80:L103,AI8) -> 0 | AK8: =AJ8/(AL4-AJ25) -> 0 | AL8: =IF(AK8=0,0,(AK8*((LOG(AK8))/LOG(2)))) -> 0 | AN8: =N8 -> 11112 | AO8: =COUNTIF(L104:L128,AN8) -> 0 | AP8: =AO8/(AQ4-AO25) -> 0 | AQ8: =IF(AP8=0,0,(AP8*((LOG(AP8))/LOG(2)))) -> 0 | AS8: =N8 -> 11112 | AT8: =COUNTIF(L129:L152,AS8) -> 0 | AU8: =AT8/(AV4-AT25) -> 0 | AV8: =IF(AU8=0,0,(AU8*((LOG(AU8))/LOG(2)))) -> 0
A9: 12 | B9: 314 | C9: 13 | D9: 316 | E9: 24 | F9: 329 | G9: 23 | H9: 341 | I9: 13 | J9: 354 | K9: 0 | L9: 11221 | N9: 11121 | O9: =COUNTIF($L$7:$L$500,N9) -> 0 | P9: =O9/$Q$4 -> 0 | Q9: =IF(P9=0,0,(P9*((LOG(P9))/LOG(2)))) -> 0 | T9: =N9 -> 11121 | U9: =COUNTIF(L7:L30,T9) -> 0 | V9: =U9/(W4-U25) -> 0 | W9: =IF(V9=0,0,(V9*((LOG(V9))/LOG(2)))) -> 0 | Y9: =N9 -> 11121 | Z9: =COUNTIF(L31:L55,Y9) -> 0 | AA9: =Z9/(AB4-Z25) -> 0 | AB9: =IF(AA9=0,0,(AA9*((LOG(AA9))/LOG(2)))) -> 0 | AD9: =N9 -> 11121 | AE9: =COUNTIF(L56:L79,AD9) -> 0 | AF9: =AE9/(AG4-AE25) -> 0 | AG9: =IF(AF9=0,0,(AF9*((LOG(AF9))/LOG(2)))) -> 0 | AI9: =N9 -> 11121 | AJ9: =COUNTIF(L80:L103,AI9) -> 0 | AK9: =AJ9/(AL4-AJ25) -> 0 | AL9: =IF(AK9=0,0,(AK9*((LOG(AK9))/LOG(2)))) -> 0 | AN9: =N9 -> 11121 | AO9: =COUNTIF(L104:L128,AN9) -> 0 | AP9: =AO9/(AQ4-AO25) -> 0 | AQ9: =IF(AP9=0,0,(AP9*((LOG(AP9))/LOG(2)))) -> 0 | AS9: =N9 -> 11121 | AT9: =COUNTIF(L129:L152,AS9) -> 0 | AU9: =AT9/(AV4-AT25) -> 0 | AV9: =IF(AU9=0,0,(AU9*((LOG(AU9))/LOG(2)))) -> 0
A10: 12 | B10: 455 | C10: 24 | D10: 466 | E10: 24 | F10: 474 | G10: 23 | H10: 484 | I10: 24 | J10: 506 | K10: 0 | L10: 12222 | N10: 11122 | O10: =COUNTIF($L$7:$L$500,N10) -> 2 | P10: =O10/$Q$4 -> 0.01369863014 | Q10: =IF(P10=0,0,(P10*((LOG(P10))/LOG(2)))) -> -0.08479211724 | T10: =N10 -> 11122 | U10: =COUNTIF(L7:L30,T10) -> 0 | V10: =U10/(W4-U25) -> 0 | W10: =IF(V10=0,0,(V10*((LOG(V10))/LOG(2)))) -> 0 | Y10: =N10 -> 11122 | Z10: =COUNTIF(L31:L55,Y10) -> 0 | AA10: =Z10/(AB4-Z25) -> 0 | AB10: =IF(AA10=0,0,(AA10*((LOG(AA10))/LOG(2)))) -> 0 | AD10: =N10 -> 11122 | AE10: =COUNTIF(L56:L79,AD10) -> 0 | AF10: =AE10/(AG4-AE25) -> 0 | AG10: =IF(AF10=0,0,(AF10*((LOG(AF10))/LOG(2)))) -> 0 | AI10: =N10 -> 11122 | AJ10: =COUNTIF(L80:L103,AI10) -> 1 | AK10: =AJ10/(AL4-AJ25) -> 0.04166666667 | AL10: =IF(AK10=0,0,(AK10*((LOG(AK10))/LOG(2)))) -> -0.1910401042 | AN10: =N10 -> 11122 | AO10: =COUNTIF(L104:L128,AN10) -> 0 | AP10: =AO10/(AQ4-AO25) -> 0 | AQ10: =IF(AP10=0,0,(AP10*((LOG(AP10))/LOG(2)))) -> 0 | AS10: =N10 -> 11122 | AT10: =COUNTIF(L129:L152,AS10) -> 1 | AU10: =AT10/(AV4-AT25) -> 0.04166666667 | AV10: =IF(AU10=0,0,(AU10*((LOG(AU10))/LOG(2)))) -> -0.1910401042
A11: 12 | B11: 608 | C11: 24 | D11: 621 | E11: 24 | F11: 630 | G11: 23 | H11: 642 | I11: 24 | J11: 650 | K11: 0 | L11: 12222 | N11: 11211 | O11: =COUNTIF($L$7:$L$500,N11) -> 0 | P11: =O11/$Q$4 -> 0 | Q11: =IF(P11=0,0,(P11*((LOG(P11))/LOG(2)))) -> 0 | T11: =N11 -> 11211 | U11: =COUNTIF(L7:L30,T11) -> 0 | V11: =U11/(W4-U25) -> 0 | W11: =IF(V11=0,0,(V11*((LOG(V11))/LOG(2)))) -> 0 | Y11: =N11 -> 11211 | Z11: =COUNTIF(L31:L55,Y11) -> 0 | AA11: =Z11/(AB4-Z25) -> 0 | AB11: =IF(AA11=0,0,(AA11*((LOG(AA11))/LOG(2)))) -> 0 | AD11: =N11 -> 11211 | AE11: =COUNTIF(L56:L79,AD11) -> 0 | AF11: =AE11/(AG4-AE25) -> 0 | AG11: =IF(AF11=0,0,(AF11*((LOG(AF11))/LOG(2)))) -> 0 | AI11: =N11 -> 11211 | AJ11: =COUNTIF(L80:L103,AI11) -> 0 | AK11: =AJ11/(AL4-AJ25) -> 0 | AL11: =IF(AK11=0,0,(AK11*((LOG(AK11))/LOG(2)))) -> 0 | AN11: =N11 -> 11211 | AO11: =COUNTIF(L104:L128,AN11) -> 0 | AP11: =AO11/(AQ4-AO25) -> 0 | AQ11: =IF(AP11=0,0,(AP11*((LOG(AP11))/LOG(2)))) -> 0 | AS11: =N11 -> 11211 | AT11: =COUNTIF(L129:L152,AS11) -> 0 | AU11: =AT11/(AV4-AT25) -> 0 | AV11: =IF(AU11=0,0,(AU11*((LOG(AU11))/LOG(2)))) -> 0
A12: 12 | B12: 752 | C12: 24 | D12: 782 | E12: 24 | F12: 863 | G12: 23 | H12: 871 | I12: 24 | J12: 894 | K12: 0 | L12: 12222 | N12: 11212 | O12: =COUNTIF($L$7:$L$500,N12) -> 1 | P12: =O12/$Q$4 -> 0.006849315068 | Q12: =IF(P12=0,0,(P12*((LOG(P12))/LOG(2)))) -> -0.04924537369 | T12: =N12 -> 11212 | U12: =COUNTIF(L7:L30,T12) -> 0 | V12: =U12/(W4-U25) -> 0 | W12: =IF(V12=0,0,(V12*((LOG(V12))/LOG(2)))) -> 0 | Y12: =N12 -> 11212 | Z12: =COUNTIF(L31:L55,Y12) -> 0 | AA12: =Z12/(AB4-Z25) -> 0 | AB12: =IF(AA12=0,0,(AA12*((LOG(AA12))/LOG(2)))) -> 0 | AD12: =N12 -> 11212 | AE12: =COUNTIF(L56:L79,AD12) -> 0 | AF12: =AE12/(AG4-AE25) -> 0 | AG12: =IF(AF12=0,0,(AF12*((LOG(AF12))/LOG(2)))) -> 0 | AI12: =N12 -> 11212 | AJ12: =COUNTIF(L80:L103,AI12) -> 0 | AK12: =AJ12/(AL4-AJ25) -> 0 | AL12: =IF(AK12=0,0,(AK12*((LOG(AK12))/LOG(2)))) -> 0 | AN12: =N12 -> 11212 | AO12: =COUNTIF(L104:L128,AN12) -> 0 | AP12: =AO12/(AQ4-AO25) -> 0 | AQ12: =IF(AP12=0,0,(AP12*((LOG(AP12))/LOG(2)))) -> 0 | AS12: =N12 -> 11212 | AT12: =COUNTIF(L129:L152,AS12) -> 1 | AU12: =AT12/(AV4-AT25) -> 0.04166666667 | AV12: =IF(AU12=0,0,(AU12*((LOG(AU12))/LOG(2)))) -> -0.1910401042
A13: 12 | B13: 996 | C13: 24 | D13: 1007 | E13: 24 | F13: 1019 | G13: 23 | H13: 1043 | I13: 24 | J13: 1054 | K13: 0 | L13: 12222 | N13: 11221 | O13: =COUNTIF($L$7:$L$500,N13) -> 3 | P13: =O13/$Q$4 -> 0.02054794521 | Q13: =IF(P13=0,0,(P13*((LOG(P13))/LOG(2)))) -> -0.1151683985 | T13: =N13 -> 11221 | U13: =COUNTIF(L7:L30,T13) -> 1 | V13: =U13/(W4-U25) -> 0.04166666667 | W13: =IF(V13=0,0,(V13*((LOG(V13))/LOG(2)))) -> -0.1910401042 | Y13: =N13 -> 11221 | Z13: =COUNTIF(L31:L55,Y13) -> 0 | AA13: =Z13/(AB4-Z25) -> 0 | AB13: =IF(AA13=0,0,(AA13*((LOG(AA13))/LOG(2)))) -> 0 | AD13: =N13 -> 11221 | AE13: =COUNTIF(L56:L79,AD13) -> 0 | AF13: =AE13/(AG4-AE25) -> 0 | AG13: =IF(AF13=0,0,(AF13*((LOG(AF13))/LOG(2)))) -> 0 | AI13: =N13 -> 11221 | AJ13: =COUNTIF(L80:L103,AI13) -> 1 | AK13: =AJ13/(AL4-AJ25) -> 0.04166666667 | AL13: =IF(AK13=0,0,(AK13*((LOG(AK13))/LOG(2)))) -> -0.1910401042 | AN13: =N13 -> 11221 | AO13: =COUNTIF(L104:L128,AN13) -> 0 | AP13: =AO13/(AQ4-AO25) -> 0 | AQ13: =IF(AP13=0,0,(AP13*((LOG(AP13))/LOG(2)))) -> 0 | AS13: =N13 -> 11221 | AT13: =COUNTIF(L129:L152,AS13) -> 1 | AU13: =AT13/(AV4-AT25) -> 0.04166666667 | AV13: =IF(AU13=0,0,(AU13*((LOG(AU13))/LOG(2)))) -> -0.1910401042
A14: 12 | B14: 1153 | C14: 24 | D14: 1175 | E14: 24 | F14: 1199 | G14: 23 | H14: 1207 | I14: 24 | J14: 1215 | K14: 0 | L14: 12222 | N14: 11222 | O14: =COUNTIF($L$7:$L$500,N14) -> 12 | P14: =O14/$Q$4 -> 0.08219178082 | Q14: =IF(P14=0,0,(P14*((LOG(P14))/LOG(2)))) -> -0.2962900322 | T14: =N14 -> 11222 | U14: =COUNTIF(L7:L30,T14) -> 0 | V14: =U14/(W4-U25) -> 0 | W14: =IF(V14=0,0,(V14*((LOG(V14))/LOG(2)))) -> 0 | Y14: =N14 -> 11222 | Z14: =COUNTIF(L31:L55,Y14) -> 3 | AA14: =Z14/(AB4-Z25) -> 0.12 | AB14: =IF(AA14=0,0,(AA14*((LOG(AA14))/LOG(2)))) -> -0.3670672427 | AD14: =N14 -> 11222 | AE14: =COUNTIF(L56:L79,AD14) -> 2 | AF14: =AE14/(AG4-AE25) -> 0.08333333333 | AG14: =IF(AF14=0,0,(AF14*((LOG(AF14))/LOG(2)))) -> -0.2987468751 | AI14: =N14 -> 11222 | AJ14: =COUNTIF(L80:L103,AI14) -> 3 | AK14: =AJ14/(AL4-AJ25) -> 0.125 | AL14: =IF(AK14=0,0,(AK14*((LOG(AK14))/LOG(2)))) -> -0.375 | AN14: =N14 -> 11222 | AO14: =COUNTIF(L104:L128,AN14) -> 4 | AP14: =AO14/(AQ4-AO25) -> 0.16 | AQ14: =IF(AP14=0,0,(AP14*((LOG(AP14))/LOG(2)))) -> -0.4230169904 | AS14: =N14 -> 11222 | AT14: =COUNTIF(L129:L152,AS14) -> 0 | AU14: =AT14/(AV4-AT25) -> 0 | AV14: =IF(AU14=0,0,(AU14*((LOG(AU14))/LOG(2)))) -> 0
A15: 21 | B15: 1327 | C15: 22 | D15: 1337 | E15: 24 | F15: 1352 | G15: 23 | H15: 1369 | I15: 24 | J15: 1388 | K15: 0 | L15: 22222 | N15: 12111 | O15: =COUNTIF($L$7:$L$500,N15) -> 0 | P15: =O15/$Q$4 -> 0 | Q15: =IF(P15=0,0,(P15*((LOG(P15))/LOG(2)))) -> 0 | T15: =N15 -> 12111 | U15: =COUNTIF(L7:L30,T15) -> 0 | V15: =U15/(W4-U25) -> 0 | W15: =IF(V15=0,0,(V15*((LOG(V15))/LOG(2)))) -> 0 | Y15: =N15 -> 12111 | Z15: =COUNTIF(L31:L55,Y15) -> 0 | AA15: =Z15/(AB4-Z25) -> 0 | AB15: =IF(AA15=0,0,(AA15*((LOG(AA15))/LOG(2)))) -> 0 | AD15: =N15 -> 12111 | AE15: =COUNTIF(L56:L79,AD15) -> 0 | AF15: =AE15/(AG4-AE25) -> 0 | AG15: =IF(AF15=0,0,(AF15*((LOG(AF15))/LOG(2)))) -> 0 | AI15: =N15 -> 12111 | AJ15: =COUNTIF(L80:L103,AI15) -> 0 | AK15: =AJ15/(AL4-AJ25) -> 0 | AL15: =IF(AK15=0,0,(AK15*((LOG(AK15))/LOG(2)))) -> 0 | AN15: =N15 -> 12111 | AO15: =COUNTIF(L104:L128,AN15) -> 0 | AP15: =AO15/(AQ4-AO25) -> 0 | AQ15: =IF(AP15=0,0,(AP15*((LOG(AP15))/LOG(2)))) -> 0 | AS15: =N15 -> 12111 | AT15: =COUNTIF(L129:L152,AS15) -> 0 | AU15: =AT15/(AV4-AT25) -> 0 | AV15: =IF(AU15=0,0,(AU15*((LOG(AU15))/LOG(2)))) -> 0
A16: 12 | B16: 1491 | C16: 24 | D16: 1503 | E16: 24 | F16: 1511 | G16: 23 | H16: 1519 | I16: 24 | J16: 1527 | K16: 0 | L16: 12222 | N16: 12112 | O16: =COUNTIF($L$7:$L$500,N16) -> 0 | P16: =O16/$Q$4 -> 0 | Q16: =IF(P16=0,0,(P16*((LOG(P16))/LOG(2)))) -> 0 | T16: =N16 -> 12112 | U16: =COUNTIF(L7:L30,T16) -> 0 | V16: =U16/(W4-U25) -> 0 | W16: =IF(V16=0,0,(V16*((LOG(V16))/LOG(2)))) -> 0 | Y16: =N16 -> 12112 | Z16: =COUNTIF(L31:L55,Y16) -> 0 | AA16: =Z16/(AB4-Z25) -> 0 | AB16: =IF(AA16=0,0,(AA16*((LOG(AA16))/LOG(2)))) -> 0 | AD16: =N16 -> 12112 | AE16: =COUNTIF(L56:L79,AD16) -> 0 | AF16: =AE16/(AG4-AE25) -> 0 | AG16: =IF(AF16=0,0,(AF16*((LOG(AF16))/LOG(2)))) -> 0 | AI16: =N16 -> 12112 | AJ16: =COUNTIF(L80:L103,AI16) -> 0 | AK16: =AJ16/(AL4-AJ25) -> 0 | AL16: =IF(AK16=0,0,(AK16*((LOG(AK16))/LOG(2)))) -> 0 | AN16: =N16 -> 12112 | AO16: =COUNTIF(L104:L128,AN16) -> 0 | AP16: =AO16/(AQ4-AO25) -> 0 | AQ16: =IF(AP16=0,0,(AP16*((LOG(AP16))/LOG(2)))) -> 0 | AS16: =N16 -> 12112 | AT16: =COUNTIF(L129:L152,AS16) -> 0 | AU16: =AT16/(AV4-AT25) -> 0 | AV16: =IF(AU16=0,0,(AU16*((LOG(AU16))/LOG(2)))) -> 0
A17: 12 | B17: 1630 | C17: 24 | D17: 1640 | E17: 24 | F17: 1650 | G17: 23 | H17: 1702 | I17: 24 | J17: 1728 | K17: 0 | L17: 12222 | N17: 12121 | O17: =COUNTIF($L$7:$L$500,N17) -> 0 | P17: =O17/$Q$4 -> 0 | Q17: =IF(P17=0,0,(P17*((LOG(P17))/LOG(2)))) -> 0 | T17: =N17 -> 12121 | U17: =COUNTIF(L7:L30,T17) -> 0 | V17: =U17/(W4-U25) -> 0 | W17: =IF(V17=0,0,(V17*((LOG(V17))/LOG(2)))) -> 0 | Y17: =N17 -> 12121 | Z17: =COUNTIF(L31:L55,Y17) -> 0 | AA17: =Z17/(AB4-Z25) -> 0 | AB17: =IF(AA17=0,0,(AA17*((LOG(AA17))/LOG(2)))) -> 0 | AD17: =N17 -> 12121 | AE17: =COUNTIF(L56:L79,AD17) -> 0 | AF17: =AE17/(AG4-AE25) -> 0 | AG17: =IF(AF17=0,0,(AF17*((LOG(AF17))/LOG(2)))) -> 0 | AI17: =N17 -> 12121 | AJ17: =COUNTIF(L80:L103,AI17) -> 0 | AK17: =AJ17/(AL4-AJ25) -> 0 | AL17: =IF(AK17=0,0,(AK17*((LOG(AK17))/LOG(2)))) -> 0 | AN17: =N17 -> 12121 | AO17: =COUNTIF(L104:L128,AN17) -> 0 | AP17: =AO17/(AQ4-AO25) -> 0 | AQ17: =IF(AP17=0,0,(AP17*((LOG(AP17))/LOG(2)))) -> 0 | AS17: =N17 -> 12121 | AT17: =COUNTIF(L129:L152,AS17) -> 0 | AU17: =AT17/(AV4-AT25) -> 0 | AV17: =IF(AU17=0,0,(AU17*((LOG(AU17))/LOG(2)))) -> 0
A18: 12 | B18: 1827 | C18: 24 | D18: 1854 | E18: 24 | F18: 1898 | G18: 23 | H18: 1906 | I18: 24 | J18: 1914 | K18: 0 | L18: 12222 | N18: 12122 | O18: =COUNTIF($L$7:$L$500,N18) -> 25 | P18: =O18/$Q$4 -> 0.1712328767 | Q18: =IF(P18=0,0,(P18*((LOG(P18))/LOG(2)))) -> -0.4359534879 | T18: =N18 -> 12122 | U18: =COUNTIF(L7:L30,T18) -> 0 | V18: =U18/(W4-U25) -> 0 | W18: =IF(V18=0,0,(V18*((LOG(V18))/LOG(2)))) -> 0 | Y18: =N18 -> 12122 | Z18: =COUNTIF(L31:L55,Y18) -> 4 | AA18: =Z18/(AB4-Z25) -> 0.16 | AB18: =IF(AA18=0,0,(AA18*((LOG(AA18))/LOG(2)))) -> -0.4230169904 | AD18: =N18 -> 12122 | AE18: =COUNTIF(L56:L79,AD18) -> 6 | AF18: =AE18/(AG4-AE25) -> 0.25 | AG18: =IF(AF18=0,0,(AF18*((LOG(AF18))/LOG(2)))) -> -0.5 | AI18: =N18 -> 12122 | AJ18: =COUNTIF(L80:L103,AI18) -> 3 | AK18: =AJ18/(AL4-AJ25) -> 0.125 | AL18: =IF(AK18=0,0,(AK18*((LOG(AK18))/LOG(2)))) -> -0.375 | AN18: =N18 -> 12122 | AO18: =COUNTIF(L104:L128,AN18) -> 5 | AP18: =AO18/(AQ4-AO25) -> 0.2 | AQ18: =IF(AP18=0,0,(AP18*((LOG(AP18))/LOG(2)))) -> -0.464385619 | AS18: =N18 -> 12122 | AT18: =COUNTIF(L129:L152,AS18) -> 7 | AU18: =AT18/(AV4-AT25) -> 0.2916666667 | AV18: =IF(AU18=0,0,(AU18*((LOG(AU18))/LOG(2)))) -> -0.5184688771
A19: 12 | B19: 2021 | C19: 24 | D19: 2030 | E19: 24 | F19: 2040 | G19: 23 | H19: 2064 | I19: 24 | J19: 2069 | K19: 0 | L19: 12222 | N19: 12211 | O19: =COUNTIF($L$7:$L$500,N19) -> 0 | P19: =O19/$Q$4 -> 0 | Q19: =IF(P19=0,0,(P19*((LOG(P19))/LOG(2)))) -> 0 | T19: =N19 -> 12211 | U19: =COUNTIF(L7:L30,T19) -> 0 | V19: =U19/(W4-U25) -> 0 | W19: =IF(V19=0,0,(V19*((LOG(V19))/LOG(2)))) -> 0 | Y19: =N19 -> 12211 | Z19: =COUNTIF(L31:L55,Y19) -> 0 | AA19: =Z19/(AB4-Z25) -> 0 | AB19: =IF(AA19=0,0,(AA19*((LOG(AA19))/LOG(2)))) -> 0 | AD19: =N19 -> 12211 | AE19: =COUNTIF(L56:L79,AD19) -> 0 | AF19: =AE19/(AG4-AE25) -> 0 | AG19: =IF(AF19=0,0,(AF19*((LOG(AF19))/LOG(2)))) -> 0 | AI19: =N19 -> 12211 | AJ19: =COUNTIF(L80:L103,AI19) -> 0 | AK19: =AJ19/(AL4-AJ25) -> 0 | AL19: =IF(AK19=0,0,(AK19*((LOG(AK19))/LOG(2)))) -> 0 | AN19: =N19 -> 12211 | AO19: =COUNTIF(L104:L128,AN19) -> 0 | AP19: =AO19/(AQ4-AO25) -> 0 | AQ19: =IF(AP19=0,0,(AP19*((LOG(AP19))/LOG(2)))) -> 0 | AS19: =N19 -> 12211 | AT19: =COUNTIF(L129:L152,AS19) -> 0 | AU19: =AT19/(AV4-AT25) -> 0 | AV19: =IF(AU19=0,0,(AU19*((LOG(AU19))/LOG(2)))) -> 0
A20: 12 | B20: 2170 | C20: 24 | D20: 2184 | E20: 24 | F20: 2200 | G20: 23 | H20: 2209 | I20: 24 | J20: 2223 | K20: 0 | L20: 12222 | N20: 12212 | O20: =COUNTIF($L$7:$L$500,N20) -> 11 | P20: =O20/$Q$4 -> 0.07534246575 | Q20: =IF(P20=0,0,(P20*((LOG(P20))/LOG(2)))) -> -0.2810570023 | T20: =N20 -> 12212 | U20: =COUNTIF(L7:L30,T20) -> 0 | V20: =U20/(W4-U25) -> 0 | W20: =IF(V20=0,0,(V20*((LOG(V20))/LOG(2)))) -> 0 | Y20: =N20 -> 12212 | Z20: =COUNTIF(L31:L55,Y20) -> 1 | AA20: =Z20/(AB4-Z25) -> 0.04 | AB20: =IF(AA20=0,0,(AA20*((LOG(AA20))/LOG(2)))) -> -0.1857542476 | AD20: =N20 -> 12212 | AE20: =COUNTIF(L56:L79,AD20) -> 3 | AF20: =AE20/(AG4-AE25) -> 0.125 | AG20: =IF(AF20=0,0,(AF20*((LOG(AF20))/LOG(2)))) -> -0.375 | AI20: =N20 -> 12212 | AJ20: =COUNTIF(L80:L103,AI20) -> 1 | AK20: =AJ20/(AL4-AJ25) -> 0.04166666667 | AL20: =IF(AK20=0,0,(AK20*((LOG(AK20))/LOG(2)))) -> -0.1910401042 | AN20: =N20 -> 12212 | AO20: =COUNTIF(L104:L128,AN20) -> 3 | AP20: =AO20/(AQ4-AO25) -> 0.12 | AQ20: =IF(AP20=0,0,(AP20*((LOG(AP20))/LOG(2)))) -> -0.3670672427 | AS20: =N20 -> 12212 | AT20: =COUNTIF(L129:L152,AS20) -> 3 | AU20: =AT20/(AV4-AT25) -> 0.125 | AV20: =IF(AU20=0,0,(AU20*((LOG(AU20))/LOG(2)))) -> -0.375
A21: 12 | B21: 2325 | C21: 24 | D21: 2340 | E21: 24 | F21: 2364 | G21: 23 | H21: 2377 | I21: 24 | J21: 2399 | K21: 0 | L21: 12222 | N21: 12221 | O21: =COUNTIF($L$7:$L$500,N21) -> 5 | P21: =O21/$Q$4 -> 0.03424657534 | Q21: =IF(P21=0,0,(P21*((LOG(P21))/LOG(2)))) -> -0.166708783 | T21: =N21 -> 12221 | U21: =COUNTIF(L7:L30,T21) -> 1 | V21: =U21/(W4-U25) -> 0.04166666667 | W21: =IF(V21=0,0,(V21*((LOG(V21))/LOG(2)))) -> -0.1910401042 | Y21: =N21 -> 12221 | Z21: =COUNTIF(L31:L55,Y21) -> 1 | AA21: =Z21/(AB4-Z25) -> 0.04 | AB21: =IF(AA21=0,0,(AA21*((LOG(AA21))/LOG(2)))) -> -0.1857542476 | AD21: =N21 -> 12221 | AE21: =COUNTIF(L56:L79,AD21) -> 0 | AF21: =AE21/(AG4-AE25) -> 0 | AG21: =IF(AF21=0,0,(AF21*((LOG(AF21))/LOG(2)))) -> 0 | AI21: =N21 -> 12221 | AJ21: =COUNTIF(L80:L103,AI21) -> 1 | AK21: =AJ21/(AL4-AJ25) -> 0.04166666667 | AL21: =IF(AK21=0,0,(AK21*((LOG(AK21))/LOG(2)))) -> -0.1910401042 | AN21: =N21 -> 12221 | AO21: =COUNTIF(L104:L128,AN21) -> 1 | AP21: =AO21/(AQ4-AO25) -> 0.04 | AQ21: =IF(AP21=0,0,(AP21*((LOG(AP21))/LOG(2)))) -> -0.1857542476 | AS21: =N21 -> 12221 | AT21: =COUNTIF(L129:L152,AS21) -> 1 | AU21: =AT21/(AV4-AT25) -> 0.04166666667 | AV21: =IF(AU21=0,0,(AU21*((LOG(AU21))/LOG(2)))) -> -0.1910401042
A22: 12 | B22: 2499 | C22: 24 | D22: 2512 | E22: 24 | F22: 2520 | G22: 23 | H22: 2529 | I22: 24 | J22: 2544 | K22: 0 | L22: 12222 | N22: 12222 | O22: =COUNTIF($L$7:$L$500,N22) -> 74 | P22: =O22/$Q$4 -> 0.5068493151 | Q22: =IF(P22=0,0,(P22*((LOG(P22))/LOG(2)))) -> -0.4969004678 | T22: =N22 -> 12222 | U22: =COUNTIF(L7:L30,T22) -> 20 | V22: =U22/(W4-U25) -> 0.8333333333 | W22: =IF(V22=0,0,(V22*((LOG(V22))/LOG(2)))) -> -0.2191953382 | Y22: =N22 -> 12222 | Z22: =COUNTIF(L31:L55,Y22) -> 15 | AA22: =Z22/(AB4-Z25) -> 0.6 | AB22: =IF(AA22=0,0,(AA22*((LOG(AA22))/LOG(2)))) -> -0.4421793565 | AD22: =N22 -> 12222 | AE22: =COUNTIF(L56:L79,AD22) -> 12 | AF22: =AE22/(AG4-AE25) -> 0.5 | AG22: =IF(AF22=0,0,(AF22*((LOG(AF22))/LOG(2)))) -> -0.5 | AI22: =N22 -> 12222 | AJ22: =COUNTIF(L80:L103,AI22) -> 12 | AK22: =AJ22/(AL4-AJ25) -> 0.5 | AL22: =IF(AK22=0,0,(AK22*((LOG(AK22))/LOG(2)))) -> -0.5 | AN22: =N22 -> 12222 | AO22: =COUNTIF(L104:L128,AN22) -> 7 | AP22: =AO22/(AQ4-AO25) -> 0.28 | AQ22: =IF(AP22=0,0,(AP22*((LOG(AP22))/LOG(2)))) -> -0.514220355 | AS22: =N22 -> 12222 | AT22: =COUNTIF(L129:L152,AS22) -> 8 | AU22: =AT22/(AV4-AT25) -> 0.3333333333 | AV22: =IF(AU22=0,0,(AU22*((LOG(AU22))/LOG(2)))) -> -0.5283208336
A23: 12 | B23: 2645 | C23: 24 | D23: 2659 | E23: 24 | F23: 2667 | G23: 23 | H23: 2676 | I23: 24 | J23: 2692 | K23: 0 | L23: 12222 | N23: 21111 | O23: =COUNTIF($L$7:$L$500,N23) -> 0 | P23: =O23/$Q$4 -> 0 | Q23: =IF(P23=0,0,(P23*((LOG(P23))/LOG(2)))) -> 0 | T23: =N23 -> 21111 | U23: =COUNTIF(L7:L30,T23) -> 0 | V23: =U23/(W4-U25) -> 0 | W23: =IF(V23=0,0,(V23*((LOG(V23))/LOG(2)))) -> 0 | Y23: =N23 -> 21111 | Z23: =COUNTIF(L31:L55,Y23) -> 0 | AA23: =Z23/(AB4-Z25) -> 0 | AB23: =IF(AA23=0,0,(AA23*((LOG(AA23))/LOG(2)))) -> 0 | AD23: =N23 -> 21111 | AE23: =COUNTIF(L56:L79,AD23) -> 0 | AF23: =AE23/(AG4-AE25) -> 0 | AG23: =IF(AF23=0,0,(AF23*((LOG(AF23))/LOG(2)))) -> 0 | AI23: =N23 -> 21111 | AJ23: =COUNTIF(L80:L103,AI23) -> 0 | AK23: =AJ23/(AL4-AJ25) -> 0 | AL23: =IF(AK23=0,0,(AK23*((LOG(AK23))/LOG(2)))) -> 0 | AN23: =N23 -> 21111 | AO23: =COUNTIF(L104:L128,AN23) -> 0 | AP23: =AO23/(AQ4-AO25) -> 0 | AQ23: =IF(AP23=0,0,(AP23*((LOG(AP23))/LOG(2)))) -> 0 | AS23: =N23 -> 21111 | AT23: =COUNTIF(L129:L152,AS23) -> 0 | AU23: =AT23/(AV4-AT25) -> 0 | AV23: =IF(AU23=0,0,(AU23*((LOG(AU23))/LOG(2)))) -> 0
A24: 21 | B24: 2804 | C24: 22 | D24: 2820 | E24: 24 | F24: 2849 | G24: 23 | H24: 2858 | I24: 24 | J24: 2873 | K24: 0 | L24: 22222 | N24: 21112 | O24: =COUNTIF($L$7:$L$500,N24) -> 0 | P24: =O24/$Q$4 -> 0 | Q24: =IF(P24=0,0,(P24*((LOG(P24))/LOG(2)))) -> 0 | T24: =N24 -> 21112 | U24: =COUNTIF(L7:L30,T24) -> 0 | V24: =U24/(W4-U25) -> 0 | W24: =IF(V24=0,0,(V24*((LOG(V24))/LOG(2)))) -> 0 | Y24: =N24 -> 21112 | Z24: =COUNTIF(L31:L55,Y24) -> 0 | AA24: =Z24/(AB4-Z25) -> 0 | AB24: =IF(AA24=0,0,(AA24*((LOG(AA24))/LOG(2)))) -> 0 | AD24: =N24 -> 21112 | AE24: =COUNTIF(L56:L79,AD24) -> 0 | AF24: =AE24/(AG4-AE25) -> 0 | AG24: =IF(AF24=0,0,(AF24*((LOG(AF24))/LOG(2)))) -> 0 | AI24: =N24 -> 21112 | AJ24: =COUNTIF(L80:L103,AI24) -> 0 | AK24: =AJ24/(AL4-AJ25) -> 0 | AL24: =IF(AK24=0,0,(AK24*((LOG(AK24))/LOG(2)))) -> 0 | AN24: =N24 -> 21112 | AO24: =COUNTIF(L104:L128,AN24) -> 0 | AP24: =AO24/(AQ4-AO25) -> 0 | AQ24: =IF(AP24=0,0,(AP24*((LOG(AP24))/LOG(2)))) -> 0 | AS24: =N24 -> 21112 | AT24: =COUNTIF(L129:L152,AS24) -> 0 | AU24: =AT24/(AV4-AT25) -> 0 | AV24: =IF(AU24=0,0,(AU24*((LOG(AU24))/LOG(2)))) -> 0
A25: 12 | B25: 2975 | C25: 24 | D25: 2989 | E25: 24 | F25: 2997 | G25: 23 | H25: 3025 | I25: 24 | J25: 3043 | K25: 0 | L25: 12222 | N25: 21121 | O25: =COUNTIF($L$7:$L$500,N25) -> 0 | P25: =O25/$Q$4 -> 0 | Q25: =IF(P25=0,0,(P25*((LOG(P25))/LOG(2)))) -> 0 | T25: =N25 -> 21121 | U25: =COUNTIF(L7:L30,T25) -> 0 | Y25: =N25 -> 21121 | Z25: =COUNTIF(L31:L55,Y25) -> 0 | AD25: =N25 -> 21121 | AE25: =COUNTIF(L56:L79,AD25) -> 0 | AI25: =N25 -> 21121 | AJ25: =COUNTIF(L80:L103,AI25) -> 0 | AN25: =N25 -> 21121 | AO25: =COUNTIF(L104:L128,AN25) -> 0 | AS25: =N25 -> 21121 | AT25: =COUNTIF(L129:L152,AS25) -> 0
A26: 12 | B26: 3143 | C26: 24 | D26: 3158 | E26: 24 | F26: 3166 | G26: 23 | H26: 3177 | I26: 24 | J26: 3186 | K26: 0 | L26: 12222 | N26: 21122 | O26: =COUNTIF($L$7:$L$500,N26) -> 0 | P26: =O26/$Q$4 -> 0 | Q26: =IF(P26=0,0,(P26*((LOG(P26))/LOG(2)))) -> 0 | T26: =N26 -> 21122 | U26: =COUNTIF(L7:L30,T26) -> 0 | V26: =U26/(W4-U25) -> 0 | W26: =IF(V26=0,0,(V26*((LOG(V26))/LOG(2)))) -> 0 | Y26: =N26 -> 21122 | Z26: =COUNTIF(L31:L55,Y26) -> 0 | AA26: =Z26/(AB4-Z25) -> 0 | AB26: =IF(AA26=0,0,(AA26*((LOG(AA26))/LOG(2)))) -> 0 | AD26: =N26 -> 21122 | AE26: =COUNTIF(L56:L79,AD26) -> 0 | AF26: =AE26/(AG4-AE25) -> 0 | AG26: =IF(AF26=0,0,(AF26*((LOG(AF26))/LOG(2)))) -> 0 | AI26: =N26 -> 21122 | AJ26: =COUNTIF(L80:L103,AI26) -> 0 | AK26: =AJ26/(AL4-AJ25) -> 0 | AL26: =IF(AK26=0,0,(AK26*((LOG(AK26))/LOG(2)))) -> 0 | AN26: =N26 -> 21122 | AO26: =COUNTIF(L104:L128,AN26) -> 0 | AP26: =AO26/(AQ4-AO25) -> 0 | AQ26: =IF(AP26=0,0,(AP26*((LOG(AP26))/LOG(2)))) -> 0 | AS26: =N26 -> 21122 | AT26: =COUNTIF(L129:L152,AS26) -> 0 | AU26: =AT26/(AV4-AT25) -> 0 | AV26: =IF(AU26=0,0,(AU26*((LOG(AU26))/LOG(2)))) -> 0
A27: 12 | B27: 3287 | C27: 24 | D27: 3307 | E27: 24 | F27: 3314 | G27: 23 | H27: 3322 | I27: 24 | J27: 3336 | K27: 0 | L27: 12222 | N27: 21211 | O27: =COUNTIF($L$7:$L$500,N27) -> 0 | P27: =O27/$Q$4 -> 0 | Q27: =IF(P27=0,0,(P27*((LOG(P27))/LOG(2)))) -> 0 | T27: =N27 -> 21211 | U27: =COUNTIF(L7:L30,T27) -> 0 | V27: =U27/(W4-U25) -> 0 | W27: =IF(V27=0,0,(V27*((LOG(V27))/LOG(2)))) -> 0 | Y27: =N27 -> 21211 | Z27: =COUNTIF(L31:L55,Y27) -> 0 | AA27: =Z27/(AB4-Z25) -> 0 | AB27: =IF(AA27=0,0,(AA27*((LOG(AA27))/LOG(2)))) -> 0 | AD27: =N27 -> 21211 | AE27: =COUNTIF(L56:L79,AD27) -> 0 | AF27: =AE27/(AG4-AE25) -> 0 | AG27: =IF(AF27=0,0,(AF27*((LOG(AF27))/LOG(2)))) -> 0 | AI27: =N27 -> 21211 | AJ27: =COUNTIF(L80:L103,AI27) -> 0 | AK27: =AJ27/(AL4-AJ25) -> 0 | AL27: =IF(AK27=0,0,(AK27*((LOG(AK27))/LOG(2)))) -> 0 | AN27: =N27 -> 21211 | AO27: =COUNTIF(L104:L128,AN27) -> 0 | AP27: =AO27/(AQ4-AO25) -> 0 | AQ27: =IF(AP27=0,0,(AP27*((LOG(AP27))/LOG(2)))) -> 0 | AS27: =N27 -> 21211 | AT27: =COUNTIF(L129:L152,AS27) -> 0 | AU27: =AT27/(AV4-AT25) -> 0 | AV27: =IF(AU27=0,0,(AU27*((LOG(AU27))/LOG(2)))) -> 0
A28: 12 | B28: 3436 | C28: 24 | D28: 3463 | E28: 24 | F28: 3485 | G28: 23 | H28: 3494 | I28: 13 | J28: 3542 | K28: 0 | L28: 12221 | N28: 21212 | O28: =COUNTIF($L$7:$L$500,N28) -> 0 | P28: =O28/$Q$4 -> 0 | Q28: =IF(P28=0,0,(P28*((LOG(P28))/LOG(2)))) -> 0 | T28: =N28 -> 21212 | U28: =COUNTIF(L7:L30,T28) -> 0 | V28: =U28/(W4-U25) -> 0 | W28: =IF(V28=0,0,(V28*((LOG(V28))/LOG(2)))) -> 0 | Y28: =N28 -> 21212 | Z28: =COUNTIF(L31:L55,Y28) -> 0 | AA28: =Z28/(AB4-Z25) -> 0 | AB28: =IF(AA28=0,0,(AA28*((LOG(AA28))/LOG(2)))) -> 0 | AD28: =N28 -> 21212 | AE28: =COUNTIF(L56:L79,AD28) -> 0 | AF28: =AE28/(AG4-AE25) -> 0 | AG28: =IF(AF28=0,0,(AF28*((LOG(AF28))/LOG(2)))) -> 0 | AI28: =N28 -> 21212 | AJ28: =COUNTIF(L80:L103,AI28) -> 0 | AK28: =AJ28/(AL4-AJ25) -> 0 | AL28: =IF(AK28=0,0,(AK28*((LOG(AK28))/LOG(2)))) -> 0 | AN28: =N28 -> 21212 | AO28: =COUNTIF(L104:L128,AN28) -> 0 | AP28: =AO28/(AQ4-AO25) -> 0 | AQ28: =IF(AP28=0,0,(AP28*((LOG(AP28))/LOG(2)))) -> 0 | AS28: =N28 -> 21212 | AT28: =COUNTIF(L129:L152,AS28) -> 0 | AU28: =AT28/(AV4-AT25) -> 0 | AV28: =IF(AU28=0,0,(AU28*((LOG(AU28))/LOG(2)))) -> 0
A29: 12 | B29: 3645 | C29: 24 | D29: 3656 | E29: 24 | F29: 3665 | G29: 23 | H29: 3673 | I29: 24 | J29: 3689 | K29: 0 | L29: 12222 | N29: 21221 | O29: =COUNTIF($L$7:$L$500,N29) -> 1 | P29: =O29/$Q$4 -> 0.006849315068 | Q29: =IF(P29=0,0,(P29*((LOG(P29))/LOG(2)))) -> -0.04924537369 | T29: =N29 -> 21221 | U29: =COUNTIF(L7:L30,T29) -> 0 | V29: =U29/(W4-U25) -> 0 | W29: =IF(V29=0,0,(V29*((LOG(V29))/LOG(2)))) -> 0 | Y29: =N29 -> 21221 | Z29: =COUNTIF(L31:L55,Y29) -> 0 | AA29: =Z29/(AB4-Z25) -> 0 | AB29: =IF(AA29=0,0,(AA29*((LOG(AA29))/LOG(2)))) -> 0 | AD29: =N29 -> 21221 | AE29: =COUNTIF(L56:L79,AD29) -> 1 | AF29: =AE29/(AG4-AE25) -> 0.04166666667 | AG29: =IF(AF29=0,0,(AF29*((LOG(AF29))/LOG(2)))) -> -0.1910401042 | AI29: =N29 -> 21221 | AJ29: =COUNTIF(L80:L103,AI29) -> 0 | AK29: =AJ29/(AL4-AJ25) -> 0 | AL29: =IF(AK29=0,0,(AK29*((LOG(AK29))/LOG(2)))) -> 0 | AN29: =N29 -> 21221 | AO29: =COUNTIF(L104:L128,AN29) -> 0 | AP29: =AO29/(AQ4-AO25) -> 0 | AQ29: =IF(AP29=0,0,(AP29*((LOG(AP29))/LOG(2)))) -> 0 | AS29: =N29 -> 21221 | AT29: =COUNTIF(L129:L152,AS29) -> 0 | AU29: =AT29/(AV4-AT25) -> 0 | AV29: =IF(AU29=0,0,(AU29*((LOG(AU29))/LOG(2)))) -> 0
A30: 12 | B30: 3788 | C30: 24 | D30: 3804 | E30: 24 | F30: 3814 | G30: 23 | H30: 3822 | I30: 24 | J30: 3850 | K30: 0 | L30: 12222 | N30: 21222 | O30: =COUNTIF($L$7:$L$500,N30) -> 5 | P30: =O30/$Q$4 -> 0.03424657534 | Q30: =IF(P30=0,0,(P30*((LOG(P30))/LOG(2)))) -> -0.166708783 | T30: =N30 -> 21222 | U30: =COUNTIF(L7:L30,T30) -> 0 | V30: =U30/(W4-U25) -> 0 | W30: =IF(V30=0,0,(V30*((LOG(V30))/LOG(2)))) -> 0 | Y30: =N30 -> 21222 | Z30: =COUNTIF(L31:L55,Y30) -> 0 | AA30: =Z30/(AB4-Z25) -> 0 | AB30: =IF(AA30=0,0,(AA30*((LOG(AA30))/LOG(2)))) -> 0 | AD30: =N30 -> 21222 | AE30: =COUNTIF(L56:L79,AD30) -> 0 | AF30: =AE30/(AG4-AE25) -> 0 | AG30: =IF(AF30=0,0,(AF30*((LOG(AF30))/LOG(2)))) -> 0 | AI30: =N30 -> 21222 | AJ30: =COUNTIF(L80:L103,AI30) -> 0 | AK30: =AJ30/(AL4-AJ25) -> 0 | AL30: =IF(AK30=0,0,(AK30*((LOG(AK30))/LOG(2)))) -> 0 | AN30: =N30 -> 21222 | AO30: =COUNTIF(L104:L128,AN30) -> 4 | AP30: =AO30/(AQ4-AO25) -> 0.16 | AQ30: =IF(AP30=0,0,(AP30*((LOG(AP30))/LOG(2)))) -> -0.4230169904 | AS30: =N30 -> 21222 | AT30: =COUNTIF(L129:L152,AS30) -> 1 | AU30: =AT30/(AV4-AT25) -> 0.04166666667 | AV30: =IF(AU30=0,0,(AU30*((LOG(AU30))/LOG(2)))) -> -0.1910401042
A31: 12 | B31: 3950 | C31: 24 | D31: 3961 | E31: 24 | F31: 3969 | G31: 23 | H31: 3977 | I31: 24 | J31: 3984 | K31: 0 | L31: 12222 | N31: 22111 | O31: =COUNTIF($L$7:$L$500,N31) -> 0 | P31: =O31/$Q$4 -> 0 | Q31: =IF(P31=0,0,(P31*((LOG(P31))/LOG(2)))) -> 0 | T31: =N31 -> 22111 | U31: =COUNTIF(L7:L30,T31) -> 0 | V31: =U31/(W4-U25) -> 0 | W31: =IF(V31=0,0,(V31*((LOG(V31))/LOG(2)))) -> 0 | Y31: =N31 -> 22111 | Z31: =COUNTIF(L31:L55,Y31) -> 0 | AA31: =Z31/(AB4-Z25) -> 0 | AB31: =IF(AA31=0,0,(AA31*((LOG(AA31))/LOG(2)))) -> 0 | AD31: =N31 -> 22111 | AE31: =COUNTIF(L56:L79,AD31) -> 0 | AF31: =AE31/(AG4-AE25) -> 0 | AG31: =IF(AF31=0,0,(AF31*((LOG(AF31))/LOG(2)))) -> 0 | AI31: =N31 -> 22111 | AJ31: =COUNTIF(L80:L103,AI31) -> 0 | AK31: =AJ31/(AL4-AJ25) -> 0 | AL31: =IF(AK31=0,0,(AK31*((LOG(AK31))/LOG(2)))) -> 0 | AN31: =N31 -> 22111 | AO31: =COUNTIF(L104:L128,AN31) -> 0 | AP31: =AO31/(AQ4-AO25) -> 0 | AQ31: =IF(AP31=0,0,(AP31*((LOG(AP31))/LOG(2)))) -> 0 | AS31: =N31 -> 22111 | AT31: =COUNTIF(L129:L152,AS31) -> 0 | AU31: =AT31/(AV4-AT25) -> 0 | AV31: =IF(AU31=0,0,(AU31*((LOG(AU31))/LOG(2)))) -> 0
A32: 12 | B32: 4087 | C32: 24 | D32: 4097 | E32: 24 | F32: 4106 | G32: 23 | H32: 4113 | I32: 24 | J32: 4121 | K32: 0 | L32: 12222 | N32: 22112 | O32: =COUNTIF($L$7:$L$500,N32) -> 0 | P32: =O32/$Q$4 -> 0 | Q32: =IF(P32=0,0,(P32*((LOG(P32))/LOG(2)))) -> 0 | T32: =N32 -> 22112 | U32: =COUNTIF(L7:L30,T32) -> 0 | V32: =U32/(W4-U25) -> 0 | W32: =IF(V32=0,0,(V32*((LOG(V32))/LOG(2)))) -> 0 | Y32: =N32 -> 22112 | Z32: =COUNTIF(L31:L55,Y32) -> 0 | AA32: =Z32/(AB4-Z25) -> 0 | AB32: =IF(AA32=0,0,(AA32*((LOG(AA32))/LOG(2)))) -> 0 | AD32: =N32 -> 22112 | AE32: =COUNTIF(L56:L79,AD32) -> 0 | AF32: =AE32/(AG4-AE25) -> 0 | AG32: =IF(AF32=0,0,(AF32*((LOG(AF32))/LOG(2)))) -> 0 | AI32: =N32 -> 22112 | AJ32: =COUNTIF(L80:L103,AI32) -> 0 | AK32: =AJ32/(AL4-AJ25) -> 0 | AL32: =IF(AK32=0,0,(AK32*((LOG(AK32))/LOG(2)))) -> 0 | AN32: =N32 -> 22112 | AO32: =COUNTIF(L104:L128,AN32) -> 0 | AP32: =AO32/(AQ4-AO25) -> 0 | AQ32: =IF(AP32=0,0,(AP32*((LOG(AP32))/LOG(2)))) -> 0 | AS32: =N32 -> 22112 | AT32: =COUNTIF(L129:L152,AS32) -> 0 | AU32: =AT32/(AV4-AT25) -> 0 | AV32: =IF(AU32=0,0,(AU32*((LOG(AU32))/LOG(2)))) -> 0
A33: 12 | B33: 4219 | C33: 24 | D33: 4254 | E33: 24 | F33: 4264 | G33: 23 | H33: 4281 | I33: 24 | J33: 4289 | K33: 0 | L33: 12222 | N33: 22121 | O33: =COUNTIF($L$7:$L$500,N33) -> 0 | P33: =O33/$Q$4 -> 0 | Q33: =IF(P33=0,0,(P33*((LOG(P33))/LOG(2)))) -> 0 | T33: =N33 -> 22121 | U33: =COUNTIF(L7:L30,T33) -> 0 | V33: =U33/(W4-U25) -> 0 | W33: =IF(V33=0,0,(V33*((LOG(V33))/LOG(2)))) -> 0 | Y33: =N33 -> 22121 | Z33: =COUNTIF(L31:L55,Y33) -> 0 | AA33: =Z33/(AB4-Z25) -> 0 | AB33: =IF(AA33=0,0,(AA33*((LOG(AA33))/LOG(2)))) -> 0 | AD33: =N33 -> 22121 | AE33: =COUNTIF(L56:L79,AD33) -> 0 | AF33: =AE33/(AG4-AE25) -> 0 | AG33: =IF(AF33=0,0,(AF33*((LOG(AF33))/LOG(2)))) -> 0 | AI33: =N33 -> 22121 | AJ33: =COUNTIF(L80:L103,AI33) -> 0 | AK33: =AJ33/(AL4-AJ25) -> 0 | AL33: =IF(AK33=0,0,(AK33*((LOG(AK33))/LOG(2)))) -> 0 | AN33: =N33 -> 22121 | AO33: =COUNTIF(L104:L128,AN33) -> 0 | AP33: =AO33/(AQ4-AO25) -> 0 | AQ33: =IF(AP33=0,0,(AP33*((LOG(AP33))/LOG(2)))) -> 0 | AS33: =N33 -> 22121 | AT33: =COUNTIF(L129:L152,AS33) -> 0 | AU33: =AT33/(AV4-AT25) -> 0 | AV33: =IF(AU33=0,0,(AU33*((LOG(AU33))/LOG(2)))) -> 0
A34: 12 | B34: 4391 | C34: 24 | D34: 4413 | E34: 24 | F34: 4464 | G34: 23 | H34: 4471 | I34: 24 | J34: 4480 | K34: 0 | L34: 12222 | N34: 22122 | O34: =COUNTIF($L$7:$L$500,N34) -> 1 | P34: =O34/$Q$4 -> 0.006849315068 | Q34: =IF(P34=0,0,(P34*((LOG(P34))/LOG(2)))) -> -0.04924537369 | T34: =N34 -> 22122 | U34: =COUNTIF(L7:L30,T34) -> 0 | V34: =U34/(W4-U25) -> 0 | W34: =IF(V34=0,0,(V34*((LOG(V34))/LOG(2)))) -> 0 | Y34: =N34 -> 22122 | Z34: =COUNTIF(L31:L55,Y34) -> 0 | AA34: =Z34/(AB4-Z25) -> 0 | AB34: =IF(AA34=0,0,(AA34*((LOG(AA34))/LOG(2)))) -> 0 | AD34: =N34 -> 22122 | AE34: =COUNTIF(L56:L79,AD34) -> 0 | AF34: =AE34/(AG4-AE25) -> 0 | AG34: =IF(AF34=0,0,(AF34*((LOG(AF34))/LOG(2)))) -> 0 | AI34: =N34 -> 22122 | AJ34: =COUNTIF(L80:L103,AI34) -> 0 | AK34: =AJ34/(AL4-AJ25) -> 0 | AL34: =IF(AK34=0,0,(AK34*((LOG(AK34))/LOG(2)))) -> 0 | AN34: =N34 -> 22122 | AO34: =COUNTIF(L104:L128,AN34) -> 0 | AP34: =AO34/(AQ4-AO25) -> 0 | AQ34: =IF(AP34=0,0,(AP34*((LOG(AP34))/LOG(2)))) -> 0 | AS34: =N34 -> 22122 | AT34: =COUNTIF(L129:L152,AS34) -> 1 | AU34: =AT34/(AV4-AT25) -> 0.04166666667 | AV34: =IF(AU34=0,0,(AU34*((LOG(AU34))/LOG(2)))) -> -0.1910401042
A35: 21 | B35: 4589 | C35: 22 | D35: 4601 | E35: 24 | F35: 4609 | G35: 23 | H35: 4617 | I35: 24 | J35: 4626 | K35: 0 | L35: 22222 | N35: 22211 | O35: =COUNTIF($L$7:$L$500,N35) -> 0 | P35: =O35/$Q$4 -> 0 | Q35: =IF(P35=0,0,(P35*((LOG(P35))/LOG(2)))) -> 0 | T35: =N35 -> 22211 | U35: =COUNTIF(L7:L30,T35) -> 0 | V35: =U35/(W4-U25) -> 0 | W35: =IF(V35=0,0,(V35*((LOG(V35))/LOG(2)))) -> 0 | Y35: =N35 -> 22211 | Z35: =COUNTIF(L31:L55,Y35) -> 0 | AA35: =Z35/(AB4-Z25) -> 0 | AB35: =IF(AA35=0,0,(AA35*((LOG(AA35))/LOG(2)))) -> 0 | AD35: =N35 -> 22211 | AE35: =COUNTIF(L56:L79,AD35) -> 0 | AF35: =AE35/(AG4-AE25) -> 0 | AG35: =IF(AF35=0,0,(AF35*((LOG(AF35))/LOG(2)))) -> 0 | AI35: =N35 -> 22211 | AJ35: =COUNTIF(L80:L103,AI35) -> 0 | AK35: =AJ35/(AL4-AJ25) -> 0 | AL35: =IF(AK35=0,0,(AK35*((LOG(AK35))/LOG(2)))) -> 0 | AN35: =N35 -> 22211 | AO35: =COUNTIF(L104:L128,AN35) -> 0 | AP35: =AO35/(AQ4-AO25) -> 0 | AQ35: =IF(AP35=0,0,(AP35*((LOG(AP35))/LOG(2)))) -> 0 | AS35: =N35 -> 22211 | AT35: =COUNTIF(L129:L152,AS35) -> 0 | AU35: =AT35/(AV4-AT25) -> 0 | AV35: =IF(AU35=0,0,(AU35*((LOG(AU35))/LOG(2)))) -> 0
A36: 12 | B36: 4727 | C36: 24 | D36: 4741 | E36: 24 | F36: 4749 | G36: 23 | H36: 4758 | I36: 24 | J36: 4766 | K36: 0 | L36: 12222 | N36: 22212 | O36: =COUNTIF($L$7:$L$500,N36) -> 1 | P36: =O36/$Q$4 -> 0.006849315068 | Q36: =IF(P36=0,0,(P36*((LOG(P36))/LOG(2)))) -> -0.04924537369 | T36: =N36 -> 22212 | U36: =COUNTIF(L7:L30,T36) -> 0 | V36: =U36/(W4-U25) -> 0 | W36: =IF(V36=0,0,(V36*((LOG(V36))/LOG(2)))) -> 0 | Y36: =N36 -> 22212 | Z36: =COUNTIF(L31:L55,Y36) -> 0 | AA36: =Z36/(AB4-Z25) -> 0 | AB36: =IF(AA36=0,0,(AA36*((LOG(AA36))/LOG(2)))) -> 0 | AD36: =N36 -> 22212 | AE36: =COUNTIF(L56:L79,AD36) -> 0 | AF36: =AE36/(AG4-AE25) -> 0 | AG36: =IF(AF36=0,0,(AF36*((LOG(AF36))/LOG(2)))) -> 0 | AI36: =N36 -> 22212 | AJ36: =COUNTIF(L80:L103,AI36) -> 1 | AK36: =AJ36/(AL4-AJ25) -> 0.04166666667 | AL36: =IF(AK36=0,0,(AK36*((LOG(AK36))/LOG(2)))) -> -0.1910401042 | AN36: =N36 -> 22212 | AO36: =COUNTIF(L104:L128,AN36) -> 0 | AP36: =AO36/(AQ4-AO25) -> 0 | AQ36: =IF(AP36=0,0,(AP36*((LOG(AP36))/LOG(2)))) -> 0 | AS36: =N36 -> 22212 | AT36: =COUNTIF(L129:L152,AS36) -> 0 | AU36: =AT36/(AV4-AT25) -> 0 | AV36: =IF(AU36=0,0,(AU36*((LOG(AU36))/LOG(2)))) -> 0
A37: 12 | B37: 4868 | C37: 24 | D37: 4881 | E37: 24 | F37: 4898 | G37: 23 | H37: 4921 | I37: 24 | J37: 4936 | K37: 0 | L37: 12222 | N37: 22221 | O37: =COUNTIF($L$7:$L$500,N37) -> 0 | P37: =O37/$Q$4 -> 0 | Q37: =IF(P37=0,0,(P37*((LOG(P37))/LOG(2)))) -> 0 | T37: =N37 -> 22221 | U37: =COUNTIF(L7:L30,T37) -> 0 | V37: =U37/(W4-U25) -> 0 | W37: =IF(V37=0,0,(V37*((LOG(V37))/LOG(2)))) -> 0 | Y37: =N37 -> 22221 | Z37: =COUNTIF(L31:L55,Y37) -> 0 | AA37: =Z37/(AB4-Z25) -> 0 | AB37: =IF(AA37=0,0,(AA37*((LOG(AA37))/LOG(2)))) -> 0 | AD37: =N37 -> 22221 | AE37: =COUNTIF(L56:L79,AD37) -> 0 | AF37: =AE37/(AG4-AE25) -> 0 | AG37: =IF(AF37=0,0,(AF37*((LOG(AF37))/LOG(2)))) -> 0 | AI37: =N37 -> 22221 | AJ37: =COUNTIF(L80:L103,AI37) -> 0 | AK37: =AJ37/(AL4-AJ25) -> 0 | AL37: =IF(AK37=0,0,(AK37*((LOG(AK37))/LOG(2)))) -> 0 | AN37: =N37 -> 22221 | AO37: =COUNTIF(L104:L128,AN37) -> 0 | AP37: =AO37/(AQ4-AO25) -> 0 | AQ37: =IF(AP37=0,0,(AP37*((LOG(AP37))/LOG(2)))) -> 0 | AS37: =N37 -> 22221 | AT37: =COUNTIF(L129:L152,AS37) -> 0 | AU37: =AT37/(AV4-AT25) -> 0 | AV37: =IF(AU37=0,0,(AU37*((LOG(AU37))/LOG(2)))) -> 0
A38: 12 | B38: 5038 | C38: 24 | D38: 5053 | E38: 24 | F38: 5058 | G38: 23 | H38: 5065 | I38: 24 | J38: 5073 | K38: 0 | L38: 12222 | N38: 22222 | O38: =COUNTIF($L$7:$L$500,N38) -> 5 | P38: =O38/$Q$4 -> 0.03424657534 | Q38: =IF(P38=0,0,(P38*((LOG(P38))/LOG(2)))) -> -0.166708783 | T38: =N38 -> 22222 | U38: =COUNTIF(L7:L30,T38) -> 2 | V38: =U38/(W4-U25) -> 0.08333333333 | W38: =IF(V38=0,0,(V38*((LOG(V38))/LOG(2)))) -> -0.2987468751 | Y38: =N38 -> 22222 | Z38: =COUNTIF(L31:L55,Y38) -> 1 | AA38: =Z38/(AB4-Z25) -> 0.04 | AB38: =IF(AA38=0,0,(AA38*((LOG(AA38))/LOG(2)))) -> -0.1857542476 | AD38: =N38 -> 22222 | AE38: =COUNTIF(L56:L79,AD38) -> 0 | AF38: =AE38/(AG4-AE25) -> 0 | AG38: =IF(AF38=0,0,(AF38*((LOG(AF38))/LOG(2)))) -> 0 | AI38: =N38 -> 22222 | AJ38: =COUNTIF(L80:L103,AI38) -> 1 | AK38: =AJ38/(AL4-AJ25) -> 0.04166666667 | AL38: =IF(AK38=0,0,(AK38*((LOG(AK38))/LOG(2)))) -> -0.1910401042 | AN38: =N38 -> 22222 | AO38: =COUNTIF(L104:L128,AN38) -> 1 | AP38: =AO38/(AQ4-AO25) -> 0.04 | AQ38: =IF(AP38=0,0,(AP38*((LOG(AP38))/LOG(2)))) -> -0.1857542476 | AS38: =N38 -> 22222 | AT38: =COUNTIF(L129:L152,AS38) -> 0 | AU38: =AT38/(AV4-AT25) -> 0 | AV38: =IF(AU38=0,0,(AU38*((LOG(AU38))/LOG(2)))) -> 0
A39: 12 | B39: 5181 | C39: 24 | D39: 5191 | E39: 24 | F39: 5199 | G39: 23 | H39: 5208 | I39: 24 | J39: 5232 | K39: 0 | L39: 12222 | P39: =SUM(P7:P38) -> 1 | Q39: =-SUM(Q7:Q38) -> 2.40726935 | V39: =SUM(V7:V38) -> 1 | W39: =-SUM(W7:W38) -> 0.9000224216 | AA39: =SUM(AA7:AA38) -> 1 | AB39: =-SUM(AB7:AB38) -> 1.789526332 | AF39: =SUM(AF7:AF38) -> 1 | AG39: =-SUM(AG7:AG38) -> 1.864786979 | AK39: =SUM(AK7:AK38) -> 1 | AL39: =-SUM(AL7:AL38) -> 2.396240625 | AP39: =SUM(AP7:AP38) -> 1 | AQ39: =-SUM(AQ7:AQ38) -> 2.563215693 | AU39: =SUM(AU7:AU38) -> 1 | AV39: =-SUM(AV7:AV38) -> 2.568030336
A40: 12 | B40: 5333 | C40: 24 | D40: 5343 | E40: 24 | F40: 5353 | G40: 23 | H40: 5362 | I40: 24 | J40: 5370 | K40: 0 | L40: 12222 | P40: U= | Q40: =Q39/(LOG(Q4)/LOG(2)) -> 0.3348161461 | V40: U1= | W40: =W39/(LOG(W4)/LOG(2)) -> 0.196298753 | AA40: U2= | AB40: =AB39/(LOG(AB4)/LOG(2)) -> 0.3853535207 | AF40: U3= | AG40: =AG39/(LOG(AG4)/LOG(2)) -> 0.4067180438 | AK40: U4= | AL40: =AL39/(LOG(AL4)/LOG(2)) -> 0.522630365 | AP40: U5= | AQ40: =AQ39/(LOG(AQ4)/LOG(2)) -> 0.551958456 | AU40: U6= | AV40: =AV39/(LOG(AV4)/LOG(2)) -> 0.5600984382
A41: 12 | B41: 5468 | C41: 24 | D41: 5483 | E41: 24 | F41: 5499 | G41: 23 | H41: 5507 | I41: 24 | J41: 5516 | K41: 0 | L41: 12222
A42: 12 | B42: 5620 | C42: 24 | D42: 5630 | E42: 24 | F42: 5639 | G42: 23 | H42: 5648 | I42: 24 | J42: 5657 | K42: 0 | L42: 12222
A43: 12 | B43: 5756 | C43: 24 | D43: 5765 | E43: 24 | F43: 5774 | G43: 23 | H43: 5784 | I43: 24 | J43: 5799 | K43: 0 | L43: 12222 | N43: Total Target Seq
A44: 12 | B44: 5904 | C44: 24 | D44: 5917 | E44: 24 | F44: 5930 | G44: 23 | H44: 5938 | I44: 24 | J44: 5951 | K44: 0 | L44: 12222 | N44: =COUNTIF(L7:L152,G3) -> 0 | P44: 24 | Q44: 25 | R44: 24 | S44: 24 | T44: 25 | U44: 24
A45: 12 | B45: 6052 | C45: 13 | D45: 6054 | E45: 24 | F45: 6074 | G45: 23 | H45: 6082 | I45: 24 | J45: 6090 | K45: 0 | L45: 11222 | P45: % of reinforcement given in 6 equal intervals based on number of trials
A46: 12 | B46: 6194 | C46: 24 | D46: 6205 | E46: 24 | F46: 6219 | G46: 23 | H46: 6243 | I46: 13 | J46: 6273 | K46: 0 | L46: 12221 | P46: %_1 | Q46: %_2 | R46: %_3 | S46: %_4 | T46: %_5 | U46: %_6
A47: 12 | B47: 6375 | C47: 24 | D47: 6389 | E47: 13 | F47: 6401 | G47: 23 | H47: 6412 | I47: 24 | J47: 6420 | K47: 0 | L47: 12122 | O47: target sequence | P47: =$G$3 -> 21121 | Q47: =$G$3 -> 21121 | R47: =$G$3 -> 21121 | S47: =$G$3 -> 21121 | T47: =$G$3 -> 21121 | U47: =$G$3 -> 21121
A48: 12 | B48: 6520 | C48: 24 | D48: 6537 | E48: 24 | F48: 6545 | G48: 23 | H48: 6566 | I48: 24 | J48: 6575 | K48: 0 | L48: 12222 | O48: total reinforcement | P48: =U25 -> 0 | Q48: =Z25 -> 0 | R48: =AE25 -> 0 | S48: =AJ25 -> 0 | T48: =AO25 -> 0 | U48: =AT25 -> 0
A49: 12 | B49: 6676 | C49: 24 | D49: 6686 | E49: 13 | F49: 6705 | G49: 23 | H49: 6718 | I49: 24 | J49: 6740 | K49: 0 | L49: 12122 | O49: % target
A50: 12 | B50: 6837 | C50: 24 | D50: 6870 | E50: 24 | F50: 6879 | G50: 23 | H50: 6888 | I50: 24 | J50: 6896 | K50: 0 | L50: 12222 | O50: CCRF
A51: 12 | B51: 6997 | C51: 24 | D51: 7006 | E51: 13 | F51: 7032 | G51: 23 | H51: 7065 | I51: 24 | J51: 7089 | K51: 0 | L51: 12122 | O51: % CCRf
A52: 12 | B52: 7190 | C52: 13 | D52: 7213 | E52: 24 | F52: 7245 | G52: 23 | H52: 7261 | I52: 24 | J52: 7276 | K52: 0 | L52: 11222 | O52: average response rate | P52: =J30/P44 -> 160.4166667 | Q52: =(J55-J30)/Q44 -> 160.52 | R52: =(J79-J55)/R44 -> 173.0833333 | S52: =(J103-J79)/S44 -> 162.875 | T52: =(J128-J103)/T44 -> 171.2 | U52: =(J152-J128)/U44 -> 156.5416667
A53: 12 | B53: 7378 | C53: 13 | D53: 7400 | E53: 24 | F53: 7409 | G53: 23 | H53: 7419 | I53: 24 | J53: 7457 | K53: 0 | L53: 11222
A54: 12 | B54: 7561 | C54: 24 | D54: 7571 | E54: 13 | F54: 7582 | G54: 23 | H54: 7628 | I54: 24 | J54: 7635 | K54: 0 | L54: 12122
A55: 12 | B55: 7732 | C55: 24 | D55: 7748 | E55: 24 | F55: 7763 | G55: 14 | H55: 7775 | I55: 24 | J55: 7863 | K55: 0 | L55: 12212
A56: 21 | B56: 7982 | C56: 11 | D56: 7993 | E56: 22 | F56: 8002 | G56: 23 | H56: 8099 | I56: 13 | J56: 8140 | K56: 0 | L56: 21221
A57: 12 | B57: 8244 | C57: 24 | D57: 8254 | E57: 24 | F57: 8276 | G57: 23 | H57: 8284 | I57: 24 | J57: 8293 | K57: 0 | L57: 12222
A58: 12 | B58: 8392 | C58: 24 | D58: 8406 | E58: 24 | F58: 8413 | G58: 23 | H58: 8434 | I58: 24 | J58: 8456 | K58: 0 | L58: 12222
A59: 12 | B59: 8563 | C59: 24 | D59: 8573 | E59: 24 | F59: 8581 | G59: 23 | H59: 8600 | I59: 24 | J59: 8622 | K59: 0 | L59: 12222
A60: 12 | B60: 8724 | C60: 24 | D60: 8736 | E60: 13 | F60: 8745 | G60: 23 | H60: 8757 | I60: 24 | J60: 8790 | K60: 0 | L60: 12122
A61: 12 | B61: 8892 | C61: 24 | D61: 8918 | E61: 24 | F61: 8973 | G61: 23 | H61: 9021 | I61: 24 | J61: 9120 | K61: 0 | L61: 12222
A62: 12 | B62: 9223 | C62: 24 | D62: 9233 | E62: 24 | F62: 9240 | G62: 23 | H62: 9261 | I62: 24 | J62: 9268 | K62: 0 | L62: 12222
A63: 12 | B63: 9368 | C63: 13 | D63: 9379 | E63: 24 | F63: 9390 | G63: 23 | H63: 9397 | I63: 24 | J63: 9405 | K63: 0 | L63: 11222
A64: 12 | B64: 9502 | C64: 24 | D64: 9516 | E64: 24 | F64: 9532 | G64: 23 | H64: 9574 | I64: 24 | J64: 9612 | K64: 0 | L64: 12222
A65: 12 | B65: 9712 | C65: 24 | D65: 9731 | E65: 13 | F65: 9741 | G65: 23 | H65: 9753 | I65: 24 | J65: 9774 | K65: 0 | L65: 12122
A66: 12 | B66: 9876 | C66: 24 | D66: 9889 | E66: 24 | F66: 9897 | G66: 23 | H66: 9904 | I66: 24 | J66: 9911 | K66: 0 | L66: 12222
A67: 12 | B67: 10011 | C67: 24 | D67: 10025 | E67: 24 | F67: 10033 | G67: 14 | H67: 10046 | I67: 24 | J67: 10055 | K67: 0 | L67: 12212
A68: 12 | B68: 10156 | C68: 24 | D68: 10168 | E68: 13 | F68: 10177 | G68: 23 | H68: 10202 | I68: 24 | J68: 10210 | K68: 0 | L68: 12122
A69: 12 | B69: 10315 | C69: 24 | D69: 10324 | E69: 24 | F69: 10337 | G69: 23 | H69: 10347 | I69: 24 | J69: 10360 | K69: 0 | L69: 12222
A70: 12 | B70: 10462 | C70: 24 | D70: 10479 | E70: 24 | F70: 10486 | G70: 23 | H70: 10493 | I70: 24 | J70: 10504 | K70: 0 | L70: 12222
A71: 12 | B71: 10604 | C71: 24 | D71: 10615 | E71: 24 | F71: 10622 | G71: 23 | H71: 10630 | I71: 24 | J71: 10648 | K71: 0 | L71: 12222
A72: 12 | B72: 10754 | C72: 24 | D72: 10764 | E72: 24 | F72: 10777 | G72: 14 | H72: 10796 | I72: 24 | J72: 10813 | K72: 0 | L72: 12212
A73: 12 | B73: 10912 | C73: 24 | D73: 10921 | E73: 24 | F73: 10929 | G73: 14 | H73: 10940 | I73: 24 | J73: 10970 | K73: 0 | L73: 12212
A74: 12 | B74: 11081 | C74: 24 | D74: 11090 | E74: 24 | F74: 11100 | G74: 23 | H74: 11124 | I74: 24 | J74: 11139 | K74: 0 | L74: 12222
A75: 12 | B75: 11245 | C75: 24 | D75: 11256 | E75: 24 | F75: 11281 | G75: 23 | H75: 11290 | I75: 24 | J75: 11340 | K75: 0 | L75: 12222
A76: 12 | B76: 11454 | C76: 24 | D76: 11464 | E76: 13 | F76: 11476 | G76: 23 | H76: 11490 | I76: 24 | J76: 11553 | K76: 0 | L76: 12122
A77: 12 | B77: 11656 | C77: 24 | D77: 11666 | E77: 13 | F77: 11677 | G77: 23 | H77: 11691 | I77: 24 | J77: 11700 | K77: 0 | L77: 12122
A78: 12 | B78: 11804 | C78: 13 | D78: 11820 | E78: 24 | F78: 11835 | G78: 23 | H78: 11852 | I78: 24 | J78: 11869 | K78: 0 | L78: 11222
A79: 12 | B79: 11968 | C79: 24 | D79: 11976 | E79: 13 | F79: 11985 | G79: 23 | H79: 12005 | I79: 24 | J79: 12017 | K79: 0 | L79: 12122
A80: 12 | B80: 12120 | C80: 24 | D80: 12133 | E80: 13 | F80: 12145 | G80: 23 | H80: 12153 | I80: 24 | J80: 12162 | K80: 0 | L80: 12122
A81: 12 | B81: 12261 | C81: 13 | D81: 12272 | E81: 24 | F81: 12301 | G81: 23 | H81: 12309 | I81: 24 | J81: 12319 | K81: 0 | L81: 11222
A82: 12 | B82: 12424 | C82: 24 | D82: 12438 | E82: 24 | F82: 12443 | G82: 23 | H82: 12462 | I82: 24 | J82: 12476 | K82: 0 | L82: 12222
A83: 12 | B83: 12579 | C83: 24 | D83: 12590 | E83: 24 | F83: 12617 | G83: 23 | H83: 12626 | I83: 24 | J83: 12634 | K83: 0 | L83: 12222
A84: 12 | B84: 12736 | C84: 13 | D84: 12742 | E84: 24 | F84: 12754 | G84: 23 | H84: 12763 | I84: 24 | J84: 12770 | K84: 0 | L84: 11222
A85: 12 | B85: 12873 | C85: 24 | D85: 12883 | E85: 13 | F85: 12893 | G85: 23 | H85: 12912 | I85: 24 | J85: 12979 | K85: 0 | L85: 12122
A86: 12 | B86: 13080 | C86: 13 | D86: 13089 | E86: 24 | F86: 13106 | G86: 23 | H86: 13119 | I86: 24 | J86: 13128 | K86: 0 | L86: 11222
A87: 12 | B87: 13227 | C87: 13 | D87: 13245 | E87: 24 | F87: 13254 | G87: 23 | H87: 13262 | I87: 13 | J87: 13274 | K87: 0 | L87: 11221
A88: 12 | B88: 13376 | C88: 13 | D88: 13397 | E88: 13 | F88: 13424 | G88: 23 | H88: 13442 | I88: 24 | J88: 13459 | K88: 0 | L88: 11122
A89: 12 | B89: 13564 | C89: 24 | D89: 13579 | E89: 24 | F89: 13587 | G89: 23 | H89: 13596 | I89: 24 | J89: 13607 | K89: 0 | L89: 12222
A90: 12 | B90: 13712 | C90: 24 | D90: 13722 | E90: 24 | F90: 13729 | G90: 23 | H90: 13737 | I90: 13 | J90: 13750 | K90: 0 | L90: 12221
A91: 21 | B91: 13870 | C91: 22 | D91: 13939 | E91: 24 | F91: 13962 | G91: 23 | H91: 13976 | I91: 24 | J91: 13981 | K91: 0 | L91: 22222
A92: 12 | B92: 14087 | C92: 24 | D92: 14097 | E92: 24 | F92: 14105 | G92: 23 | H92: 14114 | I92: 24 | J92: 14121 | K92: 0 | L92: 12222
A93: 12 | B93: 14223 | C93: 24 | D93: 14238 | E93: 13 | F93: 14250 | G93: 23 | H93: 14268 | I93: 24 | J93: 14277 | K93: 0 | L93: 12122
A94: 12 | B94: 14383 | C94: 24 | D94: 14397 | E94: 24 | F94: 14405 | G94: 23 | H94: 14418 | I94: 24 | J94: 14451 | K94: 0 | L94: 12222
A95: 12 | B95: 14557 | C95: 24 | D95: 14567 | E95: 24 | F95: 14575 | G95: 23 | H95: 14604 | I95: 24 | J95: 14641 | K95: 0 | L95: 12222
A96: 12 | B96: 14749 | C96: 24 | D96: 14758 | E96: 24 | F96: 14771 | G96: 23 | H96: 14793 | I96: 24 | J96: 14810 | K96: 0 | L96: 12222
A97: 12 | B97: 14913 | C97: 24 | D97: 14922 | E97: 24 | F97: 14937 | G97: 23 | H97: 14949 | I97: 24 | J97: 14969 | K97: 0 | L97: 12222
A98: 12 | B98: 15075 | C98: 24 | D98: 15090 | E98: 24 | F98: 15120 | G98: 23 | H98: 15133 | I98: 24 | J98: 15144 | K98: 0 | L98: 12222
A99: 12 | B99: 15246 | C99: 24 | D99: 15271 | E99: 24 | F99: 15292 | G99: 23 | H99: 15302 | I99: 24 | J99: 15311 | K99: 0 | L99: 12222
A100: 12 | B100: 15415 | C100: 24 | D100: 15426 | E100: 24 | F100: 15433 | G100: 23 | H100: 15449 | I100: 24 | J100: 15475 | K100: 0 | L100: 12222
A101: 21 | B101: 15586 | C101: 22 | D101: 15594 | E101: 24 | F101: 15600 | G101: 14 | H101: 15612 | I101: 24 | J101: 15622 | K101: 0 | L101: 22212
A102: 12 | B102: 15730 | C102: 24 | D102: 15748 | E102: 24 | F102: 15755 | G102: 23 | H102: 15770 | I102: 24 | J102: 15778 | K102: 0 | L102: 12222
A103: 12 | B103: 15882 | C103: 24 | D103: 15892 | E103: 24 | F103: 15901 | G103: 14 | H103: 15913 | I103: 24 | J103: 15926 | K103: 0 | L103: 12212
A104: 12 | B104: 16034 | C104: 24 | D104: 16043 | E104: 13 | F104: 16111 | G104: 23 | H104: 16125 | I104: 24 | J104: 16135 | K104: 0 | L104: 12122
A105: 12 | B105: 16240 | C105: 24 | D105: 16251 | E105: 24 | F105: 16259 | G105: 23 | H105: 16267 | I105: 24 | J105: 16299 | K105: 0 | L105: 12222
A106: 12 | B106: 16403 | C106: 24 | D106: 16412 | E106: 24 | F106: 16419 | G106: 23 | H106: 16442 | I106: 24 | J106: 16455 | K106: 0 | L106: 12222
A107: 12 | B107: 16558 | C107: 24 | D107: 16573 | E107: 24 | F107: 16580 | G107: 14 | H107: 16591 | I107: 24 | J107: 16604 | K107: 0 | L107: 12212
A108: 12 | B108: 16703 | C108: 13 | D108: 16713 | E108: 24 | F108: 16722 | G108: 23 | H108: 16730 | I108: 24 | J108: 16738 | K108: 0 | L108: 11222
A109: 12 | B109: 16857 | C109: 24 | D109: 16871 | E109: 24 | F109: 16879 | G109: 23 | H109: 16899 | I109: 24 | J109: 16929 | K109: 0 | L109: 12222
A110: 21 | B110: 17059 | C110: 11 | D110: 17074 | E110: 22 | F110: 17088 | G110: 23 | H110: 17098 | I110: 24 | J110: 17107 | K110: 0 | L110: 21222
A111: 21 | B111: 17236 | C111: 11 | D111: 17246 | E111: 22 | F111: 17260 | G111: 23 | H111: 17297 | I111: 24 | J111: 17306 | K111: 0 | L111: 21222
A112: 12 | B112: 17413 | C112: 24 | D112: 17424 | E112: 24 | F112: 17432 | G112: 23 | H112: 17442 | I112: 24 | J112: 17450 | K112: 0 | L112: 12222
A113: 12 | B113: 17553 | C113: 13 | D113: 17575 | E113: 24 | F113: 17584 | G113: 23 | H113: 17592 | I113: 24 | J113: 17601 | K113: 0 | L113: 11222
A114: 21 | B114: 17732 | C114: 11 | D114: 17744 | E114: 22 | F114: 17760 | G114: 23 | H114: 17779 | I114: 24 | J114: 17822 | K114: 0 | L114: 21222
A115: 12 | B115: 17926 | C115: 24 | D115: 17973 | E115: 24 | F115: 17985 | G115: 23 | H115: 17999 | I115: 24 | J115: 18032 | K115: 0 | L115: 12222
A116: 12 | B116: 18137 | C116: 24 | D116: 18144 | E116: 24 | F116: 18151 | G116: 14 | H116: 18162 | I116: 24 | J116: 18193 | K116: 0 | L116: 12212
A117: 12 | B117: 18294 | C117: 13 | D117: 18339 | E117: 24 | F117: 18348 | G117: 23 | H117: 18364 | I117: 24 | J117: 18376 | K117: 0 | L117: 11222
A118: 12 | B118: 18475 | C118: 24 | D118: 18492 | E118: 13 | F118: 18508 | G118: 23 | H118: 18547 | I118: 24 | J118: 18588 | K118: 0 | L118: 12122
A119: 21 | B119: 18714 | C119: 22 | D119: 18723 | E119: 24 | F119: 18732 | G119: 23 | H119: 18754 | I119: 24 | J119: 18762 | K119: 0 | L119: 22222
A120: 12 | B120: 18873 | C120: 24 | D120: 18882 | E120: 24 | F120: 18889 | G120: 23 | H120: 18903 | I120: 13 | J120: 18918 | K120: 0 | L120: 12221
A121: 21 | B121: 19028 | C121: 11 | D121: 19040 | E121: 22 | F121: 19049 | G121: 23 | H121: 19058 | I121: 24 | J121: 19067 | K121: 0 | L121: 21222
A122: 12 | B122: 19189 | C122: 24 | D122: 19198 | E122: 24 | F122: 19213 | G122: 23 | H122: 19223 | I122: 24 | J122: 19232 | K122: 0 | L122: 12222
A123: 12 | B123: 19338 | C123: 24 | D123: 19345 | E123: 24 | F123: 19356 | G123: 14 | H123: 19365 | I123: 24 | J123: 19383 | K123: 0 | L123: 12212
A124: 12 | B124: 19495 | C124: 24 | D124: 19504 | E124: 13 | F124: 19517 | G124: 23 | H124: 19534 | I124: 24 | J124: 19550 | K124: 0 | L124: 12122
A125: 12 | B125: 19654 | C125: 24 | D125: 19667 | E125: 13 | F125: 19678 | G125: 23 | H125: 19690 | I125: 24 | J125: 19698 | K125: 0 | L125: 12122
A126: 12 | B126: 19815 | C126: 13 | D126: 19829 | E126: 24 | F126: 19842 | G126: 23 | H126: 19855 | I126: 24 | J126: 19862 | K126: 0 | L126: 11222
A127: 12 | B127: 19985 | C127: 24 | D127: 19991 | E127: 13 | F127: 20003 | G127: 23 | H127: 20012 | I127: 24 | J127: 20021 | K127: 0 | L127: 12122
A128: 12 | B128: 20125 | C128: 24 | D128: 20139 | E128: 24 | F128: 20180 | G128: 23 | H128: 20197 | I128: 24 | J128: 20206 | K128: 0 | L128: 12222
A129: 21 | B129: 20322 | C129: 22 | D129: 20331 | E129: 13 | F129: 20341 | G129: 23 | H129: 20349 | I129: 24 | J129: 20357 | K129: 0 | L129: 22122
A130: 12 | B130: 20466 | C130: 24 | D130: 20500 | E130: 13 | F130: 20512 | G130: 23 | H130: 20523 | I130: 24 | J130: 20532 | K130: 0 | L130: 12122
A131: 12 | B131: 20632 | C131: 24 | D131: 20641 | E131: 24 | F131: 20647 | G131: 14 | H131: 20658 | I131: 24 | J131: 20666 | K131: 0 | L131: 12212
A132: 12 | B132: 20774 | C132: 24 | D132: 20787 | E132: 24 | F132: 20800 | G132: 23 | H132: 20816 | I132: 24 | J132: 20825 | K132: 0 | L132: 12222
A133: 12 | B133: 20927 | C133: 24 | D133: 20937 | E133: 13 | F133: 20948 | G133: 23 | H133: 20956 | I133: 24 | J133: 20964 | K133: 0 | L133: 12122
A134: 12 | B134: 21063 | C134: 13 | D134: 21080 | E134: 24 | F134: 21093 | G134: 14 | H134: 21109 | I134: 24 | J134: 21118 | K134: 0 | L134: 11212
A135: 12 | B135: 21218 | C135: 13 | D135: 21229 | E135: 13 | F135: 21237 | G135: 23 | H135: 21248 | I135: 24 | J135: 21256 | K135: 0 | L135: 11122
A136: 12 | B136: 21354 | C136: 24 | D136: 21364 | E136: 24 | F136: 21372 | G136: 23 | H136: 21380 | I136: 24 | J136: 21393 | K136: 0 | L136: 12222
A137: 21 | B137: 21514 | C137: 11 | D137: 21529 | E137: 22 | F137: 21547 | G137: 23 | H137: 21557 | I137: 24 | J137: 21567 | K137: 0 | L137: 21222
A138: 12 | B138: 21665 | C138: 24 | D138: 21671 | E138: 13 | F138: 21683 | G138: 23 | H138: 21692 | I138: 24 | J138: 21701 | K138: 0 | L138: 12122
A139: 12 | B139: 21809 | C139: 24 | D139: 21815 | E139: 24 | F139: 21821 | G139: 14 | H139: 21833 | I139: 24 | J139: 21857 | K139: 0 | L139: 12212
A140: 12 | B140: 21983 | C140: 24 | D140: 21997 | E140: 24 | F140: 22024 | G140: 23 | H140: 22046 | I140: 13 | J140: 22067 | K140: 0 | L140: 12221
A141: 12 | B141: 22168 | C141: 24 | D141: 22182 | E141: 24 | F141: 22191 | G141: 23 | H141: 22198 | I141: 24 | J141: 22231 | K141: 0 | L141: 12222
A142: 12 | B142: 22337 | C142: 24 | D142: 22353 | E142: 24 | F142: 22362 | G142: 23 | H142: 22372 | I142: 24 | J142: 22380 | K142: 0 | L142: 12222
A143: 12 | B143: 22478 | C143: 24 | D143: 22493 | E143: 13 | F143: 22505 | G143: 23 | H143: 22518 | I143: 24 | J143: 22527 | K143: 0 | L143: 12122
A144: 12 | B144: 22632 | C144: 24 | D144: 22642 | E144: 24 | F144: 22652 | G144: 23 | H144: 22684 | I144: 24 | J144: 22704 | K144: 0 | L144: 12222
A145: 12 | B145: 22803 | C145: 13 | D145: 22818 | E145: 24 | F145: 22831 | G145: 23 | H145: 22840 | I145: 13 | J145: 22855 | K145: 0 | L145: 11221
A146: 12 | B146: 22953 | C146: 24 | D146: 22975 | E146: 24 | F146: 22980 | G146: 23 | H146: 22993 | I146: 24 | J146: 23008 | K146: 0 | L146: 12222
A147: 12 | B147: 23117 | C147: 24 | D147: 23128 | E147: 24 | F147: 23152 | G147: 23 | H147: 23200 | I147: 24 | J147: 23209 | K147: 0 | L147: 12222
A148: 12 | B148: 23312 | C148: 24 | D148: 23326 | E148: 13 | F148: 23337 | G148: 23 | H148: 23350 | I148: 24 | J148: 23371 | K148: 0 | L148: 12122
A149: 12 | B149: 23480 | C149: 24 | D149: 23492 | E149: 13 | F149: 23504 | G149: 23 | H149: 23528 | I149: 24 | J149: 23538 | K149: 0 | L149: 12122
A150: 12 | B150: 23650 | C150: 24 | D150: 23656 | E150: 24 | F150: 23664 | G150: 14 | H150: 23674 | I150: 24 | J150: 23697 | K150: 0 | L150: 12212
A151: 12 | B151: 23795 | C151: 24 | D151: 23804 | E151: 24 | F151: 23814 | G151: 23 | H151: 23818 | I151: 24 | J151: 23824 | K151: 0 | L151: 12222
A152: 12 | B152: 23924 | C152: 24 | D152: 23934 | E152: 13 | F152: 23942 | G152: 23 | H152: 23955 | I152: 24 | J152: 23963 | L152: 12122

Sheet !N121850.091
A1: Report for:!N121850.091
A2: Date: | B2: <date>
A3: Hen: | B3: <hen> | F3: Correct Sequence | G3: =Start!J2 -> 21121 | P3: Total Sequences in Data | Q3: =4994-COUNTBLANK(L7:L5000) -> 131 | V3: Total Sequences in Block Data | W3: =COUNTA(L7:L28) -> 22 | AA3: Total Sequences in Block Data | AB3: =COUNTA(L29:L50) -> 22 | AF3: Total Sequences in Block Data | AG3: =COUNTA(L51:L71) -> 21 | AK3: Total Sequences in Block Data | AL3: =COUNTA(L72:L93) -> 22 | AP3: Total Sequences in Block Data | AQ3: =COUNTA(L94:L115) -> 22 | AU3: Total Sequences in Block Data | AV3: =COUNTA(L116:L137) -> 22
P4: Total Sequences in Summary | Q4: =SUM(O7:O38) -> 130 | V4: Total Sequences in Block Summary | W4: =SUM(U7:U38) -> 22 | AA4: Total Sequences in Block Summary | AB4: =SUM(Z7:Z38) -> 22 | AF4: Total Sequences in Block Summary | AG4: =SUM(AE7:AE38) -> 21 | AK4: Total Sequences in Block Summary | AL4: =SUM(AJ7:AJ38) -> 22 | AP4: Total Sequences in Block Summary | AQ4: =SUM(AO7:AO38) -> 22 | AU4: Total Sequences in Block Summary | AV4: =SUM(AT7:AT38) -> 21
T5: Block 1 | Y5: Block 2 | AD5: Block 3 | AI5: Block 4 | AN5: Block 5 | AS5: Block 6
A6: Sequence Component 1 | B6: Time 1 | C6: Sequence Component 2 | D6: Time 2 | E6: Sequence Component 3 | F6: Time 3 | G6: Sequence Component 4 | H6: Time 4 | I6: Sequence Component 5 | J6: Time 5 | K6: Correct? 0=No 1=Yes | L6: Sequence | N6: Frequency | P6: Relative Frequency | Q6: Variability | T6: Frequency | V6: Relative Frequency | W6: Variability | Y6: Frequency | AA6: Relative Frequency | AB6: Variability | AD6: Frequency | AF6: Relative Frequency | AG6: Variability | AI6: Frequency | AK6: Relative Frequency | AL6: Variability | AN6: Frequency | AP6: Relative Frequency | AQ6: Variability | AS6: Frequency | AU6: Relative Frequency | AV6: Variability
A7: 21 | B7: 60 | C7: 22 | D7: 73 | E7: 24 | F7: 105 | G7: 23 | H7: 119 | I7: 24 | J7: 134 | K7: 0 | L7: 22222 | N7: 11111 | O7: =COUNTIF($L$7:$L$500,N7) -> 0 | P7: =O7/$Q$4 -> 0 | Q7: =IF(P7=0,0,(P7*((LOG(P7))/LOG(2)))) -> 0 | T7: =N7 -> 11111 | U7: =COUNTIF(L7:L28,T7) -> 0 | V7: =U7/(W4-U25) -> 0 | W7: =IF(V7=0,0,(V7*((LOG(V7))/LOG(2)))) -> 0 | Y7: =N7 -> 11111 | Z7: =COUNTIF(L29:L50,Y7) -> 0 | AA7: =Z7/(AB4-Z25) -> 0 | AB7: =IF(AA7=0,0,(AA7*((LOG(AA7))/LOG(2)))) -> 0 | AD7: =N7 -> 11111 | AE7: =COUNTIF(L51:L71,AD7) -> 0 | AF7: =AE7/(AG4-AE25) -> 0 | AG7: =IF(AF7=0,0,(AF7*((LOG(AF7))/LOG(2)))) -> 0 | AI7: =N7 -> 11111 | AJ7: =COUNTIF(L72:L93,AI7) -> 0 | AK7: =AJ7/(AL4-AJ25) -> 0 | AL7: =IF(AK7=0,0,(AK7*((LOG(AK7))/LOG(2)))) -> 0 | AN7: =N7 -> 11111 | AO7: =COUNTIF(L94:L115,AN7) -> 0 | AP7: =AO7/(AQ4-AO25) -> 0 | AQ7: =IF(AP7=0,0,(AP7*((LOG(AP7))/LOG(2)))) -> 0 | AS7: =N7 -> 11111 | AT7: =COUNTIF(L116:L137,AS7) -> 0 | AU7: =AT7/(AV4-AT25) -> 0 | AV7: =IF(AU7=0,0,(AU7*((LOG(AU7))/LOG(2)))) -> 0
A8: 12 | B8: 236 | C8: 24 | D8: 249 | E8: 24 | F8: 282 | G8: 23 | H8: 300 | I8: 24 | J8: 312 | K8: 0 | L8: 12222 | N8: 11112 | O8: =COUNTIF($L$7:$L$500,N8) -> 0 | P8: =O8/$Q$4 -> 0 | Q8: =IF(P8=0,0,(P8*((LOG(P8))/LOG(2)))) -> 0 | T8: =N8 -> 11112 | U8: =COUNTIF(L7:L28,T8) -> 0 | V8: =U8/(W4-U25) -> 0 | W8: =IF(V8=0,0,(V8*((LOG(V8))/LOG(2)))) -> 0 | Y8: =N8 -> 11112 | Z8: =COUNTIF(L29:L50,Y8) -> 0 | AA8: =Z8/(AB4-Z25) -> 0 | AB8: =IF(AA8=0,0,(AA8*((LOG(AA8))/LOG(2)))) -> 0 | AD8: =N8 -> 11112 | AE8: =COUNTIF(L51:L71,AD8) -> 0 | AF8: =AE8/(AG4-AE25) -> 0 | AG8: =IF(AF8=0,0,(AF8*((LOG(AF8))/LOG(2)))) -> 0 | AI8: =N8 -> 11112 | AJ8: =COUNTIF(L72:L93,AI8) -> 0 | AK8: =AJ8/(AL4-AJ25) -> 0 | AL8: =IF(AK8=0,0,(AK8*((LOG(AK8))/LOG(2)))) -> 0 | AN8: =N8 -> 11112 | AO8: =COUNTIF(L94:L115,AN8) -> 0 | AP8: =AO8/(AQ4-AO25) -> 0 | AQ8: =IF(AP8=0,0,(AP8*((LOG(AP8))/LOG(2)))) -> 0 | AS8: =N8 -> 11112 | AT8: =COUNTIF(L116:L137,AS8) -> 0 | AU8: =AT8/(AV4-AT25) -> 0 | AV8: =IF(AU8=0,0,(AU8*((LOG(AU8))/LOG(2)))) -> 0
A9: 12 | B9: 414 | C9: 24 | D9: 423 | E9: 24 | F9: 437 | G9: 23 | H9: 464 | I9: 24 | J9: 474 | K9: 0 | L9: 12222 | N9: 11121 | O9: =COUNTIF($L$7:$L$500,N9) -> 2 | P9: =O9/$Q$4 -> 0.01538461538 | Q9: =IF(P9=0,0,(P9*((LOG(P9))/LOG(2)))) -> -0.09265181251 | T9: =N9 -> 11121 | U9: =COUNTIF(L7:L28,T9) -> 0 | V9: =U9/(W4-U25) -> 0 | W9: =IF(V9=0,0,(V9*((LOG(V9))/LOG(2)))) -> 0 | Y9: =N9 -> 11121 | Z9: =COUNTIF(L29:L50,Y9) -> 0 | AA9: =Z9/(AB4-Z25) -> 0 | AB9: =IF(AA9=0,0,(AA9*((LOG(AA9))/LOG(2)))) -> 0 | AD9: =N9 -> 11121 | AE9: =COUNTIF(L51:L71,AD9) -> 0 | AF9: =AE9/(AG4-AE25) -> 0 | AG9: =IF(AF9=0,0,(AF9*((LOG(AF9))/LOG(2)))) -> 0 | AI9: =N9 -> 11121 | AJ9: =COUNTIF(L72:L93,AI9) -> 0 | AK9: =AJ9/(AL4-AJ25) -> 0 | AL9: =IF(AK9=0,0,(AK9*((LOG(AK9))/LOG(2)))) -> 0 | AN9: =N9 -> 11121 | AO9: =COUNTIF(L94:L115,AN9) -> 2 | AP9: =AO9/(AQ4-AO25) -> 0.09523809524 | AQ9: =IF(AP9=0,0,(AP9*((LOG(AP9))/LOG(2)))) -> -0.3230778498 | AS9: =N9 -> 11121 | AT9: =COUNTIF(L116:L137,AS9) -> 0 | AU9: =AT9/(AV4-AT25) -> 0 | AV9: =IF(AU9=0,0,(AU9*((LOG(AU9))/LOG(2)))) -> 0
A10: 12 | B10: 573 | C10: 24 | D10: 587 | E10: 24 | F10: 597 | G10: 23 | H10: 634 | I10: 24 | J10: 643 | K10: 0 | L10: 12222 | N10: 11122 | O10: =COUNTIF($L$7:$L$500,N10) -> 1 | P10: =O10/$Q$4 -> 0.007692307692 | Q10: =IF(P10=0,0,(P10*((LOG(P10))/LOG(2)))) -> -0.05401821395 | T10: =N10 -> 11122 | U10: =COUNTIF(L7:L28,T10) -> 0 | V10: =U10/(W4-U25) -> 0 | W10: =IF(V10=0,0,(V10*((LOG(V10))/LOG(2)))) -> 0 | Y10: =N10 -> 11122 | Z10: =COUNTIF(L29:L50,Y10) -> 1 | AA10: =Z10/(AB4-Z25) -> 0.04545454545 | AB10: =IF(AA10=0,0,(AA10*((LOG(AA10))/LOG(2)))) -> -0.2027014372 | AD10: =N10 -> 11122 | AE10: =COUNTIF(L51:L71,AD10) -> 0 | AF10: =AE10/(AG4-AE25) -> 0 | AG10: =IF(AF10=0,0,(AF10*((LOG(AF10))/LOG(2)))) -> 0 | AI10: =N10 -> 11122 | AJ10: =COUNTIF(L72:L93,AI10) -> 0 | AK10: =AJ10/(AL4-AJ25) -> 0 | AL10: =IF(AK10=0,0,(AK10*((LOG(AK10))/LOG(2)))) -> 0 | AN10: =N10 -> 11122 | AO10: =COUNTIF(L94:L115,AN10) -> 0 | AP10: =AO10/(AQ4-AO25) -> 0 | AQ10: =IF(AP10=0,0,(AP10*((LOG(AP10))/LOG(2)))) -> 0 | AS10: =N10 -> 11122 | AT10: =COUNTIF(L116:L137,AS10) -> 0 | AU10: =AT10/(AV4-AT25) -> 0 | AV10: =IF(AU10=0,0,(AU10*((LOG(AU10))/LOG(2)))) -> 0
A11: 12 | B11: 750 | C11: 24 | D11: 763 | E11: 24 | F11: 780 | G11: 23 | H11: 792 | I11: 24 | J11: 800 | K11: 0 | L11: 12222 | N11: 11211 | O11: =COUNTIF($L$7:$L$500,N11) -> 3 | P11: =O11/$Q$4 -> 0.02307692308 | Q11: =IF(P11=0,0,(P11*((LOG(P11))/LOG(2)))) -> -0.1254785841 | T11: =N11 -> 11211 | U11: =COUNTIF(L7:L28,T11) -> 0 | V11: =U11/(W4-U25) -> 0 | W11: =IF(V11=0,0,(V11*((LOG(V11))/LOG(2)))) -> 0 | Y11: =N11 -> 11211 | Z11: =COUNTIF(L29:L50,Y11) -> 0 | AA11: =Z11/(AB4-Z25) -> 0 | AB11: =IF(AA11=0,0,(AA11*((LOG(AA11))/LOG(2)))) -> 0 | AD11: =N11 -> 11211 | AE11: =COUNTIF(L51:L71,AD11) -> 1 | AF11: =AE11/(AG4-AE25) -> 0.04761904762 | AG11: =IF(AF11=0,0,(AF11*((LOG(AF11))/LOG(2)))) -> -0.2091579725 | AI11: =N11 -> 11211 | AJ11: =COUNTIF(L72:L93,AI11) -> 1 | AK11: =AJ11/(AL4-AJ25) -> 0.04545454545 | AL11: =IF(AK11=0,0,(AK11*((LOG(AK11))/LOG(2)))) -> -0.2027014372 | AN11: =N11 -> 11211 | AO11: =COUNTIF(L94:L115,AN11) -> 0 | AP11: =AO11/(AQ4-AO25) -> 0 | AQ11: =IF(AP11=0,0,(AP11*((LOG(AP11))/LOG(2)))) -> 0 | AS11: =N11 -> 11211 | AT11: =COUNTIF(L116:L137,AS11) -> 1 | AU11: =AT11/(AV4-AT25) -> 0.04761904762 | AV11: =IF(AU11=0,0,(AU11*((LOG(AU11))/LOG(2)))) -> -0.2091579725
A12: 12 | B12: 899 | C12: 24 | D12: 928 | E12: 24 | F12: 976 | G12: 23 | H12: 1037 | I12: 24 | J12: 1046 | K12: 0 | L12: 12222 | N12: 11212 | O12: =COUNTIF($L$7:$L$500,N12) -> 11 | P12: =O12/$Q$4 -> 0.08461538462 | Q12: =IF(P12=0,0,(P12*((LOG(P12))/LOG(2)))) -> -0.3014792164 | T12: =N12 -> 11212 | U12: =COUNTIF(L7:L28,T12) -> 0 | V12: =U12/(W4-U25) -> 0 | W12: =IF(V12=0,0,(V12*((LOG(V12))/LOG(2)))) -> 0 | Y12: =N12 -> 11212 | Z12: =COUNTIF(L29:L50,Y12) -> 1 | AA12: =Z12/(AB4-Z25) -> 0.04545454545 | AB12: =IF(AA12=0,0,(AA12*((LOG(AA12))/LOG(2)))) -> -0.2027014372 | AD12: =N12 -> 11212 | AE12: =COUNTIF(L51:L71,AD12) -> 6 | AF12: =AE12/(AG4-AE25) -> 0.2857142857 | AG12: =IF(AF12=0,0,(AF12*((LOG(AF12))/LOG(2)))) -> -0.5163871206 | AI12: =N12 -> 11212 | AJ12: =COUNTIF(L72:L93,AI12) -> 1 | AK12: =AJ12/(AL4-AJ25) -> 0.04545454545 | AL12: =IF(AK12=0,0,(AK12*((LOG(AK12))/LOG(2)))) -> -0.2027014372 | AN12: =N12 -> 11212 | AO12: =COUNTIF(L94:L115,AN12) -> 1 | AP12: =AO12/(AQ4-AO25) -> 0.04761904762 | AQ12: =IF(AP12=0,0,(AP12*((LOG(AP12))/LOG(2)))) -> -0.2091579725 | AS12: =N12 -> 11212 | AT12: =COUNTIF(L116:L137,AS12) -> 2 | AU12: =AT12/(AV4-AT25) -> 0.09523809524 | AV12: =IF(AU12=0,0,(AU12*((LOG(AU12))/LOG(2)))) -> -0.3230778498
A13: 12 | B13: 1146 | C13: 24 | D13: 1161 | E13: 24 | F13: 1173 | G13: 23 | H13: 1181 | I13: 24 | J13: 1197 | K13: 0 | L13: 12222 | N13: 11221 | O13: =COUNTIF($L$7:$L$500,N13) -> 4 | P13: =O13/$Q$4 -> 0.03076923077 | Q13: =IF(P13=0,0,(P13*((LOG(P13))/LOG(2)))) -> -0.1545343942 | T13: =N13 -> 11221 | U13: =COUNTIF(L7:L28,T13) -> 0 | V13: =U13/(W4-U25) -> 0 | W13: =IF(V13=0,0,(V13*((LOG(V13))/LOG(2)))) -> 0 | Y13: =N13 -> 11221 | Z13: =COUNTIF(L29:L50,Y13) -> 1 | AA13: =Z13/(AB4-Z25) -> 0.04545454545 | AB13: =IF(AA13=0,0,(AA13*((LOG(AA13))/LOG(2)))) -> -0.2027014372 | AD13: =N13 -> 11221 | AE13: =COUNTIF(L51:L71,AD13) -> 0 | AF13: =AE13/(AG4-AE25) -> 0 | AG13: =IF(AF13=0,0,(AF13*((LOG(AF13))/LOG(2)))) -> 0 | AI13: =N13 -> 11221 | AJ13: =COUNTIF(L72:L93,AI13) -> 1 | AK13: =AJ13/(AL4-AJ25) -> 0.04545454545 | AL13: =IF(AK13=0,0,(AK13*((LOG(AK13))/LOG(2)))) -> -0.2027014372 | AN13: =N13 -> 11221 | AO13: =COUNTIF(L94:L115,AN13) -> 2 | AP13: =AO13/(AQ4-AO25) -> 0.09523809524 | AQ13: =IF(AP13=0,0,(AP13*((LOG(AP13))/LOG(2)))) -> -0.3230778498 | AS13: =N13 -> 11221 | AT13: =COUNTIF(L116:L137,AS13) -> 0 | AU13: =AT13/(AV4-AT25) -> 0 | AV13: =IF(AU13=0,0,(AU13*((LOG(AU13))/LOG(2)))) -> 0
A14: 12 | B14: 1301 | C14: 13 | D14: 1322 | E14: 24 | F14: 1330 | G14: 23 | H14: 1347 | I14: 24 | J14: 1393 | K14: 0 | L14: 11222 | N14: 11222 | O14: =COUNTIF($L$7:$L$500,N14) -> 5 | P14: =O14/$Q$4 -> 0.03846153846 | Q14: =IF(P14=0,0,(P14*((LOG(P14))/LOG(2)))) -> -0.180786143 | T14: =N14 -> 11222 | U14: =COUNTIF(L7:L28,T14) -> 1 | V14: =U14/(W4-U25) -> 0.04545454545 | W14: =IF(V14=0,0,(V14*((LOG(V14))/LOG(2)))) -> -0.2027014372 | Y14: =N14 -> 11222 | Z14: =COUNTIF(L29:L50,Y14) -> 2 | AA14: =Z14/(AB4-Z25) -> 0.09090909091 | AB14: =IF(AA14=0,0,(AA14*((LOG(AA14))/LOG(2)))) -> -0.3144937835 | AD14: =N14 -> 11222 | AE14: =COUNTIF(L51:L71,AD14) -> 2 | AF14: =AE14/(AG4-AE25) -> 0.09523809524 | AG14: =IF(AF14=0,0,(AF14*((LOG(AF14))/LOG(2)))) -> -0.3230778498 | AI14: =N14 -> 11222 | AJ14: =COUNTIF(L72:L93,AI14) -> 0 | AK14: =AJ14/(AL4-AJ25) -> 0 | AL14: =IF(AK14=0,0,(AK14*((LOG(AK14))/LOG(2)))) -> 0 | AN14: =N14 -> 11222 | AO14: =COUNTIF(L94:L115,AN14) -> 0 | AP14: =AO14/(AQ4-AO25) -> 0 | AQ14: =IF(AP14=0,0,(AP14*((LOG(AP14))/LOG(2)))) -> 0 | AS14: =N14 -> 11222 | AT14: =COUNTIF(L116:L137,AS14) -> 0 | AU14: =AT14/(AV4-AT25) -> 0 | AV14: =IF(AU14=0,0,(AU14*((LOG(AU14))/LOG(2)))) -> 0
A15: 12 | B15: 1499 | C15: 24 | D15: 1509 | E15: 24 | F15: 1521 | G15: 23 | H15: 1536 | I15: 13 | J15: 1552 | K15: 0 | L15: 12221 | N15: 12111 | O15: =COUNTIF($L$7:$L$500,N15) -> 0 | P15: =O15/$Q$4 -> 0 | Q15: =IF(P15=0,0,(P15*((LOG(P15))/LOG(2)))) -> 0 | T15: =N15 -> 12111 | U15: =COUNTIF(L7:L28,T15) -> 0 | V15: =U15/(W4-U25) -> 0 | W15: =IF(V15=0,0,(V15*((LOG(V15))/LOG(2)))) -> 0 | Y15: =N15 -> 12111 | Z15: =COUNTIF(L29:L50,Y15) -> 0 | AA15: =Z15/(AB4-Z25) -> 0 | AB15: =IF(AA15=0,0,(AA15*((LOG(AA15))/LOG(2)))) -> 0 | AD15: =N15 -> 12111 | AE15: =COUNTIF(L51:L71,AD15) -> 0 | AF15: =AE15/(AG4-AE25) -> 0 | AG15: =IF(AF15=0,0,(AF15*((LOG(AF15))/LOG(2)))) -> 0 | AI15: =N15 -> 12111 | AJ15: =COUNTIF(L72:L93,AI15) -> 0 | AK15: =AJ15/(AL4-AJ25) -> 0 | AL15: =IF(AK15=0,0,(AK15*((LOG(AK15))/LOG(2)))) -> 0 | AN15: =N15 -> 12111 | AO15: =COUNTIF(L94:L115,AN15) -> 0 | AP15: =AO15/(AQ4-AO25) -> 0 | AQ15: =IF(AP15=0,0,(AP15*((LOG(AP15))/LOG(2)))) -> 0 | AS15: =N15 -> 12111 | AT15: =COUNTIF(L116:L137,AS15) -> 0 | AU15: =AT15/(AV4-AT25) -> 0 | AV15: =IF(AU15=0,0,(AU15*((LOG(AU15))/LOG(2)))) -> 0
A16: 12 | B16: 1655 | C16: 24 | D16: 1662 | E16: 24 | F16: 1675 | G16: 23 | H16: 1689 | I16: 24 | J16: 1710 | K16: 0 | L16: 12222 | N16: 12112 | O16: =COUNTIF($L$7:$L$500,N16) -> 4 | P16: =O16/$Q$4 -> 0.03076923077 | Q16: =IF(P16=0,0,(P16*((LOG(P16))/LOG(2)))) -> -0.1545343942 | T16: =N16 -> 12112 | U16: =COUNTIF(L7:L28,T16) -> 0 | V16: =U16/(W4-U25) -> 0 | W16: =IF(V16=0,0,(V16*((LOG(V16))/LOG(2)))) -> 0 | Y16: =N16 -> 12112 | Z16: =COUNTIF(L29:L50,Y16) -> 0 | AA16: =Z16/(AB4-Z25) -> 0 | AB16: =IF(AA16=0,0,(AA16*((LOG(AA16))/LOG(2)))) -> 0 | AD16: =N16 -> 12112 | AE16: =COUNTIF(L51:L71,AD16) -> 0 | AF16: =AE16/(AG4-AE25) -> 0 | AG16: =IF(AF16=0,0,(AF16*((LOG(AF16))/LOG(2)))) -> 0 | AI16: =N16 -> 12112 | AJ16: =COUNTIF(L72:L93,AI16) -> 2 | AK16: =AJ16/(AL4-AJ25) -> 0.09090909091 | AL16: =IF(AK16=0,0,(AK16*((LOG(AK16))/LOG(2)))) -> -0.3144937835 | AN16: =N16 -> 12112 | AO16: =COUNTIF(L94:L115,AN16) -> 2 | AP16: =AO16/(AQ4-AO25) -> 0.09523809524 | AQ16: =IF(AP16=0,0,(AP16*((LOG(AP16))/LOG(2)))) -> -0.3230778498 | AS16: =N16 -> 12112 | AT16: =COUNTIF(L116:L137,AS16) -> 0 | AU16: =AT16/(AV4-AT25) -> 0 | AV16: =IF(AU16=0,0,(AU16*((LOG(AU16))/LOG(2)))) -> 0
A17: 12 | B17: 1825 | C17: 24 | D17: 1837 | E17: 24 | F17: 1845 | G17: 23 | H17: 1854 | I17: 24 | J17: 1863 | K17: 0 | L17: 12222 | N17: 12121 | O17: =COUNTIF($L$7:$L$500,N17) -> 16 | P17: =O17/$Q$4 -> 0.1230769231 | Q17: =IF(P17=0,0,(P17*((LOG(P17))/LOG(2)))) -> -0.3719837308 | T17: =N17 -> 12121 | U17: =COUNTIF(L7:L28,T17) -> 1 | V17: =U17/(W4-U25) -> 0.04545454545 | W17: =IF(V17=0,0,(V17*((LOG(V17))/LOG(2)))) -> -0.2027014372 | Y17: =N17 -> 12121 | Z17: =COUNTIF(L29:L50,Y17) -> 1 | AA17: =Z17/(AB4-Z25) -> 0.04545454545 | AB17: =IF(AA17=0,0,(AA17*((LOG(AA17))/LOG(2)))) -> -0.2027014372 | AD17: =N17 -> 12121 | AE17: =COUNTIF(L51:L71,AD17) -> 2 | AF17: =AE17/(AG4-AE25) -> 0.09523809524 | AG17: =IF(AF17=0,0,(AF17*((LOG(AF17))/LOG(2)))) -> -0.3230778498 | AI17: =N17 -> 12121 | AJ17: =COUNTIF(L72:L93,AI17) -> 3 | AK17: =AJ17/(AL4-AJ25) -> 0.1363636364 | AL17: =IF(AK17=0,0,(AK17*((LOG(AK17))/LOG(2)))) -> -0.3919730615 | AN17: =N17 -> 12121 | AO17: =COUNTIF(L94:L115,AN17) -> 2 | AP17: =AO17/(AQ4-AO25) -> 0.09523809524 | AQ17: =IF(AP17=0,0,(AP17*((LOG(AP17))/LOG(2)))) -> -0.3230778498 | AS17: =N17 -> 12121 | AT17: =COUNTIF(L116:L137,AS17) -> 7 | AU17: =AT17/(AV4-AT25) -> 0.3333333333 | AV17: =IF(AU17=0,0,(AU17*((LOG(AU17))/LOG(2)))) -> -0.5283208336
A18: 12 | B18: 1963 | C18: 24 | D18: 1976 | E18: 24 | F18: 1992 | G18: 23 | H18: 2000 | I18: 24 | J18: 2008 | K18: 0 | L18: 12222 | N18: 12122 | O18: =COUNTIF($L$7:$L$500,N18) -> 20 | P18: =O18/$Q$4 -> 0.1538461538 | Q18: =IF(P18=0,0,(P18*((LOG(P18))/LOG(2)))) -> -0.4154522643 | T18: =N18 -> 12122 | U18: =COUNTIF(L7:L28,T18) -> 1 | V18: =U18/(W4-U25) -> 0.04545454545 | W18: =IF(V18=0,0,(V18*((LOG(V18))/LOG(2)))) -> -0.2027014372 | Y18: =N18 -> 12122 | Z18: =COUNTIF(L29:L50,Y18) -> 4 | AA18: =Z18/(AB4-Z25) -> 0.1818181818 | AB18: =IF(AA18=0,0,(AA18*((LOG(AA18))/LOG(2)))) -> -0.4471693852 | AD18: =N18 -> 12122 | AE18: =COUNTIF(L51:L71,AD18) -> 7 | AF18: =AE18/(AG4-AE25) -> 0.3333333333 | AG18: =IF(AF18=0,0,(AF18*((LOG(AF18))/LOG(2)))) -> -0.5283208336 | AI18: =N18 -> 12122 | AJ18: =COUNTIF(L72:L93,AI18) -> 3 | AK18: =AJ18/(AL4-AJ25) -> 0.1363636364 | AL18: =IF(AK18=0,0,(AK18*((LOG(AK18))/LOG(2)))) -> -0.3919730615 | AN18: =N18 -> 12122 | AO18: =COUNTIF(L94:L115,AN18) -> 4 | AP18: =AO18/(AQ4-AO25) -> 0.1904761905 | AQ18: =IF(AP18=0,0,(AP18*((LOG(AP18))/LOG(2)))) -> -0.4556795091 | AS18: =N18 -> 12122 | AT18: =COUNTIF(L116:L137,AS18) -> 1 | AU18: =AT18/(AV4-AT25) -> 0.04761904762 | AV18: =IF(AU18=0,0,(AU18*((LOG(AU18))/LOG(2)))) -> -0.2091579725
A19: 12 | B19: 2118 | C19: 24 | D19: 2128 | E19: 24 | F19: 2140 | G19: 23 | H19: 2172 | I19: 24 | J19: 2182 | K19: 0 | L19: 12222 | N19: 12211 | O19: =COUNTIF($L$7:$L$500,N19) -> 2 | P19: =O19/$Q$4 -> 0.01538461538 | Q19: =IF(P19=0,0,(P19*((LOG(P19))/LOG(2)))) -> -0.09265181251 | T19: =N19 -> 12211 | U19: =COUNTIF(L7:L28,T19) -> 0 | V19: =U19/(W4-U25) -> 0 | W19: =IF(V19=0,0,(V19*((LOG(V19))/LOG(2)))) -> 0 | Y19: =N19 -> 12211 | Z19: =COUNTIF(L29:L50,Y19) -> 1 | AA19: =Z19/(AB4-Z25) -> 0.04545454545 | AB19: =IF(AA19=0,0,(AA19*((LOG(AA19))/LOG(2)))) -> -0.2027014372 | AD19: =N19 -> 12211 | AE19: =COUNTIF(L51:L71,AD19) -> 0 | AF19: =AE19/(AG4-AE25) -> 0 | AG19: =IF(AF19=0,0,(AF19*((LOG(AF19))/LOG(2)))) -> 0 | AI19: =N19 -> 12211 | AJ19: =COUNTIF(L72:L93,AI19) -> 1 | AK19: =AJ19/(AL4-AJ25) -> 0.04545454545 | AL19: =IF(AK19=0,0,(AK19*((LOG(AK19))/LOG(2)))) -> -0.2027014372 | AN19: =N19 -> 12211 | AO19: =COUNTIF(L94:L115,AN19) -> 0 | AP19: =AO19/(AQ4-AO25) -> 0 | AQ19: =IF(AP19=0,0,(AP19*((LOG(AP19))/LOG(2)))) -> 0 | AS19: =N19 -> 12211 | AT19: =COUNTIF(L116:L137,AS19) -> 0 | AU19: =AT19/(AV4-AT25) -> 0 | AV19: =IF(AU19=0,0,(AU19*((LOG(AU19))/LOG(2)))) -> 0
A20: 21 | B20: 2306 | C20: 11 | D20: 2315 | E20: 22 | F20: 2341 | G20: 23 | H20: 2350 | I20: 13 | J20: 2386 | K20: 0 | L20: 21221 | N20: 12212 | O20: =COUNTIF($L$7:$L$500,N20) -> 9 | P20: =O20/$Q$4 -> 0.06923076923 | Q20: =IF(P20=0,0,(P20*((LOG(P20))/LOG(2)))) -> -0.2667075793 | T20: =N20 -> 12212 | U20: =COUNTIF(L7:L28,T20) -> 0 | V20: =U20/(W4-U25) -> 0 | W20: =IF(V20=0,0,(V20*((LOG(V20))/LOG(2)))) -> 0 | Y20: =N20 -> 12212 | Z20: =COUNTIF(L29:L50,Y20) -> 2 | AA20: =Z20/(AB4-Z25) -> 0.09090909091 | AB20: =IF(AA20=0,0,(AA20*((LOG(AA20))/LOG(2)))) -> -0.3144937835 | AD20: =N20 -> 12212 | AE20: =COUNTIF(L51:L71,AD20) -> 0 | AF20: =AE20/(AG4-AE25) -> 0 | AG20: =IF(AF20=0,0,(AF20*((LOG(AF20))/LOG(2)))) -> 0 | AI20: =N20 -> 12212 | AJ20: =COUNTIF(L72:L93,AI20) -> 2 | AK20: =AJ20/(AL4-AJ25) -> 0.09090909091 | AL20: =IF(AK20=0,0,(AK20*((LOG(AK20))/LOG(2)))) -> -0.3144937835 | AN20: =N20 -> 12212 | AO20: =COUNTIF(L94:L115,AN20) -> 4 | AP20: =AO20/(AQ4-AO25) -> 0.1904761905 | AQ20: =IF(AP20=0,0,(AP20*((LOG(AP20))/LOG(2)))) -> -0.4556795091 | AS20: =N20 -> 12212 | AT20: =COUNTIF(L116:L137,AS20) -> 1 | AU20: =AT20/(AV4-AT25) -> 0.04761904762 | AV20: =IF(AU20=0,0,(AU20*((LOG(AU20))/LOG(2)))) -> -0.2091579725
A21: 12 | B21: 2486 | C21: 24 | D21: 2502 | E21: 24 | F21: 2511 | G21: 23 | H21: 2531 | I21: 24 | J21: 2540 | K21: 0 | L21: 12222 | N21: 12221 | O21: =COUNTIF($L$7:$L$500,N21) -> 3 | P21: =O21/$Q$4 -> 0.02307692308 | Q21: =IF(P21=0,0,(P21*((LOG(P21))/LOG(2)))) -> -0.1254785841 | T21: =N21 -> 12221 | U21: =COUNTIF(L7:L28,T21) -> 3 | V21: =U21/(W4-U25) -> 0.1363636364 | W21: =IF(V21=0,0,(V21*((LOG(V21))/LOG(2)))) -> -0.3919730615 | Y21: =N21 -> 12221 | Z21: =COUNTIF(L29:L50,Y21) -> 0 | AA21: =Z21/(AB4-Z25) -> 0 | AB21: =IF(AA21=0,0,(AA21*((LOG(AA21))/LOG(2)))) -> 0 | AD21: =N21 -> 12221 | AE21: =COUNTIF(L51:L71,AD21) -> 0 | AF21: =AE21/(AG4-AE25) -> 0 | AG21: =IF(AF21=0,0,(AF21*((LOG(AF21))/LOG(2)))) -> 0 | AI21: =N21 -> 12221 | AJ21: =COUNTIF(L72:L93,AI21) -> 0 | AK21: =AJ21/(AL4-AJ25) -> 0 | AL21: =IF(AK21=0,0,(AK21*((LOG(AK21))/LOG(2)))) -> 0 | AN21: =N21 -> 12221 | AO21: =COUNTIF(L94:L115,AN21) -> 0 | AP21: =AO21/(AQ4-AO25) -> 0 | AQ21: =IF(AP21=0,0,(AP21*((LOG(AP21))/LOG(2)))) -> 0 | AS21: =N21 -> 12221 | AT21: =COUNTIF(L116:L137,AS21) -> 0 | AU21: =AT21/(AV4-AT25) -> 0 | AV21: =IF(AU21=0,0,(AU21*((LOG(AU21))/LOG(2)))) -> 0
A22: 12 | B22: 2640 | C22: 24 | D22: 2653 | E22: 24 | F22: 2667 | G22: 23 | H22: 2675 | I22: 24 | J22: 2683 | K22: 0 | L22: 12222 | N22: 12222 | O22: =COUNTIF($L$7:$L$500,N22) -> 14 | P22: =O22/$Q$4 -> 0.1076923077 | Q22: =IF(P22=0,0,(P22*((LOG(P22))/LOG(2)))) -> -0.3462321575 | T22: =N22 -> 12222 | U22: =COUNTIF(L7:L28,T22) -> 13 | V22: =U22/(W4-U25) -> 0.5909090909 | W22: =IF(V22=0,0,(V22*((LOG(V22))/LOG(2)))) -> -0.4484952139 | Y22: =N22 -> 12222 | Z22: =COUNTIF(L29:L50,Y22) -> 0 | AA22: =Z22/(AB4-Z25) -> 0 | AB22: =IF(AA22=0,0,(AA22*((LOG(AA22))/LOG(2)))) -> 0 | AD22: =N22 -> 12222 | AE22: =COUNTIF(L51:L71,AD22) -> 0 | AF22: =AE22/(AG4-AE25) -> 0 | AG22: =IF(AF22=0,0,(AF22*((LOG(AF22))/LOG(2)))) -> 0 | AI22: =N22 -> 12222 | AJ22: =COUNTIF(L72:L93,AI22) -> 1 | AK22: =AJ22/(AL4-AJ25) -> 0.04545454545 | AL22: =IF(AK22=0,0,(AK22*((LOG(AK22))/LOG(2)))) -> -0.2027014372 | AN22: =N22 -> 12222 | AO22: =COUNTIF(L94:L115,AN22) -> 0 | AP22: =AO22/(AQ4-AO25) -> 0 | AQ22: =IF(AP22=0,0,(AP22*((LOG(AP22))/LOG(2)))) -> 0 | AS22: =N22 -> 12222 | AT22: =COUNTIF(L116:L137,AS22) -> 0 | AU22: =AT22/(AV4-AT25) -> 0 | AV22: =IF(AU22=0,0,(AU22*((LOG(AU22))/LOG(2)))) -> 0
A23: 12 | B23: 2783 | C23: 24 | D23: 2802 | E23: 24 | F23: 2814 | G23: 23 | H23: 2822 | I23: 13 | J23: 2834 | K23: 0 | L23: 12221 | N23: 21111 | O23: =COUNTIF($L$7:$L$500,N23) -> 0 | P23: =O23/$Q$4 -> 0 | Q23: =IF(P23=0,0,(P23*((LOG(P23))/LOG(2)))) -> 0 | T23: =N23 -> 21111 | U23: =COUNTIF(L7:L28,T23) -> 0 | V23: =U23/(W4-U25) -> 0 | W23: =IF(V23=0,0,(V23*((LOG(V23))/LOG(2)))) -> 0 | Y23: =N23 -> 21111 | Z23: =COUNTIF(L29:L50,Y23) -> 0 | AA23: =Z23/(AB4-Z25) -> 0 | AB23: =IF(AA23=0,0,(AA23*((LOG(AA23))/LOG(2)))) -> 0 | AD23: =N23 -> 21111 | AE23: =COUNTIF(L51:L71,AD23) -> 0 | AF23: =AE23/(AG4-AE25) -> 0 | AG23: =IF(AF23=0,0,(AF23*((LOG(AF23))/LOG(2)))) -> 0 | AI23: =N23 -> 21111 | AJ23: =COUNTIF(L72:L93,AI23) -> 0 | AK23: =AJ23/(AL4-AJ25) -> 0 | AL23: =IF(AK23=0,0,(AK23*((LOG(AK23))/LOG(2)))) -> 0 | AN23: =N23 -> 21111 | AO23: =COUNTIF(L94:L115,AN23) -> 0 | AP23: =AO23/(AQ4-AO25) -> 0 | AQ23: =IF(AP23=0,0,(AP23*((LOG(AP23))/LOG(2)))) -> 0 | AS23: =N23 -> 21111 | AT23: =COUNTIF(L116:L137,AS23) -> 0 | AU23: =AT23/(AV4-AT25) -> 0 | AV23: =IF(AU23=0,0,(AU23*((LOG(AU23))/LOG(2)))) -> 0
A24: 12 | B24: 2953 | C24: 24 | D24: 2962 | E24: 24 | F24: 2989 | G24: 23 | H24: 3027 | I24: 24 | J24: 3066 | K24: 0 | L24: 12222 | N24: 21112 | O24: =COUNTIF($L$7:$L$500,N24) -> 2 | P24: =O24/$Q$4 -> 0.01538461538 | Q24: =IF(P24=0,0,(P24*((LOG(P24))/LOG(2)))) -> -0.09265181251 | T24: =N24 -> 21112 | U24: =COUNTIF(L7:L28,T24) -> 0 | V24: =U24/(W4-U25) -> 0 | W24: =IF(V24=0,0,(V24*((LOG(V24))/LOG(2)))) -> 0 | Y24: =N24 -> 21112 | Z24: =COUNTIF(L29:L50,Y24) -> 0 | AA24: =Z24/(AB4-Z25) -> 0 | AB24: =IF(AA24=0,0,(AA24*((LOG(AA24))/LOG(2)))) -> 0 | AD24: =N24 -> 21112 | AE24: =COUNTIF(L51:L71,AD24) -> 0 | AF24: =AE24/(AG4-AE25) -> 0 | AG24: =IF(AF24=0,0,(AF24*((LOG(AF24))/LOG(2)))) -> 0 | AI24: =N24 -> 21112 | AJ24: =COUNTIF(L72:L93,AI24) -> 1 | AK24: =AJ24/(AL4-AJ25) -> 0.04545454545 | AL24: =IF(AK24=0,0,(AK24*((LOG(AK24))/LOG(2)))) -> -0.2027014372 | AN24: =N24 -> 21112 | AO24: =COUNTIF(L94:L115,AN24) -> 0 | AP24: =AO24/(AQ4-AO25) -> 0 | AQ24: =IF(AP24=0,0,(AP24*((LOG(AP24))/LOG(2)))) -> 0 | AS24: =N24 -> 21112 | AT24: =COUNTIF(L116:L137,AS24) -> 1 | AU24: =AT24/(AV4-AT25) -> 0.04761904762 | AV24: =IF(AU24=0,0,(AU24*((LOG(AU24))/LOG(2)))) -> -0.2091579725
A25: 12 | B25: 3177 | C25: 24 | D25: 3210 | E25: 13 | F25: 3223 | G25: 23 | H25: 3266 | I25: 13 | J25: 3324 | K25: 0 | L25: 12121 | N25: 21121 | O25: =COUNTIF($L$7:$L$500,N25) -> 1 | P25: =O25/$Q$4 -> 0.007692307692 | Q25: =IF(P25=0,0,(P25*((LOG(P25))/LOG(2)))) -> -0.05401821395 | T25: =N25 -> 21121 | U25: =COUNTIF(L7:L28,T25) -> 0 | Y25: =N25 -> 21121 | Z25: =COUNTIF(L29:L50,Y25) -> 0 | AD25: =N25 -> 21121 | AE25: =COUNTIF(L51:L71,AD25) -> 0 | AI25: =N25 -> 21121 | AJ25: =COUNTIF(L72:L93,AI25) -> 0 | AN25: =N25 -> 21121 | AO25: =COUNTIF(L94:L115,AN25) -> 1 | AS25: =N25 -> 21121 | AT25: =COUNTIF(L116:L137,AS25) -> 0
A26: 21 | B26: 3427 | C26: 11 | D26: 3435 | E26: 22 | F26: 3450 | G26: 23 | H26: 3457 | I26: 24 | J26: 3468 | K26: 0 | L26: 21222 | N26: 21122 | O26: =COUNTIF($L$7:$L$500,N26) -> 2 | P26: =O26/$Q$4 -> 0.01538461538 | Q26: =IF(P26=0,0,(P26*((LOG(P26))/LOG(2)))) -> -0.09265181251 | T26: =N26 -> 21122 | U26: =COUNTIF(L7:L28,T26) -> 0 | V26: =U26/(W4-U25) -> 0 | W26: =IF(V26=0,0,(V26*((LOG(V26))/LOG(2)))) -> 0 | Y26: =N26 -> 21122 | Z26: =COUNTIF(L29:L50,Y26) -> 2 | AA26: =Z26/(AB4-Z25) -> 0.09090909091 | AB26: =IF(AA26=0,0,(AA26*((LOG(AA26))/LOG(2)))) -> -0.3144937835 | AD26: =N26 -> 21122 | AE26: =COUNTIF(L51:L71,AD26) -> 0 | AF26: =AE26/(AG4-AE25) -> 0 | AG26: =IF(AF26=0,0,(AF26*((LOG(AF26))/LOG(2)))) -> 0 | AI26: =N26 -> 21122 | AJ26: =COUNTIF(L72:L93,AI26) -> 0 | AK26: =AJ26/(AL4-AJ25) -> 0 | AL26: =IF(AK26=0,0,(AK26*((LOG(AK26))/LOG(2)))) -> 0 | AN26: =N26 -> 21122 | AO26: =COUNTIF(L94:L115,AN26) -> 0 | AP26: =AO26/(AQ4-AO25) -> 0 | AQ26: =IF(AP26=0,0,(AP26*((LOG(AP26))/LOG(2)))) -> 0 | AS26: =N26 -> 21122 | AT26: =COUNTIF(L116:L137,AS26) -> 0 | AU26: =AT26/(AV4-AT25) -> 0 | AV26: =IF(AU26=0,0,(AU26*((LOG(AU26))/LOG(2)))) -> 0
A27: 12 | B27: 3567 | C27: 24 | D27: 3582 | E27: 13 | F27: 3592 | G27: 23 | H27: 3600 | I27: 24 | J27: 3608 | K27: 0 | L27: 12122 | N27: 21211 | O27: =COUNTIF($L$7:$L$500,N27) -> 1 | P27: =O27/$Q$4 -> 0.007692307692 | Q27: =IF(P27=0,0,(P27*((LOG(P27))/LOG(2)))) -> -0.05401821395 | T27: =N27 -> 21211 | U27: =COUNTIF(L7:L28,T27) -> 0 | V27: =U27/(W4-U25) -> 0 | W27: =IF(V27=0,0,(V27*((LOG(V27))/LOG(2)))) -> 0 | Y27: =N27 -> 21211 | Z27: =COUNTIF(L29:L50,Y27) -> 0 | AA27: =Z27/(AB4-Z25) -> 0 | AB27: =IF(AA27=0,0,(AA27*((LOG(AA27))/LOG(2)))) -> 0 | AD27: =N27 -> 21211 | AE27: =COUNTIF(L51:L71,AD27) -> 0 | AF27: =AE27/(AG4-AE25) -> 0 | AG27: =IF(AF27=0,0,(AF27*((LOG(AF27))/LOG(2)))) -> 0 | AI27: =N27 -> 21211 | AJ27: =COUNTIF(L72:L93,AI27) -> 1 | AK27: =AJ27/(AL4-AJ25) -> 0.04545454545 | AL27: =IF(AK27=0,0,(AK27*((LOG(AK27))/LOG(2)))) -> -0.2027014372 | AN27: =N27 -> 21211 | AO27: =COUNTIF(L94:L115,AN27) -> 0 | AP27: =AO27/(AQ4-AO25) -> 0 | AQ27: =IF(AP27=0,0,(AP27*((LOG(AP27))/LOG(2)))) -> 0 | AS27: =N27 -> 21211 | AT27: =COUNTIF(L116:L137,AS27) -> 0 | AU27: =AT27/(AV4-AT25) -> 0 | AV27: =IF(AU27=0,0,(AU27*((LOG(AU27))/LOG(2)))) -> 0
A28: 12 | B28: 3738 | C28: 24 | D28: 3793 | E28: 24 | F28: 3815 | G28: 23 | H28: 3844 | I28: 13 | J28: 3859 | K28: 0 | L28: 12221 | N28: 21212 | O28: =COUNTIF($L$7:$L$500,N28) -> 5 | P28: =O28/$Q$4 -> 0.03846153846 | Q28: =IF(P28=0,0,(P28*((LOG(P28))/LOG(2)))) -> -0.180786143 | T28: =N28 -> 21212 | U28: =COUNTIF(L7:L28,T28) -> 0 | V28: =U28/(W4-U25) -> 0 | W28: =IF(V28=0,0,(V28*((LOG(V28))/LOG(2)))) -> 0 | Y28: =N28 -> 21212 | Z28: =COUNTIF(L29:L50,Y28) -> 0 | AA28: =Z28/(AB4-Z25) -> 0 | AB28: =IF(AA28=0,0,(AA28*((LOG(AA28))/LOG(2)))) -> 0 | AD28: =N28 -> 21212 | AE28: =COUNTIF(L51:L71,AD28) -> 0 | AF28: =AE28/(AG4-AE25) -> 0 | AG28: =IF(AF28=0,0,(AF28*((LOG(AF28))/LOG(2)))) -> 0 | AI28: =N28 -> 21212 | AJ28: =COUNTIF(L72:L93,AI28) -> 2 | AK28: =AJ28/(AL4-AJ25) -> 0.09090909091 | AL28: =IF(AK28=0,0,(AK28*((LOG(AK28))/LOG(2)))) -> -0.3144937835 | AN28: =N28 -> 21212 | AO28: =COUNTIF(L94:L115,AN28) -> 1 | AP28: =AO28/(AQ4-AO25) -> 0.04761904762 | AQ28: =IF(AP28=0,0,(AP28*((LOG(AP28))/LOG(2)))) -> -0.2091579725 | AS28: =N28 -> 21212 | AT28: =COUNTIF(L116:L137,AS28) -> 2 | AU28: =AT28/(AV4-AT25) -> 0.09523809524 | AV28: =IF(AU28=0,0,(AU28*((LOG(AU28))/LOG(2)))) -> -0.3230778498
A29: 21 | B29: 3970 | C29: 11 | D29: 3982 | E29: 11 | F29: 4019 | G29: 21 | H29: 4035 | I29: 22 | J29: 4053 | K29: 0 | L29: 21122 | N29: 21221 | O29: =COUNTIF($L$7:$L$500,N29) -> 7 | P29: =O29/$Q$4 -> 0.05384615385 | Q29: =IF(P29=0,0,(P29*((LOG(P29))/LOG(2)))) -> -0.2269622326 | T29: =N29 -> 21221 | U29: =COUNTIF(L7:L28,T29) -> 1 | V29: =U29/(W4-U25) -> 0.04545454545 | W29: =IF(V29=0,0,(V29*((LOG(V29))/LOG(2)))) -> -0.2027014372 | Y29: =N29 -> 21221 | Z29: =COUNTIF(L29:L50,Y29) -> 2 | AA29: =Z29/(AB4-Z25) -> 0.09090909091 | AB29: =IF(AA29=0,0,(AA29*((LOG(AA29))/LOG(2)))) -> -0.3144937835 | AD29: =N29 -> 21221 | AE29: =COUNTIF(L51:L71,AD29) -> 2 | AF29: =AE29/(AG4-AE25) -> 0.09523809524 | AG29: =IF(AF29=0,0,(AF29*((LOG(AF29))/LOG(2)))) -> -0.3230778498 | AI29: =N29 -> 21221 | AJ29: =COUNTIF(L72:L93,AI29) -> 0 | AK29: =AJ29/(AL4-AJ25) -> 0 | AL29: =IF(AK29=0,0,(AK29*((LOG(AK29))/LOG(2)))) -> 0 | AN29: =N29 -> 21221 | AO29: =COUNTIF(L94:L115,AN29) -> 1 | AP29: =AO29/(AQ4-AO25) -> 0.04761904762 | AQ29: =IF(AP29=0,0,(AP29*((LOG(AP29))/LOG(2)))) -> -0.2091579725 | AS29: =N29 -> 21221 | AT29: =COUNTIF(L116:L137,AS29) -> 1 | AU29: =AT29/(AV4-AT25) -> 0.04761904762 | AV29: =IF(AU29=0,0,(AU29*((LOG(AU29))/LOG(2)))) -> -0.2091579725
A30: 12 | B30: 4152 | C30: 13 | D30: 4171 | E30: 24 | F30: 4195 | G30: 23 | H30: 4209 | I30: 13 | J30: 4222 | K30: 0 | L30: 11221 | N30: 21222 | O30: =COUNTIF($L$7:$L$500,N30) -> 11 | P30: =O30/$Q$4 -> 0.08461538462 | Q30: =IF(P30=0,0,(P30*((LOG(P30))/LOG(2)))) -> -0.3014792164 | T30: =N30 -> 21222 | U30: =COUNTIF(L7:L28,T30) -> 1 | V30: =U30/(W4-U25) -> 0.04545454545 | W30: =IF(V30=0,0,(V30*((LOG(V30))/LOG(2)))) -> -0.2027014372 | Y30: =N30 -> 21222 | Z30: =COUNTIF(L29:L50,Y30) -> 4 | AA30: =Z30/(AB4-Z25) -> 0.1818181818 | AB30: =IF(AA30=0,0,(AA30*((LOG(AA30))/LOG(2)))) -> -0.4471693852 | AD30: =N30 -> 21222 | AE30: =COUNTIF(L51:L71,AD30) -> 1 | AF30: =AE30/(AG4-AE25) -> 0.04761904762 | AG30: =IF(AF30=0,0,(AF30*((LOG(AF30))/LOG(2)))) -> -0.2091579725 | AI30: =N30 -> 21222 | AJ30: =COUNTIF(L72:L93,AI30) -> 1 | AK30: =AJ30/(AL4-AJ25) -> 0.04545454545 | AL30: =IF(AK30=0,0,(AK30*((LOG(AK30))/LOG(2)))) -> -0.2027014372 | AN30: =N30 -> 21222 | AO30: =COUNTIF(L94:L115,AN30) -> 2 | AP30: =AO30/(AQ4-AO25) -> 0.09523809524 | AQ30: =IF(AP30=0,0,(AP30*((LOG(AP30))/LOG(2)))) -> -0.3230778498 | AS30: =N30 -> 21222 | AT30: =COUNTIF(L116:L137,AS30) -> 2 | AU30: =AT30/(AV4-AT25) -> 0.09523809524 | AV30: =IF(AU30=0,0,(AU30*((LOG(AU30))/LOG(2)))) -> -0.3230778498
A31: 21 | B31: 4361 | C31: 22 | D31: 4374 | E31: 24 | F31: 4385 | G31: 23 | H31: 4393 | I31: 13 | J31: 4406 | K31: 0 | L31: 22221 | N31: 22111 | O31: =COUNTIF($L$7:$L$500,N31) -> 0 | P31: =O31/$Q$4 -> 0 | Q31: =IF(P31=0,0,(P31*((LOG(P31))/LOG(2)))) -> 0 | T31: =N31 -> 22111 | U31: =COUNTIF(L7:L28,T31) -> 0 | V31: =U31/(W4-U25) -> 0 | W31: =IF(V31=0,0,(V31*((LOG(V31))/LOG(2)))) -> 0 | Y31: =N31 -> 22111 | Z31: =COUNTIF(L29:L50,Y31) -> 0 | AA31: =Z31/(AB4-Z25) -> 0 | AB31: =IF(AA31=0,0,(AA31*((LOG(AA31))/LOG(2)))) -> 0 | AD31: =N31 -> 22111 | AE31: =COUNTIF(L51:L71,AD31) -> 0 | AF31: =AE31/(AG4-AE25) -> 0 | AG31: =IF(AF31=0,0,(AF31*((LOG(AF31))/LOG(2)))) -> 0 | AI31: =N31 -> 22111 | AJ31: =COUNTIF(L72:L93,AI31) -> 0 | AK31: =AJ31/(AL4-AJ25) -> 0 | AL31: =IF(AK31=0,0,(AK31*((LOG(AK31))/LOG(2)))) -> 0 | AN31: =N31 -> 22111 | AO31: =COUNTIF(L94:L115,AN31) -> 0 | AP31: =AO31/(AQ4-AO25) -> 0 | AQ31: =IF(AP31=0,0,(AP31*((LOG(AP31))/LOG(2)))) -> 0 | AS31: =N31 -> 22111 | AT31: =COUNTIF(L116:L137,AS31) -> 0 | AU31: =AT31/(AV4-AT25) -> 0 | AV31: =IF(AU31=0,0,(AU31*((LOG(AU31))/LOG(2)))) -> 0
A32: 12 | B32: 4510 | C32: 13 | D32: 4530 | E32: 13 | F32: 4609 | G32: 23 | H32: 4619 | I32: 24 | J32: 4641 | K32: 0 | L32: 11122 | N32: 22112 | O32: =COUNTIF($L$7:$L$500,N32) -> 0 | P32: =O32/$Q$4 -> 0 | Q32: =IF(P32=0,0,(P32*((LOG(P32))/LOG(2)))) -> 0 | T32: =N32 -> 22112 | U32: =COUNTIF(L7:L28,T32) -> 0 | V32: =U32/(W4-U25) -> 0 | W32: =IF(V32=0,0,(V32*((LOG(V32))/LOG(2)))) -> 0 | Y32: =N32 -> 22112 | Z32: =COUNTIF(L29:L50,Y32) -> 0 | AA32: =Z32/(AB4-Z25) -> 0 | AB32: =IF(AA32=0,0,(AA32*((LOG(AA32))/LOG(2)))) -> 0 | AD32: =N32 -> 22112 | AE32: =COUNTIF(L51:L71,AD32) -> 0 | AF32: =AE32/(AG4-AE25) -> 0 | AG32: =IF(AF32=0,0,(AF32*((LOG(AF32))/LOG(2)))) -> 0 | AI32: =N32 -> 22112 | AJ32: =COUNTIF(L72:L93,AI32) -> 0 | AK32: =AJ32/(AL4-AJ25) -> 0 | AL32: =IF(AK32=0,0,(AK32*((LOG(AK32))/LOG(2)))) -> 0 | AN32: =N32 -> 22112 | AO32: =COUNTIF(L94:L115,AN32) -> 0 | AP32: =AO32/(AQ4-AO25) -> 0 | AQ32: =IF(AP32=0,0,(AP32*((LOG(AP32))/LOG(2)))) -> 0 | AS32: =N32 -> 22112 | AT32: =COUNTIF(L116:L137,AS32) -> 0 | AU32: =AT32/(AV4-AT25) -> 0 | AV32: =IF(AU32=0,0,(AU32*((LOG(AU32))/LOG(2)))) -> 0
A33: 21 | B33: 4761 | C33: 11 | D33: 4772 | E33: 22 | F33: 4830 | G33: 23 | H33: 4886 | I33: 24 | J33: 4899 | K33: 0 | L33: 21222 | N33: 22121 | O33: =COUNTIF($L$7:$L$500,N33) -> 4 | P33: =O33/$Q$4 -> 0.03076923077 | Q33: =IF(P33=0,0,(P33*((LOG(P33))/LOG(2)))) -> -0.1545343942 | T33: =N33 -> 22121 | U33: =COUNTIF(L7:L28,T33) -> 0 | V33: =U33/(W4-U25) -> 0 | W33: =IF(V33=0,0,(V33*((LOG(V33))/LOG(2)))) -> 0 | Y33: =N33 -> 22121 | Z33: =COUNTIF(L29:L50,Y33) -> 0 | AA33: =Z33/(AB4-Z25) -> 0 | AB33: =IF(AA33=0,0,(AA33*((LOG(AA33))/LOG(2)))) -> 0 | AD33: =N33 -> 22121 | AE33: =COUNTIF(L51:L71,AD33) -> 0 | AF33: =AE33/(AG4-AE25) -> 0 | AG33: =IF(AF33=0,0,(AF33*((LOG(AF33))/LOG(2)))) -> 0 | AI33: =N33 -> 22121 | AJ33: =COUNTIF(L72:L93,AI33) -> 2 | AK33: =AJ33/(AL4-AJ25) -> 0.09090909091 | AL33: =IF(AK33=0,0,(AK33*((LOG(AK33))/LOG(2)))) -> -0.3144937835 | AN33: =N33 -> 22121 | AO33: =COUNTIF(L94:L115,AN33) -> 0 | AP33: =AO33/(AQ4-AO25) -> 0 | AQ33: =IF(AP33=0,0,(AP33*((LOG(AP33))/LOG(2)))) -> 0 | AS33: =N33 -> 22121 | AT33: =COUNTIF(L116:L137,AS33) -> 2 | AU33: =AT33/(AV4-AT25) -> 0.09523809524 | AV33: =IF(AU33=0,0,(AU33*((LOG(AU33))/LOG(2)))) -> -0.3230778498
A34: 12 | B34: 5016 | C34: 24 | D34: 5024 | E34: 13 | F34: 5037 | G34: 23 | H34: 5045 | I34: 24 | J34: 5053 | K34: 0 | L34: 12122 | N34: 22122 | O34: =COUNTIF($L$7:$L$500,N34) -> 0 | P34: =O34/$Q$4 -> 0 | Q34: =IF(P34=0,0,(P34*((LOG(P34))/LOG(2)))) -> 0 | T34: =N34 -> 22122 | U34: =COUNTIF(L7:L28,T34) -> 0 | V34: =U34/(W4-U25) -> 0 | W34: =IF(V34=0,0,(V34*((LOG(V34))/LOG(2)))) -> 0 | Y34: =N34 -> 22122 | Z34: =COUNTIF(L29:L50,Y34) -> 0 | AA34: =Z34/(AB4-Z25) -> 0 | AB34: =IF(AA34=0,0,(AA34*((LOG(AA34))/LOG(2)))) -> 0 | AD34: =N34 -> 22122 | AE34: =COUNTIF(L51:L71,AD34) -> 0 | AF34: =AE34/(AG4-AE25) -> 0 | AG34: =IF(AF34=0,0,(AF34*((LOG(AF34))/LOG(2)))) -> 0 | AI34: =N34 -> 22122 | AJ34: =COUNTIF(L72:L93,AI34) -> 0 | AK34: =AJ34/(AL4-AJ25) -> 0 | AL34: =IF(AK34=0,0,(AK34*((LOG(AK34))/LOG(2)))) -> 0 | AN34: =N34 -> 22122 | AO34: =COUNTIF(L94:L115,AN34) -> 0 | AP34: =AO34/(AQ4-AO25) -> 0 | AQ34: =IF(AP34=0,0,(AP34*((LOG(AP34))/LOG(2)))) -> 0 | AS34: =N34 -> 22122 | AT34: =COUNTIF(L116:L137,AS34) -> 0 | AU34: =AT34/(AV4-AT25) -> 0 | AV34: =IF(AU34=0,0,(AU34*((LOG(AU34))/LOG(2)))) -> 0
A35: 21 | B35: 5158 | C35: 11 | D35: 5165 | E35: 22 | F35: 5174 | G35: 23 | H35: 5182 | I35: 24 | J35: 5191 | K35: 0 | L35: 21222 | N35: 22211 | O35: =COUNTIF($L$7:$L$500,N35) -> 0 | P35: =O35/$Q$4 -> 0 | Q35: =IF(P35=0,0,(P35*((LOG(P35))/LOG(2)))) -> 0 | T35: =N35 -> 22211 | U35: =COUNTIF(L7:L28,T35) -> 0 | V35: =U35/(W4-U25) -> 0 | W35: =IF(V35=0,0,(V35*((LOG(V35))/LOG(2)))) -> 0 | Y35: =N35 -> 22211 | Z35: =COUNTIF(L29:L50,Y35) -> 0 | AA35: =Z35/(AB4-Z25) -> 0 | AB35: =IF(AA35=0,0,(AA35*((LOG(AA35))/LOG(2)))) -> 0 | AD35: =N35 -> 22211 | AE35: =COUNTIF(L51:L71,AD35) -> 0 | AF35: =AE35/(AG4-AE25) -> 0 | AG35: =IF(AF35=0,0,(AF35*((LOG(AF35))/LOG(2)))) -> 0 | AI35: =N35 -> 22211 | AJ35: =COUNTIF(L72:L93,AI35) -> 0 | AK35: =AJ35/(AL4-AJ25) -> 0 | AL35: =IF(AK35=0,0,(AK35*((LOG(AK35))/LOG(2)))) -> 0 | AN35: =N35 -> 22211 | AO35: =COUNTIF(L94:L115,AN35) -> 0 | AP35: =AO35/(AQ4-AO25) -> 0 | AQ35: =IF(AP35=0,0,(AP35*((LOG(AP35))/LOG(2)))) -> 0 | AS35: =N35 -> 22211 | AT35: =COUNTIF(L116:L137,AS35) -> 0 | AU35: =AT35/(AV4-AT25) -> 0 | AV35: =IF(AU35=0,0,(AU35*((LOG(AU35))/LOG(2)))) -> 0
A36: 21 | B36: 5295 | C36: 11 | D36: 5310 | E36: 22 | F36: 5320 | G36: 23 | H36: 5332 | I36: 24 | J36: 5348 | K36: 0 | L36: 21222 | N36: 22212 | O36: =COUNTIF($L$7:$L$500,N36) -> 0 | P36: =O36/$Q$4 -> 0 | Q36: =IF(P36=0,0,(P36*((LOG(P36))/LOG(2)))) -> 0 | T36: =N36 -> 22212 | U36: =COUNTIF(L7:L28,T36) -> 0 | V36: =U36/(W4-U25) -> 0 | W36: =IF(V36=0,0,(V36*((LOG(V36))/LOG(2)))) -> 0 | Y36: =N36 -> 22212 | Z36: =COUNTIF(L29:L50,Y36) -> 0 | AA36: =Z36/(AB4-Z25) -> 0 | AB36: =IF(AA36=0,0,(AA36*((LOG(AA36))/LOG(2)))) -> 0 | AD36: =N36 -> 22212 | AE36: =COUNTIF(L51:L71,AD36) -> 0 | AF36: =AE36/(AG4-AE25) -> 0 | AG36: =IF(AF36=0,0,(AF36*((LOG(AF36))/LOG(2)))) -> 0 | AI36: =N36 -> 22212 | AJ36: =COUNTIF(L72:L93,AI36) -> 0 | AK36: =AJ36/(AL4-AJ25) -> 0 | AL36: =IF(AK36=0,0,(AK36*((LOG(AK36))/LOG(2)))) -> 0 | AN36: =N36 -> 22212 | AO36: =COUNTIF(L94:L115,AN36) -> 0 | AP36: =AO36/(AQ4-AO25) -> 0 | AQ36: =IF(AP36=0,0,(AP36*((LOG(AP36))/LOG(2)))) -> 0 | AS36: =N36 -> 22212 | AT36: =COUNTIF(L116:L137,AS36) -> 0 | AU36: =AT36/(AV4-AT25) -> 0 | AV36: =IF(AU36=0,0,(AU36*((LOG(AU36))/LOG(2)))) -> 0
A37: 12 | B37: 5451 | C37: 13 | D37: 5466 | E37: 24 | F37: 5474 | G37: 23 | H37: 5482 | I37: 24 | J37: 5491 | K37: 0 | L37: 11222 | N37: 22221 | O37: =COUNTIF($L$7:$L$500,N37) -> 1 | P37: =O37/$Q$4 -> 0.007692307692 | Q37: =IF(P37=0,0,(P37*((LOG(P37))/LOG(2)))) -> -0.05401821395 | T37: =N37 -> 22221 | U37: =COUNTIF(L7:L28,T37) -> 0 | V37: =U37/(W4-U25) -> 0 | W37: =IF(V37=0,0,(V37*((LOG(V37))/LOG(2)))) -> 0 | Y37: =N37 -> 22221 | Z37: =COUNTIF(L29:L50,Y37) -> 1 | AA37: =Z37/(AB4-Z25) -> 0.04545454545 | AB37: =IF(AA37=0,0,(AA37*((LOG(AA37))/LOG(2)))) -> -0.2027014372 | AD37: =N37 -> 22221 | AE37: =COUNTIF(L51:L71,AD37) -> 0 | AF37: =AE37/(AG4-AE25) -> 0 | AG37: =IF(AF37=0,0,(AF37*((LOG(AF37))/LOG(2)))) -> 0 | AI37: =N37 -> 22221 | AJ37: =COUNTIF(L72:L93,AI37) -> 0 | AK37: =AJ37/(AL4-AJ25) -> 0 | AL37: =IF(AK37=0,0,(AK37*((LOG(AK37))/LOG(2)))) -> 0 | AN37: =N37 -> 22221 | AO37: =COUNTIF(L94:L115,AN37) -> 0 | AP37: =AO37/(AQ4-AO25) -> 0 | AQ37: =IF(AP37=0,0,(AP37*((LOG(AP37))/LOG(2)))) -> 0 | AS37: =N37 -> 22221 | AT37: =COUNTIF(L116:L137,AS37) -> 0 | AU37: =AT37/(AV4-AT25) -> 0 | AV37: =IF(AU37=0,0,(AU37*((LOG(AU37))/LOG(2)))) -> 0
A38: 12 | B38: 5591 | C38: 13 | D38: 5604 | E38: 24 | F38: 5612 | G38: 14 | H38: 5624 | I38: 24 | J38: 5633 | K38: 0 | L38: 11212 | N38: 22222 | O38: =COUNTIF($L$7:$L$500,N38) -> 2 | P38: =O38/$Q$4 -> 0.01538461538 | Q38: =IF(P38=0,0,(P38*((LOG(P38))/LOG(2)))) -> -0.09265181251 | T38: =N38 -> 22222 | U38: =COUNTIF(L7:L28,T38) -> 1 | V38: =U38/(W4-U25) -> 0.04545454545 | W38: =IF(V38=0,0,(V38*((LOG(V38))/LOG(2)))) -> -0.2027014372 | Y38: =N38 -> 22222 | Z38: =COUNTIF(L29:L50,Y38) -> 0 | AA38: =Z38/(AB4-Z25) -> 0 | AB38: =IF(AA38=0,0,(AA38*((LOG(AA38))/LOG(2)))) -> 0 | AD38: =N38 -> 22222 | AE38: =COUNTIF(L51:L71,AD38) -> 0 | AF38: =AE38/(AG4-AE25) -> 0 | AG38: =IF(AF38=0,0,(AF38*((LOG(AF38))/LOG(2)))) -> 0 | AI38: =N38 -> 22222 | AJ38: =COUNTIF(L72:L93,AI38) -> 0 | AK38: =AJ38/(AL4-AJ25) -> 0 | AL38: =IF(AK38=0,0,(AK38*((LOG(AK38))/LOG(2)))) -> 0 | AN38: =N38 -> 22222 | AO38: =COUNTIF(L94:L115,AN38) -> 0 | AP38: =AO38/(AQ4-AO25) -> 0 | AQ38: =IF(AP38=0,0,(AP38*((LOG(AP38))/LOG(2)))) -> 0 | AS38: =N38 -> 22222 | AT38: =COUNTIF(L116:L137,AS38) -> 1 | AU38: =AT38/(AV4-AT25) -> 0.04761904762 | AV38: =IF(AU38=0,0,(AU38*((LOG(AU38))/LOG(2)))) -> -0.2091579725
A39: 12 | B39: 5738 | C39: 24 | D39: 5748 | E39: 13 | F39: 5758 | G39: 23 | H39: 5767 | I39: 24 | J39: 5775 | K39: 0 | L39: 12122 | P39: =SUM(P7:P38) -> 1 | Q39: =-SUM(Q7:Q38) -> 3.985760953 | V39: =SUM(V7:V38) -> 1 | W39: =-SUM(W7:W38) -> 2.056676899 | AA39: =SUM(AA7:AA38) -> 1 | AB39: =-SUM(AB7:AB38) -> 3.368522528 | AF39: =SUM(AF7:AF38) -> 1 | AG39: =-SUM(AG7:AG38) -> 2.432257449 | AK39: =SUM(AK7:AK38) -> 1 | AL39: =-SUM(AL7:AL38) -> 3.663532755 | AP39: =SUM(AP7:AP38) -> 1 | AQ39: =-SUM(AQ7:AQ38) -> 3.154222185 | AU39: =SUM(AU7:AU38) -> 1 | AV39: =-SUM(AV7:AV38) -> 3.075580068
A40: 21 | B40: 5883 | C40: 11 | D40: 5891 | E40: 22 | F40: 5901 | G40: 23 | H40: 5909 | I40: 13 | J40: 5929 | K40: 0 | L40: 21221 | P40: U= | Q40: =Q39/(LOG(Q4)/LOG(2)) -> 0.5675807732 | V40: U1= | W40: =W39/(LOG(W4)/LOG(2)) -> 0.461197093 | AA40: U2= | AB40: =AB39/(LOG(AB4)/LOG(2)) -> 0.7553703736 | AF40: U3= | AG40: =AG39/(LOG(AG4)/LOG(2)) -> 0.5537526582 | AK40: U4= | AL40: =AL39/(LOG(AL4)/LOG(2)) -> 0.8215245951 | AP40: U5= | AQ40: =AQ39/(LOG(AQ4)/LOG(2)) -> 0.7073148451 | AU40: U6= | AV40: =AV39/(LOG(AV4)/LOG(2)) -> 0.7002180789
A41: 12 | B41: 6077 | C41: 24 | D41: 6087 | E41: 24 | F41: 6107 | G41: 14 | H41: 6119 | I41: 13 | J41: 6157 | K41: 0 | L41: 12211
A42: 21 | B42: 6259 | C42: 11 | D42: 6267 | E42: 22 | F42: 6275 | G42: 23 | H42: 6285 | I42: 13 | J42: 6297 | K42: 0 | L42: 21221
A43: 21 | B43: 6406 | C43: 11 | D43: 6415 | E43: 11 | F43: 6435 | G43: 21 | H43: 6461 | I43: 22 | J43: 6470 | K43: 0 | L43: 21122 | N43: Total Target Seq
A44: 12 | B44: 6576 | C44: 24 | D44: 6585 | E44: 13 | F44: 6592 | G44: 23 | H44: 6601 | I44: 24 | J44: 6614 | K44: 0 | L44: 12122 | N44: =COUNTIF(L7:L137,G3) -> 1 | P44: 22 | Q44: 22 | R44: 21 | S44: 22 | T44: 22 | U44: 22
A45: 12 | B45: 6713 | C45: 13 | D45: 6728 | E45: 24 | F45: 6736 | G45: 23 | H45: 6744 | I45: 24 | J45: 6755 | K45: 0 | L45: 11222 | P45: % of reinforcement given in 6 equal intervals based on number of trials
A46: 21 | B46: 6871 | C46: 11 | D46: 6879 | E46: 22 | F46: 6888 | G46: 23 | H46: 6899 | I46: 24 | J46: 6912 | K46: 0 | L46: 21222 | P46: %_1 | Q46: %_2 | R46: %_3 | S46: %_4 | T46: %_5 | U46: %_6
A47: 12 | B47: 7039 | C47: 24 | D47: 7060 | E47: 24 | F47: 7070 | G47: 14 | H47: 7098 | I47: 24 | J47: 7115 | K47: 0 | L47: 12212 | O47: target sequence | P47: =$G$3 -> 21121 | Q47: =$G$3 -> 21121 | R47: =$G$3 -> 21121 | S47: =$G$3 -> 21121 | T47: =$G$3 -> 21121 | U47: =$G$3 -> 21121
A48: 12 | B48: 7219 | C48: 24 | D48: 7228 | E48: 13 | F48: 7237 | G48: 23 | H48: 7246 | I48: 13 | J48: 7269 | K48: 0 | L48: 12121 | O48: total reinforcement | P48: =U25 -> 0 | Q48: =Z25 -> 0 | R48: =AE25 -> 0 | S48: =AJ25 -> 0 | T48: =AO25 -> 1 | U48: =AT25 -> 0
A49: 12 | B49: 7395 | C49: 24 | D49: 7403 | E49: 24 | F49: 7411 | G49: 14 | H49: 7434 | I49: 24 | J49: 7443 | K49: 0 | L49: 12212 | O49: % target
A50: 12 | B50: 7544 | C50: 24 | D50: 7554 | E50: 13 | F50: 7562 | G50: 23 | H50: 7576 | I50: 24 | J50: 7592 | K50: 0 | L50: 12122 | O50: CCRF
A51: 12 | B51: 7701 | C51: 24 | D51: 7709 | E51: 13 | F51: 7720 | G51: 23 | H51: 7730 | I51: 24 | J51: 7737 | K51: 0 | L51: 12122 | O51: % CCRf
A52: 12 | B52: 7951 | C52: 13 | D52: 7994 | E52: 24 | F52: 8010 | G52: 14 | H52: 8043 | I52: 24 | J52: 8067 | K52: 0 | L52: 11212 | O52: average response rate | P52: =J28/P44 -> 175.4090909 | Q52: =(J50-J28)/Q44 -> 169.6818182 | R52: =(J71-J50)/R44 -> 175.3809524 | S52: =(J93-J71)/S44 -> 194.3636364 | T52: =(J115-J93)/T44 -> 204.7727273 | U52: =(J137-J115)/U44 -> -911.6363636
A53: 12 | B53: 8164 | C53: 13 | D53: 8172 | E53: 24 | F53: 8180 | G53: 14 | H53: 8190 | I53: 24 | J53: 8198 | K53: 0 | L53: 11212
A54: 12 | B54: 8302 | C54: 13 | D54: 8323 | E54: 24 | F54: 8331 | G54: 23 | H54: 8340 | I54: 24 | J54: 8349 | K54: 0 | L54: 11222
A55: 21 | B55: 8463 | C55: 11 | D55: 8473 | E55: 22 | F55: 8489 | G55: 23 | H55: 8505 | I55: 13 | J55: 8518 | K55: 0 | L55: 21221
A56: 12 | B56: 8629 | C56: 24 | D56: 8637 | E56: 13 | F56: 8649 | G56: 23 | H56: 8658 | I56: 13 | J56: 8695 | K56: 0 | L56: 12121
A57: 21 | B57: 8815 | C57: 11 | D57: 8824 | E57: 22 | F57: 8851 | G57: 23 | H57: 8859 | I57: 24 | J57: 8891 | K57: 0 | L57: 21222
A58: 12 | B58: 9029 | C58: 24 | D58: 9038 | E58: 13 | F58: 9052 | G58: 23 | H58: 9066 | I58: 24 | J58: 9074 | K58: 0 | L58: 12122
A59: 12 | B59: 9229 | C59: 13 | D59: 9248 | E59: 24 | F59: 9260 | G59: 14 | H59: 9291 | I59: 13 | J59: 9332 | K59: 0 | L59: 11211
A60: 21 | B60: 9438 | C60: 11 | D60: 9449 | E60: 22 | F60: 9457 | G60: 23 | H60: 9465 | I60: 13 | J60: 9485 | K60: 0 | L60: 21221
A61: 12 | B61: 9606 | C61: 24 | D61: 9614 | E61: 13 | F61: 9625 | G61: 23 | H61: 9633 | I61: 24 | J61: 9639 | K61: 0 | L61: 12122
A62: 12 | B62: 9823 | C62: 13 | D62: 9843 | E62: 24 | F62: 9862 | G62: 23 | H62: 9878 | I62: 24 | J62: 9887 | K62: 0 | L62: 11222
A63: 12 | B63: 9986 | C63: 13 | D63: 9994 | E63: 24 | F63: 10003 | G63: 14 | H63: 10011 | I63: 24 | J63: 10021 | K63: 0 | L63: 11212
A64: 12 | B64: 10130 | C64: 24 | D64: 10140 | E64: 13 | F64: 10149 | G64: 23 | H64: 10158 | I64: 24 | J64: 10166 | K64: 0 | L64: 12122
A65: 12 | B65: 10268 | C65: 13 | D65: 10278 | E65: 24 | F65: 10291 | G65: 14 | H65: 10301 | I65: 24 | J65: 10310 | K65: 0 | L65: 11212
A66: 12 | B66: 10414 | C66: 24 | D66: 10423 | E66: 13 | F66: 10430 | G66: 23 | H66: 10439 | I66: 13 | J66: 10449 | K66: 0 | L66: 12121
A67: 12 | B67: 10557 | C67: 24 | D67: 10566 | E67: 13 | F67: 10573 | G67: 23 | H67: 10581 | I67: 24 | J67: 10589 | K67: 0 | L67: 12122
A68: 12 | B68: 10691 | C68: 13 | D68: 10707 | E68: 24 | F68: 10715 | G68: 14 | H68: 10723 | I68: 24 | J68: 10735 | K68: 0 | L68: 11212
A69: 12 | B69: 10925 | C69: 13 | D69: 10944 | E69: 24 | F69: 10953 | G69: 14 | H69: 10976 | I69: 24 | J69: 10985 | K69: 0 | L69: 11212
A70: 12 | B70: 11088 | C70: 24 | D70: 11100 | E70: 13 | F70: 11107 | G70: 23 | H70: 11124 | I70: 24 | J70: 11131 | K70: 0 | L70: 12122
A71: 12 | B71: 11242 | C71: 24 | D71: 11250 | E71: 13 | F71: 11260 | G71: 23 | H71: 11268 | I71: 24 | J71: 11275 | K71: 0 | L71: 12122
A72: 12 | B72: 11389 | C72: 24 | D72: 11397 | E72: 13 | F72: 11405 | G72: 23 | H72: 11414 | I72: 24 | J72: 11437 | K72: 0 | L72: 12122
A73: 12 | B73: 11573 | C73: 24 | D73: 11580 | E73: 13 | F73: 11591 | G73: 23 | H73: 11599 | I73: 24 | J73: 11614 | K73: 0 | L73: 12122
A74: 12 | B74: 11721 | C74: 24 | D74: 11730 | E74: 24 | F74: 11737 | G74: 14 | H74: 11746 | I74: 24 | J74: 11754 | K74: 0 | L74: 12212
A75: 12 | B75: 12029 | C75: 24 | D75: 12047 | E75: 24 | F75: 12095 | G75: 14 | H75: 12108 | I75: 24 | J75: 12117 | K75: 0 | L75: 12212
A76: 12 | B76: 12231 | C76: 13 | D76: 12250 | E76: 24 | F76: 12258 | G76: 14 | H76: 12275 | I76: 13 | J76: 12281 | K76: 0 | L76: 11211
A77: 21 | B77: 12386 | C77: 11 | D77: 12396 | E77: 11 | F77: 12424 | G77: 12 | H77: 12446 | I77: 24 | J77: 12455 | K77: 0 | L77: 21112
A78: 21 | B78: 12564 | C78: 11 | D78: 12573 | E78: 22 | F78: 12584 | G78: 23 | H78: 12593 | I78: 24 | J78: 12601 | K78: 0 | L78: 21222
A79: 21 | B79: 12711 | C79: 11 | D79: 12720 | E79: 22 | F79: 12728 | G79: 14 | H79: 12738 | I79: 24 | J79: 12746 | K79: 0 | L79: 21212
A80: 12 | B80: 12864 | C80: 13 | D80: 12877 | E80: 24 | F80: 12897 | G80: 23 | H80: 12904 | I80: 13 | J80: 12924 | K80: 0 | L80: 11221
A81: 21 | B81: 13036 | C81: 22 | D81: 13056 | E81: 13 | F81: 13066 | G81: 23 | H81: 13077 | I81: 13 | J81: 13089 | K81: 0 | L81: 22121
A82: 12 | B82: 13246 | C82: 13 | D82: 13265 | E82: 24 | F82: 13274 | G82: 14 | H82: 13285 | I82: 24 | J82: 13306 | K82: 0 | L82: 11212
A83: 12 | B83: 13456 | C83: 24 | D83: 13465 | E83: 13 | F83: 13473 | G83: 14 | H83: 13498 | I83: 24 | J83: 13514 | K83: 0 | L83: 12112
A84: 12 | B84: 13633 | C84: 24 | D84: 13642 | E84: 13 | F84: 13649 | G84: 23 | H84: 13658 | I84: 24 | J84: 13666 | K84: 0 | L84: 12122
A85: 21 | B85: 13832 | C85: 11 | D85: 13843 | E85: 22 | F85: 13854 | G85: 14 | H85: 13883 | I85: 13 | J85: 13892 | K85: 0 | L85: 21211
A86: 12 | B86: 14006 | C86: 24 | D86: 14015 | E86: 13 | F86: 14023 | G86: 23 | H86: 14032 | I86: 13 | J86: 14055 | K86: 0 | L86: 12121
A87: 12 | B87: 14177 | C87: 24 | D87: 14188 | E87: 13 | F87: 14199 | G87: 23 | H87: 14218 | I87: 13 | J87: 14242 | K87: 0 | L87: 12121
A88: 21 | B88: 14406 | C88: 22 | D88: 14413 | E88: 13 | F88: 14424 | G88: 23 | H88: 14435 | I88: 13 | J88: 14461 | K88: 0 | L88: 22121
A89: 12 | B89: 14604 | C89: 24 | D89: 14614 | E89: 24 | F89: 14623 | G89: 14 | H89: 14633 | I89: 13 | J89: 14675 | K89: 0 | L89: 12211
A90: 12 | B90: 14827 | C90: 24 | D90: 14837 | E90: 13 | F90: 14862 | G90: 23 | H90: 14873 | I90: 13 | J90: 14899 | K90: 0 | L90: 12121
A91: 12 | B91: 15028 | C91: 24 | D91: 15040 | E91: 13 | F91: 15052 | G91: 14 | H91: 15087 | I91: 24 | J91: 15100 | K91: 0 | L91: 12112
A92: 12 | B92: 15292 | C92: 24 | D92: 15302 | E92: 24 | F92: 15311 | G92: 23 | H92: 15321 | I92: 24 | J92: 15330 | K92: 0 | L92: 12222
A93: 21 | B93: 15493 | C93: 11 | D93: 15504 | E93: 22 | F93: 15521 | G93: 14 | H93: 15540 | I93: 24 | J93: 15551 | K93: 0 | L93: 21212
A94: 12 | B94: 15727 | C94: 13 | D94: 15747 | E94: 24 | F94: 15761 | G94: 23 | H94: 15779 | I94: 13 | J94: 15799 | K94: 0 | L94: 11221
A95: 12 | B95: 15976 | C95: 24 | D95: 15988 | E95: 24 | F95: 15996 | G95: 14 | H95: 16007 | I95: 24 | J95: 16023 | K95: 0 | L95: 12212
A96: 12 | B96: 16912 | C96: 24 | D96: 16921 | E96: 13 | F96: 16932 | G96: 23 | H96: 16943 | I96: 13 | J96: 16963 | K96: 0 | L96: 12121
A97: 21 | B97: 17150 | C97: 11 | D97: 17162 | E97: 11 | F97: 17185 | G97: 21 | H97: 17199 | I97: 11 | J97: 17218 | K97: 1 | L97: 21121
A98: 21 | B98: 17322 | C98: 11 | D98: 17335 | E98: 22 | F98: 17343 | G98: 23 | H98: 17351 | I98: 24 | J98: 17362 | K98: 0 | L98: 21222
A99: 12 | B99: 17479 | C99: 13 | D99: 17498 | E99: 24 | F99: 17505 | G99: 23 | H99: 17528 | I99: 13 | J99: 17539 | K99: 0 | L99: 11221
A100: 12 | B100: 17638 | C100: 24 | D100: 17646 | E100: 24 | F100: 17654 | G100: 14 | H100: 17660 | I100: 24 | J100: 17692 | K100: 0 | L100: 12212
A101: 12 | B101: 17795 | C101: 24 | D101: 17805 | E101: 24 | F101: 17819 | G101: 14 | H101: 17831 | I101: 24 | J101: 17886 | K101: 0 | L101: 12212
A102: 12 | B102: 17984 | C102: 24 | D102: 17994 | E102: 13 | F102: 18002 | G102: 23 | H102: 18011 | I102: 24 | J102: 18019 | K102: 0 | L102: 12122
A103: 12 | B103: 18119 | C103: 24 | D103: 18144 | E103: 13 | F103: 18159 | G103: 23 | H103: 18169 | I103: 24 | J103: 18185 | K103: 0 | L103: 12122
A104: 12 | B104: 18283 | C104: 24 | D104: 18295 | E104: 13 | F104: 18306 | G104: 14 | H104: 18363 | I104: 24 | J104: 18390 | K104: 0 | L104: 12112
A105: 12 | B105: 18488 | C105: 13 | D105: 18493 | E105: 13 | F105: 18499 | G105: 23 | H105: 18512 | I105: 13 | J105: 18524 | K105: 0 | L105: 11121
A106: 12 | B106: 18630 | C106: 24 | D106: 18639 | E106: 13 | F106: 18647 | G106: 14 | H106: 18669 | I106: 24 | J106: 18697 | K106: 0 | L106: 12112
A107: 12 | B107: 18797 | C107: 24 | D107: 18809 | E107: 13 | F107: 18817 | G107: 23 | H107: 18829 | I107: 24 | J107: 18834 | K107: 0 | L107: 12122
A108: 12 | B108: 18938 | C108: 13 | D108: 18944 | E108: 13 | F108: 18949 | G108: 23 | H108: 18963 | I108: 13 | J108: 18973 | K108: 0 | L108: 11121
A109: 12 | B109: 19078 | C109: 13 | D109: 19089 | E109: 24 | F109: 19102 | G109: 14 | H109: 19113 | I109: 24 | J109: 19124 | K109: 0 | L109: 11212
A110: 21 | B110: 19236 | C110: 11 | D110: 19245 | E110: 22 | F110: 19258 | G110: 23 | H110: 19266 | I110: 24 | J110: 19305 | K110: 0 | L110: 21222
A111: 12 | B111: 19404 | C111: 24 | D111: 19419 | E111: 13 | F111: 19429 | G111: 23 | H111: 19439 | I111: 24 | J111: 19450 | K111: 0 | L111: 12122
A112: 21 | B112: 19556 | C112: 11 | D112: 19567 | E112: 22 | F112: 19573 | G112: 14 | H112: 19584 | I112: 24 | J112: 19593 | K112: 0 | L112: 21212
A113: 12 | B113: 19697 | C113: 24 | D113: 19710 | E113: 24 | F113: 19719 | G113: 14 | H113: 19729 | I113: 24 | J113: 19749 | K113: 0 | L113: 12212
A114: 12 | B114: 19864 | C114: 24 | D114: 19874 | E114: 13 | F114: 19885 | G114: 23 | H114: 19894 | I114: 13 | J114: 19911 | K114: 0 | L114: 12121
A115: 21 | B115: 20021 | C115: 11 | D115: 20028 | E115: 22 | F115: 20037 | G115: 23 | H115: 20045 | I115: 13 | J115: 20056 | K115: 0 | L115: 21221
A116: 12 | B116: 20181 | C116: 24 | D116: 20222 | E116: 13 | F116: 20272 | G116: 23 | H116: 20285 | I116: 13 | J116: 20324 | K116: 0 | L116: 12121
A117: 21 | B117: 20460 | C117: 11 | D117: 20471 | E117: 22 | F117: 20480 | G117: 14 | H117: 20495 | I117: 24 | J117: 20566 | K117: 0 | L117: 21212
A118: 12 | B118: 20669 | C118: 24 | D118: 20683 | E118: 13 | F118: 20694 | G118: 23 | H118: 20706 | I118: 13 | J118: 20728 | K118: 0 | L118: 12121
A119: 21 | B119: 20827 | C119: 11 | D119: 20836 | E119: 22 | F119: 20846 | G119: 14 | H119: 20857 | I119: 24 | J119: 20869 | K119: 0 | L119: 21212
A120: 12 | B120: 20971 | C120: 13 | D120: 20976 | E120: 24 | F120: 20996 | G120: 14 | H120: 21004 | I120: 13 | J120: 21030 | K120: 0 | L120: 11211
A121: 12 | B121: 21149 | C121: 24 | D121: 21157 | E121: 13 | F121: 21172 | G121: 23 | H121: 21181 | I121: 13 | J121: 21210 | K121: 0 | L121: 12121
A122: 21 | B122: 21323 | C122: 22 | D122: 21359 | E122: 13 | F122: 21371 | G122: 23 | H122: 21381 | I122: 13 | J122: 21396 | K122: 0 | L122: 22121
A123: 12 | B123: 21588 | C123: 24 | D123: 21599 | E123: 13 | F123: 21607 | G123: 23 | H123: 21619 | I123: 13 | J123: 21655 | K123: 0 | L123: 12121
A124: 21 | B124: 21753 | C124: 22 | D124: 21762 | E124: 13 | F124: 21770 | G124: 23 | H124: 21779 | I124: 13 | J124: 21789 | K124: 0 | L124: 22121
A125: 21 | B125: 21912 | C125: 11 | D125: 21921 | E125: 22 | F125: 21931 | G125: 23 | H125: 21940 | I125: 24 | J125: 21950 | K125: 0 | L125: 21222
A126: 21 | B126: 22074 | C126: 11 | D126: 22081 | E126: 11 | F126: 22106 | G126: 12 | H126: 22157 | I126: 24 | J126: 22184 | K126: 0 | L126: 21112
A127: 12 | B127: 22307 | C127: 24 | D127: 22323 | E127: 13 | F127: 22333 | G127: 23 | H127: 22341 | I127: 13 | J127: 22351 | K127: 0 | L127: 12121
A128: 12 | B128: 22494 | C128: 24 | D128: 22504 | E128: 24 | F128: 22512 | G128: 14 | H128: 22523 | I128: 24 | J128: 22531 | K128: 0 | L128: 12212
A129: 12 | B129: 22636 | C129: 24 | D129: 22644 | E129: 13 | F129: 22652 | G129: 23 | H129: 22664 | I129: 13 | J129: 22690 | K129: 0 | L129: 12121
A130: 21 | B130: 22801 | C130: 11 | D130: 22808 | E130: 22 | F130: 22818 | G130: 23 | H130: 22827 | I130: 13 | J130: 22839 | K130: 0 | L130: 21221
A131: 12 | B131: 22938 | C131: 13 | D131: 22954 | E131: 24 | F131: 22963 | G131: 14 | H131: 22971 | I131: 24 | J131: 22983 | K131: 0 | L131: 11212
A132: 12 | B132: 23095 | C132: 24 | D132: 23103 | E132: 13 | F132: 23112 | G132: 23 | H132: 23137 | I132: 13 | J132: 23148 | K132: 0 | L132: 12121
A133: 12 | B133: 23250 | C133: 13 | D133: 23265 | E133: 24 | F133: 23273 | G133: 14 | H133: 23285 | I133: 24 | J133: 23294 | K133: 0 | L133: 11212
A134: 21 | B134: 23501 | C134: 22 | D134: 23509 | E134: 24 | F134: 23520 | G134: 23 | H134: 23543 | I134: 24 | J134: 23556 | K134: 0 | L134: 22222
A135: 12 | B135: 23658 | C135: 24 | D135: 23680 | E135: 13 | F135: 23691 | G135: 23 | H135: 23709 | I135: 24 | J135: 23719 | K135: 0 | L135: 12122
A136: 21 | B136: 23830 | C136: 11 | D136: 23840 | E136: 22 | F136: 23848 | G136: 23 | H136: 23870 | I136: 24 | J136: 23888 | K136: 0 | L136: 21222
A137: 12 | B137: 23986 | C137: 24 | D137: 24000 | L137: 12

Sheet !N122740.091
A1: Report for:!N122740.091
A2: Date: | B2: <date>
A3: Hen: | B3: <hen> | F3: Correct Sequence | G3: =Start!J2 -> 21121 | P3: Total Sequences in Data | Q3: =4994-COUNTBLANK(L7:L5000) -> 127 | V3: Total Sequences in Block Data | W3: =COUNTA(L7:L27) -> 21 | AA3: Total Sequences in Block Data | AB3: =COUNTA(L28:L48) -> 21 | AF3: Total Sequences in Block Data | AG3: =COUNTA(L49:L70) -> 22 | AK3: Total Sequences in Block Data | AL3: =COUNTA(L71:L91) -> 21 | AP3: Total Sequences in Block Data | AQ3: =COUNTA(L92:L112) -> 21 | AU3: Total Sequences in Block Data | AV3: =COUNTA(L113:L133) -> 21
P4: Total Sequences in Summary | Q4: =SUM(O7:O38) -> 126 | V4: Total Sequences in Block Summary | W4: =SUM(U7:U38) -> 21 | AA4: Total Sequences in Block Summary | AB4: =SUM(Z7:Z38) -> 21 | AF4: Total Sequences in Block Summary | AG4: =SUM(AE7:AE38) -> 22 | AK4: Total Sequences in Block Summary | AL4: =SUM(AJ7:AJ38) -> 21 | AP4: Total Sequences in Block Summary | AQ4: =SUM(AO7:AO38) -> 21 | AU4: Total Sequences in Block Summary | AV4: =SUM(AT7:AT38) -> 20
T5: Block 1 | Y5: Block 2 | AD5: Block 3 | AI5: Block 4 | AN5: Block 5 | AS5: Block 6
A6: Sequence Component 1 | B6: Time 1 | C6: Sequence Component 2 | D6: Time 2 | E6: Sequence Component 3 | F6: Time 3 | G6: Sequence Component 4 | H6: Time 4 | I6: Sequence Component 5 | J6: Time 5 | K6: Correct? 0=No 1=Yes | L6: Sequence | N6: Frequency | P6: Relative Frequency | Q6: Variability | T6: Frequency | V6: Relative Frequency | W6: Variability | Y6: Frequency | AA6: Relative Frequency | AB6: Variability | AD6: Frequency | AF6: Relative Frequency | AG6: Variability | AI6: Frequency | AK6: Relative Frequency | AL6: Variability | AN6: Frequency | AP6: Relative Frequency | AQ6: Variability | AS6: Frequency | AU6: Relative Frequency | AV6: Variability
A7: 12 | B7: 15 | C7: 24 | D7: 28 | E7: 24 | F7: 40 | G7: 23 | H7: 52 | I7: 13 | J7: 67 | K7: 0 | L7: 12221 | N7: 11111 | O7: =COUNTIF($L$7:$L$500,N7) -> 3 | P7: =O7/$Q$4 -> 0.02380952381 | Q7: =IF(P7=0,0,(P7*((LOG(P7))/LOG(2)))) -> -0.1283885101 | T7: =N7 -> 11111 | U7: =COUNTIF(L7:L27,T7) -> 0 | V7: =U7/(W4-U25) -> 0 | W7: =IF(V7=0,0,(V7*((LOG(V7))/LOG(2)))) -> 0 | Y7: =N7 -> 11111 | Z7: =COUNTIF(L28:L48,Y7) -> 1 | AA7: =Z7/(AB4-Z25) -> 0.04761904762 | AB7: =IF(AA7=0,0,(AA7*((LOG(AA7))/LOG(2)))) -> -0.2091579725 | AD7: =N7 -> 11111 | AE7: =COUNTIF(L49:L70,AD7) -> 1 | AF7: =AE7/(AG4-AE25) -> 0.04545454545 | AG7: =IF(AF7=0,0,(AF7*((LOG(AF7))/LOG(2)))) -> -0.2027014372 | AI7: =N7 -> 11111 | AJ7: =COUNTIF(L71:L91,AI7) -> 0 | AK7: =AJ7/(AL4-AJ25) -> 0 | AL7: =IF(AK7=0,0,(AK7*((LOG(AK7))/LOG(2)))) -> 0 | AN7: =N7 -> 11111 | AO7: =COUNTIF(L92:L112,AN7) -> 1 | AP7: =AO7/(AQ4-AO25) -> 0.04761904762 | AQ7: =IF(AP7=0,0,(AP7*((LOG(AP7))/LOG(2)))) -> -0.2091579725 | AS7: =N7 -> 11111 | AT7: =COUNTIF(L113:L133,AS7) -> 0 | AU7: =AT7/(AV4-AT25) -> 0 | AV7: =IF(AU7=0,0,(AU7*((LOG(AU7))/LOG(2)))) -> 0
A8: 12 | B8: 169 | C8: 24 | D8: 179 | E8: 13 | F8: 196 | G8: 23 | H8: 215 | I8: 13 | J8: 237 | K8: 0 | L8: 12121 | N8: 11112 | O8: =COUNTIF($L$7:$L$500,N8) -> 1 | P8: =O8/$Q$4 -> 0.007936507937 | Q8: =IF(P8=0,0,(P8*((LOG(P8))/LOG(2)))) -> -0.05537523749 | T8: =N8 -> 11112 | U8: =COUNTIF(L7:L27,T8) -> 0 | V8: =U8/(W4-U25) -> 0 | W8: =IF(V8=0,0,(V8*((LOG(V8))/LOG(2)))) -> 0 | Y8: =N8 -> 11112 | Z8: =COUNTIF(L28:L48,Y8) -> 0 | AA8: =Z8/(AB4-Z25) -> 0 | AB8: =IF(AA8=0,0,(AA8*((LOG(AA8))/LOG(2)))) -> 0 | AD8: =N8 -> 11112 | AE8: =COUNTIF(L49:L70,AD8) -> 0 | AF8: =AE8/(AG4-AE25) -> 0 | AG8: =IF(AF8=0,0,(AF8*((LOG(AF8))/LOG(2)))) -> 0 | AI8: =N8 -> 11112 | AJ8: =COUNTIF(L71:L91,AI8) -> 0 | AK8: =AJ8/(AL4-AJ25) -> 0 | AL8: =IF(AK8=0,0,(AK8*((LOG(AK8))/LOG(2)))) -> 0 | AN8: =N8 -> 11112 | AO8: =COUNTIF(L92:L112,AN8) -> 1 | AP8: =AO8/(AQ4-AO25) -> 0.04761904762 | AQ8: =IF(AP8=0,0,(AP8*((LOG(AP8))/LOG(2)))) -> -0.2091579725 | AS8: =N8 -> 11112 | AT8: =COUNTIF(L113:L133,AS8) -> 0 | AU8: =AT8/(AV4-AT25) -> 0 | AV8: =IF(AU8=0,0,(AU8*((LOG(AU8))/LOG(2)))) -> 0
A9: 12 | B9: 336 | C9: 24 | D9: 360 | E9: 24 | F9: 382 | G9: 14 | H9: 422 | I9: 24 | J9: 433 | K9: 0 | L9: 12212 | N9: 11121 | O9: =COUNTIF($L$7:$L$500,N9) -> 3 | P9: =O9/$Q$4 -> 0.02380952381 | Q9: =IF(P9=0,0,(P9*((LOG(P9))/LOG(2)))) -> -0.1283885101 | T9: =N9 -> 11121 | U9: =COUNTIF(L7:L27,T9) -> 0 | V9: =U9/(W4-U25) -> 0 | W9: =IF(V9=0,0,(V9*((LOG(V9))/LOG(2)))) -> 0 | Y9: =N9 -> 11121 | Z9: =COUNTIF(L28:L48,Y9) -> 1 | AA9: =Z9/(AB4-Z25) -> 0.04761904762 | AB9: =IF(AA9=0,0,(AA9*((LOG(AA9))/LOG(2)))) -> -0.2091579725 | AD9: =N9 -> 11121 | AE9: =COUNTIF(L49:L70,AD9) -> 0 | AF9: =AE9/(AG4-AE25) -> 0 | AG9: =IF(AF9=0,0,(AF9*((LOG(AF9))/LOG(2)))) -> 0 | AI9: =N9 -> 11121 | AJ9: =COUNTIF(L71:L91,AI9) -> 0 | AK9: =AJ9/(AL4-AJ25) -> 0 | AL9: =IF(AK9=0,0,(AK9*((LOG(AK9))/LOG(2)))) -> 0 | AN9: =N9 -> 11121 | AO9: =COUNTIF(L92:L112,AN9) -> 0 | AP9: =AO9/(AQ4-AO25) -> 0 | AQ9: =IF(AP9=0,0,(AP9*((LOG(AP9))/LOG(2)))) -> 0 | AS9: =N9 -> 11121 | AT9: =COUNTIF(L113:L133,AS9) -> 2 | AU9: =AT9/(AV4-AT25) -> 0.1 | AV9: =IF(AU9=0,0,(AU9*((LOG(AU9))/LOG(2)))) -> -0.3321928095
A10: 12 | B10: 551 | C10: 24 | D10: 561 | E10: 24 | F10: 569 | G10: 23 | H10: 582 | I10: 24 | J10: 605 | K10: 0 | L10: 12222 | N10: 11122 | O10: =COUNTIF($L$7:$L$500,N10) -> 1 | P10: =O10/$Q$4 -> 0.007936507937 | Q10: =IF(P10=0,0,(P10*((LOG(P10))/LOG(2)))) -> -0.05537523749 | T10: =N10 -> 11122 | U10: =COUNTIF(L7:L27,T10) -> 0 | V10: =U10/(W4-U25) -> 0 | W10: =IF(V10=0,0,(V10*((LOG(V10))/LOG(2)))) -> 0 | Y10: =N10 -> 11122 | Z10: =COUNTIF(L28:L48,Y10) -> 0 | AA10: =Z10/(AB4-Z25) -> 0 | AB10: =IF(AA10=0,0,(AA10*((LOG(AA10))/LOG(2)))) -> 0 | AD10: =N10 -> 11122 | AE10: =COUNTIF(L49:L70,AD10) -> 1 | AF10: =AE10/(AG4-AE25) -> 0.04545454545 | AG10: =IF(AF10=0,0,(AF10*((LOG(AF10))/LOG(2)))) -> -0.2027014372 | AI10: =N10 -> 11122 | AJ10: =COUNTIF(L71:L91,AI10) -> 0 | AK10: =AJ10/(AL4-AJ25) -> 0 | AL10: =IF(AK10=0,0,(AK10*((LOG(AK10))/LOG(2)))) -> 0 | AN10: =N10 -> 11122 | AO10: =COUNTIF(L92:L112,AN10) -> 0 | AP10: =AO10/(AQ4-AO25) -> 0 | AQ10: =IF(AP10=0,0,(AP10*((LOG(AP10))/LOG(2)))) -> 0 | AS10: =N10 -> 11122 | AT10: =COUNTIF(L113:L133,AS10) -> 0 | AU10: =AT10/(AV4-AT25) -> 0 | AV10: =IF(AU10=0,0,(AU10*((LOG(AU10))/LOG(2)))) -> 0
A11: 12 | B11: 709 | C11: 24 | D11: 720 | E11: 24 | F11: 733 | G11: 23 | H11: 747 | I11: 13 | J11: 762 | K11: 0 | L11: 12221 | N11: 11211 | O11: =COUNTIF($L$7:$L$500,N11) -> 6 | P11: =O11/$Q$4 -> 0.04761904762 | Q11: =IF(P11=0,0,(P11*((LOG(P11))/LOG(2)))) -> -0.2091579725 | T11: =N11 -> 11211 | U11: =COUNTIF(L7:L27,T11) -> 0 | V11: =U11/(W4-U25) -> 0 | W11: =IF(V11=0,0,(V11*((LOG(V11))/LOG(2)))) -> 0 | Y11: =N11 -> 11211 | Z11: =COUNTIF(L28:L48,Y11) -> 1 | AA11: =Z11/(AB4-Z25) -> 0.04761904762 | AB11: =IF(AA11=0,0,(AA11*((LOG(AA11))/LOG(2)))) -> -0.2091579725 | AD11: =N11 -> 11211 | AE11: =COUNTIF(L49:L70,AD11) -> 1 | AF11: =AE11/(AG4-AE25) -> 0.04545454545 | AG11: =IF(AF11=0,0,(AF11*((LOG(AF11))/LOG(2)))) -> -0.2027014372 | AI11: =N11 -> 11211 | AJ11: =COUNTIF(L71:L91,AI11) -> 1 | AK11: =AJ11/(AL4-AJ25) -> 0.04761904762 | AL11: =IF(AK11=0,0,(AK11*((LOG(AK11))/LOG(2)))) -> -0.2091579725 | AN11: =N11 -> 11211 | AO11: =COUNTIF(L92:L112,AN11) -> 2 | AP11: =AO11/(AQ4-AO25) -> 0.09523809524 | AQ11: =IF(AP11=0,0,(AP11*((LOG(AP11))/LOG(2)))) -> -0.3230778498 | AS11: =N11 -> 11211 | AT11: =COUNTIF(L113:L133,AS11) -> 1 | AU11: =AT11/(AV4-AT25) -> 0.05 | AV11: =IF(AU11=0,0,(AU11*((LOG(AU11))/LOG(2)))) -> -0.2160964047
A12: 12 | B12: 860 | C12: 24 | D12: 875 | E12: 24 | F12: 899 | G12: 23 | H12: 907 | I12: 13 | J12: 941 | K12: 0 | L12: 12221 | N12: 11212 | O12: =COUNTIF($L$7:$L$500,N12) -> 10 | P12: =O12/$Q$4 -> 0.07936507937 | Q12: =IF(P12=0,0,(P12*((LOG(P12))/LOG(2)))) -> -0.290107288 | T12: =N12 -> 11212 | U12: =COUNTIF(L7:L27,T12) -> 1 | V12: =U12/(W4-U25) -> 0.04761904762 | W12: =IF(V12=0,0,(V12*((LOG(V12))/LOG(2)))) -> -0.2091579725 | Y12: =N12 -> 11212 | Z12: =COUNTIF(L28:L48,Y12) -> 1 | AA12: =Z12/(AB4-Z25) -> 0.04761904762 | AB12: =IF(AA12=0,0,(AA12*((LOG(AA12))/LOG(2)))) -> -0.2091579725 | AD12: =N12 -> 11212 | AE12: =COUNTIF(L49:L70,AD12) -> 2 | AF12: =AE12/(AG4-AE25) -> 0.09090909091 | AG12: =IF(AF12=0,0,(AF12*((LOG(AF12))/LOG(2)))) -> -0.3144937835 | AI12: =N12 -> 11212 | AJ12: =COUNTIF(L71:L91,AI12) -> 3 | AK12: =AJ12/(AL4-AJ25) -> 0.1428571429 | AL12: =IF(AK12=0,0,(AK12*((LOG(AK12))/LOG(2)))) -> -0.4010507032 | AN12: =N12 -> 11212 | AO12: =COUNTIF(L92:L112,AN12) -> 1 | AP12: =AO12/(AQ4-AO25) -> 0.04761904762 | AQ12: =IF(AP12=0,0,(AP12*((LOG(AP12))/LOG(2)))) -> -0.2091579725 | AS12: =N12 -> 11212 | AT12: =COUNTIF(L113:L133,AS12) -> 2 | AU12: =AT12/(AV4-AT25) -> 0.1 | AV12: =IF(AU12=0,0,(AU12*((LOG(AU12))/LOG(2)))) -> -0.3321928095
A13: 12 | B13: 1060 | C13: 24 | D13: 1084 | E13: 24 | F13: 1093 | G13: 14 | H13: 1116 | I13: 24 | J13: 1143 | K13: 0 | L13: 12212 | N13: 11221 | O13: =COUNTIF($L$7:$L$500,N13) -> 3 | P13: =O13/$Q$4 -> 0.02380952381 | Q13: =IF(P13=0,0,(P13*((LOG(P13))/LOG(2)))) -> -0.1283885101 | T13: =N13 -> 11221 | U13: =COUNTIF(L7:L27,T13) -> 0 | V13: =U13/(W4-U25) -> 0 | W13: =IF(V13=0,0,(V13*((LOG(V13))/LOG(2)))) -> 0 | Y13: =N13 -> 11221 | Z13: =COUNTIF(L28:L48,Y13) -> 2 | AA13: =Z13/(AB4-Z25) -> 0.09523809524 | AB13: =IF(AA13=0,0,(AA13*((LOG(AA13))/LOG(2)))) -> -0.3230778498 | AD13: =N13 -> 11221 | AE13: =COUNTIF(L49:L70,AD13) -> 0 | AF13: =AE13/(AG4-AE25) -> 0 | AG13: =IF(AF13=0,0,(AF13*((LOG(AF13))/LOG(2)))) -> 0 | AI13: =N13 -> 11221 | AJ13: =COUNTIF(L71:L91,AI13) -> 1 | AK13: =AJ13/(AL4-AJ25) -> 0.04761904762 | AL13: =IF(AK13=0,0,(AK13*((LOG(AK13))/LOG(2)))) -> -0.2091579725 | AN13: =N13 -> 11221 | AO13: =COUNTIF(L92:L112,AN13) -> 0 | AP13: =AO13/(AQ4-AO25) -> 0 | AQ13: =IF(AP13=0,0,(AP13*((LOG(AP13))/LOG(2)))) -> 0 | AS13: =N13 -> 11221 | AT13: =COUNTIF(L113:L133,AS13) -> 0 | AU13: =AT13/(AV4-AT25) -> 0 | AV13: =IF(AU13=0,0,(AU13*((LOG(AU13))/LOG(2)))) -> 0
A14: 12 | B14: 1253 | C14: 24 | D14: 1262 | E14: 24 | F14: 1276 | G14: 14 | H14: 1301 | I14: 24 | J14: 1310 | K14: 0 | L14: 12212 | N14: 11222 | O14: =COUNTIF($L$7:$L$500,N14) -> 1 | P14: =O14/$Q$4 -> 0.007936507937 | Q14: =IF(P14=0,0,(P14*((LOG(P14))/LOG(2)))) -> -0.05537523749 | T14: =N14 -> 11222 | U14: =COUNTIF(L7:L27,T14) -> 0 | V14: =U14/(W4-U25) -> 0 | W14: =IF(V14=0,0,(V14*((LOG(V14))/LOG(2)))) -> 0 | Y14: =N14 -> 11222 | Z14: =COUNTIF(L28:L48,Y14) -> 1 | AA14: =Z14/(AB4-Z25) -> 0.04761904762 | AB14: =IF(AA14=0,0,(AA14*((LOG(AA14))/LOG(2)))) -> -0.2091579725 | AD14: =N14 -> 11222 | AE14: =COUNTIF(L49:L70,AD14) -> 0 | AF14: =AE14/(AG4-AE25) -> 0 | AG14: =IF(AF14=0,0,(AF14*((LOG(AF14))/LOG(2)))) -> 0 | AI14: =N14 -> 11222 | AJ14: =COUNTIF(L71:L91,AI14) -> 0 | AK14: =AJ14/(AL4-AJ25) -> 0 | AL14: =IF(AK14=0,0,(AK14*((LOG(AK14))/LOG(2)))) -> 0 | AN14: =N14 -> 11222 | AO14: =COUNTIF(L92:L112,AN14) -> 0 | AP14: =AO14/(AQ4-AO25) -> 0 | AQ14: =IF(AP14=0,0,(AP14*((LOG(AP14))/LOG(2)))) -> 0 | AS14: =N14 -> 11222 | AT14: =COUNTIF(L113:L133,AS14) -> 0 | AU14: =AT14/(AV4-AT25) -> 0 | AV14: =IF(AU14=0,0,(AU14*((LOG(AU14))/LOG(2)))) -> 0
A15: 12 | B15: 1416 | C15: 24 | D15: 1425 | E15: 13 | F15: 1435 | G15: 23 | H15: 1445 | I15: 13 | J15: 1464 | K15: 0 | L15: 12121 | N15: 12111 | O15: =COUNTIF($L$7:$L$500,N15) -> 2 | P15: =O15/$Q$4 -> 0.01587301587 | Q15: =IF(P15=0,0,(P15*((LOG(P15))/LOG(2)))) -> -0.0948774591 | T15: =N15 -> 12111 | U15: =COUNTIF(L7:L27,T15) -> 0 | V15: =U15/(W4-U25) -> 0 | W15: =IF(V15=0,0,(V15*((LOG(V15))/LOG(2)))) -> 0 | Y15: =N15 -> 12111 | Z15: =COUNTIF(L28:L48,Y15) -> 0 | AA15: =Z15/(AB4-Z25) -> 0 | AB15: =IF(AA15=0,0,(AA15*((LOG(AA15))/LOG(2)))) -> 0 | AD15: =N15 -> 12111 | AE15: =COUNTIF(L49:L70,AD15) -> 0 | AF15: =AE15/(AG4-AE25) -> 0 | AG15: =IF(AF15=0,0,(AF15*((LOG(AF15))/LOG(2)))) -> 0 | AI15: =N15 -> 12111 | AJ15: =COUNTIF(L71:L91,AI15) -> 0 | AK15: =AJ15/(AL4-AJ25) -> 0 | AL15: =IF(AK15=0,0,(AK15*((LOG(AK15))/LOG(2)))) -> 0 | AN15: =N15 -> 12111 | AO15: =COUNTIF(L92:L112,AN15) -> 0 | AP15: =AO15/(AQ4-AO25) -> 0 | AQ15: =IF(AP15=0,0,(AP15*((LOG(AP15))/LOG(2)))) -> 0 | AS15: =N15 -> 12111 | AT15: =COUNTIF(L113:L133,AS15) -> 2 | AU15: =AT15/(AV4-AT25) -> 0.1 | AV15: =IF(AU15=0,0,(AU15*((LOG(AU15))/LOG(2)))) -> -0.3321928095
A16: 21 | B16: 1570 | C16: 11 | D16: 1578 | E16: 22 | F16: 1587 | G16: 14 | H16: 1603 | I16: 24 | J16: 1613 | K16: 0 | L16: 21212 | N16: 12112 | O16: =COUNTIF($L$7:$L$500,N16) -> 4 | P16: =O16/$Q$4 -> 0.03174603175 | Q16: =IF(P16=0,0,(P16*((LOG(P16))/LOG(2)))) -> -0.1580088865 | T16: =N16 -> 12112 | U16: =COUNTIF(L7:L27,T16) -> 1 | V16: =U16/(W4-U25) -> 0.04761904762 | W16: =IF(V16=0,0,(V16*((LOG(V16))/LOG(2)))) -> -0.2091579725 | Y16: =N16 -> 12112 | Z16: =COUNTIF(L28:L48,Y16) -> 1 | AA16: =Z16/(AB4-Z25) -> 0.04761904762 | AB16: =IF(AA16=0,0,(AA16*((LOG(AA16))/LOG(2)))) -> -0.2091579725 | AD16: =N16 -> 12112 | AE16: =COUNTIF(L49:L70,AD16) -> 1 | AF16: =AE16/(AG4-AE25) -> 0.04545454545 | AG16: =IF(AF16=0,0,(AF16*((LOG(AF16))/LOG(2)))) -> -0.2027014372 | AI16: =N16 -> 12112 | AJ16: =COUNTIF(L71:L91,AI16) -> 0 | AK16: =AJ16/(AL4-AJ25) -> 0 | AL16: =IF(AK16=0,0,(AK16*((LOG(AK16))/LOG(2)))) -> 0 | AN16: =N16 -> 12112 | AO16: =COUNTIF(L92:L112,AN16) -> 1 | AP16: =AO16/(AQ4-AO25) -> 0.04761904762 | AQ16: =IF(AP16=0,0,(AP16*((LOG(AP16))/LOG(2)))) -> -0.2091579725 | AS16: =N16 -> 12112 | AT16: =COUNTIF(L113:L133,AS16) -> 0 | AU16: =AT16/(AV4-AT25) -> 0 | AV16: =IF(AU16=0,0,(AU16*((LOG(AU16))/LOG(2)))) -> 0
A17: 12 | B17: 1721 | C17: 24 | D17: 1731 | E17: 13 | F17: 1764 | G17: 23 | H17: 1794 | I17: 13 | J17: 1814 | K17: 0 | L17: 12121 | N17: 12121 | O17: =COUNTIF($L$7:$L$500,N17) -> 27 | P17: =O17/$Q$4 -> 0.2142857143 | Q17: =IF(P17=0,0,(P17*((LOG(P17))/LOG(2)))) -> -0.4762269474 | T17: =N17 -> 12121 | U17: =COUNTIF(L7:L27,T17) -> 5 | V17: =U17/(W4-U25) -> 0.2380952381 | W17: =IF(V17=0,0,(V17*((LOG(V17))/LOG(2)))) -> -0.49294984 | Y17: =N17 -> 12121 | Z17: =COUNTIF(L28:L48,Y17) -> 2 | AA17: =Z17/(AB4-Z25) -> 0.09523809524 | AB17: =IF(AA17=0,0,(AA17*((LOG(AA17))/LOG(2)))) -> -0.3230778498 | AD17: =N17 -> 12121 | AE17: =COUNTIF(L49:L70,AD17) -> 2 | AF17: =AE17/(AG4-AE25) -> 0.09090909091 | AG17: =IF(AF17=0,0,(AF17*((LOG(AF17))/LOG(2)))) -> -0.3144937835 | AI17: =N17 -> 12121 | AJ17: =COUNTIF(L71:L91,AI17) -> 5 | AK17: =AJ17/(AL4-AJ25) -> 0.2380952381 | AL17: =IF(AK17=0,0,(AK17*((LOG(AK17))/LOG(2)))) -> -0.49294984 | AN17: =N17 -> 12121 | AO17: =COUNTIF(L92:L112,AN17) -> 8 | AP17: =AO17/(AQ4-AO25) -> 0.380952381 | AQ17: =IF(AP17=0,0,(AP17*((LOG(AP17))/LOG(2)))) -> -0.5304066372 | AS17: =N17 -> 12121 | AT17: =COUNTIF(L113:L133,AS17) -> 5 | AU17: =AT17/(AV4-AT25) -> 0.25 | AV17: =IF(AU17=0,0,(AU17*((LOG(AU17))/LOG(2)))) -> -0.5
A18: 12 | B18: 1921 | C18: 24 | D18: 1930 | E18: 13 | F18: 1939 | G18: 23 | H18: 1950 | I18: 13 | J18: 1965 | K18: 0 | L18: 12121 | N18: 12122 | O18: =COUNTIF($L$7:$L$500,N18) -> 18 | P18: =O18/$Q$4 -> 0.1428571429 | Q18: =IF(P18=0,0,(P18*((LOG(P18))/LOG(2)))) -> -0.4010507032 | T18: =N18 -> 12122 | U18: =COUNTIF(L7:L27,T18) -> 0 | V18: =U18/(W4-U25) -> 0 | W18: =IF(V18=0,0,(V18*((LOG(V18))/LOG(2)))) -> 0 | Y18: =N18 -> 12122 | Z18: =COUNTIF(L28:L48,Y18) -> 8 | AA18: =Z18/(AB4-Z25) -> 0.380952381 | AB18: =IF(AA18=0,0,(AA18*((LOG(AA18))/LOG(2)))) -> -0.5304066372 | AD18: =N18 -> 12122 | AE18: =COUNTIF(L49:L70,AD18) -> 4 | AF18: =AE18/(AG4-AE25) -> 0.1818181818 | AG18: =IF(AF18=0,0,(AF18*((LOG(AF18))/LOG(2)))) -> -0.4471693852 | AI18: =N18 -> 12122 | AJ18: =COUNTIF(L71:L91,AI18) -> 2 | AK18: =AJ18/(AL4-AJ25) -> 0.09523809524 | AL18: =IF(AK18=0,0,(AK18*((LOG(AK18))/LOG(2)))) -> -0.3230778498 | AN18: =N18 -> 12122 | AO18: =COUNTIF(L92:L112,AN18) -> 3 | AP18: =AO18/(AQ4-AO25) -> 0.1428571429 | AQ18: =IF(AP18=0,0,(AP18*((LOG(AP18))/LOG(2)))) -> -0.4010507032 | AS18: =N18 -> 12122 | AT18: =COUNTIF(L113:L133,AS18) -> 1 | AU18: =AT18/(AV4-AT25) -> 0.05 | AV18: =IF(AU18=0,0,(AU18*((LOG(AU18))/LOG(2)))) -> -0.2160964047
A19: 12 | B19: 2079 | C19: 24 | D19: 2089 | E19: 24 | F19: 2103 | G19: 23 | H19: 2113 | I19: 13 | J19: 2148 | K19: 0 | L19: 12221 | N19: 12211 | O19: =COUNTIF($L$7:$L$500,N19) -> 2 | P19: =O19/$Q$4 -> 0.01587301587 | Q19: =IF(P19=0,0,(P19*((LOG(P19))/LOG(2)))) -> -0.0948774591 | T19: =N19 -> 12211 | U19: =COUNTIF(L7:L27,T19) -> 1 | V19: =U19/(W4-U25) -> 0.04761904762 | W19: =IF(V19=0,0,(V19*((LOG(V19))/LOG(2)))) -> -0.2091579725 | Y19: =N19 -> 12211 | Z19: =COUNTIF(L28:L48,Y19) -> 1 | AA19: =Z19/(AB4-Z25) -> 0.04761904762 | AB19: =IF(AA19=0,0,(AA19*((LOG(AA19))/LOG(2)))) -> -0.2091579725 | AD19: =N19 -> 12211 | AE19: =COUNTIF(L49:L70,AD19) -> 0 | AF19: =AE19/(AG4-AE25) -> 0 | AG19: =IF(AF19=0,0,(AF19*((LOG(AF19))/LOG(2)))) -> 0 | AI19: =N19 -> 12211 | AJ19: =COUNTIF(L71:L91,AI19) -> 0 | AK19: =AJ19/(AL4-AJ25) -> 0 | AL19: =IF(AK19=0,0,(AK19*((LOG(AK19))/LOG(2)))) -> 0 | AN19: =N19 -> 12211 | AO19: =COUNTIF(L92:L112,AN19) -> 0 | AP19: =AO19/(AQ4-AO25) -> 0 | AQ19: =IF(AP19=0,0,(AP19*((LOG(AP19))/LOG(2)))) -> 0 | AS19: =N19 -> 12211 | AT19: =COUNTIF(L113:L133,AS19) -> 0 | AU19: =AT19/(AV4-AT25) -> 0 | AV19: =IF(AU19=0,0,(AU19*((LOG(AU19))/LOG(2)))) -> 0
A20: 21 | B20: 2271 | C20: 11 | D20: 2291 | E20: 22 | F20: 2301 | G20: 23 | H20: 2309 | I20: 24 | J20: 2318 | K20: 0 | L20: 21222 | N20: 12212 | O20: =COUNTIF($L$7:$L$500,N20) -> 6 | P20: =O20/$Q$4 -> 0.04761904762 | Q20: =IF(P20=0,0,(P20*((LOG(P20))/LOG(2)))) -> -0.2091579725 | T20: =N20 -> 12212 | U20: =COUNTIF(L7:L27,T20) -> 3 | V20: =U20/(W4-U25) -> 0.1428571429 | W20: =IF(V20=0,0,(V20*((LOG(V20))/LOG(2)))) -> -0.4010507032 | Y20: =N20 -> 12212 | Z20: =COUNTIF(L28:L48,Y20) -> 1 | AA20: =Z20/(AB4-Z25) -> 0.04761904762 | AB20: =IF(AA20=0,0,(AA20*((LOG(AA20))/LOG(2)))) -> -0.2091579725 | AD20: =N20 -> 12212 | AE20: =COUNTIF(L49:L70,AD20) -> 1 | AF20: =AE20/(AG4-AE25) -> 0.04545454545 | AG20: =IF(AF20=0,0,(AF20*((LOG(AF20))/LOG(2)))) -> -0.2027014372 | AI20: =N20 -> 12212 | AJ20: =COUNTIF(L71:L91,AI20) -> 1 | AK20: =AJ20/(AL4-AJ25) -> 0.04761904762 | AL20: =IF(AK20=0,0,(AK20*((LOG(AK20))/LOG(2)))) -> -0.2091579725 | AN20: =N20 -> 12212 | AO20: =COUNTIF(L92:L112,AN20) -> 0 | AP20: =AO20/(AQ4-AO25) -> 0 | AQ20: =IF(AP20=0,0,(AP20*((LOG(AP20))/LOG(2)))) -> 0 | AS20: =N20 -> 12212 | AT20: =COUNTIF(L113:L133,AS20) -> 0 | AU20: =AT20/(AV4-AT25) -> 0 | AV20: =IF(AU20=0,0,(AU20*((LOG(AU20))/LOG(2)))) -> 0
A21: 21 | B21: 2426 | C21: 11 | D21: 2439 | E21: 22 | F21: 2479 | G21: 14 | H21: 2493 | I21: 13 | J21: 2516 | K21: 0 | L21: 21211 | N21: 12221 | O21: =COUNTIF($L$7:$L$500,N21) -> 4 | P21: =O21/$Q$4 -> 0.03174603175 | Q21: =IF(P21=0,0,(P21*((LOG(P21))/LOG(2)))) -> -0.1580088865 | T21: =N21 -> 12221 | U21: =COUNTIF(L7:L27,T21) -> 4 | V21: =U21/(W4-U25) -> 0.1904761905 | W21: =IF(V21=0,0,(V21*((LOG(V21))/LOG(2)))) -> -0.4556795091 | Y21: =N21 -> 12221 | Z21: =COUNTIF(L28:L48,Y21) -> 0 | AA21: =Z21/(AB4-Z25) -> 0 | AB21: =IF(AA21=0,0,(AA21*((LOG(AA21))/LOG(2)))) -> 0 | AD21: =N21 -> 12221 | AE21: =COUNTIF(L49:L70,AD21) -> 0 | AF21: =AE21/(AG4-AE25) -> 0 | AG21: =IF(AF21=0,0,(AF21*((LOG(AF21))/LOG(2)))) -> 0 | AI21: =N21 -> 12221 | AJ21: =COUNTIF(L71:L91,AI21) -> 0 | AK21: =AJ21/(AL4-AJ25) -> 0 | AL21: =IF(AK21=0,0,(AK21*((LOG(AK21))/LOG(2)))) -> 0 | AN21: =N21 -> 12221 | AO21: =COUNTIF(L92:L112,AN21) -> 0 | AP21: =AO21/(AQ4-AO25) -> 0 | AQ21: =IF(AP21=0,0,(AP21*((LOG(AP21))/LOG(2)))) -> 0 | AS21: =N21 -> 12221 | AT21: =COUNTIF(L113:L133,AS21) -> 0 | AU21: =AT21/(AV4-AT25) -> 0 | AV21: =IF(AU21=0,0,(AU21*((LOG(AU21))/LOG(2)))) -> 0
A22: 21 | B22: 2625 | C22: 11 | D22: 2634 | E22: 22 | F22: 2643 | G22: 14 | H22: 2653 | I22: 24 | J22: 2663 | K22: 0 | L22: 21212 | N22: 12222 | O22: =COUNTIF($L$7:$L$500,N22) -> 1 | P22: =O22/$Q$4 -> 0.007936507937 | Q22: =IF(P22=0,0,(P22*((LOG(P22))/LOG(2)))) -> -0.05537523749 | T22: =N22 -> 12222 | U22: =COUNTIF(L7:L27,T22) -> 1 | V22: =U22/(W4-U25) -> 0.04761904762 | W22: =IF(V22=0,0,(V22*((LOG(V22))/LOG(2)))) -> -0.2091579725 | Y22: =N22 -> 12222 | Z22: =COUNTIF(L28:L48,Y22) -> 0 | AA22: =Z22/(AB4-Z25) -> 0 | AB22: =IF(AA22=0,0,(AA22*((LOG(AA22))/LOG(2)))) -> 0 | AD22: =N22 -> 12222 | AE22: =COUNTIF(L49:L70,AD22) -> 0 | AF22: =AE22/(AG4-AE25) -> 0 | AG22: =IF(AF22=0,0,(AF22*((LOG(AF22))/LOG(2)))) -> 0 | AI22: =N22 -> 12222 | AJ22: =COUNTIF(L71:L91,AI22) -> 0 | AK22: =AJ22/(AL4-AJ25) -> 0 | AL22: =IF(AK22=0,0,(AK22*((LOG(AK22))/LOG(2)))) -> 0 | AN22: =N22 -> 12222 | AO22: =COUNTIF(L92:L112,AN22) -> 0 | AP22: =AO22/(AQ4-AO25) -> 0 | AQ22: =IF(AP22=0,0,(AP22*((LOG(AP22))/LOG(2)))) -> 0 | AS22: =N22 -> 12222 | AT22: =COUNTIF(L113:L133,AS22) -> 0 | AU22: =AT22/(AV4-AT25) -> 0 | AV22: =IF(AU22=0,0,(AU22*((LOG(AU22))/LOG(2)))) -> 0
A23: 12 | B23: 2765 | C23: 13 | D23: 2782 | E23: 24 | F23: 2792 | G23: 14 | H23: 2813 | I23: 24 | J23: 2826 | K23: 0 | L23: 11212 | N23: 21111 | O23: =COUNTIF($L$7:$L$500,N23) -> 0 | P23: =O23/$Q$4 -> 0 | Q23: =IF(P23=0,0,(P23*((LOG(P23))/LOG(2)))) -> 0 | T23: =N23 -> 21111 | U23: =COUNTIF(L7:L27,T23) -> 0 | V23: =U23/(W4-U25) -> 0 | W23: =IF(V23=0,0,(V23*((LOG(V23))/LOG(2)))) -> 0 | Y23: =N23 -> 21111 | Z23: =COUNTIF(L28:L48,Y23) -> 0 | AA23: =Z23/(AB4-Z25) -> 0 | AB23: =IF(AA23=0,0,(AA23*((LOG(AA23))/LOG(2)))) -> 0 | AD23: =N23 -> 21111 | AE23: =COUNTIF(L49:L70,AD23) -> 0 | AF23: =AE23/(AG4-AE25) -> 0 | AG23: =IF(AF23=0,0,(AF23*((LOG(AF23))/LOG(2)))) -> 0 | AI23: =N23 -> 21111 | AJ23: =COUNTIF(L71:L91,AI23) -> 0 | AK23: =AJ23/(AL4-AJ25) -> 0 | AL23: =IF(AK23=0,0,(AK23*((LOG(AK23))/LOG(2)))) -> 0 | AN23: =N23 -> 21111 | AO23: =COUNTIF(L92:L112,AN23) -> 0 | AP23: =AO23/(AQ4-AO25) -> 0 | AQ23: =IF(AP23=0,0,(AP23*((LOG(AP23))/LOG(2)))) -> 0 | AS23: =N23 -> 21111 | AT23: =COUNTIF(L113:L133,AS23) -> 0 | AU23: =AT23/(AV4-AT25) -> 0 | AV23: =IF(AU23=0,0,(AU23*((LOG(AU23))/LOG(2)))) -> 0
A24: 12 | B24: 2942 | C24: 24 | D24: 2952 | E24: 13 | F24: 2961 | G24: 14 | H24: 2993 | I24: 24 | J24: 3005 | K24: 0 | L24: 12112 | N24: 21112 | O24: =COUNTIF($L$7:$L$500,N24) -> 3 | P24: =O24/$Q$4 -> 0.02380952381 | Q24: =IF(P24=0,0,(P24*((LOG(P24))/LOG(2)))) -> -0.1283885101 | T24: =N24 -> 21112 | U24: =COUNTIF(L7:L27,T24) -> 0 | V24: =U24/(W4-U25) -> 0 | W24: =IF(V24=0,0,(V24*((LOG(V24))/LOG(2)))) -> 0 | Y24: =N24 -> 21112 | Z24: =COUNTIF(L28:L48,Y24) -> 0 | AA24: =Z24/(AB4-Z25) -> 0 | AB24: =IF(AA24=0,0,(AA24*((LOG(AA24))/LOG(2)))) -> 0 | AD24: =N24 -> 21112 | AE24: =COUNTIF(L49:L70,AD24) -> 0 | AF24: =AE24/(AG4-AE25) -> 0 | AG24: =IF(AF24=0,0,(AF24*((LOG(AF24))/LOG(2)))) -> 0 | AI24: =N24 -> 21112 | AJ24: =COUNTIF(L71:L91,AI24) -> 0 | AK24: =AJ24/(AL4-AJ25) -> 0 | AL24: =IF(AK24=0,0,(AK24*((LOG(AK24))/LOG(2)))) -> 0 | AN24: =N24 -> 21112 | AO24: =COUNTIF(L92:L112,AN24) -> 0 | AP24: =AO24/(AQ4-AO25) -> 0 | AQ24: =IF(AP24=0,0,(AP24*((LOG(AP24))/LOG(2)))) -> 0 | AS24: =N24 -> 21112 | AT24: =COUNTIF(L113:L133,AS24) -> 3 | AU24: =AT24/(AV4-AT25) -> 0.15 | AV24: =IF(AU24=0,0,(AU24*((LOG(AU24))/LOG(2)))) -> -0.4105448391
A25: 12 | B25: 3121 | C25: 24 | D25: 3130 | E25: 13 | F25: 3140 | G25: 23 | H25: 3159 | I25: 13 | J25: 3176 | K25: 0 | L25: 12121 | N25: 21121 | O25: =COUNTIF($L$7:$L$500,N25) -> 0 | P25: =O25/$Q$4 -> 0 | Q25: =IF(P25=0,0,(P25*((LOG(P25))/LOG(2)))) -> 0 | T25: =N25 -> 21121 | U25: =COUNTIF(L7:L27,T25) -> 0 | Y25: =N25 -> 21121 | Z25: =COUNTIF(L28:L48,Y25) -> 0 | AD25: =N25 -> 21121 | AE25: =COUNTIF(L49:L70,AD25) -> 0 | AI25: =N25 -> 21121 | AJ25: =COUNTIF(L71:L91,AI25) -> 0 | AN25: =N25 -> 21121 | AO25: =COUNTIF(L92:L112,AN25) -> 0 | AS25: =N25 -> 21121 | AT25: =COUNTIF(L113:L133,AS25) -> 0
A26: 21 | B26: 3327 | C26: 11 | D26: 3338 | E26: 22 | F26: 3350 | G26: 14 | H26: 3372 | I26: 24 | J26: 3383 | K26: 0 | L26: 21212 | N26: 21122 | O26: =COUNTIF($L$7:$L$500,N26) -> 1 | P26: =O26/$Q$4 -> 0.007936507937 | Q26: =IF(P26=0,0,(P26*((LOG(P26))/LOG(2)))) -> -0.05537523749 | T26: =N26 -> 21122 | U26: =COUNTIF(L7:L27,T26) -> 0 | V26: =U26/(W4-U25) -> 0 | W26: =IF(V26=0,0,(V26*((LOG(V26))/LOG(2)))) -> 0 | Y26: =N26 -> 21122 | Z26: =COUNTIF(L28:L48,Y26) -> 0 | AA26: =Z26/(AB4-Z25) -> 0 | AB26: =IF(AA26=0,0,(AA26*((LOG(AA26))/LOG(2)))) -> 0 | AD26: =N26 -> 21122 | AE26: =COUNTIF(L49:L70,AD26) -> 0 | AF26: =AE26/(AG4-AE25) -> 0 | AG26: =IF(AF26=0,0,(AF26*((LOG(AF26))/LOG(2)))) -> 0 | AI26: =N26 -> 21122 | AJ26: =COUNTIF(L71:L91,AI26) -> 1 | AK26: =AJ26/(AL4-AJ25) -> 0.04761904762 | AL26: =IF(AK26=0,0,(AK26*((LOG(AK26))/LOG(2)))) -> -0.2091579725 | AN26: =N26 -> 21122 | AO26: =COUNTIF(L92:L112,AN26) -> 0 | AP26: =AO26/(AQ4-AO25) -> 0 | AQ26: =IF(AP26=0,0,(AP26*((LOG(AP26))/LOG(2)))) -> 0 | AS26: =N26 -> 21122 | AT26: =COUNTIF(L113:L133,AS26) -> 0 | AU26: =AT26/(AV4-AT25) -> 0 | AV26: =IF(AU26=0,0,(AU26*((LOG(AU26))/LOG(2)))) -> 0
A27: 12 | B27: 3499 | C27: 24 | D27: 3513 | E27: 24 | F27: 3533 | G27: 14 | H27: 3545 | I27: 13 | J27: 3587 | K27: 0 | L27: 12211 | N27: 21211 | O27: =COUNTIF($L$7:$L$500,N27) -> 5 | P27: =O27/$Q$4 -> 0.03968253968 | Q27: =IF(P27=0,0,(P27*((LOG(P27))/LOG(2)))) -> -0.1847361837 | T27: =N27 -> 21211 | U27: =COUNTIF(L7:L27,T27) -> 1 | V27: =U27/(W4-U25) -> 0.04761904762 | W27: =IF(V27=0,0,(V27*((LOG(V27))/LOG(2)))) -> -0.2091579725 | Y27: =N27 -> 21211 | Z27: =COUNTIF(L28:L48,Y27) -> 0 | AA27: =Z27/(AB4-Z25) -> 0 | AB27: =IF(AA27=0,0,(AA27*((LOG(AA27))/LOG(2)))) -> 0 | AD27: =N27 -> 21211 | AE27: =COUNTIF(L49:L70,AD27) -> 0 | AF27: =AE27/(AG4-AE25) -> 0 | AG27: =IF(AF27=0,0,(AF27*((LOG(AF27))/LOG(2)))) -> 0 | AI27: =N27 -> 21211 | AJ27: =COUNTIF(L71:L91,AI27) -> 2 | AK27: =AJ27/(AL4-AJ25) -> 0.09523809524 | AL27: =IF(AK27=0,0,(AK27*((LOG(AK27))/LOG(2)))) -> -0.3230778498 | AN27: =N27 -> 21211 | AO27: =COUNTIF(L92:L112,AN27) -> 1 | AP27: =AO27/(AQ4-AO25) -> 0.04761904762 | AQ27: =IF(AP27=0,0,(AP27*((LOG(AP27))/LOG(2)))) -> -0.2091579725 | AS27: =N27 -> 21211 | AT27: =COUNTIF(L113:L133,AS27) -> 1 | AU27: =AT27/(AV4-AT25) -> 0.05 | AV27: =IF(AU27=0,0,(AU27*((LOG(AU27))/LOG(2)))) -> -0.2160964047
A28: 12 | B28: 3701 | C28: 24 | D28: 3712 | E28: 24 | F28: 3720 | G28: 14 | H28: 3728 | I28: 24 | J28: 3739 | K28: 0 | L28: 12212 | N28: 21212 | O28: =COUNTIF($L$7:$L$500,N28) -> 19 | P28: =O28/$Q$4 -> 0.1507936508 | Q28: =IF(P28=0,0,(P28*((LOG(P28))/LOG(2)))) -> -0.4115690142 | T28: =N28 -> 21212 | U28: =COUNTIF(L7:L27,T28) -> 3 | V28: =U28/(W4-U25) -> 0.1428571429 | W28: =IF(V28=0,0,(V28*((LOG(V28))/LOG(2)))) -> -0.4010507032 | Y28: =N28 -> 21212 | Z28: =COUNTIF(L28:L48,Y28) -> 1 | AA28: =Z28/(AB4-Z25) -> 0.04761904762 | AB28: =IF(AA28=0,0,(AA28*((LOG(AA28))/LOG(2)))) -> -0.2091579725 | AD28: =N28 -> 21212 | AE28: =COUNTIF(L49:L70,AD28) -> 8 | AF28: =AE28/(AG4-AE25) -> 0.3636363636 | AG28: =IF(AF28=0,0,(AF28*((LOG(AF28))/LOG(2)))) -> -0.5307024068 | AI28: =N28 -> 21212 | AJ28: =COUNTIF(L71:L91,AI28) -> 3 | AK28: =AJ28/(AL4-AJ25) -> 0.1428571429 | AL28: =IF(AK28=0,0,(AK28*((LOG(AK28))/LOG(2)))) -> -0.4010507032 | AN28: =N28 -> 21212 | AO28: =COUNTIF(L92:L112,AN28) -> 2 | AP28: =AO28/(AQ4-AO25) -> 0.09523809524 | AQ28: =IF(AP28=0,0,(AP28*((LOG(AP28))/LOG(2)))) -> -0.3230778498 | AS28: =N28 -> 21212 | AT28: =COUNTIF(L113:L133,AS28) -> 2 | AU28: =AT28/(AV4-AT25) -> 0.1 | AV28: =IF(AU28=0,0,(AU28*((LOG(AU28))/LOG(2)))) -> -0.3321928095
A29: 12 | B29: 3842 | C29: 24 | D29: 3851 | E29: 13 | F29: 3859 | G29: 14 | H29: 3882 | I29: 24 | J29: 3902 | K29: 0 | L29: 12112 | N29: 21221 | O29: =COUNTIF($L$7:$L$500,N29) -> 0 | P29: =O29/$Q$4 -> 0 | Q29: =IF(P29=0,0,(P29*((LOG(P29))/LOG(2)))) -> 0 | T29: =N29 -> 21221 | U29: =COUNTIF(L7:L27,T29) -> 0 | V29: =U29/(W4-U25) -> 0 | W29: =IF(V29=0,0,(V29*((LOG(V29))/LOG(2)))) -> 0 | Y29: =N29 -> 21221 | Z29: =COUNTIF(L28:L48,Y29) -> 0 | AA29: =Z29/(AB4-Z25) -> 0 | AB29: =IF(AA29=0,0,(AA29*((LOG(AA29))/LOG(2)))) -> 0 | AD29: =N29 -> 21221 | AE29: =COUNTIF(L49:L70,AD29) -> 0 | AF29: =AE29/(AG4-AE25) -> 0 | AG29: =IF(AF29=0,0,(AF29*((LOG(AF29))/LOG(2)))) -> 0 | AI29: =N29 -> 21221 | AJ29: =COUNTIF(L71:L91,AI29) -> 0 | AK29: =AJ29/(AL4-AJ25) -> 0 | AL29: =IF(AK29=0,0,(AK29*((LOG(AK29))/LOG(2)))) -> 0 | AN29: =N29 -> 21221 | AO29: =COUNTIF(L92:L112,AN29) -> 0 | AP29: =AO29/(AQ4-AO25) -> 0 | AQ29: =IF(AP29=0,0,(AP29*((LOG(AP29))/LOG(2)))) -> 0 | AS29: =N29 -> 21221 | AT29: =COUNTIF(L113:L133,AS29) -> 0 | AU29: =AT29/(AV4-AT25) -> 0 | AV29: =IF(AU29=0,0,(AU29*((LOG(AU29))/LOG(2)))) -> 0
A30: 12 | B30: 4012 | C30: 24 | D30: 4071 | E30: 13 | F30: 4079 | G30: 23 | H30: 4090 | I30: 24 | J30: 4099 | K30: 0 | L30: 12122 | N30: 21222 | O30: =COUNTIF($L$7:$L$500,N30) -> 1 | P30: =O30/$Q$4 -> 0.007936507937 | Q30: =IF(P30=0,0,(P30*((LOG(P30))/LOG(2)))) -> -0.05537523749 | T30: =N30 -> 21222 | U30: =COUNTIF(L7:L27,T30) -> 1 | V30: =U30/(W4-U25) -> 0.04761904762 | W30: =IF(V30=0,0,(V30*((LOG(V30))/LOG(2)))) -> -0.2091579725 | Y30: =N30 -> 21222 | Z30: =COUNTIF(L28:L48,Y30) -> 0 | AA30: =Z30/(AB4-Z25) -> 0 | AB30: =IF(AA30=0,0,(AA30*((LOG(AA30))/LOG(2)))) -> 0 | AD30: =N30 -> 21222 | AE30: =COUNTIF(L49:L70,AD30) -> 0 | AF30: =AE30/(AG4-AE25) -> 0 | AG30: =IF(AF30=0,0,(AF30*((LOG(AF30))/LOG(2)))) -> 0 | AI30: =N30 -> 21222 | AJ30: =COUNTIF(L71:L91,AI30) -> 0 | AK30: =AJ30/(AL4-AJ25) -> 0 | AL30: =IF(AK30=0,0,(AK30*((LOG(AK30))/LOG(2)))) -> 0 | AN30: =N30 -> 21222 | AO30: =COUNTIF(L92:L112,AN30) -> 0 | AP30: =AO30/(AQ4-AO25) -> 0 | AQ30: =IF(AP30=0,0,(AP30*((LOG(AP30))/LOG(2)))) -> 0 | AS30: =N30 -> 21222 | AT30: =COUNTIF(L113:L133,AS30) -> 0 | AU30: =AT30/(AV4-AT25) -> 0 | AV30: =IF(AU30=0,0,(AU30*((LOG(AU30))/LOG(2)))) -> 0
A31: 12 | B31: 4199 | C31: 13 | D31: 4208 | E31: 24 | F31: 4217 | G31: 14 | H31: 4227 | I31: 13 | J31: 4251 | K31: 0 | L31: 11211 | N31: 22111 | O31: =COUNTIF($L$7:$L$500,N31) -> 1 | P31: =O31/$Q$4 -> 0.007936507937 | Q31: =IF(P31=0,0,(P31*((LOG(P31))/LOG(2)))) -> -0.05537523749 | T31: =N31 -> 22111 | U31: =COUNTIF(L7:L27,T31) -> 0 | V31: =U31/(W4-U25) -> 0 | W31: =IF(V31=0,0,(V31*((LOG(V31))/LOG(2)))) -> 0 | Y31: =N31 -> 22111 | Z31: =COUNTIF(L28:L48,Y31) -> 0 | AA31: =Z31/(AB4-Z25) -> 0 | AB31: =IF(AA31=0,0,(AA31*((LOG(AA31))/LOG(2)))) -> 0 | AD31: =N31 -> 22111 | AE31: =COUNTIF(L49:L70,AD31) -> 0 | AF31: =AE31/(AG4-AE25) -> 0 | AG31: =IF(AF31=0,0,(AF31*((LOG(AF31))/LOG(2)))) -> 0 | AI31: =N31 -> 22111 | AJ31: =COUNTIF(L71:L91,AI31) -> 0 | AK31: =AJ31/(AL4-AJ25) -> 0 | AL31: =IF(AK31=0,0,(AK31*((LOG(AK31))/LOG(2)))) -> 0 | AN31: =N31 -> 22111 | AO31: =COUNTIF(L92:L112,AN31) -> 0 | AP31: =AO31/(AQ4-AO25) -> 0 | AQ31: =IF(AP31=0,0,(AP31*((LOG(AP31))/LOG(2)))) -> 0 | AS31: =N31 -> 22111 | AT31: =COUNTIF(L113:L133,AS31) -> 1 | AU31: =AT31/(AV4-AT25) -> 0.05 | AV31: =IF(AU31=0,0,(AU31*((LOG(AU31))/LOG(2)))) -> -0.2160964047
A32: 12 | B32: 4358 | C32: 24 | D32: 4367 | E32: 13 | F32: 4376 | G32: 23 | H32: 4386 | I32: 24 | J32: 4396 | K32: 0 | L32: 12122 | N32: 22112 | O32: =COUNTIF($L$7:$L$500,N32) -> 0 | P32: =O32/$Q$4 -> 0 | Q32: =IF(P32=0,0,(P32*((LOG(P32))/LOG(2)))) -> 0 | T32: =N32 -> 22112 | U32: =COUNTIF(L7:L27,T32) -> 0 | V32: =U32/(W4-U25) -> 0 | W32: =IF(V32=0,0,(V32*((LOG(V32))/LOG(2)))) -> 0 | Y32: =N32 -> 22112 | Z32: =COUNTIF(L28:L48,Y32) -> 0 | AA32: =Z32/(AB4-Z25) -> 0 | AB32: =IF(AA32=0,0,(AA32*((LOG(AA32))/LOG(2)))) -> 0 | AD32: =N32 -> 22112 | AE32: =COUNTIF(L49:L70,AD32) -> 0 | AF32: =AE32/(AG4-AE25) -> 0 | AG32: =IF(AF32=0,0,(AF32*((LOG(AF32))/LOG(2)))) -> 0 | AI32: =N32 -> 22112 | AJ32: =COUNTIF(L71:L91,AI32) -> 0 | AK32: =AJ32/(AL4-AJ25) -> 0 | AL32: =IF(AK32=0,0,(AK32*((LOG(AK32))/LOG(2)))) -> 0 | AN32: =N32 -> 22112 | AO32: =COUNTIF(L92:L112,AN32) -> 0 | AP32: =AO32/(AQ4-AO25) -> 0 | AQ32: =IF(AP32=0,0,(AP32*((LOG(AP32))/LOG(2)))) -> 0 | AS32: =N32 -> 22112 | AT32: =COUNTIF(L113:L133,AS32) -> 0 | AU32: =AT32/(AV4-AT25) -> 0 | AV32: =IF(AU32=0,0,(AU32*((LOG(AU32))/LOG(2)))) -> 0
A33: 12 | B33: 4494 | C33: 24 | D33: 4506 | E33: 24 | F33: 4516 | G33: 14 | H33: 4524 | I33: 13 | J33: 4544 | K33: 0 | L33: 12211 | N33: 22121 | O33: =COUNTIF($L$7:$L$500,N33) -> 3 | P33: =O33/$Q$4 -> 0.02380952381 | Q33: =IF(P33=0,0,(P33*((LOG(P33))/LOG(2)))) -> -0.1283885101 | T33: =N33 -> 22121 | U33: =COUNTIF(L7:L27,T33) -> 0 | V33: =U33/(W4-U25) -> 0 | W33: =IF(V33=0,0,(V33*((LOG(V33))/LOG(2)))) -> 0 | Y33: =N33 -> 22121 | Z33: =COUNTIF(L28:L48,Y33) -> 0 | AA33: =Z33/(AB4-Z25) -> 0 | AB33: =IF(AA33=0,0,(AA33*((LOG(AA33))/LOG(2)))) -> 0 | AD33: =N33 -> 22121 | AE33: =COUNTIF(L49:L70,AD33) -> 1 | AF33: =AE33/(AG4-AE25) -> 0.04545454545 | AG33: =IF(AF33=0,0,(AF33*((LOG(AF33))/LOG(2)))) -> -0.2027014372 | AI33: =N33 -> 22121 | AJ33: =COUNTIF(L71:L91,AI33) -> 2 | AK33: =AJ33/(AL4-AJ25) -> 0.09523809524 | AL33: =IF(AK33=0,0,(AK33*((LOG(AK33))/LOG(2)))) -> -0.3230778498 | AN33: =N33 -> 22121 | AO33: =COUNTIF(L92:L112,AN33) -> 0 | AP33: =AO33/(AQ4-AO25) -> 0 | AQ33: =IF(AP33=0,0,(AP33*((LOG(AP33))/LOG(2)))) -> 0 | AS33: =N33 -> 22121 | AT33: =COUNTIF(L113:L133,AS33) -> 0 | AU33: =AT33/(AV4-AT25) -> 0 | AV33: =IF(AU33=0,0,(AU33*((LOG(AU33))/LOG(2)))) -> 0
A34: 12 | B34: 4646 | C34: 13 | D34: 4662 | E34: 24 | F34: 4672 | G34: 23 | H34: 4682 | I34: 13 | J34: 4696 | K34: 0 | L34: 11221 | N34: 22122 | O34: =COUNTIF($L$7:$L$500,N34) -> 0 | P34: =O34/$Q$4 -> 0 | Q34: =IF(P34=0,0,(P34*((LOG(P34))/LOG(2)))) -> 0 | T34: =N34 -> 22122 | U34: =COUNTIF(L7:L27,T34) -> 0 | V34: =U34/(W4-U25) -> 0 | W34: =IF(V34=0,0,(V34*((LOG(V34))/LOG(2)))) -> 0 | Y34: =N34 -> 22122 | Z34: =COUNTIF(L28:L48,Y34) -> 0 | AA34: =Z34/(AB4-Z25) -> 0 | AB34: =IF(AA34=0,0,(AA34*((LOG(AA34))/LOG(2)))) -> 0 | AD34: =N34 -> 22122 | AE34: =COUNTIF(L49:L70,AD34) -> 0 | AF34: =AE34/(AG4-AE25) -> 0 | AG34: =IF(AF34=0,0,(AF34*((LOG(AF34))/LOG(2)))) -> 0 | AI34: =N34 -> 22122 | AJ34: =COUNTIF(L71:L91,AI34) -> 0 | AK34: =AJ34/(AL4-AJ25) -> 0 | AL34: =IF(AK34=0,0,(AK34*((LOG(AK34))/LOG(2)))) -> 0 | AN34: =N34 -> 22122 | AO34: =COUNTIF(L92:L112,AN34) -> 0 | AP34: =AO34/(AQ4-AO25) -> 0 | AQ34: =IF(AP34=0,0,(AP34*((LOG(AP34))/LOG(2)))) -> 0 | AS34: =N34 -> 22122 | AT34: =COUNTIF(L113:L133,AS34) -> 0 | AU34: =AT34/(AV4-AT25) -> 0 | AV34: =IF(AU34=0,0,(AU34*((LOG(AU34))/LOG(2)))) -> 0
A35: 12 | B35: 4797 | C35: 13 | D35: 4803 | E35: 13 | F35: 4821 | G35: 23 | H35: 4833 | I35: 13 | J35: 4845 | K35: 0 | L35: 11121 | N35: 22211 | O35: =COUNTIF($L$7:$L$500,N35) -> 0 | P35: =O35/$Q$4 -> 0 | Q35: =IF(P35=0,0,(P35*((LOG(P35))/LOG(2)))) -> 0 | T35: =N35 -> 22211 | U35: =COUNTIF(L7:L27,T35) -> 0 | V35: =U35/(W4-U25) -> 0 | W35: =IF(V35=0,0,(V35*((LOG(V35))/LOG(2)))) -> 0 | Y35: =N35 -> 22211 | Z35: =COUNTIF(L28:L48,Y35) -> 0 | AA35: =Z35/(AB4-Z25) -> 0 | AB35: =IF(AA35=0,0,(AA35*((LOG(AA35))/LOG(2)))) -> 0 | AD35: =N35 -> 22211 | AE35: =COUNTIF(L49:L70,AD35) -> 0 | AF35: =AE35/(AG4-AE25) -> 0 | AG35: =IF(AF35=0,0,(AF35*((LOG(AF35))/LOG(2)))) -> 0 | AI35: =N35 -> 22211 | AJ35: =COUNTIF(L71:L91,AI35) -> 0 | AK35: =AJ35/(AL4-AJ25) -> 0 | AL35: =IF(AK35=0,0,(AK35*((LOG(AK35))/LOG(2)))) -> 0 | AN35: =N35 -> 22211 | AO35: =COUNTIF(L92:L112,AN35) -> 0 | AP35: =AO35/(AQ4-AO25) -> 0 | AQ35: =IF(AP35=0,0,(AP35*((LOG(AP35))/LOG(2)))) -> 0 | AS35: =N35 -> 22211 | AT35: =COUNTIF(L113:L133,AS35) -> 0 | AU35: =AT35/(AV4-AT25) -> 0 | AV35: =IF(AU35=0,0,(AU35*((LOG(AU35))/LOG(2)))) -> 0
A36: 12 | B36: 4943 | C36: 24 | D36: 4953 | E36: 13 | F36: 4971 | G36: 23 | H36: 4979 | I36: 24 | J36: 4988 | K36: 0 | L36: 12122 | N36: 22212 | O36: =COUNTIF($L$7:$L$500,N36) -> 1 | P36: =O36/$Q$4 -> 0.007936507937 | Q36: =IF(P36=0,0,(P36*((LOG(P36))/LOG(2)))) -> -0.05537523749 | T36: =N36 -> 22212 | U36: =COUNTIF(L7:L27,T36) -> 0 | V36: =U36/(W4-U25) -> 0 | W36: =IF(V36=0,0,(V36*((LOG(V36))/LOG(2)))) -> 0 | Y36: =N36 -> 22212 | Z36: =COUNTIF(L28:L48,Y36) -> 0 | AA36: =Z36/(AB4-Z25) -> 0 | AB36: =IF(AA36=0,0,(AA36*((LOG(AA36))/LOG(2)))) -> 0 | AD36: =N36 -> 22212 | AE36: =COUNTIF(L49:L70,AD36) -> 0 | AF36: =AE36/(AG4-AE25) -> 0 | AG36: =IF(AF36=0,0,(AF36*((LOG(AF36))/LOG(2)))) -> 0 | AI36: =N36 -> 22212 | AJ36: =COUNTIF(L71:L91,AI36) -> 0 | AK36: =AJ36/(AL4-AJ25) -> 0 | AL36: =IF(AK36=0,0,(AK36*((LOG(AK36))/LOG(2)))) -> 0 | AN36: =N36 -> 22212 | AO36: =COUNTIF(L92:L112,AN36) -> 1 | AP36: =AO36/(AQ4-AO25) -> 0.04761904762 | AQ36: =IF(AP36=0,0,(AP36*((LOG(AP36))/LOG(2)))) -> -0.2091579725 | AS36: =N36 -> 22212 | AT36: =COUNTIF(L113:L133,AS36) -> 0 | AU36: =AT36/(AV4-AT25) -> 0 | AV36: =IF(AU36=0,0,(AU36*((LOG(AU36))/LOG(2)))) -> 0
A37: 12 | B37: 5107 | C37: 24 | D37: 5120 | E37: 13 | F37: 5132 | G37: 23 | H37: 5144 | I37: 24 | J37: 5154 | K37: 0 | L37: 12122 | N37: 22221 | O37: =COUNTIF($L$7:$L$500,N37) -> 0 | P37: =O37/$Q$4 -> 0 | Q37: =IF(P37=0,0,(P37*((LOG(P37))/LOG(2)))) -> 0 | T37: =N37 -> 22221 | U37: =COUNTIF(L7:L27,T37) -> 0 | V37: =U37/(W4-U25) -> 0 | W37: =IF(V37=0,0,(V37*((LOG(V37))/LOG(2)))) -> 0 | Y37: =N37 -> 22221 | Z37: =COUNTIF(L28:L48,Y37) -> 0 | AA37: =Z37/(AB4-Z25) -> 0 | AB37: =IF(AA37=0,0,(AA37*((LOG(AA37))/LOG(2)))) -> 0 | AD37: =N37 -> 22221 | AE37: =COUNTIF(L49:L70,AD37) -> 0 | AF37: =AE37/(AG4-AE25) -> 0 | AG37: =IF(AF37=0,0,(AF37*((LOG(AF37))/LOG(2)))) -> 0 | AI37: =N37 -> 22221 | AJ37: =COUNTIF(L71:L91,AI37) -> 0 | AK37: =AJ37/(AL4-AJ25) -> 0 | AL37: =IF(AK37=0,0,(AK37*((LOG(AK37))/LOG(2)))) -> 0 | AN37: =N37 -> 22221 | AO37: =COUNTIF(L92:L112,AN37) -> 0 | AP37: =AO37/(AQ4-AO25) -> 0 | AQ37: =IF(AP37=0,0,(AP37*((LOG(AP37))/LOG(2)))) -> 0 | AS37: =N37 -> 22221 | AT37: =COUNTIF(L113:L133,AS37) -> 0 | AU37: =AT37/(AV4-AT25) -> 0 | AV37: =IF(AU37=0,0,(AU37*((LOG(AU37))/LOG(2)))) -> 0
A38: 12 | B38: 5281 | C38: 24 | D38: 5295 | E38: 13 | F38: 5306 | G38: 23 | H38: 5319 | I38: 13 | J38: 5340 | K38: 0 | L38: 12121 | N38: 22222 | O38: =COUNTIF($L$7:$L$500,N38) -> 0 | P38: =O38/$Q$4 -> 0 | Q38: =IF(P38=0,0,(P38*((LOG(P38))/LOG(2)))) -> 0 | T38: =N38 -> 22222 | U38: =COUNTIF(L7:L27,T38) -> 0 | V38: =U38/(W4-U25) -> 0 | W38: =IF(V38=0,0,(V38*((LOG(V38))/LOG(2)))) -> 0 | Y38: =N38 -> 22222 | Z38: =COUNTIF(L28:L48,Y38) -> 0 | AA38: =Z38/(AB4-Z25) -> 0 | AB38: =IF(AA38=0,0,(AA38*((LOG(AA38))/LOG(2)))) -> 0 | AD38: =N38 -> 22222 | AE38: =COUNTIF(L49:L70,AD38) -> 0 | AF38: =AE38/(AG4-AE25) -> 0 | AG38: =IF(AF38=0,0,(AF38*((LOG(AF38))/LOG(2)))) -> 0 | AI38: =N38 -> 22222 | AJ38: =COUNTIF(L71:L91,AI38) -> 0 | AK38: =AJ38/(AL4-AJ25) -> 0 | AL38: =IF(AK38=0,0,(AK38*((LOG(AK38))/LOG(2)))) -> 0 | AN38: =N38 -> 22222 | AO38: =COUNTIF(L92:L112,AN38) -> 0 | AP38: =AO38/(AQ4-AO25) -> 0 | AQ38: =IF(AP38=0,0,(AP38*((LOG(AP38))/LOG(2)))) -> 0 | AS38: =N38 -> 22222 | AT38: =COUNTIF(L113:L133,AS38) -> 0 | AU38: =AT38/(AV4-AT25) -> 0 | AV38: =IF(AU38=0,0,(AU38*((LOG(AU38))/LOG(2)))) -> 0
A39: 12 | B39: 5440 | C39: 13 | D39: 5447 | E39: 13 | F39: 5456 | G39: 14 | H39: 5476 | I39: 13 | J39: 5521 | K39: 0 | L39: 11111 | P39: =SUM(P7:P38) -> 1 | Q39: =-SUM(Q7:Q38) -> 3.772723223 | V39: =SUM(V7:V38) -> 1 | W39: =-SUM(W7:W38) -> 3.00567859 | AA39: =SUM(AA7:AA38) -> 1 | AB39: =-SUM(AB7:AB38) -> 3.058984089 | AF39: =SUM(AF7:AF38) -> 1 | AG39: =-SUM(AG7:AG38) -> 2.823067982 | AK39: =SUM(AK7:AK38) -> 1 | AL39: =-SUM(AL7:AL38) -> 3.100916686 | AP39: =SUM(AP7:AP38) -> 1 | AQ39: =-SUM(AQ7:AQ38) -> 2.832560875 | AU39: =SUM(AU7:AU38) -> 1 | AV39: =-SUM(AV7:AV38) -> 3.103701696
A40: 21 | B40: 5636 | C40: 11 | D40: 5644 | E40: 22 | F40: 5654 | G40: 14 | H40: 5665 | I40: 24 | J40: 5678 | K40: 0 | L40: 21212 | P40: U= | Q40: =Q39/(LOG(Q4)/LOG(2)) -> 0.5407154743 | V40: U1= | W40: =W39/(LOG(W4)/LOG(2)) -> 0.6843035922 | AA40: U2= | AB40: =AB39/(LOG(AB4)/LOG(2)) -> 0.6964396684 | AF40: U3= | AG40: =AG39/(LOG(AG4)/LOG(2)) -> 0.6330555604 | AK40: U4= | AL40: =AL39/(LOG(AL4)/LOG(2)) -> 0.705986473 | AP40: U5= | AQ40: =AQ39/(LOG(AQ4)/LOG(2)) -> 0.6448898389 | AU40: U6= | AV40: =AV39/(LOG(AV4)/LOG(2)) -> 0.7181289526
A41: 12 | B41: 5805 | C41: 24 | D41: 5817 | E41: 13 | F41: 5826 | G41: 23 | H41: 5839 | I41: 24 | J41: 5849 | K41: 0 | L41: 12122
A42: 12 | B42: 5963 | C42: 24 | D42: 5971 | E42: 13 | F42: 5980 | G42: 23 | H42: 5990 | I42: 13 | J42: 6000 | K42: 0 | L42: 12121
A43: 12 | B43: 6103 | C43: 13 | D43: 6122 | E43: 24 | F43: 6131 | G43: 23 | H43: 6140 | I43: 24 | J43: 6153 | K43: 0 | L43: 11222 | N43: Total Target Seq
A44: 12 | B44: 6252 | C44: 13 | D44: 6263 | E44: 24 | F44: 6279 | G44: 14 | H44: 6292 | I44: 24 | J44: 6302 | K44: 0 | L44: 11212 | N44: =COUNTIF(L7:L133,G3) -> 0 | P44: 21 | Q44: 21 | R44: 22 | S44: 21 | T44: 21 | U44: 21
A45: 12 | B45: 6413 | C45: 13 | D45: 6429 | E45: 24 | F45: 6440 | G45: 23 | H45: 6448 | I45: 13 | J45: 6461 | K45: 0 | L45: 11221 | P45: % of reinforcement given in 6 equal intervals based on number of trials
A46: 12 | B46: 6567 | C46: 24 | D46: 6580 | E46: 13 | F46: 6587 | G46: 23 | H46: 6627 | I46: 24 | J46: 6635 | K46: 0 | L46: 12122 | P46: %_1 | Q46: %_2 | R46: %_3 | S46: %_4 | T46: %_5 | U46: %_6
A47: 12 | B47: 6737 | C47: 24 | D47: 6749 | E47: 13 | F47: 6758 | G47: 23 | H47: 6775 | I47: 24 | J47: 6793 | K47: 0 | L47: 12122 | O47: target sequence | P47: =$G$3 -> 21121 | Q47: =$G$3 -> 21121 | R47: =$G$3 -> 21121 | S47: =$G$3 -> 21121 | T47: =$G$3 -> 21121 | U47: =$G$3 -> 21121
A48: 12 | B48: 6903 | C48: 24 | D48: 6912 | E48: 13 | F48: 6921 | G48: 23 | H48: 6932 | I48: 24 | J48: 6940 | K48: 0 | L48: 12122 | O48: total reinforcement | P48: =U25 -> 0 | Q48: =Z25 -> 0 | R48: =AE25 -> 0 | S48: =AJ25 -> 0 | T48: =AO25 -> 0 | U48: =AT25 -> 0
A49: 12 | B49: 7040 | C49: 24 | D49: 7050 | E49: 24 | F49: 7070 | G49: 14 | H49: 7082 | I49: 24 | J49: 7094 | K49: 0 | L49: 12212 | O49: % target
A50: 12 | B50: 7224 | C50: 24 | D50: 7235 | E50: 13 | F50: 7246 | G50: 23 | H50: 7258 | I50: 24 | J50: 7267 | K50: 0 | L50: 12122 | O50: CCRF
A51: 12 | B51: 7394 | C51: 24 | D51: 7404 | E51: 13 | F51: 7414 | G51: 23 | H51: 7425 | I51: 13 | J51: 7437 | K51: 0 | L51: 12121 | O51: % CCRf
A52: 12 | B52: 7575 | C52: 24 | D52: 7584 | E52: 13 | F52: 7594 | G52: 23 | H52: 7606 | I52: 24 | J52: 7615 | K52: 0 | L52: 12122 | O52: average response rate | P52: =J27/P44 -> 170.8095238 | Q52: =(J48-J27)/Q44 -> 159.6666667 | R52: =(J70-J48)/R44 -> 162.8181818 | S52: =(J91-J70)/S44 -> 181.2380952 | T52: =(J112-J91)/T44 -> 211.7619048 | U52: =(J133-J112)/U44 -> -894.047619
A53: 12 | B53: 7722 | C53: 13 | D53: 7740 | E53: 13 | F53: 7762 | G53: 23 | H53: 7774 | I53: 24 | J53: 7783 | K53: 0 | L53: 11122
A54: 12 | B54: 7895 | C54: 13 | D54: 7910 | E54: 24 | F54: 7918 | G54: 14 | H54: 7926 | I54: 24 | J54: 7937 | K54: 0 | L54: 11212
A55: 21 | B55: 8037 | C55: 11 | D55: 8063 | E55: 22 | F55: 8071 | G55: 14 | H55: 8084 | I55: 24 | J55: 8093 | K55: 0 | L55: 21212
A56: 21 | B56: 8202 | C56: 11 | D56: 8211 | E56: 22 | F56: 8220 | G56: 14 | H56: 8230 | I56: 24 | J56: 8242 | K56: 0 | L56: 21212
A57: 21 | B57: 8345 | C57: 11 | D57: 8355 | E57: 22 | F57: 8364 | G57: 14 | H57: 8375 | I57: 24 | J57: 8383 | K57: 0 | L57: 21212
A58: 12 | B58: 8489 | C58: 24 | D58: 8497 | E58: 13 | F58: 8506 | G58: 23 | H58: 8514 | I58: 24 | J58: 8543 | K58: 0 | L58: 12122
A59: 12 | B59: 8693 | C59: 24 | D59: 8704 | E59: 13 | F59: 8715 | G59: 14 | H59: 8738 | I59: 24 | J59: 8750 | K59: 0 | L59: 12112
A60: 21 | B60: 8858 | C60: 11 | D60: 8871 | E60: 22 | F60: 8882 | G60: 14 | H60: 8892 | I60: 24 | J60: 8903 | K60: 0 | L60: 21212
A61: 12 | B61: 9027 | C61: 13 | D61: 9082 | E61: 24 | F61: 9091 | G61: 14 | H61: 9103 | I61: 24 | J61: 9121 | K61: 0 | L61: 11212
A62: 21 | B62: 9218 | C62: 11 | D62: 9231 | E62: 22 | F62: 9243 | G62: 14 | H62: 9251 | I62: 24 | J62: 9263 | K62: 0 | L62: 21212
A63: 12 | B63: 9372 | C63: 13 | D63: 9378 | E63: 24 | F63: 9389 | G63: 14 | H63: 9397 | I63: 13 | J63: 9428 | K63: 0 | L63: 11211
A64: 12 | B64: 9531 | C64: 24 | D64: 9541 | E64: 13 | F64: 9548 | G64: 23 | H64: 9559 | I64: 13 | J64: 9571 | K64: 0 | L64: 12121
A65: 21 | B65: 9680 | C65: 11 | D65: 9688 | E65: 22 | F65: 9698 | G65: 14 | H65: 9724 | I65: 24 | J65: 9735 | K65: 0 | L65: 21212
A66: 12 | B66: 9857 | C66: 24 | D66: 9863 | E66: 13 | F66: 9873 | G66: 23 | H66: 9882 | I66: 24 | J66: 9895 | K66: 0 | L66: 12122
A67: 21 | B67: 10035 | C67: 11 | D67: 10044 | E67: 22 | F67: 10052 | G67: 14 | H67: 10062 | I67: 24 | J67: 10074 | K67: 0 | L67: 21212
A68: 21 | B68: 10177 | C68: 22 | D68: 10184 | E68: 13 | F68: 10192 | G68: 23 | H68: 10200 | I68: 13 | J68: 10209 | K68: 0 | L68: 22121
A69: 12 | B69: 10322 | C69: 13 | D69: 10327 | E69: 13 | F69: 10333 | G69: 14 | H69: 10356 | I69: 13 | J69: 10380 | K69: 0 | L69: 11111
A70: 21 | B70: 10483 | C70: 11 | D70: 10493 | E70: 22 | F70: 10502 | G70: 14 | H70: 10510 | I70: 24 | J70: 10522 | K70: 0 | L70: 21212
A71: 21 | B71: 10678 | C71: 11 | D71: 10753 | E71: 22 | F71: 10762 | G71: 14 | H71: 10777 | I71: 24 | J71: 10798 | K71: 0 | L71: 21212
A72: 12 | B72: 10905 | C72: 24 | D72: 10913 | E72: 13 | F72: 10922 | G72: 23 | H72: 10933 | I72: 13 | J72: 10945 | K72: 0 | L72: 12121
A73: 12 | B73: 11053 | C73: 24 | D73: 11062 | E73: 13 | F73: 11070 | G73: 23 | H73: 11083 | I73: 13 | J73: 11094 | K73: 0 | L73: 12121
A74: 12 | B74: 11200 | C74: 24 | D74: 11210 | E74: 24 | F74: 11219 | G74: 14 | H74: 11228 | I74: 24 | J74: 11261 | K74: 0 | L74: 12212
A75: 21 | B75: 11382 | C75: 11 | D75: 11393 | E75: 22 | F75: 11399 | G75: 14 | H75: 11410 | I75: 24 | J75: 11420 | K75: 0 | L75: 21212
A76: 12 | B76: 11572 | C76: 24 | D76: 11585 | E76: 13 | F76: 11594 | G76: 23 | H76: 11604 | I76: 24 | J76: 11616 | K76: 0 | L76: 12122
A77: 12 | B77: 11725 | C77: 13 | D77: 11733 | E77: 24 | F77: 11742 | G77: 14 | H77: 11750 | I77: 24 | J77: 11758 | K77: 0 | L77: 11212
A78: 12 | B78: 11873 | C78: 24 | D78: 11882 | E78: 13 | F78: 11890 | G78: 23 | H78: 11901 | I78: 13 | J78: 11914 | K78: 0 | L78: 12121
A79: 12 | B79: 12019 | C79: 13 | D79: 12037 | E79: 24 | F79: 12047 | G79: 14 | H79: 12068 | I79: 24 | J79: 12080 | K79: 0 | L79: 11212
A80: 12 | B80: 12289 | C80: 24 | D80: 12299 | E80: 13 | F80: 12312 | G80: 23 | H80: 12324 | I80: 13 | J80: 12355 | K80: 0 | L80: 12121
A81: 21 | B81: 12454 | C81: 22 | D81: 12472 | E81: 13 | F81: 12480 | G81: 23 | H81: 12489 | I81: 13 | J81: 12497 | K81: 0 | L81: 22121
A82: 12 | B82: 12616 | C82: 24 | D82: 12625 | E82: 13 | F82: 12636 | G82: 23 | H82: 12647 | I82: 24 | J82: 12655 | K82: 0 | L82: 12122
A83: 12 | B83: 12867 | C83: 24 | D83: 12878 | E83: 13 | F83: 12892 | G83: 23 | H83: 12904 | I83: 13 | J83: 12917 | K83: 0 | L83: 12121
A84: 21 | B84: 13024 | C84: 11 | D84: 13042 | E84: 11 | F84: 13052 | G84: 21 | H84: 13062 | I84: 22 | J84: 13070 | K84: 0 | L84: 21122
A85: 12 | B85: 13179 | C85: 13 | D85: 13198 | E85: 24 | F85: 13207 | G85: 14 | H85: 13217 | I85: 13 | J85: 13242 | K85: 0 | L85: 11211
A86: 21 | B86: 13401 | C86: 22 | D86: 13424 | E86: 13 | F86: 13446 | G86: 23 | H86: 13459 | I86: 13 | J86: 13476 | K86: 0 | L86: 22121
A87: 21 | B87: 13580 | C87: 11 | D87: 13588 | E87: 22 | F87: 13599 | G87: 14 | H87: 13611 | I87: 24 | J87: 13639 | K87: 0 | L87: 21212
A88: 21 | B88: 13748 | C88: 11 | D88: 13765 | E88: 22 | F88: 13774 | G88: 14 | H88: 13783 | I88: 13 | J88: 13808 | K88: 0 | L88: 21211
A89: 21 | B89: 13930 | C89: 11 | D89: 13937 | E89: 22 | F89: 13946 | G89: 14 | H89: 13955 | I89: 13 | J89: 13983 | K89: 0 | L89: 21211
A90: 12 | B90: 14117 | C90: 13 | D90: 14131 | E90: 24 | F90: 14144 | G90: 14 | H90: 14155 | I90: 24 | J90: 14167 | K90: 0 | L90: 11212
A91: 12 | B91: 14273 | C91: 13 | D91: 14291 | E91: 24 | F91: 14300 | G91: 23 | H91: 14317 | I91: 13 | J91: 14328 | K91: 0 | L91: 11221
A92: 12 | B92: 14466 | C92: 24 | D92: 14475 | E92: 13 | F92: 14484 | G92: 23 | H92: 14495 | I92: 13 | J92: 14504 | K92: 0 | L92: 12121
A93: 12 | B93: 14656 | C93: 24 | D93: 14665 | E93: 13 | F93: 14677 | G93: 23 | H93: 14689 | I93: 24 | J93: 14698 | K93: 0 | L93: 12122
A94: 12 | B94: 14825 | C94: 24 | D94: 14834 | E94: 13 | F94: 14842 | G94: 23 | H94: 14851 | I94: 13 | J94: 14863 | K94: 0 | L94: 12121
A95: 21 | B95: 14973 | C95: 11 | D95: 14981 | E95: 22 | F95: 14991 | G95: 14 | H95: 15002 | I95: 13 | J95: 15023 | K95: 0 | L95: 21211
A96: 12 | B96: 15157 | C96: 24 | D96: 15166 | E96: 13 | F96: 15174 | G96: 23 | H96: 15183 | I96: 13 | J96: 15198 | K96: 0 | L96: 12121
A97: 12 | B97: 15337 | C97: 24 | D97: 15348 | E97: 13 | F97: 15373 | G97: 23 | H97: 15383 | I97: 13 | J97: 15406 | K97: 0 | L97: 12121
A98: 12 | B98: 15610 | C98: 24 | D98: 15620 | E98: 13 | F98: 15635 | G98: 23 | H98: 15657 | I98: 13 | J98: 15679 | K98: 0 | L98: 12121
A99: 12 | B99: 15832 | C99: 13 | D99: 15846 | E99: 13 | F99: 15866 | G99: 14 | H99: 15887 | I99: 24 | J99: 15896 | K99: 0 | L99: 11112
A100: 21 | B100: 16024 | C100: 22 | D100: 16041 | E100: 24 | F100: 16049 | G100: 14 | H100: 16061 | I100: 24 | J100: 16084 | K100: 0 | L100: 22212
A101: 12 | B101: 16200 | C101: 13 | D101: 16211 | E101: 24 | F101: 16220 | G101: 14 | H101: 16233 | I101: 13 | J101: 16254 | K101: 0 | L101: 11211
A102: 12 | B102: 16416 | C102: 24 | D102: 16426 | E102: 13 | F102: 16434 | G102: 23 | H102: 16442 | I102: 13 | J102: 16455 | K102: 0 | L102: 12121
A103: 12 | B103: 16608 | C103: 24 | D103: 16621 | E103: 13 | F103: 16632 | G103: 23 | H103: 16643 | I103: 24 | J103: 16651 | K103: 0 | L103: 12122
A104: 12 | B104: 16772 | C104: 13 | D104: 16793 | E104: 13 | F104: 16822 | G104: 14 | H104: 16847 | I104: 13 | J104: 16877 | K104: 0 | L104: 11111
A105: 12 | B105: 17050 | C105: 13 | D105: 17066 | E105: 24 | F105: 17075 | G105: 14 | H105: 17091 | I105: 13 | J105: 17113 | K105: 0 | L105: 11211
A106: 12 | B106: 17269 | C106: 24 | D106: 17277 | E106: 13 | F106: 17286 | G106: 23 | H106: 17297 | I106: 24 | J106: 17306 | K106: 0 | L106: 12122
A107: 21 | B107: 17453 | C107: 11 | D107: 17464 | E107: 22 | F107: 17483 | G107: 14 | H107: 17494 | I107: 24 | J107: 17515 | K107: 0 | L107: 21212
A108: 21 | B108: 17668 | C108: 11 | D108: 17679 | E108: 22 | F108: 17689 | G108: 14 | H108: 17697 | I108: 24 | J108: 17706 | K108: 0 | L108: 21212
A109: 12 | B109: 17850 | C109: 24 | D109: 17868 | E109: 13 | F109: 17880 | G109: 14 | H109: 17905 | I109: 24 | J109: 17917 | K109: 0 | L109: 12112
A110: 12 | B110: 18197 | C110: 24 | D110: 18207 | E110: 13 | F110: 18218 | G110: 23 | H110: 18230 | I110: 13 | J110: 18245 | K110: 0 | L110: 12121
A111: 12 | B111: 18464 | C111: 24 | D111: 18473 | E111: 13 | F111: 18482 | G111: 23 | H111: 18493 | I111: 13 | J111: 18513 | K111: 0 | L111: 12121
A112: 12 | B112: 18709 | C112: 13 | D112: 18730 | E112: 24 | F112: 18751 | G112: 14 | H112: 18765 | I112: 24 | J112: 18775 | K112: 0 | L112: 11212
A113: 12 | B113: 18972 | C113: 13 | D113: 18981 | E113: 24 | F113: 18989 | G113: 14 | H113: 19002 | I113: 24 | J113: 19013 | K113: 0 | L113: 11212
A114: 12 | B114: 19195 | C114: 24 | D114: 19210 | E114: 13 | F114: 19220 | G114: 14 | H114: 19231 | I114: 13 | J114: 19253 | K114: 0 | L114: 12111
A115: 12 | B115: 19566 | C115: 24 | D115: 19581 | E115: 13 | F115: 19616 | G115: 23 | H115: 19626 | I115: 13 | J115: 19650 | K115: 0 | L115: 12121
A116: 12 | B116: 19845 | C116: 24 | D116: 19857 | E116: 13 | F116: 19877 | G116: 23 | H116: 19889 | I116: 13 | J116: 19903 | K116: 0 | L116: 12121
A117: 21 | B117: 20116 | C117: 11 | D117: 20127 | E117: 11 | F117: 20147 | G117: 12 | H117: 20156 | I117: 24 | J117: 20169 | K117: 0 | L117: 21112
A118: 12 | B118: 20376 | C118: 13 | D118: 20488 | E118: 24 | F118: 20499 | G118: 14 | H118: 20513 | I118: 24 | J118: 20526 | K118: 0 | L118: 11212
A119: 21 | B119: 20648 | C119: 11 | D119: 20661 | E119: 22 | F119: 20670 | G119: 14 | H119: 20682 | I119: 24 | J119: 20694 | K119: 0 | L119: 21212
A120: 12 | B120: 20836 | C120: 13 | D120: 20853 | E120: 13 | F120: 20873 | G120: 23 | H120: 20885 | I120: 13 | J120: 20898 | K120: 0 | L120: 11121
A121: 12 | B121: 21034 | C121: 24 | D121: 21044 | E121: 13 | F121: 21053 | G121: 23 | H121: 21063 | I121: 13 | J121: 21075 | K121: 0 | L121: 12121
A122: 12 | B122: 21419 | C122: 13 | D122: 21429 | E122: 24 | F122: 21440 | G122: 14 | H122: 21477 | I122: 13 | J122: 21485 | K122: 0 | L122: 11211
A123: 21 | B123: 21676 | C123: 11 | D123: 21685 | E123: 22 | F123: 21695 | G123: 14 | H123: 21708 | I123: 24 | J123: 21717 | K123: 0 | L123: 21212
A124: 12 | B124: 21853 | C124: 24 | D124: 21863 | E124: 13 | F124: 21872 | G124: 14 | H124: 21888 | I124: 13 | J124: 21926 | K124: 0 | L124: 12111
A125: 21 | B125: 22059 | C125: 22 | D125: 22070 | E125: 13 | F125: 22081 | G125: 14 | H125: 22105 | I125: 13 | J125: 22151 | K125: 0 | L125: 22111
A126: 21 | B126: 22322 | C126: 11 | D126: 22332 | E126: 11 | F126: 22351 | G126: 12 | H126: 22368 | I126: 24 | J126: 22381 | K126: 0 | L126: 21112
A127: 12 | B127: 22567 | C127: 24 | D127: 22647 | E127: 13 | F127: 22657 | G127: 23 | H127: 22666 | I127: 13 | J127: 22675 | K127: 0 | L127: 12121
A128: 21 | B128: 22879 | C128: 11 | D128: 22890 | E128: 22 | F128: 22901 | G128: 14 | H128: 22925 | I128: 13 | J128: 22958 | K128: 0 | L128: 21211
A129: 12 | B129: 23165 | C129: 24 | D129: 23179 | E129: 13 | F129: 23191 | G129: 23 | H129: 23202 | I129: 24 | J129: 23211 | K129: 0 | L129: 12122
A130: 21 | B130: 23421 | C130: 11 | D130: 23430 | E130: 11 | F130: 23438 | G130: 12 | H130: 23480 | I130: 24 | J130: 23489 | K130: 0 | L130: 21112
A131: 12 | B131: 23602 | C131: 24 | D131: 23610 | E131: 13 | F131: 23619 | G131: 23 | H131: 23628 | I131: 13 | J131: 23642 | K131: 0 | L131: 12121
A132: 12 | B132: 23749 | C132: 13 | D132: 23759 | E132: 13 | F132: 23766 | G132: 23 | H132: 23778 | I132: 13 | J132: 23793 | K132: 0 | L132: 11121
A133: 12 | B133: 23993 | C133: 13 | D133: 23997 | L133: 11

Sheet !N123910.091
A1: Report for:!N123910.091
A2: Date: | B2: <date>
A3: Hen: | B3: <hen> | F3: Correct Sequence | G3: =Start!J2 -> 21121 | P3: Total Sequences in Data | Q3: =4994-COUNTBLANK(L7:L5000) -> 86 | V3: Total Sequences in Block Data | W3: =COUNTA(L7:L20) -> 14 | AA3: Total Sequences in Block Data | AB3: =COUNTA(L21:L35) -> 15 | AF3: Total Sequences in Block Data | AG3: =COUNTA(L36:L49) -> 14 | AK3: Total Sequences in Block Data | AL3: =COUNTA(L50:L63) -> 14 | AP3: Total Sequences in Block Data | AQ3: =COUNTA(L64:L78) -> 15 | AU3: Total Sequences in Block Data | AV3: =COUNTA(L79:L92) -> 14
P4: Total Sequences in Summary | Q4: =SUM(O7:O38) -> 86 | V4: Total Sequences in Block Summary | W4: =SUM(U7:U38) -> 14 | AA4: Total Sequences in Block Summary | AB4: =SUM(Z7:Z38) -> 15 | AF4: Total Sequences in Block Summary | AG4: =SUM(AE7:AE38) -> 14 | AK4: Total Sequences in Block Summary | AL4: =SUM(AJ7:AJ38) -> 14 | AP4: Total Sequences in Block Summary | AQ4: =SUM(AO7:AO38) -> 15 | AU4: Total Sequences in Block Summary | AV4: =SUM(AT7:AT38) -> 14
T5: Block 1 | Y5: Block 2 | AD5: Block 3 | AI5: Block 4 | AN5: Block 5 | AS5: Block 6
A6: Sequence Component 1 | B6: Time 1 | C6: Sequence Component 2 | D6: Time 2 | E6: Sequence Component 3 | F6: Time 3 | G6: Sequence Component 4 | H6: Time 4 | I6: Sequence Component 5 | J6: Time 5 | K6: Correct? 0=No 1=Yes | L6: Sequence | N6: Frequency | P6: Relative Frequency | Q6: Variability | T6: Frequency | V6: Relative Frequency | W6: Variability | Y6: Frequency | AA6: Relative Frequency | AB6: Variability | AD6: Frequency | AF6: Relative Frequency | AG6: Variability | AI6: Frequency | AK6: Relative Frequency | AL6: Variability | AN6: Frequency | AP6: Relative Frequency | AQ6: Variability | AS6: Frequency | AU6: Relative Frequency | AV6: Variability
A7: 12 | B7: 11 | C7: 24 | D7: 41 | E7: 13 | F7: 61 | G7: 23 | H7: 70 | I7: 13 | J7: 101 | K7: 0 | L7: 12121 | N7: 11111 | O7: =COUNTIF($L$7:$L$500,N7) -> 0 | P7: =O7/$Q$4 -> 0 | Q7: =IF(P7=0,0,(P7*((LOG(P7))/LOG(2)))) -> 0 | T7: =N7 -> 11111 | U7: =COUNTIF(L7:L20,T7) -> 0 | V7: =U7/(W4-U25) -> 0 | W7: =IF(V7=0,0,(V7*((LOG(V7))/LOG(2)))) -> 0 | Y7: =N7 -> 11111 | Z7: =COUNTIF(L21:L35,Y7) -> 0 | AA7: =Z7/(AB4-Z25) -> 0 | AB7: =IF(AA7=0,0,(AA7*((LOG(AA7))/LOG(2)))) -> 0 | AD7: =N7 -> 11111 | AE7: =COUNTIF(L36:L49,AD7) -> 0 | AF7: =AE7/(AG4-AE25) -> 0 | AG7: =IF(AF7=0,0,(AF7*((LOG(AF7))/LOG(2)))) -> 0 | AI7: =N7 -> 11111 | AJ7: =COUNTIF(L50:L63,AI7) -> 0 | AK7: =AJ7/(AL4-AJ25) -> 0 | AL7: =IF(AK7=0,0,(AK7*((LOG(AK7))/LOG(2)))) -> 0 | AN7: =N7 -> 11111 | AO7: =COUNTIF(L64:L78,AN7) -> 0 | AP7: =AO7/(AQ4-AO25) -> 0 | AQ7: =IF(AP7=0,0,(AP7*((LOG(AP7))/LOG(2)))) -> 0 | AS7: =N7 -> 11111 | AT7: =COUNTIF(L79:L92,AS7) -> 0 | AU7: =AT7/(AV4-AT25) -> 0 | AV7: =IF(AU7=0,0,(AU7*((LOG(AU7))/LOG(2)))) -> 0
A8: 12 | B8: 202 | C8: 24 | D8: 212 | E8: 24 | F8: 241 | G8: 14 | H8: 266 | I8: 24 | J8: 277 | K8: 0 | L8: 12212 | N8: 11112 | O8: =COUNTIF($L$7:$L$500,N8) -> 2 | P8: =O8/$Q$4 -> 0.02325581395 | Q8: =IF(P8=0,0,(P8*((LOG(P8))/LOG(2)))) -> -0.1261922036 | T8: =N8 -> 11112 | U8: =COUNTIF(L7:L20,T8) -> 2 | V8: =U8/(W4-U25) -> 0.1428571429 | W8: =IF(V8=0,0,(V8*((LOG(V8))/LOG(2)))) -> -0.4010507032 | Y8: =N8 -> 11112 | Z8: =COUNTIF(L21:L35,Y8) -> 0 | AA8: =Z8/(AB4-Z25) -> 0 | AB8: =IF(AA8=0,0,(AA8*((LOG(AA8))/LOG(2)))) -> 0 | AD8: =N8 -> 11112 | AE8: =COUNTIF(L36:L49,AD8) -> 0 | AF8: =AE8/(AG4-AE25) -> 0 | AG8: =IF(AF8=0,0,(AF8*((LOG(AF8))/LOG(2)))) -> 0 | AI8: =N8 -> 11112 | AJ8: =COUNTIF(L50:L63,AI8) -> 0 | AK8: =AJ8/(AL4-AJ25) -> 0 | AL8: =IF(AK8=0,0,(AK8*((LOG(AK8))/LOG(2)))) -> 0 | AN8: =N8 -> 11112 | AO8: =COUNTIF(L64:L78,AN8) -> 0 | AP8: =AO8/(AQ4-AO25) -> 0 | AQ8: =IF(AP8=0,0,(AP8*((LOG(AP8))/LOG(2)))) -> 0 | AS8: =N8 -> 11112 | AT8: =COUNTIF(L79:L92,AS8) -> 0 | AU8: =AT8/(AV4-AT25) -> 0 | AV8: =IF(AU8=0,0,(AU8*((LOG(AU8))/LOG(2)))) -> 0
A9: 12 | B9: 390 | C9: 24 | D9: 399 | E9: 24 | F9: 408 | G9: 14 | H9: 419 | I9: 24 | J9: 429 | K9: 0 | L9: 12212 | N9: 11121 | O9: =COUNTIF($L$7:$L$500,N9) -> 3 | P9: =O9/$Q$4 -> 0.03488372093 | Q9: =IF(P9=0,0,(P9*((LOG(P9))/LOG(2)))) -> -0.1688826368 | T9: =N9 -> 11121 | U9: =COUNTIF(L7:L20,T9) -> 1 | V9: =U9/(W4-U25) -> 0.07142857143 | W9: =IF(V9=0,0,(V9*((LOG(V9))/LOG(2)))) -> -0.271953923 | Y9: =N9 -> 11121 | Z9: =COUNTIF(L21:L35,Y9) -> 0 | AA9: =Z9/(AB4-Z25) -> 0 | AB9: =IF(AA9=0,0,(AA9*((LOG(AA9))/LOG(2)))) -> 0 | AD9: =N9 -> 11121 | AE9: =COUNTIF(L36:L49,AD9) -> 0 | AF9: =AE9/(AG4-AE25) -> 0 | AG9: =IF(AF9=0,0,(AF9*((LOG(AF9))/LOG(2)))) -> 0 | AI9: =N9 -> 11121 | AJ9: =COUNTIF(L50:L63,AI9) -> 1 | AK9: =AJ9/(AL4-AJ25) -> 0.07142857143 | AL9: =IF(AK9=0,0,(AK9*((LOG(AK9))/LOG(2)))) -> -0.271953923 | AN9: =N9 -> 11121 | AO9: =COUNTIF(L64:L78,AN9) -> 0 | AP9: =AO9/(AQ4-AO25) -> 0 | AQ9: =IF(AP9=0,0,(AP9*((LOG(AP9))/LOG(2)))) -> 0 | AS9: =N9 -> 11121 | AT9: =COUNTIF(L79:L92,AS9) -> 1 | AU9: =AT9/(AV4-AT25) -> 0.07142857143 | AV9: =IF(AU9=0,0,(AU9*((LOG(AU9))/LOG(2)))) -> -0.271953923
A10: 12 | B10: 537 | C10: 13 | D10: 560 | E10: 13 | F10: 605 | G10: 23 | H10: 613 | I10: 13 | J10: 625 | K10: 0 | L10: 11121 | N10: 11122 | O10: =COUNTIF($L$7:$L$500,N10) -> 0 | P10: =O10/$Q$4 -> 0 | Q10: =IF(P10=0,0,(P10*((LOG(P10))/LOG(2)))) -> 0 | T10: =N10 -> 11122 | U10: =COUNTIF(L7:L20,T10) -> 0 | V10: =U10/(W4-U25) -> 0 | W10: =IF(V10=0,0,(V10*((LOG(V10))/LOG(2)))) -> 0 | Y10: =N10 -> 11122 | Z10: =COUNTIF(L21:L35,Y10) -> 0 | AA10: =Z10/(AB4-Z25) -> 0 | AB10: =IF(AA10=0,0,(AA10*((LOG(AA10))/LOG(2)))) -> 0 | AD10: =N10 -> 11122 | AE10: =COUNTIF(L36:L49,AD10) -> 0 | AF10: =AE10/(AG4-AE25) -> 0 | AG10: =IF(AF10=0,0,(AF10*((LOG(AF10))/LOG(2)))) -> 0 | AI10: =N10 -> 11122 | AJ10: =COUNTIF(L50:L63,AI10) -> 0 | AK10: =AJ10/(AL4-AJ25) -> 0 | AL10: =IF(AK10=0,0,(AK10*((LOG(AK10))/LOG(2)))) -> 0 | AN10: =N10 -> 11122 | AO10: =COUNTIF(L64:L78,AN10) -> 0 | AP10: =AO10/(AQ4-AO25) -> 0 | AQ10: =IF(AP10=0,0,(AP10*((LOG(AP10))/LOG(2)))) -> 0 | AS10: =N10 -> 11122 | AT10: =COUNTIF(L79:L92,AS10) -> 0 | AU10: =AT10/(AV4-AT25) -> 0 | AV10: =IF(AU10=0,0,(AU10*((LOG(AU10))/LOG(2)))) -> 0
A11: 12 | B11: 725 | C11: 24 | D11: 737 | E11: 13 | F11: 747 | G11: 14 | H11: 787 | I11: 24 | J11: 797 | K11: 0 | L11: 12112 | N11: 11211 | O11: =COUNTIF($L$7:$L$500,N11) -> 1 | P11: =O11/$Q$4 -> 0.01162790698 | Q11: =IF(P11=0,0,(P11*((LOG(P11))/LOG(2)))) -> -0.07472400878 | T11: =N11 -> 11211 | U11: =COUNTIF(L7:L20,T11) -> 0 | V11: =U11/(W4-U25) -> 0 | W11: =IF(V11=0,0,(V11*((LOG(V11))/LOG(2)))) -> 0 | Y11: =N11 -> 11211 | Z11: =COUNTIF(L21:L35,Y11) -> 0 | AA11: =Z11/(AB4-Z25) -> 0 | AB11: =IF(AA11=0,0,(AA11*((LOG(AA11))/LOG(2)))) -> 0 | AD11: =N11 -> 11211 | AE11: =COUNTIF(L36:L49,AD11) -> 0 | AF11: =AE11/(AG4-AE25) -> 0 | AG11: =IF(AF11=0,0,(AF11*((LOG(AF11))/LOG(2)))) -> 0 | AI11: =N11 -> 11211 | AJ11: =COUNTIF(L50:L63,AI11) -> 0 | AK11: =AJ11/(AL4-AJ25) -> 0 | AL11: =IF(AK11=0,0,(AK11*((LOG(AK11))/LOG(2)))) -> 0 | AN11: =N11 -> 11211 | AO11: =COUNTIF(L64:L78,AN11) -> 0 | AP11: =AO11/(AQ4-AO25) -> 0 | AQ11: =IF(AP11=0,0,(AP11*((LOG(AP11))/LOG(2)))) -> 0 | AS11: =N11 -> 11211 | AT11: =COUNTIF(L79:L92,AS11) -> 1 | AU11: =AT11/(AV4-AT25) -> 0.07142857143 | AV11: =IF(AU11=0,0,(AU11*((LOG(AU11))/LOG(2)))) -> -0.271953923
A12: 12 | B12: 898 | C12: 13 | D12: 907 | E12: 24 | F12: 917 | G12: 14 | H12: 929 | I12: 24 | J12: 939 | K12: 0 | L12: 11212 | N12: 11212 | O12: =COUNTIF($L$7:$L$500,N12) -> 7 | P12: =O12/$Q$4 -> 0.08139534884 | Q12: =IF(P12=0,0,(P12*((LOG(P12))/LOG(2)))) -> -0.2945624282 | T12: =N12 -> 11212 | U12: =COUNTIF(L7:L20,T12) -> 3 | V12: =U12/(W4-U25) -> 0.2142857143 | W12: =IF(V12=0,0,(V12*((LOG(V12))/LOG(2)))) -> -0.4762269474 | Y12: =N12 -> 11212 | Z12: =COUNTIF(L21:L35,Y12) -> 1 | AA12: =Z12/(AB4-Z25) -> 0.06666666667 | AB12: =IF(AA12=0,0,(AA12*((LOG(AA12))/LOG(2)))) -> -0.260459373 | AD12: =N12 -> 11212 | AE12: =COUNTIF(L36:L49,AD12) -> 0 | AF12: =AE12/(AG4-AE25) -> 0 | AG12: =IF(AF12=0,0,(AF12*((LOG(AF12))/LOG(2)))) -> 0 | AI12: =N12 -> 11212 | AJ12: =COUNTIF(L50:L63,AI12) -> 0 | AK12: =AJ12/(AL4-AJ25) -> 0 | AL12: =IF(AK12=0,0,(AK12*((LOG(AK12))/LOG(2)))) -> 0 | AN12: =N12 -> 11212 | AO12: =COUNTIF(L64:L78,AN12) -> 2 | AP12: =AO12/(AQ4-AO25) -> 0.1333333333 | AQ12: =IF(AP12=0,0,(AP12*((LOG(AP12))/LOG(2)))) -> -0.3875854127 | AS12: =N12 -> 11212 | AT12: =COUNTIF(L79:L92,AS12) -> 1 | AU12: =AT12/(AV4-AT25) -> 0.07142857143 | AV12: =IF(AU12=0,0,(AU12*((LOG(AU12))/LOG(2)))) -> -0.271953923
A13: 12 | B13: 1040 | C13: 13 | D13: 1086 | E13: 24 | F13: 1128 | G13: 14 | H13: 1140 | I13: 24 | J13: 1191 | K13: 0 | L13: 11212 | N13: 11221 | O13: =COUNTIF($L$7:$L$500,N13) -> 2 | P13: =O13/$Q$4 -> 0.02325581395 | Q13: =IF(P13=0,0,(P13*((LOG(P13))/LOG(2)))) -> -0.1261922036 | T13: =N13 -> 11221 | U13: =COUNTIF(L7:L20,T13) -> 0 | V13: =U13/(W4-U25) -> 0 | W13: =IF(V13=0,0,(V13*((LOG(V13))/LOG(2)))) -> 0 | Y13: =N13 -> 11221 | Z13: =COUNTIF(L21:L35,Y13) -> 1 | AA13: =Z13/(AB4-Z25) -> 0.06666666667 | AB13: =IF(AA13=0,0,(AA13*((LOG(AA13))/LOG(2)))) -> -0.260459373 | AD13: =N13 -> 11221 | AE13: =COUNTIF(L36:L49,AD13) -> 0 | AF13: =AE13/(AG4-AE25) -> 0 | AG13: =IF(AF13=0,0,(AF13*((LOG(AF13))/LOG(2)))) -> 0 | AI13: =N13 -> 11221 | AJ13: =COUNTIF(L50:L63,AI13) -> 0 | AK13: =AJ13/(AL4-AJ25) -> 0 | AL13: =IF(AK13=0,0,(AK13*((LOG(AK13))/LOG(2)))) -> 0 | AN13: =N13 -> 11221 | AO13: =COUNTIF(L64:L78,AN13) -> 0 | AP13: =AO13/(AQ4-AO25) -> 0 | AQ13: =IF(AP13=0,0,(AP13*((LOG(AP13))/LOG(2)))) -> 0 | AS13: =N13 -> 11221 | AT13: =COUNTIF(L79:L92,AS13) -> 1 | AU13: =AT13/(AV4-AT25) -> 0.07142857143 | AV13: =IF(AU13=0,0,(AU13*((LOG(AU13))/LOG(2)))) -> -0.271953923
A14: 12 | B14: 1310 | C14: 13 | D14: 1328 | E14: 13 | F14: 1350 | G14: 14 | H14: 1365 | I14: 24 | J14: 1377 | K14: 0 | L14: 11112 | N14: 11222 | O14: =COUNTIF($L$7:$L$500,N14) -> 1 | P14: =O14/$Q$4 -> 0.01162790698 | Q14: =IF(P14=0,0,(P14*((LOG(P14))/LOG(2)))) -> -0.07472400878 | T14: =N14 -> 11222 | U14: =COUNTIF(L7:L20,T14) -> 0 | V14: =U14/(W4-U25) -> 0 | W14: =IF(V14=0,0,(V14*((LOG(V14))/LOG(2)))) -> 0 | Y14: =N14 -> 11222 | Z14: =COUNTIF(L21:L35,Y14) -> 0 | AA14: =Z14/(AB4-Z25) -> 0 | AB14: =IF(AA14=0,0,(AA14*((LOG(AA14))/LOG(2)))) -> 0 | AD14: =N14 -> 11222 | AE14: =COUNTIF(L36:L49,AD14) -> 0 | AF14: =AE14/(AG4-AE25) -> 0 | AG14: =IF(AF14=0,0,(AF14*((LOG(AF14))/LOG(2)))) -> 0 | AI14: =N14 -> 11222 | AJ14: =COUNTIF(L50:L63,AI14) -> 0 | AK14: =AJ14/(AL4-AJ25) -> 0 | AL14: =IF(AK14=0,0,(AK14*((LOG(AK14))/LOG(2)))) -> 0 | AN14: =N14 -> 11222 | AO14: =COUNTIF(L64:L78,AN14) -> 0 | AP14: =AO14/(AQ4-AO25) -> 0 | AQ14: =IF(AP14=0,0,(AP14*((LOG(AP14))/LOG(2)))) -> 0 | AS14: =N14 -> 11222 | AT14: =COUNTIF(L79:L92,AS14) -> 1 | AU14: =AT14/(AV4-AT25) -> 0.07142857143 | AV14: =IF(AU14=0,0,(AU14*((LOG(AU14))/LOG(2)))) -> -0.271953923
A15: 12 | B15: 1480 | C15: 13 | D15: 1498 | E15: 24 | F15: 1506 | G15: 14 | H15: 1517 | I15: 24 | J15: 1550 | K15: 0 | L15: 11212 | N15: 12111 | O15: =COUNTIF($L$7:$L$500,N15) -> 3 | P15: =O15/$Q$4 -> 0.03488372093 | Q15: =IF(P15=0,0,(P15*((LOG(P15))/LOG(2)))) -> -0.1688826368 | T15: =N15 -> 12111 | U15: =COUNTIF(L7:L20,T15) -> 1 | V15: =U15/(W4-U25) -> 0.07142857143 | W15: =IF(V15=0,0,(V15*((LOG(V15))/LOG(2)))) -> -0.271953923 | Y15: =N15 -> 12111 | Z15: =COUNTIF(L21:L35,Y15) -> 0 | AA15: =Z15/(AB4-Z25) -> 0 | AB15: =IF(AA15=0,0,(AA15*((LOG(AA15))/LOG(2)))) -> 0 | AD15: =N15 -> 12111 | AE15: =COUNTIF(L36:L49,AD15) -> 0 | AF15: =AE15/(AG4-AE25) -> 0 | AG15: =IF(AF15=0,0,(AF15*((LOG(AF15))/LOG(2)))) -> 0 | AI15: =N15 -> 12111 | AJ15: =COUNTIF(L50:L63,AI15) -> 1 | AK15: =AJ15/(AL4-AJ25) -> 0.07142857143 | AL15: =IF(AK15=0,0,(AK15*((LOG(AK15))/LOG(2)))) -> -0.271953923 | AN15: =N15 -> 12111 | AO15: =COUNTIF(L64:L78,AN15) -> 1 | AP15: =AO15/(AQ4-AO25) -> 0.06666666667 | AQ15: =IF(AP15=0,0,(AP15*((LOG(AP15))/LOG(2)))) -> -0.260459373 | AS15: =N15 -> 12111 | AT15: =COUNTIF(L79:L92,AS15) -> 0 | AU15: =AT15/(AV4-AT25) -> 0 | AV15: =IF(AU15=0,0,(AU15*((LOG(AU15))/LOG(2)))) -> 0
A16: 12 | B16: 1698 | C16: 24 | D16: 1709 | E16: 24 | F16: 1726 | G16: 14 | H16: 1737 | I16: 24 | J16: 1748 | K16: 0 | L16: 12212 | N16: 12112 | O16: =COUNTIF($L$7:$L$500,N16) -> 6 | P16: =O16/$Q$4 -> 0.06976744186 | Q16: =IF(P16=0,0,(P16*((LOG(P16))/LOG(2)))) -> -0.2679978317 | T16: =N16 -> 12112 | U16: =COUNTIF(L7:L20,T16) -> 1 | V16: =U16/(W4-U25) -> 0.07142857143 | W16: =IF(V16=0,0,(V16*((LOG(V16))/LOG(2)))) -> -0.271953923 | Y16: =N16 -> 12112 | Z16: =COUNTIF(L21:L35,Y16) -> 0 | AA16: =Z16/(AB4-Z25) -> 0 | AB16: =IF(AA16=0,0,(AA16*((LOG(AA16))/LOG(2)))) -> 0 | AD16: =N16 -> 12112 | AE16: =COUNTIF(L36:L49,AD16) -> 0 | AF16: =AE16/(AG4-AE25) -> 0 | AG16: =IF(AF16=0,0,(AF16*((LOG(AF16))/LOG(2)))) -> 0 | AI16: =N16 -> 12112 | AJ16: =COUNTIF(L50:L63,AI16) -> 2 | AK16: =AJ16/(AL4-AJ25) -> 0.1428571429 | AL16: =IF(AK16=0,0,(AK16*((LOG(AK16))/LOG(2)))) -> -0.4010507032 | AN16: =N16 -> 12112 | AO16: =COUNTIF(L64:L78,AN16) -> 1 | AP16: =AO16/(AQ4-AO25) -> 0.06666666667 | AQ16: =IF(AP16=0,0,(AP16*((LOG(AP16))/LOG(2)))) -> -0.260459373 | AS16: =N16 -> 12112 | AT16: =COUNTIF(L79:L92,AS16) -> 2 | AU16: =AT16/(AV4-AT25) -> 0.1428571429 | AV16: =IF(AU16=0,0,(AU16*((LOG(AU16))/LOG(2)))) -> -0.4010507032
A17: 12 | B17: 1868 | C17: 24 | D17: 1878 | E17: 13 | F17: 1886 | G17: 23 | H17: 1896 | I17: 13 | J17: 1904 | K17: 0 | L17: 12121 | N17: 12121 | O17: =COUNTIF($L$7:$L$500,N17) -> 22 | P17: =O17/$Q$4 -> 0.2558139535 | Q17: =IF(P17=0,0,(P17*((LOG(P17))/LOG(2)))) -> -0.5031433604 | T17: =N17 -> 12121 | U17: =COUNTIF(L7:L20,T17) -> 3 | V17: =U17/(W4-U25) -> 0.2142857143 | W17: =IF(V17=0,0,(V17*((LOG(V17))/LOG(2)))) -> -0.4762269474 | Y17: =N17 -> 12121 | Z17: =COUNTIF(L21:L35,Y17) -> 6 | AA17: =Z17/(AB4-Z25) -> 0.4 | AB17: =IF(AA17=0,0,(AA17*((LOG(AA17))/LOG(2)))) -> -0.528771238 | AD17: =N17 -> 12121 | AE17: =COUNTIF(L36:L49,AD17) -> 4 | AF17: =AE17/(AG4-AE25) -> 0.2857142857 | AG17: =IF(AF17=0,0,(AF17*((LOG(AF17))/LOG(2)))) -> -0.5163871206 | AI17: =N17 -> 12121 | AJ17: =COUNTIF(L50:L63,AI17) -> 2 | AK17: =AJ17/(AL4-AJ25) -> 0.1428571429 | AL17: =IF(AK17=0,0,(AK17*((LOG(AK17))/LOG(2)))) -> -0.4010507032 | AN17: =N17 -> 12121 | AO17: =COUNTIF(L64:L78,AN17) -> 5 | AP17: =AO17/(AQ4-AO25) -> 0.3333333333 | AQ17: =IF(AP17=0,0,(AP17*((LOG(AP17))/LOG(2)))) -> -0.5283208336 | AS17: =N17 -> 12121 | AT17: =COUNTIF(L79:L92,AS17) -> 2 | AU17: =AT17/(AV4-AT25) -> 0.1428571429 | AV17: =IF(AU17=0,0,(AU17*((LOG(AU17))/LOG(2)))) -> -0.4010507032
A18: 12 | B18: 2025 | C18: 13 | D18: 2058 | E18: 13 | F18: 2075 | G18: 14 | H18: 2105 | I18: 24 | J18: 2117 | K18: 0 | L18: 11112 | N18: 12122 | O18: =COUNTIF($L$7:$L$500,N18) -> 1 | P18: =O18/$Q$4 -> 0.01162790698 | Q18: =IF(P18=0,0,(P18*((LOG(P18))/LOG(2)))) -> -0.07472400878 | T18: =N18 -> 12122 | U18: =COUNTIF(L7:L20,T18) -> 0 | V18: =U18/(W4-U25) -> 0 | W18: =IF(V18=0,0,(V18*((LOG(V18))/LOG(2)))) -> 0 | Y18: =N18 -> 12122 | Z18: =COUNTIF(L21:L35,Y18) -> 0 | AA18: =Z18/(AB4-Z25) -> 0 | AB18: =IF(AA18=0,0,(AA18*((LOG(AA18))/LOG(2)))) -> 0 | AD18: =N18 -> 12122 | AE18: =COUNTIF(L36:L49,AD18) -> 0 | AF18: =AE18/(AG4-AE25) -> 0 | AG18: =IF(AF18=0,0,(AF18*((LOG(AF18))/LOG(2)))) -> 0 | AI18: =N18 -> 12122 | AJ18: =COUNTIF(L50:L63,AI18) -> 1 | AK18: =AJ18/(AL4-AJ25) -> 0.07142857143 | AL18: =IF(AK18=0,0,(AK18*((LOG(AK18))/LOG(2)))) -> -0.271953923 | AN18: =N18 -> 12122 | AO18: =COUNTIF(L64:L78,AN18) -> 0 | AP18: =AO18/(AQ4-AO25) -> 0 | AQ18: =IF(AP18=0,0,(AP18*((LOG(AP18))/LOG(2)))) -> 0 | AS18: =N18 -> 12122 | AT18: =COUNTIF(L79:L92,AS18) -> 0 | AU18: =AT18/(AV4-AT25) -> 0 | AV18: =IF(AU18=0,0,(AU18*((LOG(AU18))/LOG(2)))) -> 0
A19: 12 | B19: 2245 | C19: 24 | D19: 2254 | E19: 13 | F19: 2268 | G19: 23 | H19: 2278 | I19: 13 | J19: 2299 | K19: 0 | L19: 12121 | N19: 12211 | O19: =COUNTIF($L$7:$L$500,N19) -> 0 | P19: =O19/$Q$4 -> 0 | Q19: =IF(P19=0,0,(P19*((LOG(P19))/LOG(2)))) -> 0 | T19: =N19 -> 12211 | U19: =COUNTIF(L7:L20,T19) -> 0 | V19: =U19/(W4-U25) -> 0 | W19: =IF(V19=0,0,(V19*((LOG(V19))/LOG(2)))) -> 0 | Y19: =N19 -> 12211 | Z19: =COUNTIF(L21:L35,Y19) -> 0 | AA19: =Z19/(AB4-Z25) -> 0 | AB19: =IF(AA19=0,0,(AA19*((LOG(AA19))/LOG(2)))) -> 0 | AD19: =N19 -> 12211 | AE19: =COUNTIF(L36:L49,AD19) -> 0 | AF19: =AE19/(AG4-AE25) -> 0 | AG19: =IF(AF19=0,0,(AF19*((LOG(AF19))/LOG(2)))) -> 0 | AI19: =N19 -> 12211 | AJ19: =COUNTIF(L50:L63,AI19) -> 0 | AK19: =AJ19/(AL4-AJ25) -> 0 | AL19: =IF(AK19=0,0,(AK19*((LOG(AK19))/LOG(2)))) -> 0 | AN19: =N19 -> 12211 | AO19: =COUNTIF(L64:L78,AN19) -> 0 | AP19: =AO19/(AQ4-AO25) -> 0 | AQ19: =IF(AP19=0,0,(AP19*((LOG(AP19))/LOG(2)))) -> 0 | AS19: =N19 -> 12211 | AT19: =COUNTIF(L79:L92,AS19) -> 0 | AU19: =AT19/(AV4-AT25) -> 0 | AV19: =IF(AU19=0,0,(AU19*((LOG(AU19))/LOG(2)))) -> 0
A20: 12 | B20: 2423 | C20: 24 | D20: 2435 | E20: 13 | F20: 2444 | G20: 14 | H20: 2465 | I20: 13 | J20: 2495 | K20: 0 | L20: 12111 | N20: 12212 | O20: =COUNTIF($L$7:$L$500,N20) -> 4 | P20: =O20/$Q$4 -> 0.04651162791 | Q20: =IF(P20=0,0,(P20*((LOG(P20))/LOG(2)))) -> -0.2058727793 | T20: =N20 -> 12212 | U20: =COUNTIF(L7:L20,T20) -> 3 | V20: =U20/(W4-U25) -> 0.2142857143 | W20: =IF(V20=0,0,(V20*((LOG(V20))/LOG(2)))) -> -0.4762269474 | Y20: =N20 -> 12212 | Z20: =COUNTIF(L21:L35,Y20) -> 0 | AA20: =Z20/(AB4-Z25) -> 0 | AB20: =IF(AA20=0,0,(AA20*((LOG(AA20))/LOG(2)))) -> 0 | AD20: =N20 -> 12212 | AE20: =COUNTIF(L36:L49,AD20) -> 0 | AF20: =AE20/(AG4-AE25) -> 0 | AG20: =IF(AF20=0,0,(AF20*((LOG(AF20))/LOG(2)))) -> 0 | AI20: =N20 -> 12212 | AJ20: =COUNTIF(L50:L63,AI20) -> 0 | AK20: =AJ20/(AL4-AJ25) -> 0 | AL20: =IF(AK20=0,0,(AK20*((LOG(AK20))/LOG(2)))) -> 0 | AN20: =N20 -> 12212 | AO20: =COUNTIF(L64:L78,AN20) -> 0 | AP20: =AO20/(AQ4-AO25) -> 0 | AQ20: =IF(AP20=0,0,(AP20*((LOG(AP20))/LOG(2)))) -> 0 | AS20: =N20 -> 12212 | AT20: =COUNTIF(L79:L92,AS20) -> 1 | AU20: =AT20/(AV4-AT25) -> 0.07142857143 | AV20: =IF(AU20=0,0,(AU20*((LOG(AU20))/LOG(2)))) -> -0.271953923
A21: 21 | B21: 2619 | C21: 11 | D21: 2627 | E21: 22 | F21: 2651 | G21: 14 | H21: 2662 | I21: 13 | J21: 2682 | K21: 0 | L21: 21211 | N21: 12221 | O21: =COUNTIF($L$7:$L$500,N21) -> 0 | P21: =O21/$Q$4 -> 0 | Q21: =IF(P21=0,0,(P21*((LOG(P21))/LOG(2)))) -> 0 | T21: =N21 -> 12221 | U21: =COUNTIF(L7:L20,T21) -> 0 | V21: =U21/(W4-U25) -> 0 | W21: =IF(V21=0,0,(V21*((LOG(V21))/LOG(2)))) -> 0 | Y21: =N21 -> 12221 | Z21: =COUNTIF(L21:L35,Y21) -> 0 | AA21: =Z21/(AB4-Z25) -> 0 | AB21: =IF(AA21=0,0,(AA21*((LOG(AA21))/LOG(2)))) -> 0 | AD21: =N21 -> 12221 | AE21: =COUNTIF(L36:L49,AD21) -> 0 | AF21: =AE21/(AG4-AE25) -> 0 | AG21: =IF(AF21=0,0,(AF21*((LOG(AF21))/LOG(2)))) -> 0 | AI21: =N21 -> 12221 | AJ21: =COUNTIF(L50:L63,AI21) -> 0 | AK21: =AJ21/(AL4-AJ25) -> 0 | AL21: =IF(AK21=0,0,(AK21*((LOG(AK21))/LOG(2)))) -> 0 | AN21: =N21 -> 12221 | AO21: =COUNTIF(L64:L78,AN21) -> 0 | AP21: =AO21/(AQ4-AO25) -> 0 | AQ21: =IF(AP21=0,0,(AP21*((LOG(AP21))/LOG(2)))) -> 0 | AS21: =N21 -> 12221 | AT21: =COUNTIF(L79:L92,AS21) -> 0 | AU21: =AT21/(AV4-AT25) -> 0 | AV21: =IF(AU21=0,0,(AU21*((LOG(AU21))/LOG(2)))) -> 0
A22: 12 | B22: 2824 | C22: 24 | D22: 2833 | E22: 13 | F22: 2844 | G22: 23 | H22: 2854 | I22: 13 | J22: 2879 | K22: 0 | L22: 12121 | N22: 12222 | O22: =COUNTIF($L$7:$L$500,N22) -> 0 | P22: =O22/$Q$4 -> 0 | Q22: =IF(P22=0,0,(P22*((LOG(P22))/LOG(2)))) -> 0 | T22: =N22 -> 12222 | U22: =COUNTIF(L7:L20,T22) -> 0 | V22: =U22/(W4-U25) -> 0 | W22: =IF(V22=0,0,(V22*((LOG(V22))/LOG(2)))) -> 0 | Y22: =N22 -> 12222 | Z22: =COUNTIF(L21:L35,Y22) -> 0 | AA22: =Z22/(AB4-Z25) -> 0 | AB22: =IF(AA22=0,0,(AA22*((LOG(AA22))/LOG(2)))) -> 0 | AD22: =N22 -> 12222 | AE22: =COUNTIF(L36:L49,AD22) -> 0 | AF22: =AE22/(AG4-AE25) -> 0 | AG22: =IF(AF22=0,0,(AF22*((LOG(AF22))/LOG(2)))) -> 0 | AI22: =N22 -> 12222 | AJ22: =COUNTIF(L50:L63,AI22) -> 0 | AK22: =AJ22/(AL4-AJ25) -> 0 | AL22: =IF(AK22=0,0,(AK22*((LOG(AK22))/LOG(2)))) -> 0 | AN22: =N22 -> 12222 | AO22: =COUNTIF(L64:L78,AN22) -> 0 | AP22: =AO22/(AQ4-AO25) -> 0 | AQ22: =IF(AP22=0,0,(AP22*((LOG(AP22))/LOG(2)))) -> 0 | AS22: =N22 -> 12222 | AT22: =COUNTIF(L79:L92,AS22) -> 0 | AU22: =AT22/(AV4-AT25) -> 0 | AV22: =IF(AU22=0,0,(AU22*((LOG(AU22))/LOG(2)))) -> 0
A23: 12 | B23: 3034 | C23: 24 | D23: 3043 | E23: 13 | F23: 3052 | G23: 23 | H23: 3065 | I23: 13 | J23: 3078 | K23: 0 | L23: 12121 | N23: 21111 | O23: =COUNTIF($L$7:$L$500,N23) -> 0 | P23: =O23/$Q$4 -> 0 | Q23: =IF(P23=0,0,(P23*((LOG(P23))/LOG(2)))) -> 0 | T23: =N23 -> 21111 | U23: =COUNTIF(L7:L20,T23) -> 0 | V23: =U23/(W4-U25) -> 0 | W23: =IF(V23=0,0,(V23*((LOG(V23))/LOG(2)))) -> 0 | Y23: =N23 -> 21111 | Z23: =COUNTIF(L21:L35,Y23) -> 0 | AA23: =Z23/(AB4-Z25) -> 0 | AB23: =IF(AA23=0,0,(AA23*((LOG(AA23))/LOG(2)))) -> 0 | AD23: =N23 -> 21111 | AE23: =COUNTIF(L36:L49,AD23) -> 0 | AF23: =AE23/(AG4-AE25) -> 0 | AG23: =IF(AF23=0,0,(AF23*((LOG(AF23))/LOG(2)))) -> 0 | AI23: =N23 -> 21111 | AJ23: =COUNTIF(L50:L63,AI23) -> 0 | AK23: =AJ23/(AL4-AJ25) -> 0 | AL23: =IF(AK23=0,0,(AK23*((LOG(AK23))/LOG(2)))) -> 0 | AN23: =N23 -> 21111 | AO23: =COUNTIF(L64:L78,AN23) -> 0 | AP23: =AO23/(AQ4-AO25) -> 0 | AQ23: =IF(AP23=0,0,(AP23*((LOG(AP23))/LOG(2)))) -> 0 | AS23: =N23 -> 21111 | AT23: =COUNTIF(L79:L92,AS23) -> 0 | AU23: =AT23/(AV4-AT25) -> 0 | AV23: =IF(AU23=0,0,(AU23*((LOG(AU23))/LOG(2)))) -> 0
A24: 21 | B24: 3186 | C24: 11 | D24: 3194 | E24: 22 | F24: 3203 | G24: 23 | H24: 3224 | I24: 13 | J24: 3236 | K24: 0 | L24: 21221 | N24: 21112 | O24: =COUNTIF($L$7:$L$500,N24) -> 0 | P24: =O24/$Q$4 -> 0 | Q24: =IF(P24=0,0,(P24*((LOG(P24))/LOG(2)))) -> 0 | T24: =N24 -> 21112 | U24: =COUNTIF(L7:L20,T24) -> 0 | V24: =U24/(W4-U25) -> 0 | W24: =IF(V24=0,0,(V24*((LOG(V24))/LOG(2)))) -> 0 | Y24: =N24 -> 21112 | Z24: =COUNTIF(L21:L35,Y24) -> 0 | AA24: =Z24/(AB4-Z25) -> 0 | AB24: =IF(AA24=0,0,(AA24*((LOG(AA24))/LOG(2)))) -> 0 | AD24: =N24 -> 21112 | AE24: =COUNTIF(L36:L49,AD24) -> 0 | AF24: =AE24/(AG4-AE25) -> 0 | AG24: =IF(AF24=0,0,(AF24*((LOG(AF24))/LOG(2)))) -> 0 | AI24: =N24 -> 21112 | AJ24: =COUNTIF(L50:L63,AI24) -> 0 | AK24: =AJ24/(AL4-AJ25) -> 0 | AL24: =IF(AK24=0,0,(AK24*((LOG(AK24))/LOG(2)))) -> 0 | AN24: =N24 -> 21112 | AO24: =COUNTIF(L64:L78,AN24) -> 0 | AP24: =AO24/(AQ4-AO25) -> 0 | AQ24: =IF(AP24=0,0,(AP24*((LOG(AP24))/LOG(2)))) -> 0 | AS24: =N24 -> 21112 | AT24: =COUNTIF(L79:L92,AS24) -> 0 | AU24: =AT24/(AV4-AT25) -> 0 | AV24: =IF(AU24=0,0,(AU24*((LOG(AU24))/LOG(2)))) -> 0
A25: 21 | B25: 3345 | C25: 11 | D25: 3359 | E25: 22 | F25: 3369 | G25: 14 | H25: 3384 | I25: 24 | J25: 3396 | K25: 0 | L25: 21212 | N25: 21121 | O25: =COUNTIF($L$7:$L$500,N25) -> 0 | P25: =O25/$Q$4 -> 0 | Q25: =IF(P25=0,0,(P25*((LOG(P25))/LOG(2)))) -> 0 | T25: =N25 -> 21121 | U25: =COUNTIF(L7:L20,T25) -> 0 | Y25: =N25 -> 21121 | Z25: =COUNTIF(L21:L35,Y25) -> 0 | AD25: =N25 -> 21121 | AE25: =COUNTIF(L36:L49,AD25) -> 0 | AI25: =N25 -> 21121 | AJ25: =COUNTIF(L50:L63,AI25) -> 0 | AN25: =N25 -> 21121 | AO25: =COUNTIF(L64:L78,AN25) -> 0 | AS25: =N25 -> 21121 | AT25: =COUNTIF(L79:L92,AS25) -> 0
A26: 21 | B26: 3551 | C26: 11 | D26: 3563 | E26: 22 | F26: 3571 | G26: 14 | H26: 3584 | I26: 24 | J26: 3593 | K26: 0 | L26: 21212 | N26: 21122 | O26: =COUNTIF($L$7:$L$500,N26) -> 2 | P26: =O26/$Q$4 -> 0.02325581395 | Q26: =IF(P26=0,0,(P26*((LOG(P26))/LOG(2)))) -> -0.1261922036 | T26: =N26 -> 21122 | U26: =COUNTIF(L7:L20,T26) -> 0 | V26: =U26/(W4-U25) -> 0 | W26: =IF(V26=0,0,(V26*((LOG(V26))/LOG(2)))) -> 0 | Y26: =N26 -> 21122 | Z26: =COUNTIF(L21:L35,Y26) -> 0 | AA26: =Z26/(AB4-Z25) -> 0 | AB26: =IF(AA26=0,0,(AA26*((LOG(AA26))/LOG(2)))) -> 0 | AD26: =N26 -> 21122 | AE26: =COUNTIF(L36:L49,AD26) -> 0 | AF26: =AE26/(AG4-AE25) -> 0 | AG26: =IF(AF26=0,0,(AF26*((LOG(AF26))/LOG(2)))) -> 0 | AI26: =N26 -> 21122 | AJ26: =COUNTIF(L50:L63,AI26) -> 1 | AK26: =AJ26/(AL4-AJ25) -> 0.07142857143 | AL26: =IF(AK26=0,0,(AK26*((LOG(AK26))/LOG(2)))) -> -0.271953923 | AN26: =N26 -> 21122 | AO26: =COUNTIF(L64:L78,AN26) -> 1 | AP26: =AO26/(AQ4-AO25) -> 0.06666666667 | AQ26: =IF(AP26=0,0,(AP26*((LOG(AP26))/LOG(2)))) -> -0.260459373 | AS26: =N26 -> 21122 | AT26: =COUNTIF(L79:L92,AS26) -> 0 | AU26: =AT26/(AV4-AT25) -> 0 | AV26: =IF(AU26=0,0,(AU26*((LOG(AU26))/LOG(2)))) -> 0
A27: 12 | B27: 3712 | C27: 24 | D27: 3739 | E27: 13 | F27: 3747 | G27: 23 | H27: 3756 | I27: 13 | J27: 3772 | K27: 0 | L27: 12121 | N27: 21211 | O27: =COUNTIF($L$7:$L$500,N27) -> 6 | P27: =O27/$Q$4 -> 0.06976744186 | Q27: =IF(P27=0,0,(P27*((LOG(P27))/LOG(2)))) -> -0.2679978317 | T27: =N27 -> 21211 | U27: =COUNTIF(L7:L20,T27) -> 0 | V27: =U27/(W4-U25) -> 0 | W27: =IF(V27=0,0,(V27*((LOG(V27))/LOG(2)))) -> 0 | Y27: =N27 -> 21211 | Z27: =COUNTIF(L21:L35,Y27) -> 2 | AA27: =Z27/(AB4-Z25) -> 0.1333333333 | AB27: =IF(AA27=0,0,(AA27*((LOG(AA27))/LOG(2)))) -> -0.3875854127 | AD27: =N27 -> 21211 | AE27: =COUNTIF(L36:L49,AD27) -> 3 | AF27: =AE27/(AG4-AE25) -> 0.2142857143 | AG27: =IF(AF27=0,0,(AF27*((LOG(AF27))/LOG(2)))) -> -0.4762269474 | AI27: =N27 -> 21211 | AJ27: =COUNTIF(L50:L63,AI27) -> 0 | AK27: =AJ27/(AL4-AJ25) -> 0 | AL27: =IF(AK27=0,0,(AK27*((LOG(AK27))/LOG(2)))) -> 0 | AN27: =N27 -> 21211 | AO27: =COUNTIF(L64:L78,AN27) -> 0 | AP27: =AO27/(AQ4-AO25) -> 0 | AQ27: =IF(AP27=0,0,(AP27*((LOG(AP27))/LOG(2)))) -> 0 | AS27: =N27 -> 21211 | AT27: =COUNTIF(L79:L92,AS27) -> 1 | AU27: =AT27/(AV4-AT25) -> 0.07142857143 | AV27: =IF(AU27=0,0,(AU27*((LOG(AU27))/LOG(2)))) -> -0.271953923
A28: 12 | B28: 3883 | C28: 24 | D28: 3891 | E28: 13 | F28: 3901 | G28: 23 | H28: 3909 | I28: 13 | J28: 3920 | K28: 0 | L28: 12121 | N28: 21212 | O28: =COUNTIF($L$7:$L$500,N28) -> 17 | P28: =O28/$Q$4 -> 0.1976744186 | Q28: =IF(P28=0,0,(P28*((LOG(P28))/LOG(2)))) -> -0.4623213085 | T28: =N28 -> 21212 | U28: =COUNTIF(L7:L20,T28) -> 0 | V28: =U28/(W4-U25) -> 0 | W28: =IF(V28=0,0,(V28*((LOG(V28))/LOG(2)))) -> 0 | Y28: =N28 -> 21212 | Z28: =COUNTIF(L21:L35,Y28) -> 2 | AA28: =Z28/(AB4-Z25) -> 0.1333333333 | AB28: =IF(AA28=0,0,(AA28*((LOG(AA28))/LOG(2)))) -> -0.3875854127 | AD28: =N28 -> 21212 | AE28: =COUNTIF(L36:L49,AD28) -> 6 | AF28: =AE28/(AG4-AE25) -> 0.4285714286 | AG28: =IF(AF28=0,0,(AF28*((LOG(AF28))/LOG(2)))) -> -0.5238824663 | AI28: =N28 -> 21212 | AJ28: =COUNTIF(L50:L63,AI28) -> 3 | AK28: =AJ28/(AL4-AJ25) -> 0.2142857143 | AL28: =IF(AK28=0,0,(AK28*((LOG(AK28))/LOG(2)))) -> -0.4762269474 | AN28: =N28 -> 21212 | AO28: =COUNTIF(L64:L78,AN28) -> 3 | AP28: =AO28/(AQ4-AO25) -> 0.2 | AQ28: =IF(AP28=0,0,(AP28*((LOG(AP28))/LOG(2)))) -> -0.464385619 | AS28: =N28 -> 21212 | AT28: =COUNTIF(L79:L92,AS28) -> 3 | AU28: =AT28/(AV4-AT25) -> 0.2142857143 | AV28: =IF(AU28=0,0,(AU28*((LOG(AU28))/LOG(2)))) -> -0.4762269474
A29: 21 | B29: 4039 | C29: 11 | D29: 4047 | E29: 22 | F29: 4056 | G29: 14 | H29: 4068 | I29: 13 | J29: 4088 | K29: 0 | L29: 21211 | N29: 21221 | O29: =COUNTIF($L$7:$L$500,N29) -> 5 | P29: =O29/$Q$4 -> 0.05813953488 | Q29: =IF(P29=0,0,(P29*((LOG(P29))/LOG(2)))) -> -0.2386242244 | T29: =N29 -> 21221 | U29: =COUNTIF(L7:L20,T29) -> 0 | V29: =U29/(W4-U25) -> 0 | W29: =IF(V29=0,0,(V29*((LOG(V29))/LOG(2)))) -> 0 | Y29: =N29 -> 21221 | Z29: =COUNTIF(L21:L35,Y29) -> 2 | AA29: =Z29/(AB4-Z25) -> 0.1333333333 | AB29: =IF(AA29=0,0,(AA29*((LOG(AA29))/LOG(2)))) -> -0.3875854127 | AD29: =N29 -> 21221 | AE29: =COUNTIF(L36:L49,AD29) -> 0 | AF29: =AE29/(AG4-AE25) -> 0 | AG29: =IF(AF29=0,0,(AF29*((LOG(AF29))/LOG(2)))) -> 0 | AI29: =N29 -> 21221 | AJ29: =COUNTIF(L50:L63,AI29) -> 1 | AK29: =AJ29/(AL4-AJ25) -> 0.07142857143 | AL29: =IF(AK29=0,0,(AK29*((LOG(AK29))/LOG(2)))) -> -0.271953923 | AN29: =N29 -> 21221 | AO29: =COUNTIF(L64:L78,AN29) -> 2 | AP29: =AO29/(AQ4-AO25) -> 0.1333333333 | AQ29: =IF(AP29=0,0,(AP29*((LOG(AP29))/LOG(2)))) -> -0.3875854127 | AS29: =N29 -> 21221 | AT29: =COUNTIF(L79:L92,AS29) -> 0 | AU29: =AT29/(AV4-AT25) -> 0 | AV29: =IF(AU29=0,0,(AU29*((LOG(AU29))/LOG(2)))) -> 0
A30: 21 | B30: 4208 | C30: 11 | D30: 4216 | E30: 22 | F30: 4225 | G30: 23 | H30: 4242 | I30: 13 | J30: 4254 | K30: 0 | L30: 21221 | N30: 21222 | O30: =COUNTIF($L$7:$L$500,N30) -> 1 | P30: =O30/$Q$4 -> 0.01162790698 | Q30: =IF(P30=0,0,(P30*((LOG(P30))/LOG(2)))) -> -0.07472400878 | T30: =N30 -> 21222 | U30: =COUNTIF(L7:L20,T30) -> 0 | V30: =U30/(W4-U25) -> 0 | W30: =IF(V30=0,0,(V30*((LOG(V30))/LOG(2)))) -> 0 | Y30: =N30 -> 21222 | Z30: =COUNTIF(L21:L35,Y30) -> 1 | AA30: =Z30/(AB4-Z25) -> 0.06666666667 | AB30: =IF(AA30=0,0,(AA30*((LOG(AA30))/LOG(2)))) -> -0.260459373 | AD30: =N30 -> 21222 | AE30: =COUNTIF(L36:L49,AD30) -> 0 | AF30: =AE30/(AG4-AE25) -> 0 | AG30: =IF(AF30=0,0,(AF30*((LOG(AF30))/LOG(2)))) -> 0 | AI30: =N30 -> 21222 | AJ30: =COUNTIF(L50:L63,AI30) -> 0 | AK30: =AJ30/(AL4-AJ25) -> 0 | AL30: =IF(AK30=0,0,(AK30*((LOG(AK30))/LOG(2)))) -> 0 | AN30: =N30 -> 21222 | AO30: =COUNTIF(L64:L78,AN30) -> 0 | AP30: =AO30/(AQ4-AO25) -> 0 | AQ30: =IF(AP30=0,0,(AP30*((LOG(AP30))/LOG(2)))) -> 0 | AS30: =N30 -> 21222 | AT30: =COUNTIF(L79:L92,AS30) -> 0 | AU30: =AT30/(AV4-AT25) -> 0 | AV30: =IF(AU30=0,0,(AU30*((LOG(AU30))/LOG(2)))) -> 0
A31: 12 | B31: 4378 | C31: 13 | D31: 4387 | E31: 24 | F31: 4441 | G31: 14 | H31: 4451 | I31: 24 | J31: 4463 | K31: 0 | L31: 11212 | N31: 22111 | O31: =COUNTIF($L$7:$L$500,N31) -> 0 | P31: =O31/$Q$4 -> 0 | Q31: =IF(P31=0,0,(P31*((LOG(P31))/LOG(2)))) -> 0 | T31: =N31 -> 22111 | U31: =COUNTIF(L7:L20,T31) -> 0 | V31: =U31/(W4-U25) -> 0 | W31: =IF(V31=0,0,(V31*((LOG(V31))/LOG(2)))) -> 0 | Y31: =N31 -> 22111 | Z31: =COUNTIF(L21:L35,Y31) -> 0 | AA31: =Z31/(AB4-Z25) -> 0 | AB31: =IF(AA31=0,0,(AA31*((LOG(AA31))/LOG(2)))) -> 0 | AD31: =N31 -> 22111 | AE31: =COUNTIF(L36:L49,AD31) -> 0 | AF31: =AE31/(AG4-AE25) -> 0 | AG31: =IF(AF31=0,0,(AF31*((LOG(AF31))/LOG(2)))) -> 0 | AI31: =N31 -> 22111 | AJ31: =COUNTIF(L50:L63,AI31) -> 0 | AK31: =AJ31/(AL4-AJ25) -> 0 | AL31: =IF(AK31=0,0,(AK31*((LOG(AK31))/LOG(2)))) -> 0 | AN31: =N31 -> 22111 | AO31: =COUNTIF(L64:L78,AN31) -> 0 | AP31: =AO31/(AQ4-AO25) -> 0 | AQ31: =IF(AP31=0,0,(AP31*((LOG(AP31))/LOG(2)))) -> 0 | AS31: =N31 -> 22111 | AT31: =COUNTIF(L79:L92,AS31) -> 0 | AU31: =AT31/(AV4-AT25) -> 0 | AV31: =IF(AU31=0,0,(AU31*((LOG(AU31))/LOG(2)))) -> 0
A32: 21 | B32: 4586 | C32: 11 | D32: 4598 | E32: 22 | F32: 4605 | G32: 23 | H32: 4613 | I32: 24 | J32: 4672 | K32: 0 | L32: 21222 | N32: 22112 | O32: =COUNTIF($L$7:$L$500,N32) -> 1 | P32: =O32/$Q$4 -> 0.01162790698 | Q32: =IF(P32=0,0,(P32*((LOG(P32))/LOG(2)))) -> -0.07472400878 | T32: =N32 -> 22112 | U32: =COUNTIF(L7:L20,T32) -> 0 | V32: =U32/(W4-U25) -> 0 | W32: =IF(V32=0,0,(V32*((LOG(V32))/LOG(2)))) -> 0 | Y32: =N32 -> 22112 | Z32: =COUNTIF(L21:L35,Y32) -> 0 | AA32: =Z32/(AB4-Z25) -> 0 | AB32: =IF(AA32=0,0,(AA32*((LOG(AA32))/LOG(2)))) -> 0 | AD32: =N32 -> 22112 | AE32: =COUNTIF(L36:L49,AD32) -> 1 | AF32: =AE32/(AG4-AE25) -> 0.07142857143 | AG32: =IF(AF32=0,0,(AF32*((LOG(AF32))/LOG(2)))) -> -0.271953923 | AI32: =N32 -> 22112 | AJ32: =COUNTIF(L50:L63,AI32) -> 0 | AK32: =AJ32/(AL4-AJ25) -> 0 | AL32: =IF(AK32=0,0,(AK32*((LOG(AK32))/LOG(2)))) -> 0 | AN32: =N32 -> 22112 | AO32: =COUNTIF(L64:L78,AN32) -> 0 | AP32: =AO32/(AQ4-AO25) -> 0 | AQ32: =IF(AP32=0,0,(AP32*((LOG(AP32))/LOG(2)))) -> 0 | AS32: =N32 -> 22112 | AT32: =COUNTIF(L79:L92,AS32) -> 0 | AU32: =AT32/(AV4-AT25) -> 0 | AV32: =IF(AU32=0,0,(AU32*((LOG(AU32))/LOG(2)))) -> 0
A33: 12 | B33: 4807 | C33: 24 | D33: 4819 | E33: 13 | F33: 4830 | G33: 23 | H33: 4839 | I33: 13 | J33: 4865 | K33: 0 | L33: 12121 | N33: 22121 | O33: =COUNTIF($L$7:$L$500,N33) -> 2 | P33: =O33/$Q$4 -> 0.02325581395 | Q33: =IF(P33=0,0,(P33*((LOG(P33))/LOG(2)))) -> -0.1261922036 | T33: =N33 -> 22121 | U33: =COUNTIF(L7:L20,T33) -> 0 | V33: =U33/(W4-U25) -> 0 | W33: =IF(V33=0,0,(V33*((LOG(V33))/LOG(2)))) -> 0 | Y33: =N33 -> 22121 | Z33: =COUNTIF(L21:L35,Y33) -> 0 | AA33: =Z33/(AB4-Z25) -> 0 | AB33: =IF(AA33=0,0,(AA33*((LOG(AA33))/LOG(2)))) -> 0 | AD33: =N33 -> 22121 | AE33: =COUNTIF(L36:L49,AD33) -> 0 | AF33: =AE33/(AG4-AE25) -> 0 | AG33: =IF(AF33=0,0,(AF33*((LOG(AF33))/LOG(2)))) -> 0 | AI33: =N33 -> 22121 | AJ33: =COUNTIF(L50:L63,AI33) -> 2 | AK33: =AJ33/(AL4-AJ25) -> 0.1428571429 | AL33: =IF(AK33=0,0,(AK33*((LOG(AK33))/LOG(2)))) -> -0.4010507032 | AN33: =N33 -> 22121 | AO33: =COUNTIF(L64:L78,AN33) -> 0 | AP33: =AO33/(AQ4-AO25) -> 0 | AQ33: =IF(AP33=0,0,(AP33*((LOG(AP33))/LOG(2)))) -> 0 | AS33: =N33 -> 22121 | AT33: =COUNTIF(L79:L92,AS33) -> 0 | AU33: =AT33/(AV4-AT25) -> 0 | AV33: =IF(AU33=0,0,(AU33*((LOG(AU33))/LOG(2)))) -> 0
A34: 12 | B34: 5001 | C34: 13 | D34: 5031 | E34: 24 | F34: 5039 | G34: 23 | H34: 5049 | I34: 13 | J34: 5063 | K34: 0 | L34: 11221 | N34: 22122 | O34: =COUNTIF($L$7:$L$500,N34) -> 0 | P34: =O34/$Q$4 -> 0 | Q34: =IF(P34=0,0,(P34*((LOG(P34))/LOG(2)))) -> 0 | T34: =N34 -> 22122 | U34: =COUNTIF(L7:L20,T34) -> 0 | V34: =U34/(W4-U25) -> 0 | W34: =IF(V34=0,0,(V34*((LOG(V34))/LOG(2)))) -> 0 | Y34: =N34 -> 22122 | Z34: =COUNTIF(L21:L35,Y34) -> 0 | AA34: =Z34/(AB4-Z25) -> 0 | AB34: =IF(AA34=0,0,(AA34*((LOG(AA34))/LOG(2)))) -> 0 | AD34: =N34 -> 22122 | AE34: =COUNTIF(L36:L49,AD34) -> 0 | AF34: =AE34/(AG4-AE25) -> 0 | AG34: =IF(AF34=0,0,(AF34*((LOG(AF34))/LOG(2)))) -> 0 | AI34: =N34 -> 22122 | AJ34: =COUNTIF(L50:L63,AI34) -> 0 | AK34: =AJ34/(AL4-AJ25) -> 0 | AL34: =IF(AK34=0,0,(AK34*((LOG(AK34))/LOG(2)))) -> 0 | AN34: =N34 -> 22122 | AO34: =COUNTIF(L64:L78,AN34) -> 0 | AP34: =AO34/(AQ4-AO25) -> 0 | AQ34: =IF(AP34=0,0,(AP34*((LOG(AP34))/LOG(2)))) -> 0 | AS34: =N34 -> 22122 | AT34: =COUNTIF(L79:L92,AS34) -> 0 | AU34: =AT34/(AV4-AT25) -> 0 | AV34: =IF(AU34=0,0,(AU34*((LOG(AU34))/LOG(2)))) -> 0
A35: 12 | B35: 5196 | C35: 24 | D35: 5206 | E35: 13 | F35: 5214 | G35: 23 | H35: 5225 | I35: 13 | J35: 5236 | K35: 0 | L35: 12121 | N35: 22211 | O35: =COUNTIF($L$7:$L$500,N35) -> 0 | P35: =O35/$Q$4 -> 0 | Q35: =IF(P35=0,0,(P35*((LOG(P35))/LOG(2)))) -> 0 | T35: =N35 -> 22211 | U35: =COUNTIF(L7:L20,T35) -> 0 | V35: =U35/(W4-U25) -> 0 | W35: =IF(V35=0,0,(V35*((LOG(V35))/LOG(2)))) -> 0 | Y35: =N35 -> 22211 | Z35: =COUNTIF(L21:L35,Y35) -> 0 | AA35: =Z35/(AB4-Z25) -> 0 | AB35: =IF(AA35=0,0,(AA35*((LOG(AA35))/LOG(2)))) -> 0 | AD35: =N35 -> 22211 | AE35: =COUNTIF(L36:L49,AD35) -> 0 | AF35: =AE35/(AG4-AE25) -> 0 | AG35: =IF(AF35=0,0,(AF35*((LOG(AF35))/LOG(2)))) -> 0 | AI35: =N35 -> 22211 | AJ35: =COUNTIF(L50:L63,AI35) -> 0 | AK35: =AJ35/(AL4-AJ25) -> 0 | AL35: =IF(AK35=0,0,(AK35*((LOG(AK35))/LOG(2)))) -> 0 | AN35: =N35 -> 22211 | AO35: =COUNTIF(L64:L78,AN35) -> 0 | AP35: =AO35/(AQ4-AO25) -> 0 | AQ35: =IF(AP35=0,0,(AP35*((LOG(AP35))/LOG(2)))) -> 0 | AS35: =N35 -> 22211 | AT35: =COUNTIF(L79:L92,AS35) -> 0 | AU35: =AT35/(AV4-AT25) -> 0 | AV35: =IF(AU35=0,0,(AU35*((LOG(AU35))/LOG(2)))) -> 0
A36: 21 | B36: 5391 | C36: 11 | D36: 5400 | E36: 22 | F36: 5411 | G36: 14 | H36: 5420 | I36: 13 | J36: 5430 | K36: 0 | L36: 21211 | N36: 22212 | O36: =COUNTIF($L$7:$L$500,N36) -> 0 | P36: =O36/$Q$4 -> 0 | Q36: =IF(P36=0,0,(P36*((LOG(P36))/LOG(2)))) -> 0 | T36: =N36 -> 22212 | U36: =COUNTIF(L7:L20,T36) -> 0 | V36: =U36/(W4-U25) -> 0 | W36: =IF(V36=0,0,(V36*((LOG(V36))/LOG(2)))) -> 0 | Y36: =N36 -> 22212 | Z36: =COUNTIF(L21:L35,Y36) -> 0 | AA36: =Z36/(AB4-Z25) -> 0 | AB36: =IF(AA36=0,0,(AA36*((LOG(AA36))/LOG(2)))) -> 0 | AD36: =N36 -> 22212 | AE36: =COUNTIF(L36:L49,AD36) -> 0 | AF36: =AE36/(AG4-AE25) -> 0 | AG36: =IF(AF36=0,0,(AF36*((LOG(AF36))/LOG(2)))) -> 0 | AI36: =N36 -> 22212 | AJ36: =COUNTIF(L50:L63,AI36) -> 0 | AK36: =AJ36/(AL4-AJ25) -> 0 | AL36: =IF(AK36=0,0,(AK36*((LOG(AK36))/LOG(2)))) -> 0 | AN36: =N36 -> 22212 | AO36: =COUNTIF(L64:L78,AN36) -> 0 | AP36: =AO36/(AQ4-AO25) -> 0 | AQ36: =IF(AP36=0,0,(AP36*((LOG(AP36))/LOG(2)))) -> 0 | AS36: =N36 -> 22212 | AT36: =COUNTIF(L79:L92,AS36) -> 0 | AU36: =AT36/(AV4-AT25) -> 0 | AV36: =IF(AU36=0,0,(AU36*((LOG(AU36))/LOG(2)))) -> 0
A37: 12 | B37: 5545 | C37: 24 | D37: 5556 | E37: 13 | F37: 5566 | G37: 23 | H37: 5575 | I37: 13 | J37: 5588 | K37: 0 | L37: 12121 | N37: 22221 | O37: =COUNTIF($L$7:$L$500,N37) -> 0 | P37: =O37/$Q$4 -> 0 | Q37: =IF(P37=0,0,(P37*((LOG(P37))/LOG(2)))) -> 0 | T37: =N37 -> 22221 | U37: =COUNTIF(L7:L20,T37) -> 0 | V37: =U37/(W4-U25) -> 0 | W37: =IF(V37=0,0,(V37*((LOG(V37))/LOG(2)))) -> 0 | Y37: =N37 -> 22221 | Z37: =COUNTIF(L21:L35,Y37) -> 0 | AA37: =Z37/(AB4-Z25) -> 0 | AB37: =IF(AA37=0,0,(AA37*((LOG(AA37))/LOG(2)))) -> 0 | AD37: =N37 -> 22221 | AE37: =COUNTIF(L36:L49,AD37) -> 0 | AF37: =AE37/(AG4-AE25) -> 0 | AG37: =IF(AF37=0,0,(AF37*((LOG(AF37))/LOG(2)))) -> 0 | AI37: =N37 -> 22221 | AJ37: =COUNTIF(L50:L63,AI37) -> 0 | AK37: =AJ37/(AL4-AJ25) -> 0 | AL37: =IF(AK37=0,0,(AK37*((LOG(AK37))/LOG(2)))) -> 0 | AN37: =N37 -> 22221 | AO37: =COUNTIF(L64:L78,AN37) -> 0 | AP37: =AO37/(AQ4-AO25) -> 0 | AQ37: =IF(AP37=0,0,(AP37*((LOG(AP37))/LOG(2)))) -> 0 | AS37: =N37 -> 22221 | AT37: =COUNTIF(L79:L92,AS37) -> 0 | AU37: =AT37/(AV4-AT25) -> 0 | AV37: =IF(AU37=0,0,(AU37*((LOG(AU37))/LOG(2)))) -> 0
A38: 21 | B38: 5767 | C38: 11 | D38: 5780 | E38: 22 | F38: 5792 | G38: 14 | H38: 5806 | I38: 24 | J38: 5815 | K38: 0 | L38: 21212 | N38: 22222 | O38: =COUNTIF($L$7:$L$500,N38) -> 0 | P38: =O38/$Q$4 -> 0 | Q38: =IF(P38=0,0,(P38*((LOG(P38))/LOG(2)))) -> 0 | T38: =N38 -> 22222 | U38: =COUNTIF(L7:L20,T38) -> 0 | V38: =U38/(W4-U25) -> 0 | W38: =IF(V38=0,0,(V38*((LOG(V38))/LOG(2)))) -> 0 | Y38: =N38 -> 22222 | Z38: =COUNTIF(L21:L35,Y38) -> 0 | AA38: =Z38/(AB4-Z25) -> 0 | AB38: =IF(AA38=0,0,(AA38*((LOG(AA38))/LOG(2)))) -> 0 | AD38: =N38 -> 22222 | AE38: =COUNTIF(L36:L49,AD38) -> 0 | AF38: =AE38/(AG4-AE25) -> 0 | AG38: =IF(AF38=0,0,(AF38*((LOG(AF38))/LOG(2)))) -> 0 | AI38: =N38 -> 22222 | AJ38: =COUNTIF(L50:L63,AI38) -> 0 | AK38: =AJ38/(AL4-AJ25) -> 0 | AL38: =IF(AK38=0,0,(AK38*((LOG(AK38))/LOG(2)))) -> 0 | AN38: =N38 -> 22222 | AO38: =COUNTIF(L64:L78,AN38) -> 0 | AP38: =AO38/(AQ4-AO25) -> 0 | AQ38: =IF(AP38=0,0,(AP38*((LOG(AP38))/LOG(2)))) -> 0 | AS38: =N38 -> 22222 | AT38: =COUNTIF(L79:L92,AS38) -> 0 | AU38: =AT38/(AV4-AT25) -> 0 | AV38: =IF(AU38=0,0,(AU38*((LOG(AU38))/LOG(2)))) -> 0
A39: 21 | B39: 5983 | C39: 11 | D39: 5992 | E39: 22 | F39: 6001 | G39: 14 | H39: 6013 | I39: 24 | J39: 6022 | K39: 0 | L39: 21212 | P39: =SUM(P7:P38) -> 1 | Q39: =-SUM(Q7:Q38) -> 3.456673896 | V39: =SUM(V7:V38) -> 1 | W39: =-SUM(W7:W38) -> 2.645593314 | AA39: =SUM(AA7:AA38) -> 1 | AB39: =-SUM(AB7:AB38) -> 2.472905595 | AF39: =SUM(AF7:AF38) -> 1 | AG39: =-SUM(AG7:AG38) -> 1.788450457 | AK39: =SUM(AK7:AK38) -> 1 | AL39: =-SUM(AL7:AL38) -> 3.039148672 | AP39: =SUM(AP7:AP38) -> 1 | AQ39: =-SUM(AQ7:AQ38) -> 2.549255397 | AU39: =SUM(AU7:AU38) -> 1 | AV39: =-SUM(AV7:AV38) -> 3.182005815
A40: 21 | B40: 6226 | C40: 11 | D40: 6236 | E40: 22 | F40: 6245 | G40: 14 | H40: 6257 | I40: 24 | J40: 6269 | K40: 0 | L40: 21212 | P40: U= | Q40: =Q39/(LOG(Q4)/LOG(2)) -> 0.5378978346 | V40: U1= | W40: =W39/(LOG(W4)/LOG(2)) -> 0.6948638539 | AA40: U2= | AB40: =AB39/(LOG(AB4)/LOG(2)) -> 0.6329600317 | AF40: U3= | AG40: =AG39/(LOG(AG4)/LOG(2)) -> 0.469735681 | AK40: U4= | AL40: =AL39/(LOG(AL4)/LOG(2)) -> 0.7982309856 | AP40: U5= | AQ40: =AQ39/(LOG(AQ4)/LOG(2)) -> 0.6525023762 | AU40: U6= | AV40: =AV39/(LOG(AV4)/LOG(2)) -> 0.8357523477
A41: 21 | B41: 6376 | C41: 11 | D41: 6395 | E41: 22 | F41: 6404 | G41: 14 | H41: 6417 | I41: 24 | J41: 6427 | K41: 0 | L41: 21212
A42: 21 | B42: 6617 | C42: 11 | D42: 6633 | E42: 22 | F42: 6642 | G42: 14 | H42: 6654 | I42: 24 | J42: 6664 | K42: 0 | L42: 21212
A43: 21 | B43: 6835 | C43: 11 | D43: 6845 | E43: 22 | F43: 6855 | G43: 14 | H43: 6868 | I43: 13 | J43: 6892 | K43: 0 | L43: 21211 | N43: Total Target Seq
A44: 21 | B44: 7094 | C44: 11 | D44: 7106 | E44: 22 | F44: 7116 | G44: 14 | H44: 7132 | I44: 13 | J44: 7152 | K44: 0 | L44: 21211 | N44: =COUNTIF(L7:L92,G3) -> 0 | P44: 14 | Q44: 15 | R44: 14 | S44: 14 | T44: 15 | U44: 14
A45: 12 | B45: 7523 | C45: 24 | D45: 7533 | E45: 13 | F45: 7553 | G45: 23 | H45: 7565 | I45: 13 | J45: 7589 | K45: 0 | L45: 12121 | P45: % of reinforcement given in 6 equal intervals based on number of trials
A46: 12 | B46: 7728 | C46: 24 | D46: 7737 | E46: 13 | F46: 7748 | G46: 23 | H46: 7768 | I46: 13 | J46: 7780 | K46: 0 | L46: 12121 | P46: %_1 | Q46: %_2 | R46: %_3 | S46: %_4 | T46: %_5 | U46: %_6
A47: 12 | B47: 8514 | C47: 24 | D47: 8523 | E47: 13 | F47: 8550 | G47: 23 | H47: 8562 | I47: 13 | J47: 8610 | K47: 0 | L47: 12121 | O47: target sequence | P47: =$G$3 -> 21121 | Q47: =$G$3 -> 21121 | R47: =$G$3 -> 21121 | S47: =$G$3 -> 21121 | T47: =$G$3 -> 21121 | U47: =$G$3 -> 21121
A48: 21 | B48: 8758 | C48: 22 | D48: 8766 | E48: 13 | F48: 8783 | G48: 14 | H48: 8803 | I48: 24 | J48: 8816 | K48: 0 | L48: 22112 | O48: total reinforcement | P48: =U25 -> 0 | Q48: =Z25 -> 0 | R48: =AE25 -> 0 | S48: =AJ25 -> 0 | T48: =AO25 -> 0 | U48: =AT25 -> 0
A49: 21 | B49: 9013 | C49: 11 | D49: 9036 | E49: 22 | F49: 9059 | G49: 14 | H49: 9073 | I49: 24 | J49: 9082 | K49: 0 | L49: 21212 | O49: % target
A50: 12 | B50: 9467 | C50: 24 | D50: 9479 | E50: 13 | F50: 9497 | G50: 14 | H50: 9507 | I50: 24 | J50: 9519 | K50: 0 | L50: 12112 | O50: CCRF
A51: 21 | B51: 9635 | C51: 11 | D51: 9650 | E51: 22 | F51: 9660 | G51: 14 | H51: 9674 | I51: 24 | J51: 9683 | K51: 0 | L51: 21212 | O51: % CCRf
A52: 12 | B52: 9940 | C52: 24 | D52: 9952 | E52: 13 | F52: 9965 | G52: 23 | H52: 9975 | I52: 13 | J52: 9990 | K52: 0 | L52: 12121 | O52: average response rate | P52: =J20/P44 -> 178.2142857 | Q52: =(J35-J20)/Q44 -> 182.7333333 | R52: =(J49-J35)/R44 -> 274.7142857 | S52: =(J63-J49)/S44 -> 295.6428571 | T52: =(J78-J63)/T44 -> 283.1333333 | U52: =(J92-J78)/U44 -> 464.7142857
A53: 21 | B53: 10330 | C53: 11 | D53: 10343 | E53: 22 | F53: 10357 | G53: 14 | H53: 10374 | I53: 24 | J53: 10387 | K53: 0 | L53: 21212
A54: 12 | B54: 10707 | C54: 24 | D54: 10720 | E54: 13 | F54: 10739 | G54: 14 | H54: 10756 | I54: 24 | J54: 10765 | K54: 0 | L54: 12112
A55: 21 | B55: 10895 | C55: 22 | D55: 10920 | E55: 13 | F55: 10935 | G55: 23 | H55: 10948 | I55: 13 | J55: 10963 | K55: 0 | L55: 22121
A56: 21 | B56: 11223 | C56: 11 | D56: 11236 | E56: 22 | F56: 11247 | G56: 23 | H56: 11257 | I56: 13 | J56: 11272 | K56: 0 | L56: 21221
A57: 12 | B57: 11450 | C57: 24 | D57: 11459 | E57: 13 | F57: 11469 | G57: 23 | H57: 11479 | I57: 24 | J57: 11492 | K57: 0 | L57: 12122
A58: 21 | B58: 11715 | C58: 11 | D58: 11730 | E58: 11 | F58: 11752 | G58: 21 | H58: 11765 | I58: 22 | J58: 11774 | K58: 0 | L58: 21122
A59: 12 | B59: 12002 | C59: 24 | D59: 12015 | E59: 13 | F59: 12027 | G59: 14 | H59: 12078 | I59: 13 | J59: 12109 | K59: 0 | L59: 12111
A60: 21 | B60: 12270 | C60: 22 | D60: 12314 | E60: 13 | F60: 12326 | G60: 23 | H60: 12335 | I60: 13 | J60: 12362 | K60: 0 | L60: 22121
A61: 12 | B61: 12744 | C61: 13 | D61: 12751 | E61: 13 | F61: 12763 | G61: 23 | H61: 12776 | I61: 13 | J61: 12823 | K61: 0 | L61: 11121
A62: 12 | B62: 12964 | C62: 24 | D62: 12973 | E62: 13 | F62: 12982 | G62: 23 | H62: 12994 | I62: 13 | J62: 13005 | K62: 0 | L62: 12121
A63: 21 | B63: 13163 | C63: 11 | D63: 13175 | E63: 22 | F63: 13185 | G63: 14 | H63: 13199 | I63: 24 | J63: 13221 | K63: 0 | L63: 21212
A64: 12 | B64: 13363 | C64: 13 | D64: 13368 | E64: 24 | F64: 13380 | G64: 14 | H64: 13403 | I64: 24 | J64: 13434 | K64: 0 | L64: 11212
A65: 12 | B65: 13555 | C65: 24 | D65: 13564 | E65: 13 | F65: 13578 | G65: 14 | H65: 13583 | I65: 24 | J65: 13595 | K65: 0 | L65: 12112
A66: 12 | B66: 14057 | C66: 24 | D66: 14067 | E66: 13 | F66: 14076 | G66: 14 | H66: 14103 | I66: 13 | J66: 14140 | K66: 0 | L66: 12111
A67: 21 | B67: 14336 | C67: 11 | D67: 14348 | E67: 11 | F67: 14370 | G67: 21 | H67: 14379 | I67: 22 | J67: 14390 | K67: 0 | L67: 21122
A68: 12 | B68: 14514 | C68: 24 | D68: 14523 | E68: 13 | F68: 14532 | G68: 23 | H68: 14543 | I68: 13 | J68: 14552 | K68: 0 | L68: 12121
A69: 21 | B69: 14757 | C69: 11 | D69: 14769 | E69: 22 | F69: 14779 | G69: 23 | H69: 14807 | I69: 13 | J69: 14817 | K69: 0 | L69: 21221
A70: 21 | B70: 14931 | C70: 11 | D70: 14943 | E70: 22 | F70: 14951 | G70: 14 | H70: 14965 | I70: 24 | J70: 14974 | K70: 0 | L70: 21212
A71: 12 | B71: 15154 | C71: 24 | D71: 15166 | E71: 13 | F71: 15178 | G71: 23 | H71: 15188 | I71: 13 | J71: 15205 | K71: 0 | L71: 12121
A72: 12 | B72: 15389 | C72: 24 | D72: 15399 | E72: 13 | F72: 15410 | G72: 23 | H72: 15420 | I72: 13 | J72: 15442 | K72: 0 | L72: 12121
A73: 21 | B73: 15657 | C73: 11 | D73: 15669 | E73: 22 | F73: 15681 | G73: 23 | H73: 15703 | I73: 13 | J73: 15723 | K73: 0 | L73: 21221
A74: 12 | B74: 16121 | C74: 24 | D74: 16132 | E74: 13 | F74: 16145 | G74: 23 | H74: 16158 | I74: 13 | J74: 16173 | K74: 0 | L74: 12121
A75: 21 | B75: 16338 | C75: 11 | D75: 16349 | E75: 22 | F75: 16504 | G75: 14 | H75: 16516 | I75: 24 | J75: 16526 | K75: 0 | L75: 21212
A76: 21 | B76: 16757 | C76: 11 | D76: 16776 | E76: 22 | F76: 16791 | G76: 14 | H76: 16802 | I76: 24 | J76: 16814 | K76: 0 | L76: 21212
A77: 12 | B77: 16942 | C77: 13 | D77: 16951 | E77: 24 | F77: 16963 | G77: 14 | H77: 16972 | I77: 24 | J77: 16984 | K77: 0 | L77: 11212
A78: 12 | B78: 17388 | C78: 24 | D78: 17403 | E78: 13 | F78: 17439 | G78: 23 | H78: 17455 | I78: 13 | J78: 17468 | K78: 0 | L78: 12121
A79: 21 | B79: 17872 | C79: 11 | D79: 17884 | E79: 22 | F79: 17895 | G79: 14 | H79: 17909 | I79: 13 | J79: 17991 | K79: 0 | L79: 21211
A80: 12 | B80: 18105 | C80: 24 | D80: 18115 | E80: 13 | F80: 18130 | G80: 23 | H80: 18140 | I80: 13 | J80: 18153 | K80: 0 | L80: 12121
A81: 12 | B81: 18402 | C81: 24 | D81: 18414 | E81: 13 | F81: 18425 | G81: 14 | H81: 18444 | I81: 24 | J81: 18454 | K81: 0 | L81: 12112
A82: 12 | B82: 18798 | C82: 24 | D82: 18810 | E82: 13 | F82: 18824 | G82: 23 | H82: 18836 | I82: 13 | J82: 18852 | K82: 0 | L82: 12121
A83: 21 | B83: 19520 | C83: 11 | D83: 19534 | E83: 22 | F83: 19547 | G83: 14 | H83: 19560 | I83: 24 | J83: 19572 | K83: 0 | L83: 21212
A84: 12 | B84: 20149 | C84: 24 | D84: 20165 | E84: 24 | F84: 20190 | G84: 14 | H84: 20212 | I84: 24 | J84: 20222 | K84: 0 | L84: 12212
A85: 12 | B85: 21520 | C85: 13 | D85: 21562 | E85: 24 | F85: 21572 | G85: 14 | H85: 21584 | I85: 13 | J85: 21594 | K85: 0 | L85: 11211
A86: 12 | B86: 22024 | C86: 24 | D86: 22037 | E86: 13 | F86: 22053 | G86: 14 | H86: 22084 | I86: 24 | J86: 22097 | K86: 0 | L86: 12112
A87: 21 | B87: 22227 | C87: 11 | D87: 22236 | E87: 22 | F87: 22250 | G87: 14 | H87: 22301 | I87: 24 | J87: 22315 | K87: 0 | L87: 21212
A88: 12 | B88: 22593 | C88: 13 | D88: 22602 | E88: 24 | F88: 22614 | G88: 23 | H88: 22629 | I88: 13 | J88: 22640 | K88: 0 | L88: 11221
A89: 12 | B89: 22898 | C89: 13 | D89: 22924 | E89: 24 | F89: 22937 | G89: 23 | H89: 22970 | I89: 24 | J89: 22979 | K89: 0 | L89: 11222
A90: 12 | B90: 23279 | C90: 13 | D90: 23397 | E90: 24 | F90: 23410 | G90: 14 | H90: 23423 | I90: 24 | J90: 23437 | K90: 0 | L90: 11212
A91: 21 | B91: 23622 | C91: 11 | D91: 23632 | E91: 22 | F91: 23646 | G91: 14 | H91: 23656 | I91: 24 | J91: 23669 | K91: 0 | L91: 21212
A92: 12 | B92: 23922 | C92: 13 | D92: 23934 | E92: 13 | F92: 23943 | G92: 23 | H92: 23959 | I92: 13 | J92: 23974 | L92: 11121

Sheet !N124840.091
A1: Report for:!N124840.091
A2: Date: | B2: <date>
A3: Hen: | B3: <hen> | F3: Correct Sequence | G3: =Start!J2 -> 21121 | P3: Total Sequences in Data | Q3: =4994-COUNTBLANK(L7:L5000) -> 152 | V3: Total Sequences in Block Data | W3: =COUNTA(L7:L31) -> 25 | AA3: Total Sequences in Block Data | AB3: =COUNTA(L32:L57) -> 26 | AF3: Total Sequences in Block Data | AG3: =COUNTA(L58:L82) -> 25 | AK3: Total Sequences in Block Data | AL3: =COUNTA(L83:L107) -> 25 | AP3: Total Sequences in Block Data | AQ3: =COUNTA(L108:L133) -> 26 | AU3: Total Sequences in Block Data | AV3: =COUNTA(L134:L158) -> 25
P4: Total Sequences in Summary | Q4: =SUM(O7:O38) -> 151 | V4: Total Sequences in Block Summary | W4: =SUM(U7:U38) -> 25 | AA4: Total Sequences in Block Summary | AB4: =SUM(Z7:Z38) -> 26 | AF4: Total Sequences in Block Summary | AG4: =SUM(AE7:AE38) -> 25 | AK4: Total Sequences in Block Summary | AL4: =SUM(AJ7:AJ38) -> 25 | AP4: Total Sequences in Block Summary | AQ4: =SUM(AO7:AO38) -> 26 | AU4: Total Sequences in Block Summary | AV4: =SUM(AT7:AT38) -> 24
T5: Block 1 | Y5: Block 2 | AD5: Block 3 | AI5: Block 4 | AN5: Block 5 | AS5: Block 6
A6: Sequence Component 1 | B6: Time 1 | C6: Sequence Component 2 | D6: Time 2 | E6: Sequence Component 3 | F6: Time 3 | G6: Sequence Component 4 | H6: Time 4 | I6: Sequence Component 5 | J6: Time 5 | K6: Correct? 0=No 1=Yes | L6: Sequence | N6: Frequency | P6: Relative Frequency | Q6: Variability | T6: Frequency | V6: Relative Frequency | W6: Variability | Y6: Frequency | AA6: Relative Frequency | AB6: Variability | AD6: Frequency | AF6: Relative Frequency | AG6: Variability | AI6: Frequency | AK6: Relative Frequency | AL6: Variability | AN6: Frequency | AP6: Relative Frequency | AQ6: Variability | AS6: Frequency | AU6: Relative Frequency | AV6: Variability
A7: 12 | B7: 10 | C7: 24 | D7: 22 | E7: 24 | F7: 51 | G7: 23 | H7: 79 | I7: 13 | J7: 93 | K7: 1 | L7: 12221 | N7: 11111 | O7: =COUNTIF($L$7:$L$500,N7) -> 3 | P7: =O7/$Q$4 -> 0.01986754967 | Q7: =IF(P7=0,0,(P7*((LOG(P7))/LOG(2)))) -> -0.1123200445 | T7: =N7 -> 11111 | U7: =COUNTIF(L7:L31,T7) -> 0 | V7: =U7/(W4-U25) -> 0 | W7: =IF(V7=0,0,(V7*((LOG(V7))/LOG(2)))) -> 0 | Y7: =N7 -> 11111 | Z7: =COUNTIF(L32:L57,Y7) -> 1 | AA7: =Z7/(AB4-Z25) -> 0.04166666667 | AB7: =IF(AA7=0,0,(AA7*((LOG(AA7))/LOG(2)))) -> -0.1910401042 | AD7: =N7 -> 11111 | AE7: =COUNTIF(L58:L82,AD7) -> 0 | AF7: =AE7/(AG4-AE25) -> 0 | AG7: =IF(AF7=0,0,(AF7*((LOG(AF7))/LOG(2)))) -> 0 | AI7: =N7 -> 11111 | AJ7: =COUNTIF(L83:L107,AI7) -> 0 | AK7: =AJ7/(AL4-AJ25) -> 0 | AL7: =IF(AK7=0,0,(AK7*((LOG(AK7))/LOG(2)))) -> 0 | AN7: =N7 -> 11111 | AO7: =COUNTIF(L108:L133,AN7) -> 0 | AP7: =AO7/(AQ4-AO25) -> 0 | AQ7: =IF(AP7=0,0,(AP7*((LOG(AP7))/LOG(2)))) -> 0 | AS7: =N7 -> 11111 | AT7: =COUNTIF(L134:L158,AS7) -> 2 | AU7: =AT7/(AV4-AT25) -> 0.08333333333 | AV7: =IF(AU7=0,0,(AU7*((LOG(AU7))/LOG(2)))) -> -0.2987468751
A8: 12 | B8: 185 | C8: 24 | D8: 195 | E8: 13 | F8: 204 | G8: 23 | H8: 215 | I8: 13 | J8: 228 | K8: 0 | L8: 12121 | N8: 11112 | O8: =COUNTIF($L$7:$L$500,N8) -> 4 | P8: =O8/$Q$4 -> 0.02649006623 | Q8: =IF(P8=0,0,(P8*((LOG(P8))/LOG(2)))) -> -0.1387656885 | T8: =N8 -> 11112 | U8: =COUNTIF(L7:L31,T8) -> 0 | V8: =U8/(W4-U25) -> 0 | W8: =IF(V8=0,0,(V8*((LOG(V8))/LOG(2)))) -> 0 | Y8: =N8 -> 11112 | Z8: =COUNTIF(L32:L57,Y8) -> 1 | AA8: =Z8/(AB4-Z25) -> 0.04166666667 | AB8: =IF(AA8=0,0,(AA8*((LOG(AA8))/LOG(2)))) -> -0.1910401042 | AD8: =N8 -> 11112 | AE8: =COUNTIF(L58:L82,AD8) -> 0 | AF8: =AE8/(AG4-AE25) -> 0 | AG8: =IF(AF8=0,0,(AF8*((LOG(AF8))/LOG(2)))) -> 0 | AI8: =N8 -> 11112 | AJ8: =COUNTIF(L83:L107,AI8) -> 1 | AK8: =AJ8/(AL4-AJ25) -> 0.04347826087 | AL8: =IF(AK8=0,0,(AK8*((LOG(AK8))/LOG(2)))) -> -0.1966766068 | AN8: =N8 -> 11112 | AO8: =COUNTIF(L108:L133,AN8) -> 0 | AP8: =AO8/(AQ4-AO25) -> 0 | AQ8: =IF(AP8=0,0,(AP8*((LOG(AP8))/LOG(2)))) -> 0 | AS8: =N8 -> 11112 | AT8: =COUNTIF(L134:L158,AS8) -> 2 | AU8: =AT8/(AV4-AT25) -> 0.08333333333 | AV8: =IF(AU8=0,0,(AU8*((LOG(AU8))/LOG(2)))) -> -0.2987468751
A9: 12 | B9: 328 | C9: 24 | D9: 348 | E9: 24 | F9: 358 | G9: 14 | H9: 368 | I9: 24 | J9: 381 | K9: 0 | L9: 12212 | N9: 11121 | O9: =COUNTIF($L$7:$L$500,N9) -> 7 | P9: =O9/$Q$4 -> 0.04635761589 | Q9: =IF(P9=0,0,(P9*((LOG(P9))/LOG(2)))) -> -0.2054129054 | T9: =N9 -> 11121 | U9: =COUNTIF(L7:L31,T9) -> 1 | V9: =U9/(W4-U25) -> 0.04166666667 | W9: =IF(V9=0,0,(V9*((LOG(V9))/LOG(2)))) -> -0.1910401042 | Y9: =N9 -> 11121 | Z9: =COUNTIF(L32:L57,Y9) -> 2 | AA9: =Z9/(AB4-Z25) -> 0.08333333333 | AB9: =IF(AA9=0,0,(AA9*((LOG(AA9))/LOG(2)))) -> -0.2987468751 | AD9: =N9 -> 11121 | AE9: =COUNTIF(L58:L82,AD9) -> 2 | AF9: =AE9/(AG4-AE25) -> 0.08333333333 | AG9: =IF(AF9=0,0,(AF9*((LOG(AF9))/LOG(2)))) -> -0.2987468751 | AI9: =N9 -> 11121 | AJ9: =COUNTIF(L83:L107,AI9) -> 2 | AK9: =AJ9/(AL4-AJ25) -> 0.08695652174 | AL9: =IF(AK9=0,0,(AK9*((LOG(AK9))/LOG(2)))) -> -0.3063966918 | AN9: =N9 -> 11121 | AO9: =COUNTIF(L108:L133,AN9) -> 0 | AP9: =AO9/(AQ4-AO25) -> 0 | AQ9: =IF(AP9=0,0,(AP9*((LOG(AP9))/LOG(2)))) -> 0 | AS9: =N9 -> 11121 | AT9: =COUNTIF(L134:L158,AS9) -> 0 | AU9: =AT9/(AV4-AT25) -> 0 | AV9: =IF(AU9=0,0,(AU9*((LOG(AU9))/LOG(2)))) -> 0
A10: 12 | B10: 479 | C10: 24 | D10: 496 | E10: 13 | F10: 505 | G10: 23 | H10: 518 | I10: 13 | J10: 528 | K10: 0 | L10: 12121 | N10: 11122 | O10: =COUNTIF($L$7:$L$500,N10) -> 1 | P10: =O10/$Q$4 -> 0.006622516556 | Q10: =IF(P10=0,0,(P10*((LOG(P10))/LOG(2)))) -> -0.04793645523 | T10: =N10 -> 11122 | U10: =COUNTIF(L7:L31,T10) -> 0 | V10: =U10/(W4-U25) -> 0 | W10: =IF(V10=0,0,(V10*((LOG(V10))/LOG(2)))) -> 0 | Y10: =N10 -> 11122 | Z10: =COUNTIF(L32:L57,Y10) -> 0 | AA10: =Z10/(AB4-Z25) -> 0 | AB10: =IF(AA10=0,0,(AA10*((LOG(AA10))/LOG(2)))) -> 0 | AD10: =N10 -> 11122 | AE10: =COUNTIF(L58:L82,AD10) -> 1 | AF10: =AE10/(AG4-AE25) -> 0.04166666667 | AG10: =IF(AF10=0,0,(AF10*((LOG(AF10))/LOG(2)))) -> -0.1910401042 | AI10: =N10 -> 11122 | AJ10: =COUNTIF(L83:L107,AI10) -> 0 | AK10: =AJ10/(AL4-AJ25) -> 0 | AL10: =IF(AK10=0,0,(AK10*((LOG(AK10))/LOG(2)))) -> 0 | AN10: =N10 -> 11122 | AO10: =COUNTIF(L108:L133,AN10) -> 0 | AP10: =AO10/(AQ4-AO25) -> 0 | AQ10: =IF(AP10=0,0,(AP10*((LOG(AP10))/LOG(2)))) -> 0 | AS10: =N10 -> 11122 | AT10: =COUNTIF(L134:L158,AS10) -> 0 | AU10: =AT10/(AV4-AT25) -> 0 | AV10: =IF(AU10=0,0,(AU10*((LOG(AU10))/LOG(2)))) -> 0
A11: 12 | B11: 630 | C11: 24 | D11: 643 | E11: 13 | F11: 657 | G11: 23 | H11: 669 | I11: 24 | J11: 682 | K11: 0 | L11: 12122 | N11: 11211 | O11: =COUNTIF($L$7:$L$500,N11) -> 5 | P11: =O11/$Q$4 -> 0.03311258278 | Q11: =IF(P11=0,0,(P11*((LOG(P11))/LOG(2)))) -> -0.1627972399 | T11: =N11 -> 11211 | U11: =COUNTIF(L7:L31,T11) -> 0 | V11: =U11/(W4-U25) -> 0 | W11: =IF(V11=0,0,(V11*((LOG(V11))/LOG(2)))) -> 0 | Y11: =N11 -> 11211 | Z11: =COUNTIF(L32:L57,Y11) -> 0 | AA11: =Z11/(AB4-Z25) -> 0 | AB11: =IF(AA11=0,0,(AA11*((LOG(AA11))/LOG(2)))) -> 0 | AD11: =N11 -> 11211 | AE11: =COUNTIF(L58:L82,AD11) -> 2 | AF11: =AE11/(AG4-AE25) -> 0.08333333333 | AG11: =IF(AF11=0,0,(AF11*((LOG(AF11))/LOG(2)))) -> -0.2987468751 | AI11: =N11 -> 11211 | AJ11: =COUNTIF(L83:L107,AI11) -> 0 | AK11: =AJ11/(AL4-AJ25) -> 0 | AL11: =IF(AK11=0,0,(AK11*((LOG(AK11))/LOG(2)))) -> 0 | AN11: =N11 -> 11211 | AO11: =COUNTIF(L108:L133,AN11) -> 2 | AP11: =AO11/(AQ4-AO25) -> 0.08 | AQ11: =IF(AP11=0,0,(AP11*((LOG(AP11))/LOG(2)))) -> -0.2915084952 | AS11: =N11 -> 11211 | AT11: =COUNTIF(L134:L158,AS11) -> 1 | AU11: =AT11/(AV4-AT25) -> 0.04166666667 | AV11: =IF(AU11=0,0,(AU11*((LOG(AU11))/LOG(2)))) -> -0.1910401042
A12: 12 | B12: 786 | C12: 13 | D12: 802 | E12: 24 | F12: 812 | G12: 23 | H12: 832 | I12: 13 | J12: 846 | K12: 0 | L12: 11221 | N12: 11212 | O12: =COUNTIF($L$7:$L$500,N12) -> 24 | P12: =O12/$Q$4 -> 0.1589403974 | Q12: =IF(P12=0,0,(P12*((LOG(P12))/LOG(2)))) -> -0.4217391638 | T12: =N12 -> 11212 | U12: =COUNTIF(L7:L31,T12) -> 4 | V12: =U12/(W4-U25) -> 0.1666666667 | W12: =IF(V12=0,0,(V12*((LOG(V12))/LOG(2)))) -> -0.4308270835 | Y12: =N12 -> 11212 | Z12: =COUNTIF(L32:L57,Y12) -> 6 | AA12: =Z12/(AB4-Z25) -> 0.25 | AB12: =IF(AA12=0,0,(AA12*((LOG(AA12))/LOG(2)))) -> -0.5 | AD12: =N12 -> 11212 | AE12: =COUNTIF(L58:L82,AD12) -> 4 | AF12: =AE12/(AG4-AE25) -> 0.1666666667 | AG12: =IF(AF12=0,0,(AF12*((LOG(AF12))/LOG(2)))) -> -0.4308270835 | AI12: =N12 -> 11212 | AJ12: =COUNTIF(L83:L107,AI12) -> 5 | AK12: =AJ12/(AL4-AJ25) -> 0.2173913043 | AL12: =IF(AK12=0,0,(AK12*((LOG(AK12))/LOG(2)))) -> -0.4786160568 | AN12: =N12 -> 11212 | AO12: =COUNTIF(L108:L133,AN12) -> 4 | AP12: =AO12/(AQ4-AO25) -> 0.16 | AQ12: =IF(AP12=0,0,(AP12*((LOG(AP12))/LOG(2)))) -> -0.4230169904 | AS12: =N12 -> 11212 | AT12: =COUNTIF(L134:L158,AS12) -> 1 | AU12: =AT12/(AV4-AT25) -> 0.04166666667 | AV12: =IF(AU12=0,0,(AU12*((LOG(AU12))/LOG(2)))) -> -0.1910401042
A13: 12 | B13: 944 | C13: 13 | D13: 946 | E13: 24 | F13: 969 | G13: 14 | H13: 980 | I13: 24 | J13: 1004 | K13: 0 | L13: 11212 | N13: 11221 | O13: =COUNTIF($L$7:$L$500,N13) -> 4 | P13: =O13/$Q$4 -> 0.02649006623 | Q13: =IF(P13=0,0,(P13*((LOG(P13))/LOG(2)))) -> -0.1387656885 | T13: =N13 -> 11221 | U13: =COUNTIF(L7:L31,T13) -> 1 | V13: =U13/(W4-U25) -> 0.04166666667 | W13: =IF(V13=0,0,(V13*((LOG(V13))/LOG(2)))) -> -0.1910401042 | Y13: =N13 -> 11221 | Z13: =COUNTIF(L32:L57,Y13) -> 2 | AA13: =Z13/(AB4-Z25) -> 0.08333333333 | AB13: =IF(AA13=0,0,(AA13*((LOG(AA13))/LOG(2)))) -> -0.2987468751 | AD13: =N13 -> 11221 | AE13: =COUNTIF(L58:L82,AD13) -> 0 | AF13: =AE13/(AG4-AE25) -> 0 | AG13: =IF(AF13=0,0,(AF13*((LOG(AF13))/LOG(2)))) -> 0 | AI13: =N13 -> 11221 | AJ13: =COUNTIF(L83:L107,AI13) -> 0 | AK13: =AJ13/(AL4-AJ25) -> 0 | AL13: =IF(AK13=0,0,(AK13*((LOG(AK13))/LOG(2)))) -> 0 | AN13: =N13 -> 11221 | AO13: =COUNTIF(L108:L133,AN13) -> 1 | AP13: =AO13/(AQ4-AO25) -> 0.04 | AQ13: =IF(AP13=0,0,(AP13*((LOG(AP13))/LOG(2)))) -> -0.1857542476 | AS13: =N13 -> 11221 | AT13: =COUNTIF(L134:L158,AS13) -> 0 | AU13: =AT13/(AV4-AT25) -> 0 | AV13: =IF(AU13=0,0,(AU13*((LOG(AU13))/LOG(2)))) -> 0
A14: 12 | B14: 1110 | C14: 24 | D14: 1119 | E14: 13 | F14: 1130 | G14: 23 | H14: 1140 | I14: 24 | J14: 1155 | K14: 0 | L14: 12122 | N14: 11222 | O14: =COUNTIF($L$7:$L$500,N14) -> 2 | P14: =O14/$Q$4 -> 0.01324503311 | Q14: =IF(P14=0,0,(P14*((LOG(P14))/LOG(2)))) -> -0.08262787734 | T14: =N14 -> 11222 | U14: =COUNTIF(L7:L31,T14) -> 0 | V14: =U14/(W4-U25) -> 0 | W14: =IF(V14=0,0,(V14*((LOG(V14))/LOG(2)))) -> 0 | Y14: =N14 -> 11222 | Z14: =COUNTIF(L32:L57,Y14) -> 0 | AA14: =Z14/(AB4-Z25) -> 0 | AB14: =IF(AA14=0,0,(AA14*((LOG(AA14))/LOG(2)))) -> 0 | AD14: =N14 -> 11222 | AE14: =COUNTIF(L58:L82,AD14) -> 1 | AF14: =AE14/(AG4-AE25) -> 0.04166666667 | AG14: =IF(AF14=0,0,(AF14*((LOG(AF14))/LOG(2)))) -> -0.1910401042 | AI14: =N14 -> 11222 | AJ14: =COUNTIF(L83:L107,AI14) -> 1 | AK14: =AJ14/(AL4-AJ25) -> 0.04347826087 | AL14: =IF(AK14=0,0,(AK14*((LOG(AK14))/LOG(2)))) -> -0.1966766068 | AN14: =N14 -> 11222 | AO14: =COUNTIF(L108:L133,AN14) -> 0 | AP14: =AO14/(AQ4-AO25) -> 0 | AQ14: =IF(AP14=0,0,(AP14*((LOG(AP14))/LOG(2)))) -> 0 | AS14: =N14 -> 11222 | AT14: =COUNTIF(L134:L158,AS14) -> 0 | AU14: =AT14/(AV4-AT25) -> 0 | AV14: =IF(AU14=0,0,(AU14*((LOG(AU14))/LOG(2)))) -> 0
A15: 12 | B15: 1273 | C15: 24 | D15: 1283 | E15: 13 | F15: 1295 | G15: 23 | H15: 1309 | I15: 13 | J15: 1331 | K15: 0 | L15: 12121 | N15: 12111 | O15: =COUNTIF($L$7:$L$500,N15) -> 1 | P15: =O15/$Q$4 -> 0.006622516556 | Q15: =IF(P15=0,0,(P15*((LOG(P15))/LOG(2)))) -> -0.04793645523 | T15: =N15 -> 12111 | U15: =COUNTIF(L7:L31,T15) -> 0 | V15: =U15/(W4-U25) -> 0 | W15: =IF(V15=0,0,(V15*((LOG(V15))/LOG(2)))) -> 0 | Y15: =N15 -> 12111 | Z15: =COUNTIF(L32:L57,Y15) -> 0 | AA15: =Z15/(AB4-Z25) -> 0 | AB15: =IF(AA15=0,0,(AA15*((LOG(AA15))/LOG(2)))) -> 0 | AD15: =N15 -> 12111 | AE15: =COUNTIF(L58:L82,AD15) -> 0 | AF15: =AE15/(AG4-AE25) -> 0 | AG15: =IF(AF15=0,0,(AF15*((LOG(AF15))/LOG(2)))) -> 0 | AI15: =N15 -> 12111 | AJ15: =COUNTIF(L83:L107,AI15) -> 0 | AK15: =AJ15/(AL4-AJ25) -> 0 | AL15: =IF(AK15=0,0,(AK15*((LOG(AK15))/LOG(2)))) -> 0 | AN15: =N15 -> 12111 | AO15: =COUNTIF(L108:L133,AN15) -> 0 | AP15: =AO15/(AQ4-AO25) -> 0 | AQ15: =IF(AP15=0,0,(AP15*((LOG(AP15))/LOG(2)))) -> 0 | AS15: =N15 -> 12111 | AT15: =COUNTIF(L134:L158,AS15) -> 1 | AU15: =AT15/(AV4-AT25) -> 0.04166666667 | AV15: =IF(AU15=0,0,(AU15*((LOG(AU15))/LOG(2)))) -> -0.1910401042
A16: 12 | B16: 1437 | C16: 13 | D16: 1456 | E16: 24 | F16: 1466 | G16: 14 | H16: 1481 | I16: 24 | J16: 1494 | K16: 0 | L16: 11212 | N16: 12112 | O16: =COUNTIF($L$7:$L$500,N16) -> 7 | P16: =O16/$Q$4 -> 0.04635761589 | Q16: =IF(P16=0,0,(P16*((LOG(P16))/LOG(2)))) -> -0.2054129054 | T16: =N16 -> 12112 | U16: =COUNTIF(L7:L31,T16) -> 0 | V16: =U16/(W4-U25) -> 0 | W16: =IF(V16=0,0,(V16*((LOG(V16))/LOG(2)))) -> 0 | Y16: =N16 -> 12112 | Z16: =COUNTIF(L32:L57,Y16) -> 1 | AA16: =Z16/(AB4-Z25) -> 0.04166666667 | AB16: =IF(AA16=0,0,(AA16*((LOG(AA16))/LOG(2)))) -> -0.1910401042 | AD16: =N16 -> 12112 | AE16: =COUNTIF(L58:L82,AD16) -> 0 | AF16: =AE16/(AG4-AE25) -> 0 | AG16: =IF(AF16=0,0,(AF16*((LOG(AF16))/LOG(2)))) -> 0 | AI16: =N16 -> 12112 | AJ16: =COUNTIF(L83:L107,AI16) -> 2 | AK16: =AJ16/(AL4-AJ25) -> 0.08695652174 | AL16: =IF(AK16=0,0,(AK16*((LOG(AK16))/LOG(2)))) -> -0.3063966918 | AN16: =N16 -> 12112 | AO16: =COUNTIF(L108:L133,AN16) -> 1 | AP16: =AO16/(AQ4-AO25) -> 0.04 | AQ16: =IF(AP16=0,0,(AP16*((LOG(AP16))/LOG(2)))) -> -0.1857542476 | AS16: =N16 -> 12112 | AT16: =COUNTIF(L134:L158,AS16) -> 3 | AU16: =AT16/(AV4-AT25) -> 0.125 | AV16: =IF(AU16=0,0,(AU16*((LOG(AU16))/LOG(2)))) -> -0.375
A17: 12 | B17: 1595 | C17: 13 | D17: 1613 | E17: 24 | F17: 1622 | G17: 14 | H17: 1632 | I17: 24 | J17: 1657 | K17: 0 | L17: 11212 | N17: 12121 | O17: =COUNTIF($L$7:$L$500,N17) -> 37 | P17: =O17/$Q$4 -> 0.2450331126 | Q17: =IF(P17=0,0,(P17*((LOG(P17))/LOG(2)))) -> -0.4971602704 | T17: =N17 -> 12121 | U17: =COUNTIF(L7:L31,T17) -> 8 | V17: =U17/(W4-U25) -> 0.3333333333 | W17: =IF(V17=0,0,(V17*((LOG(V17))/LOG(2)))) -> -0.5283208336 | Y17: =N17 -> 12121 | Z17: =COUNTIF(L32:L57,Y17) -> 4 | AA17: =Z17/(AB4-Z25) -> 0.1666666667 | AB17: =IF(AA17=0,0,(AA17*((LOG(AA17))/LOG(2)))) -> -0.4308270835 | AD17: =N17 -> 12121 | AE17: =COUNTIF(L58:L82,AD17) -> 4 | AF17: =AE17/(AG4-AE25) -> 0.1666666667 | AG17: =IF(AF17=0,0,(AF17*((LOG(AF17))/LOG(2)))) -> -0.4308270835 | AI17: =N17 -> 12121 | AJ17: =COUNTIF(L83:L107,AI17) -> 6 | AK17: =AJ17/(AL4-AJ25) -> 0.2608695652 | AL17: =IF(AK17=0,0,(AK17*((LOG(AK17))/LOG(2)))) -> -0.505721597 | AN17: =N17 -> 12121 | AO17: =COUNTIF(L108:L133,AN17) -> 13 | AP17: =AO17/(AQ4-AO25) -> 0.52 | AQ17: =IF(AP17=0,0,(AP17*((LOG(AP17))/LOG(2)))) -> -0.4905765652 | AS17: =N17 -> 12121 | AT17: =COUNTIF(L134:L158,AS17) -> 2 | AU17: =AT17/(AV4-AT25) -> 0.08333333333 | AV17: =IF(AU17=0,0,(AU17*((LOG(AU17))/LOG(2)))) -> -0.2987468751
A18: 21 | B18: 1777 | C18: 11 | D18: 1790 | E18: 22 | F18: 1802 | G18: 14 | H18: 1813 | I18: 24 | J18: 1825 | K18: 0 | L18: 21212 | N18: 12122 | O18: =COUNTIF($L$7:$L$500,N18) -> 13 | P18: =O18/$Q$4 -> 0.08609271523 | Q18: =IF(P18=0,0,(P18*((LOG(P18))/LOG(2)))) -> -0.3045930151 | T18: =N18 -> 12122 | U18: =COUNTIF(L7:L31,T18) -> 5 | V18: =U18/(W4-U25) -> 0.2083333333 | W18: =IF(V18=0,0,(V18*((LOG(V18))/LOG(2)))) -> -0.4714655012 | Y18: =N18 -> 12122 | Z18: =COUNTIF(L32:L57,Y18) -> 2 | AA18: =Z18/(AB4-Z25) -> 0.08333333333 | AB18: =IF(AA18=0,0,(AA18*((LOG(AA18))/LOG(2)))) -> -0.2987468751 | AD18: =N18 -> 12122 | AE18: =COUNTIF(L58:L82,AD18) -> 3 | AF18: =AE18/(AG4-AE25) -> 0.125 | AG18: =IF(AF18=0,0,(AF18*((LOG(AF18))/LOG(2)))) -> -0.375 | AI18: =N18 -> 12122 | AJ18: =COUNTIF(L83:L107,AI18) -> 1 | AK18: =AJ18/(AL4-AJ25) -> 0.04347826087 | AL18: =IF(AK18=0,0,(AK18*((LOG(AK18))/LOG(2)))) -> -0.1966766068 | AN18: =N18 -> 12122 | AO18: =COUNTIF(L108:L133,AN18) -> 1 | AP18: =AO18/(AQ4-AO25) -> 0.04 | AQ18: =IF(AP18=0,0,(AP18*((LOG(AP18))/LOG(2)))) -> -0.1857542476 | AS18: =N18 -> 12122 | AT18: =COUNTIF(L134:L158,AS18) -> 1 | AU18: =AT18/(AV4-AT25) -> 0.04166666667 | AV18: =IF(AU18=0,0,(AU18*((LOG(AU18))/LOG(2)))) -> -0.1910401042
A19: 12 | B19: 1943 | C19: 24 | D19: 1952 | E19: 13 | F19: 1960 | G19: 23 | H19: 1974 | I19: 24 | J19: 1983 | K19: 0 | L19: 12122 | N19: 12211 | O19: =COUNTIF($L$7:$L$500,N19) -> 0 | P19: =O19/$Q$4 -> 0 | Q19: =IF(P19=0,0,(P19*((LOG(P19))/LOG(2)))) -> 0 | T19: =N19 -> 12211 | U19: =COUNTIF(L7:L31,T19) -> 0 | V19: =U19/(W4-U25) -> 0 | W19: =IF(V19=0,0,(V19*((LOG(V19))/LOG(2)))) -> 0 | Y19: =N19 -> 12211 | Z19: =COUNTIF(L32:L57,Y19) -> 0 | AA19: =Z19/(AB4-Z25) -> 0 | AB19: =IF(AA19=0,0,(AA19*((LOG(AA19))/LOG(2)))) -> 0 | AD19: =N19 -> 12211 | AE19: =COUNTIF(L58:L82,AD19) -> 0 | AF19: =AE19/(AG4-AE25) -> 0 | AG19: =IF(AF19=0,0,(AF19*((LOG(AF19))/LOG(2)))) -> 0 | AI19: =N19 -> 12211 | AJ19: =COUNTIF(L83:L107,AI19) -> 0 | AK19: =AJ19/(AL4-AJ25) -> 0 | AL19: =IF(AK19=0,0,(AK19*((LOG(AK19))/LOG(2)))) -> 0 | AN19: =N19 -> 12211 | AO19: =COUNTIF(L108:L133,AN19) -> 0 | AP19: =AO19/(AQ4-AO25) -> 0 | AQ19: =IF(AP19=0,0,(AP19*((LOG(AP19))/LOG(2)))) -> 0 | AS19: =N19 -> 12211 | AT19: =COUNTIF(L134:L158,AS19) -> 0 | AU19: =AT19/(AV4-AT25) -> 0 | AV19: =IF(AU19=0,0,(AU19*((LOG(AU19))/LOG(2)))) -> 0
A20: 21 | B20: 2095 | C20: 11 | D20: 2103 | E20: 22 | F20: 2111 | G20: 14 | H20: 2123 | I20: 24 | J20: 2133 | K20: 0 | L20: 21212 | N20: 12212 | O20: =COUNTIF($L$7:$L$500,N20) -> 1 | P20: =O20/$Q$4 -> 0.006622516556 | Q20: =IF(P20=0,0,(P20*((LOG(P20))/LOG(2)))) -> -0.04793645523 | T20: =N20 -> 12212 | U20: =COUNTIF(L7:L31,T20) -> 1 | V20: =U20/(W4-U25) -> 0.04166666667 | W20: =IF(V20=0,0,(V20*((LOG(V20))/LOG(2)))) -> -0.1910401042 | Y20: =N20 -> 12212 | Z20: =COUNTIF(L32:L57,Y20) -> 0 | AA20: =Z20/(AB4-Z25) -> 0 | AB20: =IF(AA20=0,0,(AA20*((LOG(AA20))/LOG(2)))) -> 0 | AD20: =N20 -> 12212 | AE20: =COUNTIF(L58:L82,AD20) -> 0 | AF20: =AE20/(AG4-AE25) -> 0 | AG20: =IF(AF20=0,0,(AF20*((LOG(AF20))/LOG(2)))) -> 0 | AI20: =N20 -> 12212 | AJ20: =COUNTIF(L83:L107,AI20) -> 0 | AK20: =AJ20/(AL4-AJ25) -> 0 | AL20: =IF(AK20=0,0,(AK20*((LOG(AK20))/LOG(2)))) -> 0 | AN20: =N20 -> 12212 | AO20: =COUNTIF(L108:L133,AN20) -> 0 | AP20: =AO20/(AQ4-AO25) -> 0 | AQ20: =IF(AP20=0,0,(AP20*((LOG(AP20))/LOG(2)))) -> 0 | AS20: =N20 -> 12212 | AT20: =COUNTIF(L134:L158,AS20) -> 0 | AU20: =AT20/(AV4-AT25) -> 0 | AV20: =IF(AU20=0,0,(AU20*((LOG(AU20))/LOG(2)))) -> 0
A21: 12 | B21: 2284 | C21: 24 | D21: 2292 | E21: 13 | F21: 2301 | G21: 23 | H21: 2314 | I21: 13 | J21: 2329 | K21: 0 | L21: 12121 | N21: 12221 | O21: =COUNTIF($L$7:$L$500,N21) -> 1 | P21: =O21/$Q$4 -> 0.006622516556 | Q21: =IF(P21=0,0,(P21*((LOG(P21))/LOG(2)))) -> -0.04793645523 | T21: =N21 -> 12221 | U21: =COUNTIF(L7:L31,T21) -> 1 | V21: =U21/(W4-U25) -> 0.04166666667 | W21: =IF(V21=0,0,(V21*((LOG(V21))/LOG(2)))) -> -0.1910401042 | Y21: =N21 -> 12221 | Z21: =COUNTIF(L32:L57,Y21) -> 0 | AA21: =Z21/(AB4-Z25) -> 0 | AB21: =IF(AA21=0,0,(AA21*((LOG(AA21))/LOG(2)))) -> 0 | AD21: =N21 -> 12221 | AE21: =COUNTIF(L58:L82,AD21) -> 0 | AF21: =AE21/(AG4-AE25) -> 0 | AG21: =IF(AF21=0,0,(AF21*((LOG(AF21))/LOG(2)))) -> 0 | AI21: =N21 -> 12221 | AJ21: =COUNTIF(L83:L107,AI21) -> 0 | AK21: =AJ21/(AL4-AJ25) -> 0 | AL21: =IF(AK21=0,0,(AK21*((LOG(AK21))/LOG(2)))) -> 0 | AN21: =N21 -> 12221 | AO21: =COUNTIF(L108:L133,AN21) -> 0 | AP21: =AO21/(AQ4-AO25) -> 0 | AQ21: =IF(AP21=0,0,(AP21*((LOG(AP21))/LOG(2)))) -> 0 | AS21: =N21 -> 12221 | AT21: =COUNTIF(L134:L158,AS21) -> 0 | AU21: =AT21/(AV4-AT25) -> 0 | AV21: =IF(AU21=0,0,(AU21*((LOG(AU21))/LOG(2)))) -> 0
A22: 12 | B22: 2468 | C22: 24 | D22: 2477 | E22: 13 | F22: 2489 | G22: 23 | H22: 2502 | I22: 13 | J22: 2519 | K22: 0 | L22: 12121 | N22: 12222 | O22: =COUNTIF($L$7:$L$500,N22) -> 0 | P22: =O22/$Q$4 -> 0 | Q22: =IF(P22=0,0,(P22*((LOG(P22))/LOG(2)))) -> 0 | T22: =N22 -> 12222 | U22: =COUNTIF(L7:L31,T22) -> 0 | V22: =U22/(W4-U25) -> 0 | W22: =IF(V22=0,0,(V22*((LOG(V22))/LOG(2)))) -> 0 | Y22: =N22 -> 12222 | Z22: =COUNTIF(L32:L57,Y22) -> 0 | AA22: =Z22/(AB4-Z25) -> 0 | AB22: =IF(AA22=0,0,(AA22*((LOG(AA22))/LOG(2)))) -> 0 | AD22: =N22 -> 12222 | AE22: =COUNTIF(L58:L82,AD22) -> 0 | AF22: =AE22/(AG4-AE25) -> 0 | AG22: =IF(AF22=0,0,(AF22*((LOG(AF22))/LOG(2)))) -> 0 | AI22: =N22 -> 12222 | AJ22: =COUNTIF(L83:L107,AI22) -> 0 | AK22: =AJ22/(AL4-AJ25) -> 0 | AL22: =IF(AK22=0,0,(AK22*((LOG(AK22))/LOG(2)))) -> 0 | AN22: =N22 -> 12222 | AO22: =COUNTIF(L108:L133,AN22) -> 0 | AP22: =AO22/(AQ4-AO25) -> 0 | AQ22: =IF(AP22=0,0,(AP22*((LOG(AP22))/LOG(2)))) -> 0 | AS22: =N22 -> 12222 | AT22: =COUNTIF(L134:L158,AS22) -> 0 | AU22: =AT22/(AV4-AT25) -> 0 | AV22: =IF(AU22=0,0,(AU22*((LOG(AU22))/LOG(2)))) -> 0
A23: 21 | B23: 2648 | C23: 11 | D23: 2657 | E23: 11 | F23: 2662 | G23: 21 | H23: 2671 | I23: 11 | J23: 2683 | K23: 1 | L23: 21121 | N23: 21111 | O23: =COUNTIF($L$7:$L$500,N23) -> 0 | P23: =O23/$Q$4 -> 0 | Q23: =IF(P23=0,0,(P23*((LOG(P23))/LOG(2)))) -> 0 | T23: =N23 -> 21111 | U23: =COUNTIF(L7:L31,T23) -> 0 | V23: =U23/(W4-U25) -> 0 | W23: =IF(V23=0,0,(V23*((LOG(V23))/LOG(2)))) -> 0 | Y23: =N23 -> 21111 | Z23: =COUNTIF(L32:L57,Y23) -> 0 | AA23: =Z23/(AB4-Z25) -> 0 | AB23: =IF(AA23=0,0,(AA23*((LOG(AA23))/LOG(2)))) -> 0 | AD23: =N23 -> 21111 | AE23: =COUNTIF(L58:L82,AD23) -> 0 | AF23: =AE23/(AG4-AE25) -> 0 | AG23: =IF(AF23=0,0,(AF23*((LOG(AF23))/LOG(2)))) -> 0 | AI23: =N23 -> 21111 | AJ23: =COUNTIF(L83:L107,AI23) -> 0 | AK23: =AJ23/(AL4-AJ25) -> 0 | AL23: =IF(AK23=0,0,(AK23*((LOG(AK23))/LOG(2)))) -> 0 | AN23: =N23 -> 21111 | AO23: =COUNTIF(L108:L133,AN23) -> 0 | AP23: =AO23/(AQ4-AO25) -> 0 | AQ23: =IF(AP23=0,0,(AP23*((LOG(AP23))/LOG(2)))) -> 0 | AS23: =N23 -> 21111 | AT23: =COUNTIF(L134:L158,AS23) -> 0 | AU23: =AT23/(AV4-AT25) -> 0 | AV23: =IF(AU23=0,0,(AU23*((LOG(AU23))/LOG(2)))) -> 0
A24: 12 | B24: 2779 | C24: 24 | D24: 2789 | E24: 13 | F24: 2798 | G24: 23 | H24: 2808 | I24: 13 | J24: 2822 | K24: 0 | L24: 12121 | N24: 21112 | O24: =COUNTIF($L$7:$L$500,N24) -> 7 | P24: =O24/$Q$4 -> 0.04635761589 | Q24: =IF(P24=0,0,(P24*((LOG(P24))/LOG(2)))) -> -0.2054129054 | T24: =N24 -> 21112 | U24: =COUNTIF(L7:L31,T24) -> 0 | V24: =U24/(W4-U25) -> 0 | W24: =IF(V24=0,0,(V24*((LOG(V24))/LOG(2)))) -> 0 | Y24: =N24 -> 21112 | Z24: =COUNTIF(L32:L57,Y24) -> 2 | AA24: =Z24/(AB4-Z25) -> 0.08333333333 | AB24: =IF(AA24=0,0,(AA24*((LOG(AA24))/LOG(2)))) -> -0.2987468751 | AD24: =N24 -> 21112 | AE24: =COUNTIF(L58:L82,AD24) -> 0 | AF24: =AE24/(AG4-AE25) -> 0 | AG24: =IF(AF24=0,0,(AF24*((LOG(AF24))/LOG(2)))) -> 0 | AI24: =N24 -> 21112 | AJ24: =COUNTIF(L83:L107,AI24) -> 0 | AK24: =AJ24/(AL4-AJ25) -> 0 | AL24: =IF(AK24=0,0,(AK24*((LOG(AK24))/LOG(2)))) -> 0 | AN24: =N24 -> 21112 | AO24: =COUNTIF(L108:L133,AN24) -> 0 | AP24: =AO24/(AQ4-AO25) -> 0 | AQ24: =IF(AP24=0,0,(AP24*((LOG(AP24))/LOG(2)))) -> 0 | AS24: =N24 -> 21112 | AT24: =COUNTIF(L134:L158,AS24) -> 5 | AU24: =AT24/(AV4-AT25) -> 0.2083333333 | AV24: =IF(AU24=0,0,(AU24*((LOG(AU24))/LOG(2)))) -> -0.4714655012
A25: 12 | B25: 2920 | C25: 13 | D25: 2929 | E25: 13 | F25: 2938 | G25: 23 | H25: 2950 | I25: 13 | J25: 2966 | K25: 0 | L25: 11121 | N25: 21121 | O25: =COUNTIF($L$7:$L$500,N25) -> 7 | P25: =O25/$Q$4 -> 0.04635761589 | Q25: =IF(P25=0,0,(P25*((LOG(P25))/LOG(2)))) -> -0.2054129054 | T25: =N25 -> 21121 | U25: =COUNTIF(L7:L31,T25) -> 1 | Y25: =N25 -> 21121 | Z25: =COUNTIF(L32:L57,Y25) -> 2 | AD25: =N25 -> 21121 | AE25: =COUNTIF(L58:L82,AD25) -> 1 | AI25: =N25 -> 21121 | AJ25: =COUNTIF(L83:L107,AI25) -> 2 | AN25: =N25 -> 21121 | AO25: =COUNTIF(L108:L133,AN25) -> 1 | AS25: =N25 -> 21121 | AT25: =COUNTIF(L134:L158,AS25) -> 0
A26: 12 | B26: 3067 | C26: 24 | D26: 3079 | E26: 13 | F26: 3090 | G26: 23 | H26: 3111 | I26: 13 | J26: 3124 | K26: 0 | L26: 12121 | N26: 21122 | O26: =COUNTIF($L$7:$L$500,N26) -> 1 | P26: =O26/$Q$4 -> 0.006622516556 | Q26: =IF(P26=0,0,(P26*((LOG(P26))/LOG(2)))) -> -0.04793645523 | T26: =N26 -> 21122 | U26: =COUNTIF(L7:L31,T26) -> 0 | V26: =U26/(W4-U25) -> 0 | W26: =IF(V26=0,0,(V26*((LOG(V26))/LOG(2)))) -> 0 | Y26: =N26 -> 21122 | Z26: =COUNTIF(L32:L57,Y26) -> 0 | AA26: =Z26/(AB4-Z25) -> 0 | AB26: =IF(AA26=0,0,(AA26*((LOG(AA26))/LOG(2)))) -> 0 | AD26: =N26 -> 21122 | AE26: =COUNTIF(L58:L82,AD26) -> 0 | AF26: =AE26/(AG4-AE25) -> 0 | AG26: =IF(AF26=0,0,(AF26*((LOG(AF26))/LOG(2)))) -> 0 | AI26: =N26 -> 21122 | AJ26: =COUNTIF(L83:L107,AI26) -> 1 | AK26: =AJ26/(AL4-AJ25) -> 0.04347826087 | AL26: =IF(AK26=0,0,(AK26*((LOG(AK26))/LOG(2)))) -> -0.1966766068 | AN26: =N26 -> 21122 | AO26: =COUNTIF(L108:L133,AN26) -> 0 | AP26: =AO26/(AQ4-AO25) -> 0 | AQ26: =IF(AP26=0,0,(AP26*((LOG(AP26))/LOG(2)))) -> 0 | AS26: =N26 -> 21122 | AT26: =COUNTIF(L134:L158,AS26) -> 0 | AU26: =AT26/(AV4-AT25) -> 0 | AV26: =IF(AU26=0,0,(AU26*((LOG(AU26))/LOG(2)))) -> 0
A27: 12 | B27: 3222 | C27: 24 | D27: 3235 | E27: 13 | F27: 3244 | G27: 23 | H27: 3257 | I27: 24 | J27: 3264 | K27: 0 | L27: 12122 | N27: 21211 | O27: =COUNTIF($L$7:$L$500,N27) -> 1 | P27: =O27/$Q$4 -> 0.006622516556 | Q27: =IF(P27=0,0,(P27*((LOG(P27))/LOG(2)))) -> -0.04793645523 | T27: =N27 -> 21211 | U27: =COUNTIF(L7:L31,T27) -> 0 | V27: =U27/(W4-U25) -> 0 | W27: =IF(V27=0,0,(V27*((LOG(V27))/LOG(2)))) -> 0 | Y27: =N27 -> 21211 | Z27: =COUNTIF(L32:L57,Y27) -> 0 | AA27: =Z27/(AB4-Z25) -> 0 | AB27: =IF(AA27=0,0,(AA27*((LOG(AA27))/LOG(2)))) -> 0 | AD27: =N27 -> 21211 | AE27: =COUNTIF(L58:L82,AD27) -> 0 | AF27: =AE27/(AG4-AE25) -> 0 | AG27: =IF(AF27=0,0,(AF27*((LOG(AF27))/LOG(2)))) -> 0 | AI27: =N27 -> 21211 | AJ27: =COUNTIF(L83:L107,AI27) -> 0 | AK27: =AJ27/(AL4-AJ25) -> 0 | AL27: =IF(AK27=0,0,(AK27*((LOG(AK27))/LOG(2)))) -> 0 | AN27: =N27 -> 21211 | AO27: =COUNTIF(L108:L133,AN27) -> 0 | AP27: =AO27/(AQ4-AO25) -> 0 | AQ27: =IF(AP27=0,0,(AP27*((LOG(AP27))/LOG(2)))) -> 0 | AS27: =N27 -> 21211 | AT27: =COUNTIF(L134:L158,AS27) -> 1 | AU27: =AT27/(AV4-AT25) -> 0.04166666667 | AV27: =IF(AU27=0,0,(AU27*((LOG(AU27))/LOG(2)))) -> -0.1910401042
A28: 12 | B28: 3398 | C28: 24 | D28: 3409 | E28: 13 | F28: 3424 | G28: 23 | H28: 3437 | I28: 24 | J28: 3448 | K28: 0 | L28: 12122 | N28: 21212 | O28: =COUNTIF($L$7:$L$500,N28) -> 18 | P28: =O28/$Q$4 -> 0.119205298 | Q28: =IF(P28=0,0,(P28*((LOG(P28))/LOG(2)))) -> -0.3657790416 | T28: =N28 -> 21212 | U28: =COUNTIF(L7:L31,T28) -> 3 | V28: =U28/(W4-U25) -> 0.125 | W28: =IF(V28=0,0,(V28*((LOG(V28))/LOG(2)))) -> -0.375 | Y28: =N28 -> 21212 | Z28: =COUNTIF(L32:L57,Y28) -> 2 | AA28: =Z28/(AB4-Z25) -> 0.08333333333 | AB28: =IF(AA28=0,0,(AA28*((LOG(AA28))/LOG(2)))) -> -0.2987468751 | AD28: =N28 -> 21212 | AE28: =COUNTIF(L58:L82,AD28) -> 5 | AF28: =AE28/(AG4-AE25) -> 0.2083333333 | AG28: =IF(AF28=0,0,(AF28*((LOG(AF28))/LOG(2)))) -> -0.4714655012 | AI28: =N28 -> 21212 | AJ28: =COUNTIF(L83:L107,AI28) -> 3 | AK28: =AJ28/(AL4-AJ25) -> 0.1304347826 | AL28: =IF(AK28=0,0,(AK28*((LOG(AK28))/LOG(2)))) -> -0.3832955811 | AN28: =N28 -> 21212 | AO28: =COUNTIF(L108:L133,AN28) -> 2 | AP28: =AO28/(AQ4-AO25) -> 0.08 | AQ28: =IF(AP28=0,0,(AP28*((LOG(AP28))/LOG(2)))) -> -0.2915084952 | AS28: =N28 -> 21212 | AT28: =COUNTIF(L134:L158,AS28) -> 3 | AU28: =AT28/(AV4-AT25) -> 0.125 | AV28: =IF(AU28=0,0,(AU28*((LOG(AU28))/LOG(2)))) -> -0.375
A29: 12 | B29: 3557 | C29: 13 | D29: 3573 | E29: 24 | F29: 3582 | G29: 14 | H29: 3595 | I29: 24 | J29: 3607 | K29: 0 | L29: 11212 | N29: 21221 | O29: =COUNTIF($L$7:$L$500,N29) -> 2 | P29: =O29/$Q$4 -> 0.01324503311 | Q29: =IF(P29=0,0,(P29*((LOG(P29))/LOG(2)))) -> -0.08262787734 | T29: =N29 -> 21221 | U29: =COUNTIF(L7:L31,T29) -> 0 | V29: =U29/(W4-U25) -> 0 | W29: =IF(V29=0,0,(V29*((LOG(V29))/LOG(2)))) -> 0 | Y29: =N29 -> 21221 | Z29: =COUNTIF(L32:L57,Y29) -> 1 | AA29: =Z29/(AB4-Z25) -> 0.04166666667 | AB29: =IF(AA29=0,0,(AA29*((LOG(AA29))/LOG(2)))) -> -0.1910401042 | AD29: =N29 -> 21221 | AE29: =COUNTIF(L58:L82,AD29) -> 0 | AF29: =AE29/(AG4-AE25) -> 0 | AG29: =IF(AF29=0,0,(AF29*((LOG(AF29))/LOG(2)))) -> 0 | AI29: =N29 -> 21221 | AJ29: =COUNTIF(L83:L107,AI29) -> 0 | AK29: =AJ29/(AL4-AJ25) -> 0 | AL29: =IF(AK29=0,0,(AK29*((LOG(AK29))/LOG(2)))) -> 0 | AN29: =N29 -> 21221 | AO29: =COUNTIF(L108:L133,AN29) -> 1 | AP29: =AO29/(AQ4-AO25) -> 0.04 | AQ29: =IF(AP29=0,0,(AP29*((LOG(AP29))/LOG(2)))) -> -0.1857542476 | AS29: =N29 -> 21221 | AT29: =COUNTIF(L134:L158,AS29) -> 0 | AU29: =AT29/(AV4-AT25) -> 0 | AV29: =IF(AU29=0,0,(AU29*((LOG(AU29))/LOG(2)))) -> 0
A30: 21 | B30: 3728 | C30: 11 | D30: 3737 | E30: 22 | F30: 3746 | G30: 14 | H30: 3759 | I30: 24 | J30: 3797 | K30: 0 | L30: 21212 | N30: 21222 | O30: =COUNTIF($L$7:$L$500,N30) -> 0 | P30: =O30/$Q$4 -> 0 | Q30: =IF(P30=0,0,(P30*((LOG(P30))/LOG(2)))) -> 0 | T30: =N30 -> 21222 | U30: =COUNTIF(L7:L31,T30) -> 0 | V30: =U30/(W4-U25) -> 0 | W30: =IF(V30=0,0,(V30*((LOG(V30))/LOG(2)))) -> 0 | Y30: =N30 -> 21222 | Z30: =COUNTIF(L32:L57,Y30) -> 0 | AA30: =Z30/(AB4-Z25) -> 0 | AB30: =IF(AA30=0,0,(AA30*((LOG(AA30))/LOG(2)))) -> 0 | AD30: =N30 -> 21222 | AE30: =COUNTIF(L58:L82,AD30) -> 0 | AF30: =AE30/(AG4-AE25) -> 0 | AG30: =IF(AF30=0,0,(AF30*((LOG(AF30))/LOG(2)))) -> 0 | AI30: =N30 -> 21222 | AJ30: =COUNTIF(L83:L107,AI30) -> 0 | AK30: =AJ30/(AL4-AJ25) -> 0 | AL30: =IF(AK30=0,0,(AK30*((LOG(AK30))/LOG(2)))) -> 0 | AN30: =N30 -> 21222 | AO30: =COUNTIF(L108:L133,AN30) -> 0 | AP30: =AO30/(AQ4-AO25) -> 0 | AQ30: =IF(AP30=0,0,(AP30*((LOG(AP30))/LOG(2)))) -> 0 | AS30: =N30 -> 21222 | AT30: =COUNTIF(L134:L158,AS30) -> 0 | AU30: =AT30/(AV4-AT25) -> 0 | AV30: =IF(AU30=0,0,(AU30*((LOG(AU30))/LOG(2)))) -> 0
A31: 12 | B31: 3906 | C31: 24 | D31: 3917 | E31: 13 | F31: 3928 | G31: 23 | H31: 3938 | I31: 13 | J31: 3950 | K31: 0 | L31: 12121 | N31: 22111 | O31: =COUNTIF($L$7:$L$500,N31) -> 0 | P31: =O31/$Q$4 -> 0 | Q31: =IF(P31=0,0,(P31*((LOG(P31))/LOG(2)))) -> 0 | T31: =N31 -> 22111 | U31: =COUNTIF(L7:L31,T31) -> 0 | V31: =U31/(W4-U25) -> 0 | W31: =IF(V31=0,0,(V31*((LOG(V31))/LOG(2)))) -> 0 | Y31: =N31 -> 22111 | Z31: =COUNTIF(L32:L57,Y31) -> 0 | AA31: =Z31/(AB4-Z25) -> 0 | AB31: =IF(AA31=0,0,(AA31*((LOG(AA31))/LOG(2)))) -> 0 | AD31: =N31 -> 22111 | AE31: =COUNTIF(L58:L82,AD31) -> 0 | AF31: =AE31/(AG4-AE25) -> 0 | AG31: =IF(AF31=0,0,(AF31*((LOG(AF31))/LOG(2)))) -> 0 | AI31: =N31 -> 22111 | AJ31: =COUNTIF(L83:L107,AI31) -> 0 | AK31: =AJ31/(AL4-AJ25) -> 0 | AL31: =IF(AK31=0,0,(AK31*((LOG(AK31))/LOG(2)))) -> 0 | AN31: =N31 -> 22111 | AO31: =COUNTIF(L108:L133,AN31) -> 0 | AP31: =AO31/(AQ4-AO25) -> 0 | AQ31: =IF(AP31=0,0,(AP31*((LOG(AP31))/LOG(2)))) -> 0 | AS31: =N31 -> 22111 | AT31: =COUNTIF(L134:L158,AS31) -> 0 | AU31: =AT31/(AV4-AT25) -> 0 | AV31: =IF(AU31=0,0,(AU31*((LOG(AU31))/LOG(2)))) -> 0
A32: 21 | B32: 4052 | C32: 11 | D32: 4062 | E32: 22 | F32: 4071 | G32: 14 | H32: 4079 | I32: 24 | J32: 4092 | K32: 0 | L32: 21212 | N32: 22112 | O32: =COUNTIF($L$7:$L$500,N32) -> 0 | P32: =O32/$Q$4 -> 0 | Q32: =IF(P32=0,0,(P32*((LOG(P32))/LOG(2)))) -> 0 | T32: =N32 -> 22112 | U32: =COUNTIF(L7:L31,T32) -> 0 | V32: =U32/(W4-U25) -> 0 | W32: =IF(V32=0,0,(V32*((LOG(V32))/LOG(2)))) -> 0 | Y32: =N32 -> 22112 | Z32: =COUNTIF(L32:L57,Y32) -> 0 | AA32: =Z32/(AB4-Z25) -> 0 | AB32: =IF(AA32=0,0,(AA32*((LOG(AA32))/LOG(2)))) -> 0 | AD32: =N32 -> 22112 | AE32: =COUNTIF(L58:L82,AD32) -> 0 | AF32: =AE32/(AG4-AE25) -> 0 | AG32: =IF(AF32=0,0,(AF32*((LOG(AF32))/LOG(2)))) -> 0 | AI32: =N32 -> 22112 | AJ32: =COUNTIF(L83:L107,AI32) -> 0 | AK32: =AJ32/(AL4-AJ25) -> 0 | AL32: =IF(AK32=0,0,(AK32*((LOG(AK32))/LOG(2)))) -> 0 | AN32: =N32 -> 22112 | AO32: =COUNTIF(L108:L133,AN32) -> 0 | AP32: =AO32/(AQ4-AO25) -> 0 | AQ32: =IF(AP32=0,0,(AP32*((LOG(AP32))/LOG(2)))) -> 0 | AS32: =N32 -> 22112 | AT32: =COUNTIF(L134:L158,AS32) -> 0 | AU32: =AT32/(AV4-AT25) -> 0 | AV32: =IF(AU32=0,0,(AU32*((LOG(AU32))/LOG(2)))) -> 0
A33: 12 | B33: 4259 | C33: 24 | D33: 4268 | E33: 13 | F33: 4281 | G33: 23 | H33: 4292 | I33: 13 | J33: 4305 | K33: 0 | L33: 12121 | N33: 22121 | O33: =COUNTIF($L$7:$L$500,N33) -> 3 | P33: =O33/$Q$4 -> 0.01986754967 | Q33: =IF(P33=0,0,(P33*((LOG(P33))/LOG(2)))) -> -0.1123200445 | T33: =N33 -> 22121 | U33: =COUNTIF(L7:L31,T33) -> 0 | V33: =U33/(W4-U25) -> 0 | W33: =IF(V33=0,0,(V33*((LOG(V33))/LOG(2)))) -> 0 | Y33: =N33 -> 22121 | Z33: =COUNTIF(L32:L57,Y33) -> 0 | AA33: =Z33/(AB4-Z25) -> 0 | AB33: =IF(AA33=0,0,(AA33*((LOG(AA33))/LOG(2)))) -> 0 | AD33: =N33 -> 22121 | AE33: =COUNTIF(L58:L82,AD33) -> 1 | AF33: =AE33/(AG4-AE25) -> 0.04166666667 | AG33: =IF(AF33=0,0,(AF33*((LOG(AF33))/LOG(2)))) -> -0.1910401042 | AI33: =N33 -> 22121 | AJ33: =COUNTIF(L83:L107,AI33) -> 1 | AK33: =AJ33/(AL4-AJ25) -> 0.04347826087 | AL33: =IF(AK33=0,0,(AK33*((LOG(AK33))/LOG(2)))) -> -0.1966766068 | AN33: =N33 -> 22121 | AO33: =COUNTIF(L108:L133,AN33) -> 0 | AP33: =AO33/(AQ4-AO25) -> 0 | AQ33: =IF(AP33=0,0,(AP33*((LOG(AP33))/LOG(2)))) -> 0 | AS33: =N33 -> 22121 | AT33: =COUNTIF(L134:L158,AS33) -> 1 | AU33: =AT33/(AV4-AT25) -> 0.04166666667 | AV33: =IF(AU33=0,0,(AU33*((LOG(AU33))/LOG(2)))) -> -0.1910401042
A34: 12 | B34: 4424 | C34: 13 | D34: 4430 | E34: 13 | F34: 4447 | G34: 14 | H34: 4474 | I34: 24 | J34: 4496 | K34: 0 | L34: 11112 | N34: 22122 | O34: =COUNTIF($L$7:$L$500,N34) -> 2 | P34: =O34/$Q$4 -> 0.01324503311 | Q34: =IF(P34=0,0,(P34*((LOG(P34))/LOG(2)))) -> -0.08262787734 | T34: =N34 -> 22122 | U34: =COUNTIF(L7:L31,T34) -> 0 | V34: =U34/(W4-U25) -> 0 | W34: =IF(V34=0,0,(V34*((LOG(V34))/LOG(2)))) -> 0 | Y34: =N34 -> 22122 | Z34: =COUNTIF(L32:L57,Y34) -> 0 | AA34: =Z34/(AB4-Z25) -> 0 | AB34: =IF(AA34=0,0,(AA34*((LOG(AA34))/LOG(2)))) -> 0 | AD34: =N34 -> 22122 | AE34: =COUNTIF(L58:L82,AD34) -> 1 | AF34: =AE34/(AG4-AE25) -> 0.04166666667 | AG34: =IF(AF34=0,0,(AF34*((LOG(AF34))/LOG(2)))) -> -0.1910401042 | AI34: =N34 -> 22122 | AJ34: =COUNTIF(L83:L107,AI34) -> 0 | AK34: =AJ34/(AL4-AJ25) -> 0 | AL34: =IF(AK34=0,0,(AK34*((LOG(AK34))/LOG(2)))) -> 0 | AN34: =N34 -> 22122 | AO34: =COUNTIF(L108:L133,AN34) -> 0 | AP34: =AO34/(AQ4-AO25) -> 0 | AQ34: =IF(AP34=0,0,(AP34*((LOG(AP34))/LOG(2)))) -> 0 | AS34: =N34 -> 22122 | AT34: =COUNTIF(L134:L158,AS34) -> 1 | AU34: =AT34/(AV4-AT25) -> 0.04166666667 | AV34: =IF(AU34=0,0,(AU34*((LOG(AU34))/LOG(2)))) -> -0.1910401042
A35: 21 | B35: 4630 | C35: 11 | D35: 4644 | E35: 22 | F35: 4657 | G35: 23 | H35: 4686 | I35: 13 | J35: 4699 | K35: 0 | L35: 21221 | N35: 22211 | O35: =COUNTIF($L$7:$L$500,N35) -> 0 | P35: =O35/$Q$4 -> 0 | Q35: =IF(P35=0,0,(P35*((LOG(P35))/LOG(2)))) -> 0 | T35: =N35 -> 22211 | U35: =COUNTIF(L7:L31,T35) -> 0 | V35: =U35/(W4-U25) -> 0 | W35: =IF(V35=0,0,(V35*((LOG(V35))/LOG(2)))) -> 0 | Y35: =N35 -> 22211 | Z35: =COUNTIF(L32:L57,Y35) -> 0 | AA35: =Z35/(AB4-Z25) -> 0 | AB35: =IF(AA35=0,0,(AA35*((LOG(AA35))/LOG(2)))) -> 0 | AD35: =N35 -> 22211 | AE35: =COUNTIF(L58:L82,AD35) -> 0 | AF35: =AE35/(AG4-AE25) -> 0 | AG35: =IF(AF35=0,0,(AF35*((LOG(AF35))/LOG(2)))) -> 0 | AI35: =N35 -> 22211 | AJ35: =COUNTIF(L83:L107,AI35) -> 0 | AK35: =AJ35/(AL4-AJ25) -> 0 | AL35: =IF(AK35=0,0,(AK35*((LOG(AK35))/LOG(2)))) -> 0 | AN35: =N35 -> 22211 | AO35: =COUNTIF(L108:L133,AN35) -> 0 | AP35: =AO35/(AQ4-AO25) -> 0 | AQ35: =IF(AP35=0,0,(AP35*((LOG(AP35))/LOG(2)))) -> 0 | AS35: =N35 -> 22211 | AT35: =COUNTIF(L134:L158,AS35) -> 0 | AU35: =AT35/(AV4-AT25) -> 0 | AV35: =IF(AU35=0,0,(AU35*((LOG(AU35))/LOG(2)))) -> 0
A36: 12 | B36: 4812 | C36: 13 | D36: 4822 | E36: 24 | F36: 4830 | G36: 23 | H36: 4854 | I36: 13 | J36: 4866 | K36: 0 | L36: 11221 | N36: 22212 | O36: =COUNTIF($L$7:$L$500,N36) -> 0 | P36: =O36/$Q$4 -> 0 | Q36: =IF(P36=0,0,(P36*((LOG(P36))/LOG(2)))) -> 0 | T36: =N36 -> 22212 | U36: =COUNTIF(L7:L31,T36) -> 0 | V36: =U36/(W4-U25) -> 0 | W36: =IF(V36=0,0,(V36*((LOG(V36))/LOG(2)))) -> 0 | Y36: =N36 -> 22212 | Z36: =COUNTIF(L32:L57,Y36) -> 0 | AA36: =Z36/(AB4-Z25) -> 0 | AB36: =IF(AA36=0,0,(AA36*((LOG(AA36))/LOG(2)))) -> 0 | AD36: =N36 -> 22212 | AE36: =COUNTIF(L58:L82,AD36) -> 0 | AF36: =AE36/(AG4-AE25) -> 0 | AG36: =IF(AF36=0,0,(AF36*((LOG(AF36))/LOG(2)))) -> 0 | AI36: =N36 -> 22212 | AJ36: =COUNTIF(L83:L107,AI36) -> 0 | AK36: =AJ36/(AL4-AJ25) -> 0 | AL36: =IF(AK36=0,0,(AK36*((LOG(AK36))/LOG(2)))) -> 0 | AN36: =N36 -> 22212 | AO36: =COUNTIF(L108:L133,AN36) -> 0 | AP36: =AO36/(AQ4-AO25) -> 0 | AQ36: =IF(AP36=0,0,(AP36*((LOG(AP36))/LOG(2)))) -> 0 | AS36: =N36 -> 22212 | AT36: =COUNTIF(L134:L158,AS36) -> 0 | AU36: =AT36/(AV4-AT25) -> 0 | AV36: =IF(AU36=0,0,(AU36*((LOG(AU36))/LOG(2)))) -> 0
A37: 12 | B37: 4978 | C37: 13 | D37: 4986 | E37: 13 | F37: 4993 | G37: 23 | H37: 5005 | I37: 13 | J37: 5016 | K37: 0 | L37: 11121 | N37: 22221 | O37: =COUNTIF($L$7:$L$500,N37) -> 0 | P37: =O37/$Q$4 -> 0 | Q37: =IF(P37=0,0,(P37*((LOG(P37))/LOG(2)))) -> 0 | T37: =N37 -> 22221 | U37: =COUNTIF(L7:L31,T37) -> 0 | V37: =U37/(W4-U25) -> 0 | W37: =IF(V37=0,0,(V37*((LOG(V37))/LOG(2)))) -> 0 | Y37: =N37 -> 22221 | Z37: =COUNTIF(L32:L57,Y37) -> 0 | AA37: =Z37/(AB4-Z25) -> 0 | AB37: =IF(AA37=0,0,(AA37*((LOG(AA37))/LOG(2)))) -> 0 | AD37: =N37 -> 22221 | AE37: =COUNTIF(L58:L82,AD37) -> 0 | AF37: =AE37/(AG4-AE25) -> 0 | AG37: =IF(AF37=0,0,(AF37*((LOG(AF37))/LOG(2)))) -> 0 | AI37: =N37 -> 22221 | AJ37: =COUNTIF(L83:L107,AI37) -> 0 | AK37: =AJ37/(AL4-AJ25) -> 0 | AL37: =IF(AK37=0,0,(AK37*((LOG(AK37))/LOG(2)))) -> 0 | AN37: =N37 -> 22221 | AO37: =COUNTIF(L108:L133,AN37) -> 0 | AP37: =AO37/(AQ4-AO25) -> 0 | AQ37: =IF(AP37=0,0,(AP37*((LOG(AP37))/LOG(2)))) -> 0 | AS37: =N37 -> 22221 | AT37: =COUNTIF(L134:L158,AS37) -> 0 | AU37: =AT37/(AV4-AT25) -> 0 | AV37: =IF(AU37=0,0,(AU37*((LOG(AU37))/LOG(2)))) -> 0
A38: 12 | B38: 5117 | C38: 13 | D38: 5125 | E38: 13 | F38: 5130 | G38: 14 | H38: 5135 | I38: 13 | J38: 5142 | K38: 0 | L38: 11111 | N38: 22222 | O38: =COUNTIF($L$7:$L$500,N38) -> 0 | P38: =O38/$Q$4 -> 0 | Q38: =IF(P38=0,0,(P38*((LOG(P38))/LOG(2)))) -> 0 | T38: =N38 -> 22222 | U38: =COUNTIF(L7:L31,T38) -> 0 | V38: =U38/(W4-U25) -> 0 | W38: =IF(V38=0,0,(V38*((LOG(V38))/LOG(2)))) -> 0 | Y38: =N38 -> 22222 | Z38: =COUNTIF(L32:L57,Y38) -> 0 | AA38: =Z38/(AB4-Z25) -> 0 | AB38: =IF(AA38=0,0,(AA38*((LOG(AA38))/LOG(2)))) -> 0 | AD38: =N38 -> 22222 | AE38: =COUNTIF(L58:L82,AD38) -> 0 | AF38: =AE38/(AG4-AE25) -> 0 | AG38: =IF(AF38=0,0,(AF38*((LOG(AF38))/LOG(2)))) -> 0 | AI38: =N38 -> 22222 | AJ38: =COUNTIF(L83:L107,AI38) -> 0 | AK38: =AJ38/(AL4-AJ25) -> 0 | AL38: =IF(AK38=0,0,(AK38*((LOG(AK38))/LOG(2)))) -> 0 | AN38: =N38 -> 22222 | AO38: =COUNTIF(L108:L133,AN38) -> 0 | AP38: =AO38/(AQ4-AO25) -> 0 | AQ38: =IF(AP38=0,0,(AP38*((LOG(AP38))/LOG(2)))) -> 0 | AS38: =N38 -> 22222 | AT38: =COUNTIF(L134:L158,AS38) -> 0 | AU38: =AT38/(AV4-AT25) -> 0 | AV38: =IF(AU38=0,0,(AU38*((LOG(AU38))/LOG(2)))) -> 0
A39: 21 | B39: 5296 | C39: 11 | D39: 5309 | E39: 22 | F39: 5318 | G39: 14 | H39: 5330 | I39: 24 | J39: 5339 | K39: 0 | L39: 21212 | P39: =SUM(P7:P38) -> 1 | Q39: =-SUM(Q7:Q38) -> 3.611394182 | V39: =SUM(V7:V38) -> 1 | W39: =-SUM(W7:W38) -> 2.569773835 | AA39: =SUM(AA7:AA38) -> 1 | AB39: =-SUM(AB7:AB38) -> 3.188721876 | AF39: =SUM(AF7:AF38) -> 1 | AG39: =-SUM(AG7:AG38) -> 3.069773835 | AK39: =SUM(AK7:AK38) -> 1 | AL39: =-SUM(AL7:AL38) -> 2.963809653 | AP39: =SUM(AP7:AP38) -> 1 | AQ39: =-SUM(AQ7:AQ38) -> 2.239627536 | AU39: =SUM(AU7:AU38) -> 1 | AV39: =-SUM(AV7:AV38) -> 3.454986856
A40: 12 | B40: 5444 | C40: 24 | D40: 5453 | E40: 13 | F40: 5463 | G40: 14 | H40: 5488 | I40: 24 | J40: 5501 | K40: 0 | L40: 12112 | P40: U= | Q40: =Q39/(LOG(Q4)/LOG(2)) -> 0.4989212833 | V40: U1= | W40: =W39/(LOG(W4)/LOG(2)) -> 0.5533706751 | AA40: U2= | AB40: =AB39/(LOG(AB4)/LOG(2)) -> 0.6783879949 | AF40: U3= | AG40: =AG39/(LOG(AG4)/LOG(2)) -> 0.6610398147 | AK40: U4= | AL40: =AL39/(LOG(AL4)/LOG(2)) -> 0.63822167 | AP40: U5= | AQ40: =AQ39/(LOG(AQ4)/LOG(2)) -> 0.4764719198 | AU40: U6= | AV40: =AV39/(LOG(AV4)/LOG(2)) -> 0.753547462
A41: 12 | B41: 5609 | C41: 24 | D41: 5618 | E41: 13 | F41: 5628 | G41: 23 | H41: 5641 | I41: 13 | J41: 5653 | K41: 0 | L41: 12121
A42: 12 | B42: 5759 | C42: 24 | D42: 5771 | E42: 13 | F42: 5779 | G42: 23 | H42: 5791 | I42: 24 | J42: 5835 | K42: 0 | L42: 12122
A43: 21 | B43: 5957 | C43: 11 | D43: 5966 | E43: 11 | F43: 5971 | G43: 12 | H43: 5982 | I43: 24 | J43: 5994 | K43: 0 | L43: 21112 | N43: Total Target Seq
A44: 21 | B44: 6166 | C44: 11 | D44: 6179 | E44: 11 | F44: 6188 | G44: 21 | H44: 6200 | I44: 11 | J44: 6215 | K44: 1 | L44: 21121 | N44: =COUNTIF(L7:L158,G3) -> 7 | P44: 25 | Q44: 26 | R44: 25 | S44: 25 | T44: 26 | U44: 25
A45: 12 | B45: 6304 | C45: 13 | D45: 6321 | E45: 24 | F45: 6330 | G45: 14 | H45: 6354 | I45: 24 | J45: 6366 | K45: 0 | L45: 11212 | P45: % of reinforcement given in 6 equal intervals based on number of trials
A46: 12 | B46: 6463 | C46: 13 | D46: 6470 | E46: 24 | F46: 6483 | G46: 14 | H46: 6497 | I46: 24 | J46: 6509 | K46: 0 | L46: 11212 | P46: %_1 | Q46: %_2 | R46: %_3 | S46: %_4 | T46: %_5 | U46: %_6
A47: 12 | B47: 6609 | C47: 24 | D47: 6626 | E47: 13 | F47: 6639 | G47: 23 | H47: 6648 | I47: 13 | J47: 6660 | K47: 0 | L47: 12121 | O47: target sequence | P47: =$G$3 -> 21121 | Q47: =$G$3 -> 21121 | R47: =$G$3 -> 21121 | S47: =$G$3 -> 21121 | T47: =$G$3 -> 21121 | U47: =$G$3 -> 21121
A48: 12 | B48: 6757 | C48: 13 | D48: 6763 | E48: 13 | F48: 6782 | G48: 23 | H48: 6795 | I48: 13 | J48: 6810 | K48: 0 | L48: 11121 | O48: total reinforcement | P48: =U25 -> 1 | Q48: =Z25 -> 2 | R48: =AE25 -> 1 | S48: =AJ25 -> 2 | T48: =AO25 -> 1 | U48: =AT25 -> 0
A49: 21 | B49: 6918 | C49: 11 | D49: 6928 | E49: 11 | F49: 6937 | G49: 12 | H49: 6971 | I49: 24 | J49: 6983 | K49: 0 | L49: 21112 | O49: % target
A50: 21 | B50: 7082 | C50: 11 | D50: 7091 | E50: 11 | F50: 7099 | G50: 21 | H50: 7108 | I50: 11 | J50: 7118 | K50: 1 | L50: 21121 | O50: CCRF
A51: 12 | B51: 7212 | C51: 13 | D51: 7234 | E51: 24 | F51: 7243 | G51: 23 | H51: 7262 | I51: 13 | J51: 7285 | K51: 0 | L51: 11221 | O51: % CCRf
A52: 12 | B52: 7387 | C52: 24 | D52: 7399 | E52: 13 | F52: 7409 | G52: 23 | H52: 7456 | I52: 24 | J52: 7465 | K52: 0 | L52: 12122 | O52: average response rate | P52: =J31/P44 -> 158 | Q52: =(J57-J31)/Q44 -> 165.7307692 | R52: =(J82-J57)/R44 -> 155.8 | S52: =(J107-J82)/S44 -> 157.32 | T52: =(J133-J107)/T44 -> 151.3846154 | U52: =(J158-J133)/U44 -> -800.92
A53: 12 | B53: 7564 | C53: 13 | D53: 7588 | E53: 24 | F53: 7601 | G53: 14 | H53: 7618 | I53: 24 | J53: 7631 | K53: 0 | L53: 11212
A54: 12 | B54: 7731 | C54: 13 | D54: 7745 | E54: 24 | F54: 7756 | G54: 14 | H54: 7768 | I54: 24 | J54: 7780 | K54: 0 | L54: 11212
A55: 12 | B55: 7885 | C55: 13 | D55: 7902 | E55: 24 | F55: 7927 | G55: 14 | H55: 7945 | I55: 24 | J55: 7957 | K55: 0 | L55: 11212
A56: 12 | B56: 8060 | C56: 13 | D56: 8077 | E56: 24 | F56: 8091 | G56: 14 | H56: 8103 | I56: 24 | J56: 8114 | K56: 0 | L56: 11212
A57: 12 | B57: 8217 | C57: 24 | D57: 8226 | E57: 13 | F57: 8236 | G57: 23 | H57: 8245 | I57: 13 | J57: 8259 | K57: 0 | L57: 12121
A58: 12 | B58: 8357 | C58: 24 | D58: 8372 | E58: 13 | F58: 8384 | G58: 23 | H58: 8398 | I58: 24 | J58: 8407 | K58: 0 | L58: 12122
A59: 12 | B59: 8506 | C59: 13 | D59: 8514 | E59: 24 | F59: 8524 | G59: 14 | H59: 8535 | I59: 24 | J59: 8548 | K59: 0 | L59: 11212
A60: 21 | B60: 8648 | C60: 22 | D60: 8657 | E60: 13 | F60: 8670 | G60: 23 | H60: 8678 | I60: 13 | J60: 8692 | K60: 0 | L60: 22121
A61: 12 | B61: 8791 | C61: 24 | D61: 8801 | E61: 13 | F61: 8813 | G61: 23 | H61: 8821 | I61: 24 | J61: 8830 | K61: 0 | L61: 12122
A62: 21 | B62: 8943 | C62: 22 | D62: 8966 | E62: 13 | F62: 8980 | G62: 23 | H62: 8993 | I62: 24 | J62: 9002 | K62: 0 | L62: 22122
A63: 12 | B63: 9100 | C63: 13 | D63: 9119 | E63: 24 | F63: 9130 | G63: 23 | H63: 9153 | I63: 24 | J63: 9161 | K63: 0 | L63: 11222
A64: 12 | B64: 9260 | C64: 24 | D64: 9285 | E64: 13 | F64: 9294 | G64: 23 | H64: 9303 | I64: 13 | J64: 9320 | K64: 0 | L64: 12121
A65: 12 | B65: 9417 | C65: 13 | D65: 9428 | E65: 24 | F65: 9437 | G65: 14 | H65: 9445 | I65: 13 | J65: 9472 | K65: 0 | L65: 11211
A66: 12 | B66: 9603 | C66: 24 | D66: 9612 | E66: 13 | F66: 9620 | G66: 23 | H66: 9630 | I66: 13 | J66: 9644 | K66: 0 | L66: 12121
A67: 21 | B67: 9756 | C67: 11 | D67: 9765 | E67: 22 | F67: 9774 | G67: 14 | H67: 9786 | I67: 24 | J67: 9798 | K67: 0 | L67: 21212
A68: 21 | B68: 9930 | C68: 11 | D68: 9941 | E68: 22 | F68: 9951 | G68: 14 | H68: 9964 | I68: 24 | J68: 9976 | K68: 0 | L68: 21212
A69: 21 | B69: 10090 | C69: 11 | D69: 10099 | E69: 22 | F69: 10113 | G69: 14 | H69: 10126 | I69: 24 | J69: 10140 | K69: 0 | L69: 21212
A70: 12 | B70: 10237 | C70: 13 | D70: 10250 | E70: 13 | F70: 10259 | G70: 23 | H70: 10274 | I70: 24 | J70: 10304 | K70: 0 | L70: 11122
A71: 21 | B71: 10411 | C71: 11 | D71: 10419 | E71: 11 | F71: 10424 | G71: 21 | H71: 10438 | I71: 11 | J71: 10448 | K71: 1 | L71: 21121
A72: 21 | B72: 10556 | C72: 11 | D72: 10567 | E72: 22 | F72: 10579 | G72: 14 | H72: 10596 | I72: 24 | J72: 10608 | K72: 0 | L72: 21212
A73: 12 | B73: 10713 | C73: 13 | D73: 10718 | E73: 24 | F73: 10731 | G73: 14 | H73: 10744 | I73: 24 | J73: 10756 | K73: 0 | L73: 11212
A74: 12 | B74: 10862 | C74: 24 | D74: 10873 | E74: 13 | F74: 10884 | G74: 23 | H74: 10893 | I74: 24 | J74: 10901 | K74: 0 | L74: 12122
A75: 12 | B75: 11000 | C75: 13 | D75: 11005 | E75: 13 | F75: 11013 | G75: 23 | H75: 11027 | I75: 13 | J75: 11037 | K75: 0 | L75: 11121
A76: 12 | B76: 11133 | C76: 13 | D76: 11156 | E76: 24 | F76: 11169 | G76: 14 | H76: 11178 | I76: 24 | J76: 11192 | K76: 0 | L76: 11212
A77: 12 | B77: 11291 | C77: 13 | D77: 11295 | E77: 24 | F77: 11308 | G77: 14 | H77: 11322 | I77: 13 | J77: 11332 | K77: 0 | L77: 11211
A78: 12 | B78: 11443 | C78: 24 | D78: 11452 | E78: 13 | F78: 11462 | G78: 23 | H78: 11472 | I78: 13 | J78: 11488 | K78: 0 | L78: 12121
A79: 12 | B79: 11588 | C79: 24 | D79: 11597 | E79: 13 | F79: 11609 | G79: 23 | H79: 11617 | I79: 13 | J79: 11629 | K79: 0 | L79: 12121
A80: 21 | B80: 11729 | C80: 11 | D80: 11782 | E80: 22 | F80: 11810 | G80: 14 | H80: 11830 | I80: 24 | J80: 11842 | K80: 0 | L80: 21212
A81: 12 | B81: 11942 | C81: 13 | D81: 11952 | E81: 13 | F81: 11973 | G81: 23 | H81: 11986 | I81: 13 | J81: 11998 | K81: 0 | L81: 11121
A82: 12 | B82: 12102 | C82: 13 | D82: 12120 | E82: 24 | F82: 12129 | G82: 14 | H82: 12141 | I82: 24 | J82: 12154 | K82: 0 | L82: 11212
A83: 21 | B83: 12255 | C83: 22 | D83: 12265 | E83: 13 | F83: 12278 | G83: 23 | H83: 12287 | I83: 13 | J83: 12330 | K83: 0 | L83: 22121
A84: 12 | B84: 12428 | C84: 13 | D84: 12434 | E84: 24 | F84: 12450 | G84: 14 | H84: 12460 | I84: 24 | J84: 12474 | K84: 0 | L84: 11212
A85: 12 | B85: 12624 | C85: 13 | D85: 12642 | E85: 24 | F85: 12657 | G85: 14 | H85: 12672 | I85: 24 | J85: 12686 | K85: 0 | L85: 11212
A86: 12 | B86: 12790 | C86: 24 | D86: 12798 | E86: 13 | F86: 12808 | G86: 14 | H86: 12832 | I86: 24 | J86: 12845 | K86: 0 | L86: 12112
A87: 12 | B87: 12948 | C87: 13 | D87: 12954 | E87: 24 | F87: 12967 | G87: 14 | H87: 12975 | I87: 24 | J87: 12991 | K87: 0 | L87: 11212
A88: 12 | B88: 13092 | C88: 24 | D88: 13104 | E88: 13 | F88: 13128 | G88: 14 | H88: 13138 | I88: 24 | J88: 13152 | K88: 0 | L88: 12112
A89: 12 | B89: 13266 | C89: 13 | D89: 13278 | E89: 13 | F89: 13296 | G89: 23 | H89: 13304 | I89: 13 | J89: 13318 | K89: 0 | L89: 11121
A90: 21 | B90: 13418 | C90: 11 | D90: 13427 | E90: 22 | F90: 13435 | G90: 14 | H90: 13444 | I90: 24 | J90: 13456 | K90: 0 | L90: 21212
A91: 21 | B91: 13559 | C91: 11 | D91: 13571 | E91: 11 | F91: 13579 | G91: 21 | H91: 13588 | I91: 11 | J91: 13600 | K91: 1 | L91: 21121
A92: 12 | B92: 13701 | C92: 13 | D92: 13724 | E92: 24 | F92: 13736 | G92: 23 | H92: 13745 | I92: 24 | J92: 13756 | K92: 0 | L92: 11222
A93: 12 | B93: 13853 | C93: 24 | D93: 13867 | E93: 13 | F93: 13875 | G93: 23 | H93: 13887 | I93: 13 | J93: 13901 | K93: 0 | L93: 12121
A94: 12 | B94: 13998 | C94: 24 | D94: 14011 | E94: 13 | F94: 14023 | G94: 23 | H94: 14036 | I94: 24 | J94: 14063 | K94: 0 | L94: 12122
A95: 21 | B95: 14174 | C95: 11 | D95: 14183 | E95: 22 | F95: 14192 | G95: 14 | H95: 14208 | I95: 24 | J95: 14220 | K95: 0 | L95: 21212
A96: 12 | B96: 14322 | C96: 24 | D96: 14333 | E96: 13 | F96: 14344 | G96: 23 | H96: 14352 | I96: 13 | J96: 14365 | K96: 0 | L96: 12121
A97: 12 | B97: 14467 | C97: 13 | D97: 14485 | E97: 24 | F97: 14498 | G97: 14 | H97: 14510 | I97: 24 | J97: 14522 | K97: 0 | L97: 11212
A98: 12 | B98: 14624 | C98: 24 | D98: 14636 | E98: 13 | F98: 14648 | G98: 23 | H98: 14664 | I98: 13 | J98: 14676 | K98: 0 | L98: 12121
A99: 12 | B99: 14786 | C99: 13 | D99: 14814 | E99: 24 | F99: 14823 | G99: 14 | H99: 14837 | I99: 24 | J99: 14850 | K99: 0 | L99: 11212
A100: 21 | B100: 14948 | C100: 11 | D100: 14960 | E100: 11 | F100: 15017 | G100: 21 | H100: 15027 | I100: 11 | J100: 15063 | K100: 1 | L100: 21121
A101: 12 | B101: 15152 | C101: 24 | D101: 15161 | E101: 13 | F101: 15173 | G101: 23 | H101: 15184 | I101: 13 | J101: 15200 | K101: 0 | L101: 12121
A102: 12 | B102: 15296 | C102: 13 | D102: 15297 | E102: 13 | F102: 15306 | G102: 23 | H102: 15319 | I102: 13 | J102: 15332 | K102: 0 | L102: 11121
A103: 12 | B103: 15431 | C103: 24 | D103: 15445 | E103: 13 | F103: 15454 | G103: 23 | H103: 15466 | I103: 13 | J103: 15476 | K103: 0 | L103: 12121
A104: 21 | B104: 15587 | C104: 11 | D104: 15597 | E104: 11 | F104: 15606 | G104: 21 | H104: 15619 | I104: 22 | J104: 15627 | K104: 0 | L104: 21122
A105: 21 | B105: 15735 | C105: 11 | D105: 15744 | E105: 22 | F105: 15756 | G105: 14 | H105: 15768 | I105: 24 | J105: 15779 | K105: 0 | L105: 21212
A106: 12 | B106: 15882 | C106: 24 | D106: 15892 | E106: 13 | F106: 15901 | G106: 23 | H106: 15913 | I106: 13 | J106: 15926 | K106: 0 | L106: 12121
A107: 12 | B107: 16032 | C107: 13 | D107: 16038 | E107: 13 | F107: 16048 | G107: 14 | H107: 16073 | I107: 24 | J107: 16087 | K107: 0 | L107: 11112
A108: 12 | B108: 16185 | C108: 24 | D108: 16198 | E108: 13 | F108: 16208 | G108: 23 | H108: 16217 | I108: 13 | J108: 16229 | K108: 0 | L108: 12121
A109: 12 | B109: 16330 | C109: 24 | D109: 16341 | E109: 13 | F109: 16349 | G109: 23 | H109: 16371 | I109: 13 | J109: 16385 | K109: 0 | L109: 12121
A110: 12 | B110: 16488 | C110: 24 | D110: 16501 | E110: 13 | F110: 16512 | G110: 23 | H110: 16525 | I110: 13 | J110: 16539 | K110: 0 | L110: 12121
A111: 12 | B111: 16642 | C111: 24 | D111: 16652 | E111: 13 | F111: 16661 | G111: 23 | H111: 16672 | I111: 13 | J111: 16685 | K111: 0 | L111: 12121
A112: 12 | B112: 16785 | C112: 13 | D112: 16799 | E112: 24 | F112: 16823 | G112: 23 | H112: 16837 | I112: 13 | J112: 16853 | K112: 0 | L112: 11221
A113: 12 | B113: 16951 | C113: 24 | D113: 16962 | E113: 13 | F113: 16973 | G113: 23 | H113: 16983 | I113: 13 | J113: 16998 | K113: 0 | L113: 12121
A114: 12 | B114: 17097 | C114: 13 | D114: 17105 | E114: 24 | F114: 17118 | G114: 14 | H114: 17127 | I114: 13 | J114: 17137 | K114: 0 | L114: 11211
A115: 12 | B115: 17251 | C115: 13 | D115: 17265 | E115: 24 | F115: 17280 | G115: 14 | H115: 17293 | I115: 24 | J115: 17306 | K115: 0 | L115: 11212
A116: 12 | B116: 17419 | C116: 24 | D116: 17431 | E116: 13 | F116: 17440 | G116: 23 | H116: 17449 | I116: 13 | J116: 17461 | K116: 0 | L116: 12121
A117: 21 | B117: 17563 | C117: 11 | D117: 17578 | E117: 22 | F117: 17586 | G117: 23 | H117: 17612 | I117: 13 | J117: 17626 | K117: 0 | L117: 21221
A118: 21 | B118: 17726 | C118: 11 | D118: 17736 | E118: 22 | F118: 17745 | G118: 14 | H118: 17758 | I118: 24 | J118: 17771 | K118: 0 | L118: 21212
A119: 12 | B119: 17898 | C119: 24 | D119: 17910 | E119: 13 | F119: 17923 | G119: 23 | H119: 17932 | I119: 24 | J119: 17941 | K119: 0 | L119: 12122
A120: 21 | B120: 18064 | C120: 11 | D120: 18073 | E120: 11 | F120: 18083 | G120: 21 | H120: 18093 | I120: 11 | J120: 18106 | K120: 1 | L120: 21121
A121: 12 | B121: 18217 | C121: 24 | D121: 18227 | E121: 13 | F121: 18239 | G121: 23 | H121: 18249 | I121: 13 | J121: 18262 | K121: 0 | L121: 12121
A122: 12 | B122: 18362 | C122: 24 | D122: 18375 | E122: 13 | F122: 18383 | G122: 14 | H122: 18392 | I122: 24 | J122: 18401 | K122: 0 | L122: 12112
A123: 12 | B123: 18496 | C123: 13 | D123: 18514 | E123: 24 | F123: 18523 | G123: 14 | H123: 18533 | I123: 24 | J123: 18545 | K123: 0 | L123: 11212
A124: 12 | B124: 18647 | C124: 24 | D124: 18661 | E124: 13 | F124: 18672 | G124: 23 | H124: 18681 | I124: 13 | J124: 18694 | K124: 0 | L124: 12121
A125: 12 | B125: 18798 | C125: 24 | D125: 18808 | E125: 13 | F125: 18820 | G125: 23 | H125: 18831 | I125: 13 | J125: 18843 | K125: 0 | L125: 12121
A126: 12 | B126: 18940 | C126: 13 | D126: 18950 | E126: 24 | F126: 18969 | G126: 14 | H126: 18977 | I126: 13 | J126: 18986 | K126: 0 | L126: 11211
A127: 12 | B127: 19100 | C127: 24 | D127: 19110 | E127: 13 | F127: 19122 | G127: 23 | H127: 19134 | I127: 13 | J127: 19146 | K127: 0 | L127: 12121
A128: 12 | B128: 19250 | C128: 24 | D128: 19256 | E128: 13 | F128: 19267 | G128: 23 | H128: 19277 | I128: 13 | J128: 19294 | K128: 0 | L128: 12121
A129: 12 | B129: 19399 | C129: 13 | D129: 19407 | E129: 24 | F129: 19417 | G129: 14 | H129: 19429 | I129: 24 | J129: 19441 | K129: 0 | L129: 11212
A130: 21 | B130: 19539 | C130: 11 | D130: 19549 | E130: 22 | F130: 19557 | G130: 14 | H130: 19566 | I130: 24 | J130: 19577 | K130: 0 | L130: 21212
A131: 12 | B131: 19685 | C131: 13 | D131: 19692 | E131: 24 | F131: 19702 | G131: 14 | H131: 19715 | I131: 24 | J131: 19728 | K131: 0 | L131: 11212
A132: 12 | B132: 19833 | C132: 24 | D132: 19841 | E132: 13 | F132: 19854 | G132: 23 | H132: 19865 | I132: 13 | J132: 19881 | K132: 0 | L132: 12121
A133: 12 | B133: 19979 | C133: 24 | D133: 19989 | E133: 13 | F133: 19999 | G133: 23 | H133: 20009 | I133: 13 | J133: 20023 | K133: 0 | L133: 12121
A134: 12 | B134: 20124 | C134: 24 | D134: 20135 | E134: 13 | F134: 20143 | G134: 14 | H134: 20152 | I134: 13 | J134: 20162 | K134: 0 | L134: 12111
A135: 12 | B135: 20271 | C135: 24 | D135: 20279 | E135: 13 | F135: 20292 | G135: 23 | H135: 20301 | I135: 24 | J135: 20320 | K135: 0 | L135: 12122
A136: 21 | B136: 20426 | C136: 22 | D136: 20435 | E136: 13 | F136: 20455 | G136: 23 | H136: 20468 | I136: 24 | J136: 20478 | K136: 0 | L136: 22122
A137: 12 | B137: 20575 | C137: 13 | D137: 20583 | E137: 13 | F137: 20588 | G137: 14 | H137: 20596 | I137: 24 | J137: 20607 | K137: 0 | L137: 11112
A138: 12 | B138: 20707 | C138: 13 | D138: 20713 | E138: 24 | F138: 20726 | G138: 14 | H138: 20738 | I138: 24 | J138: 20752 | K138: 0 | L138: 11212
A139: 21 | B139: 20853 | C139: 11 | D139: 20862 | E139: 11 | F139: 20867 | G139: 12 | H139: 20880 | I139: 24 | J139: 20893 | K139: 0 | L139: 21112
A140: 21 | B140: 21004 | C140: 11 | D140: 21012 | E140: 22 | F140: 21024 | G140: 14 | H140: 21034 | I140: 13 | J140: 21043 | K140: 0 | L140: 21211
A141: 21 | B141: 21151 | C141: 11 | D141: 21169 | E141: 22 | F141: 21180 | G141: 14 | H141: 21193 | I141: 24 | J141: 21205 | K141: 0 | L141: 21212
A142: 21 | B142: 21317 | C142: 11 | D142: 21328 | E142: 22 | F142: 21341 | G142: 14 | H142: 21355 | I142: 24 | J142: 21369 | K142: 0 | L142: 21212
A143: 12 | B143: 21470 | C143: 24 | D143: 21479 | E143: 13 | F143: 21488 | G143: 23 | H143: 21497 | I143: 13 | J143: 21509 | K143: 0 | L143: 12121
A144: 12 | B144: 21617 | C144: 24 | D144: 21628 | E144: 13 | F144: 21637 | G144: 23 | H144: 21647 | I144: 13 | J144: 21658 | K144: 0 | L144: 12121
A145: 12 | B145: 21777 | C145: 24 | D145: 21786 | E145: 13 | F145: 21798 | G145: 14 | H145: 21807 | I145: 24 | J145: 21822 | K145: 0 | L145: 12112
A146: 21 | B146: 21919 | C146: 11 | D146: 21927 | E146: 22 | F146: 21936 | G146: 14 | H146: 21953 | I146: 24 | J146: 21965 | K146: 0 | L146: 21212
A147: 21 | B147: 22066 | C147: 11 | D147: 22077 | E147: 11 | F147: 22083 | G147: 12 | H147: 22090 | I147: 24 | J147: 22110 | K147: 0 | L147: 21112
A148: 21 | B148: 22213 | C148: 11 | D148: 22227 | E148: 11 | F148: 22233 | G148: 12 | H148: 22239 | I148: 24 | J148: 22252 | K148: 0 | L148: 21112
A149: 21 | B149: 22384 | C149: 22 | D149: 22402 | E149: 13 | F149: 22415 | G149: 23 | H149: 22429 | I149: 13 | J149: 22442 | K149: 0 | L149: 22121
A150: 12 | B150: 22561 | C150: 24 | D150: 22570 | E150: 13 | F150: 22578 | G150: 14 | H150: 22595 | I150: 24 | J150: 22609 | K150: 0 | L150: 12112
A151: 12 | B151: 22718 | C151: 24 | D151: 22727 | E151: 13 | F151: 22735 | G151: 14 | H151: 22743 | I151: 24 | J151: 22763 | K151: 0 | L151: 12112
A152: 12 | B152: 22947 | C152: 13 | D152: 22958 | E152: 24 | F152: 22975 | G152: 14 | H152: 22989 | I152: 13 | J152: 22998 | K152: 0 | L152: 11211
A153: 12 | B153: 23104 | C153: 13 | D153: 23109 | E153: 13 | F153: 23114 | G153: 14 | H153: 23123 | I153: 24 | J153: 23137 | K153: 0 | L153: 11112
A154: 12 | B154: 23279 | C154: 13 | D154: 23301 | E154: 13 | F154: 23309 | G154: 14 | H154: 23318 | I154: 13 | J154: 23339 | K154: 0 | L154: 11111
A155: 12 | B155: 23496 | C155: 13 | D155: 23501 | E155: 13 | F155: 23506 | G155: 14 | H155: 23520 | I155: 13 | J155: 23529 | K155: 0 | L155: 11111
A156: 21 | B156: 23630 | C156: 11 | D156: 23645 | E156: 11 | F156: 23660 | G156: 12 | H156: 23668 | I156: 24 | J156: 23681 | K156: 0 | L156: 21112
A157: 21 | B157: 23819 | C157: 11 | D157: 23827 | E157: 11 | F157: 23843 | G157: 12 | H157: 23854 | I157: 24 | J157: 23867 | K157: 0 | L157: 21112
A158: 21 | B158: 23996 | L158: 2

Sheet !N125840.091
A1: Report for:!N125840.091
A2: Date: | B2: <date>
A3: Hen: | B3: <hen> | F3: Correct Sequence | G3: =Start!J2 -> 21121 | P3: Total Sequences in Data | Q3: =4994-COUNTBLANK(L7:L5000) -> 156 | V3: Total Sequences in Block Data | W3: =COUNTA(L7:L32) -> 26 | AA3: Total Sequences in Block Data | AB3: =COUNTA(L33:L58) -> 26 | AF3: Total Sequences in Block Data | AG3: =COUNTA(L59:L84) -> 26 | AK3: Total Sequences in Block Data | AL3: =COUNTA(L85:L110) -> 26 | AP3: Total Sequences in Block Data | AQ3: =COUNTA(L111:L136) -> 26 | AU3: Total Sequences in Block Data | AV3: =COUNTA(L137:L162) -> 26
P4: Total Sequences in Summary | Q4: =SUM(O7:O38) -> 156 | V4: Total Sequences in Block Summary | W4: =SUM(U7:U38) -> 26 | AA4: Total Sequences in Block Summary | AB4: =SUM(Z7:Z38) -> 26 | AF4: Total Sequences in Block Summary | AG4: =SUM(AE7:AE38) -> 26 | AK4: Total Sequences in Block Summary | AL4: =SUM(AJ7:AJ38) -> 26 | AP4: Total Sequences in Block Summary | AQ4: =SUM(AO7:AO38) -> 26 | AU4: Total Sequences in Block Summary | AV4: =SUM(AT7:AT38) -> 26
T5: Block 1 | Y5: Block 2 | AD5: Block 3 | AI5: Block 4 | AN5: Block 5 | AS5: Block 6
A6: Sequence Component 1 | B6: Time 1 | C6: Sequence Component 2 | D6: Time 2 | E6: Sequence Component 3 | F6: Time 3 | G6: Sequence Component 4 | H6: Time 4 | I6: Sequence Component 5 | J6: Time 5 | K6: Correct? 0=No 1=Yes | L6: Sequence | N6: Frequency | P6: Relative Frequency | Q6: Variability | T6: Frequency | V6: Relative Frequency | W6: Variability | Y6: Frequency | AA6: Relative Frequency | AB6: Variability | AD6: Frequency | AF6: Relative Frequency | AG6: Variability | AI6: Frequency | AK6: Relative Frequency | AL6: Variability | AN6: Frequency | AP6: Relative Frequency | AQ6: Variability | AS6: Frequency | AU6: Relative Frequency | AV6: Variability
A7: 12 | B7: 13 | C7: 24 | D7: 23 | E7: 13 | F7: 37 | G7: 23 | H7: 49 | I7: 13 | J7: 63 | K7: 0 | L7: 12121 | N7: 11111 | O7: =COUNTIF($L$7:$L$500,N7) -> 19 | P7: =O7/$Q$4 -> 0.1217948718 | Q7: =IF(P7=0,0,(P7*((LOG(P7))/LOG(2)))) -> -0.3699488423 | T7: =N7 -> 11111 | U7: =COUNTIF(L7:L32,T7) -> 4 | V7: =U7/(W4-U25) -> 0.1666666667 | W7: =IF(V7=0,0,(V7*((LOG(V7))/LOG(2)))) -> -0.4308270835 | Y7: =N7 -> 11111 | Z7: =COUNTIF(L33:L58,Y7) -> 3 | AA7: =Z7/(AB4-Z25) -> 0.125 | AB7: =IF(AA7=0,0,(AA7*((LOG(AA7))/LOG(2)))) -> -0.375 | AD7: =N7 -> 11111 | AE7: =COUNTIF(L59:L84,AD7) -> 5 | AF7: =AE7/(AG4-AE25) -> 0.2 | AG7: =IF(AF7=0,0,(AF7*((LOG(AF7))/LOG(2)))) -> -0.464385619 | AI7: =N7 -> 11111 | AJ7: =COUNTIF(L85:L110,AI7) -> 2 | AK7: =AJ7/(AL4-AJ25) -> 0.08 | AL7: =IF(AK7=0,0,(AK7*((LOG(AK7))/LOG(2)))) -> -0.2915084952 | AN7: =N7 -> 11111 | AO7: =COUNTIF(L111:L136,AN7) -> 4 | AP7: =AO7/(AQ4-AO25) -> 0.1538461538 | AQ7: =IF(AP7=0,0,(AP7*((LOG(AP7))/LOG(2)))) -> -0.4154522643 | AS7: =N7 -> 11111 | AT7: =COUNTIF(L137:L162,AS7) -> 1 | AU7: =AT7/(AV4-AT25) -> 0.04 | AV7: =IF(AU7=0,0,(AU7*((LOG(AU7))/LOG(2)))) -> -0.1857542476
A8: 12 | B8: 170 | C8: 24 | D8: 179 | E8: 13 | F8: 190 | G8: 23 | H8: 200 | I8: 13 | J8: 212 | K8: 0 | L8: 12121 | N8: 11112 | O8: =COUNTIF($L$7:$L$500,N8) -> 11 | P8: =O8/$Q$4 -> 0.07051282051 | Q8: =IF(P8=0,0,(P8*((LOG(P8))/LOG(2)))) -> -0.2697799782 | T8: =N8 -> 11112 | U8: =COUNTIF(L7:L32,T8) -> 1 | V8: =U8/(W4-U25) -> 0.04166666667 | W8: =IF(V8=0,0,(V8*((LOG(V8))/LOG(2)))) -> -0.1910401042 | Y8: =N8 -> 11112 | Z8: =COUNTIF(L33:L58,Y8) -> 6 | AA8: =Z8/(AB4-Z25) -> 0.25 | AB8: =IF(AA8=0,0,(AA8*((LOG(AA8))/LOG(2)))) -> -0.5 | AD8: =N8 -> 11112 | AE8: =COUNTIF(L59:L84,AD8) -> 3 | AF8: =AE8/(AG4-AE25) -> 0.12 | AG8: =IF(AF8=0,0,(AF8*((LOG(AF8))/LOG(2)))) -> -0.3670672427 | AI8: =N8 -> 11112 | AJ8: =COUNTIF(L85:L110,AI8) -> 0 | AK8: =AJ8/(AL4-AJ25) -> 0 | AL8: =IF(AK8=0,0,(AK8*((LOG(AK8))/LOG(2)))) -> 0 | AN8: =N8 -> 11112 | AO8: =COUNTIF(L111:L136,AN8) -> 0 | AP8: =AO8/(AQ4-AO25) -> 0 | AQ8: =IF(AP8=0,0,(AP8*((LOG(AP8))/LOG(2)))) -> 0 | AS8: =N8 -> 11112 | AT8: =COUNTIF(L137:L162,AS8) -> 1 | AU8: =AT8/(AV4-AT25) -> 0.04 | AV8: =IF(AU8=0,0,(AU8*((LOG(AU8))/LOG(2)))) -> -0.1857542476
A9: 12 | B9: 328 | C9: 24 | D9: 337 | E9: 13 | F9: 355 | G9: 23 | H9: 367 | I9: 13 | J9: 392 | K9: 0 | L9: 12121 | N9: 11121 | O9: =COUNTIF($L$7:$L$500,N9) -> 20 | P9: =O9/$Q$4 -> 0.1282051282 | Q9: =IF(P9=0,0,(P9*((LOG(P9))/LOG(2)))) -> -0.37993258 | T9: =N9 -> 11121 | U9: =COUNTIF(L7:L32,T9) -> 4 | V9: =U9/(W4-U25) -> 0.1666666667 | W9: =IF(V9=0,0,(V9*((LOG(V9))/LOG(2)))) -> -0.4308270835 | Y9: =N9 -> 11121 | Z9: =COUNTIF(L33:L58,Y9) -> 5 | AA9: =Z9/(AB4-Z25) -> 0.2083333333 | AB9: =IF(AA9=0,0,(AA9*((LOG(AA9))/LOG(2)))) -> -0.4714655012 | AD9: =N9 -> 11121 | AE9: =COUNTIF(L59:L84,AD9) -> 3 | AF9: =AE9/(AG4-AE25) -> 0.12 | AG9: =IF(AF9=0,0,(AF9*((LOG(AF9))/LOG(2)))) -> -0.3670672427 | AI9: =N9 -> 11121 | AJ9: =COUNTIF(L85:L110,AI9) -> 4 | AK9: =AJ9/(AL4-AJ25) -> 0.16 | AL9: =IF(AK9=0,0,(AK9*((LOG(AK9))/LOG(2)))) -> -0.4230169904 | AN9: =N9 -> 11121 | AO9: =COUNTIF(L111:L136,AN9) -> 4 | AP9: =AO9/(AQ4-AO25) -> 0.1538461538 | AQ9: =IF(AP9=0,0,(AP9*((LOG(AP9))/LOG(2)))) -> -0.4154522643 | AS9: =N9 -> 11121 | AT9: =COUNTIF(L137:L162,AS9) -> 0 | AU9: =AT9/(AV4-AT25) -> 0 | AV9: =IF(AU9=0,0,(AU9*((LOG(AU9))/LOG(2)))) -> 0
A10: 21 | B10: 495 | C10: 11 | D10: 509 | E10: 11 | F10: 523 | G10: 21 | H10: 536 | I10: 11 | J10: 548 | K10: 1 | L10: 21121 | N10: 11122 | O10: =COUNTIF($L$7:$L$500,N10) -> 0 | P10: =O10/$Q$4 -> 0 | Q10: =IF(P10=0,0,(P10*((LOG(P10))/LOG(2)))) -> 0 | T10: =N10 -> 11122 | U10: =COUNTIF(L7:L32,T10) -> 0 | V10: =U10/(W4-U25) -> 0 | W10: =IF(V10=0,0,(V10*((LOG(V10))/LOG(2)))) -> 0 | Y10: =N10 -> 11122 | Z10: =COUNTIF(L33:L58,Y10) -> 0 | AA10: =Z10/(AB4-Z25) -> 0 | AB10: =IF(AA10=0,0,(AA10*((LOG(AA10))/LOG(2)))) -> 0 | AD10: =N10 -> 11122 | AE10: =COUNTIF(L59:L84,AD10) -> 0 | AF10: =AE10/(AG4-AE25) -> 0 | AG10: =IF(AF10=0,0,(AF10*((LOG(AF10))/LOG(2)))) -> 0 | AI10: =N10 -> 11122 | AJ10: =COUNTIF(L85:L110,AI10) -> 0 | AK10: =AJ10/(AL4-AJ25) -> 0 | AL10: =IF(AK10=0,0,(AK10*((LOG(AK10))/LOG(2)))) -> 0 | AN10: =N10 -> 11122 | AO10: =COUNTIF(L111:L136,AN10) -> 0 | AP10: =AO10/(AQ4-AO25) -> 0 | AQ10: =IF(AP10=0,0,(AP10*((LOG(AP10))/LOG(2)))) -> 0 | AS10: =N10 -> 11122 | AT10: =COUNTIF(L137:L162,AS10) -> 0 | AU10: =AT10/(AV4-AT25) -> 0 | AV10: =IF(AU10=0,0,(AU10*((LOG(AU10))/LOG(2)))) -> 0
A11: 12 | B11: 642 | C11: 24 | D11: 652 | E11: 13 | F11: 665 | G11: 23 | H11: 674 | I11: 13 | J11: 685 | K11: 0 | L11: 12121 | N11: 11211 | O11: =COUNTIF($L$7:$L$500,N11) -> 6 | P11: =O11/$Q$4 -> 0.03846153846 | Q11: =IF(P11=0,0,(P11*((LOG(P11))/LOG(2)))) -> -0.180786143 | T11: =N11 -> 11211 | U11: =COUNTIF(L7:L32,T11) -> 4 | V11: =U11/(W4-U25) -> 0.1666666667 | W11: =IF(V11=0,0,(V11*((LOG(V11))/LOG(2)))) -> -0.4308270835 | Y11: =N11 -> 11211 | Z11: =COUNTIF(L33:L58,Y11) -> 2 | AA11: =Z11/(AB4-Z25) -> 0.08333333333 | AB11: =IF(AA11=0,0,(AA11*((LOG(AA11))/LOG(2)))) -> -0.2987468751 | AD11: =N11 -> 11211 | AE11: =COUNTIF(L59:L84,AD11) -> 0 | AF11: =AE11/(AG4-AE25) -> 0 | AG11: =IF(AF11=0,0,(AF11*((LOG(AF11))/LOG(2)))) -> 0 | AI11: =N11 -> 11211 | AJ11: =COUNTIF(L85:L110,AI11) -> 0 | AK11: =AJ11/(AL4-AJ25) -> 0 | AL11: =IF(AK11=0,0,(AK11*((LOG(AK11))/LOG(2)))) -> 0 | AN11: =N11 -> 11211 | AO11: =COUNTIF(L111:L136,AN11) -> 0 | AP11: =AO11/(AQ4-AO25) -> 0 | AQ11: =IF(AP11=0,0,(AP11*((LOG(AP11))/LOG(2)))) -> 0 | AS11: =N11 -> 11211 | AT11: =COUNTIF(L137:L162,AS11) -> 0 | AU11: =AT11/(AV4-AT25) -> 0 | AV11: =IF(AU11=0,0,(AU11*((LOG(AU11))/LOG(2)))) -> 0
A12: 12 | B12: 785 | C12: 13 | D12: 794 | E12: 24 | F12: 805 | G12: 14 | H12: 818 | I12: 24 | J12: 830 | K12: 0 | L12: 11212 | N12: 11212 | O12: =COUNTIF($L$7:$L$500,N12) -> 7 | P12: =O12/$Q$4 -> 0.04487179487 | Q12: =IF(P12=0,0,(P12*((LOG(P12))/LOG(2)))) -> -0.2009380197 | T12: =N12 -> 11212 | U12: =COUNTIF(L7:L32,T12) -> 3 | V12: =U12/(W4-U25) -> 0.125 | W12: =IF(V12=0,0,(V12*((LOG(V12))/LOG(2)))) -> -0.375 | Y12: =N12 -> 11212 | Z12: =COUNTIF(L33:L58,Y12) -> 1 | AA12: =Z12/(AB4-Z25) -> 0.04166666667 | AB12: =IF(AA12=0,0,(AA12*((LOG(AA12))/LOG(2)))) -> -0.1910401042 | AD12: =N12 -> 11212 | AE12: =COUNTIF(L59:L84,AD12) -> 3 | AF12: =AE12/(AG4-AE25) -> 0.12 | AG12: =IF(AF12=0,0,(AF12*((LOG(AF12))/LOG(2)))) -> -0.3670672427 | AI12: =N12 -> 11212 | AJ12: =COUNTIF(L85:L110,AI12) -> 0 | AK12: =AJ12/(AL4-AJ25) -> 0 | AL12: =IF(AK12=0,0,(AK12*((LOG(AK12))/LOG(2)))) -> 0 | AN12: =N12 -> 11212 | AO12: =COUNTIF(L111:L136,AN12) -> 0 | AP12: =AO12/(AQ4-AO25) -> 0 | AQ12: =IF(AP12=0,0,(AP12*((LOG(AP12))/LOG(2)))) -> 0 | AS12: =N12 -> 11212 | AT12: =COUNTIF(L137:L162,AS12) -> 0 | AU12: =AT12/(AV4-AT25) -> 0 | AV12: =IF(AU12=0,0,(AU12*((LOG(AU12))/LOG(2)))) -> 0
A13: 12 | B13: 937 | C13: 13 | D13: 960 | E13: 24 | F13: 973 | G13: 14 | H13: 985 | I13: 13 | J13: 1002 | K13: 0 | L13: 11211 | N13: 11221 | O13: =COUNTIF($L$7:$L$500,N13) -> 1 | P13: =O13/$Q$4 -> 0.00641025641 | Q13: =IF(P13=0,0,(P13*((LOG(P13))/LOG(2)))) -> -0.04670129627 | T13: =N13 -> 11221 | U13: =COUNTIF(L7:L32,T13) -> 0 | V13: =U13/(W4-U25) -> 0 | W13: =IF(V13=0,0,(V13*((LOG(V13))/LOG(2)))) -> 0 | Y13: =N13 -> 11221 | Z13: =COUNTIF(L33:L58,Y13) -> 0 | AA13: =Z13/(AB4-Z25) -> 0 | AB13: =IF(AA13=0,0,(AA13*((LOG(AA13))/LOG(2)))) -> 0 | AD13: =N13 -> 11221 | AE13: =COUNTIF(L59:L84,AD13) -> 0 | AF13: =AE13/(AG4-AE25) -> 0 | AG13: =IF(AF13=0,0,(AF13*((LOG(AF13))/LOG(2)))) -> 0 | AI13: =N13 -> 11221 | AJ13: =COUNTIF(L85:L110,AI13) -> 0 | AK13: =AJ13/(AL4-AJ25) -> 0 | AL13: =IF(AK13=0,0,(AK13*((LOG(AK13))/LOG(2)))) -> 0 | AN13: =N13 -> 11221 | AO13: =COUNTIF(L111:L136,AN13) -> 0 | AP13: =AO13/(AQ4-AO25) -> 0 | AQ13: =IF(AP13=0,0,(AP13*((LOG(AP13))/LOG(2)))) -> 0 | AS13: =N13 -> 11221 | AT13: =COUNTIF(L137:L162,AS13) -> 1 | AU13: =AT13/(AV4-AT25) -> 0.04 | AV13: =IF(AU13=0,0,(AU13*((LOG(AU13))/LOG(2)))) -> -0.1857542476
A14: 12 | B14: 1100 | C14: 24 | D14: 1119 | E14: 13 | F14: 1132 | G14: 14 | H14: 1142 | I14: 24 | J14: 1156 | K14: 0 | L14: 12112 | N14: 11222 | O14: =COUNTIF($L$7:$L$500,N14) -> 0 | P14: =O14/$Q$4 -> 0 | Q14: =IF(P14=0,0,(P14*((LOG(P14))/LOG(2)))) -> 0 | T14: =N14 -> 11222 | U14: =COUNTIF(L7:L32,T14) -> 0 | V14: =U14/(W4-U25) -> 0 | W14: =IF(V14=0,0,(V14*((LOG(V14))/LOG(2)))) -> 0 | Y14: =N14 -> 11222 | Z14: =COUNTIF(L33:L58,Y14) -> 0 | AA14: =Z14/(AB4-Z25) -> 0 | AB14: =IF(AA14=0,0,(AA14*((LOG(AA14))/LOG(2)))) -> 0 | AD14: =N14 -> 11222 | AE14: =COUNTIF(L59:L84,AD14) -> 0 | AF14: =AE14/(AG4-AE25) -> 0 | AG14: =IF(AF14=0,0,(AF14*((LOG(AF14))/LOG(2)))) -> 0 | AI14: =N14 -> 11222 | AJ14: =COUNTIF(L85:L110,AI14) -> 0 | AK14: =AJ14/(AL4-AJ25) -> 0 | AL14: =IF(AK14=0,0,(AK14*((LOG(AK14))/LOG(2)))) -> 0 | AN14: =N14 -> 11222 | AO14: =COUNTIF(L111:L136,AN14) -> 0 | AP14: =AO14/(AQ4-AO25) -> 0 | AQ14: =IF(AP14=0,0,(AP14*((LOG(AP14))/LOG(2)))) -> 0 | AS14: =N14 -> 11222 | AT14: =COUNTIF(L137:L162,AS14) -> 0 | AU14: =AT14/(AV4-AT25) -> 0 | AV14: =IF(AU14=0,0,(AU14*((LOG(AU14))/LOG(2)))) -> 0
A15: 12 | B15: 1258 | C15: 24 | D15: 1268 | E15: 13 | F15: 1277 | G15: 14 | H15: 1302 | I15: 13 | J15: 1329 | K15: 0 | L15: 12111 | N15: 12111 | O15: =COUNTIF($L$7:$L$500,N15) -> 8 | P15: =O15/$Q$4 -> 0.05128205128 | Q15: =IF(P15=0,0,(P15*((LOG(P15))/LOG(2)))) -> -0.2197642164 | T15: =N15 -> 12111 | U15: =COUNTIF(L7:L32,T15) -> 2 | V15: =U15/(W4-U25) -> 0.08333333333 | W15: =IF(V15=0,0,(V15*((LOG(V15))/LOG(2)))) -> -0.2987468751 | Y15: =N15 -> 12111 | Z15: =COUNTIF(L33:L58,Y15) -> 1 | AA15: =Z15/(AB4-Z25) -> 0.04166666667 | AB15: =IF(AA15=0,0,(AA15*((LOG(AA15))/LOG(2)))) -> -0.1910401042 | AD15: =N15 -> 12111 | AE15: =COUNTIF(L59:L84,AD15) -> 0 | AF15: =AE15/(AG4-AE25) -> 0 | AG15: =IF(AF15=0,0,(AF15*((LOG(AF15))/LOG(2)))) -> 0 | AI15: =N15 -> 12111 | AJ15: =COUNTIF(L85:L110,AI15) -> 1 | AK15: =AJ15/(AL4-AJ25) -> 0.04 | AL15: =IF(AK15=0,0,(AK15*((LOG(AK15))/LOG(2)))) -> -0.1857542476 | AN15: =N15 -> 12111 | AO15: =COUNTIF(L111:L136,AN15) -> 3 | AP15: =AO15/(AQ4-AO25) -> 0.1153846154 | AQ15: =IF(AP15=0,0,(AP15*((LOG(AP15))/LOG(2)))) -> -0.3594781405 | AS15: =N15 -> 12111 | AT15: =COUNTIF(L137:L162,AS15) -> 1 | AU15: =AT15/(AV4-AT25) -> 0.04 | AV15: =IF(AU15=0,0,(AU15*((LOG(AU15))/LOG(2)))) -> -0.1857542476
A16: 12 | B16: 1434 | C16: 13 | D16: 1453 | E16: 13 | F16: 1473 | G16: 23 | H16: 1486 | I16: 13 | J16: 1509 | K16: 0 | L16: 11121 | N16: 12112 | O16: =COUNTIF($L$7:$L$500,N16) -> 8 | P16: =O16/$Q$4 -> 0.05128205128 | Q16: =IF(P16=0,0,(P16*((LOG(P16))/LOG(2)))) -> -0.2197642164 | T16: =N16 -> 12112 | U16: =COUNTIF(L7:L32,T16) -> 1 | V16: =U16/(W4-U25) -> 0.04166666667 | W16: =IF(V16=0,0,(V16*((LOG(V16))/LOG(2)))) -> -0.1910401042 | Y16: =N16 -> 12112 | Z16: =COUNTIF(L33:L58,Y16) -> 1 | AA16: =Z16/(AB4-Z25) -> 0.04166666667 | AB16: =IF(AA16=0,0,(AA16*((LOG(AA16))/LOG(2)))) -> -0.1910401042 | AD16: =N16 -> 12112 | AE16: =COUNTIF(L59:L84,AD16) -> 1 | AF16: =AE16/(AG4-AE25) -> 0.04 | AG16: =IF(AF16=0,0,(AF16*((LOG(AF16))/LOG(2)))) -> -0.1857542476 | AI16: =N16 -> 12112 | AJ16: =COUNTIF(L85:L110,AI16) -> 3 | AK16: =AJ16/(AL4-AJ25) -> 0.12 | AL16: =IF(AK16=0,0,(AK16*((LOG(AK16))/LOG(2)))) -> -0.3670672427 | AN16: =N16 -> 12112 | AO16: =COUNTIF(L111:L136,AN16) -> 1 | AP16: =AO16/(AQ4-AO25) -> 0.03846153846 | AQ16: =IF(AP16=0,0,(AP16*((LOG(AP16))/LOG(2)))) -> -0.180786143 | AS16: =N16 -> 12112 | AT16: =COUNTIF(L137:L162,AS16) -> 1 | AU16: =AT16/(AV4-AT25) -> 0.04 | AV16: =IF(AU16=0,0,(AU16*((LOG(AU16))/LOG(2)))) -> -0.1857542476
A17: 21 | B17: 1611 | C17: 11 | D17: 1622 | E17: 11 | F17: 1641 | G17: 21 | H17: 1654 | I17: 11 | J17: 1668 | K17: 1 | L17: 21121 | N17: 12121 | O17: =COUNTIF($L$7:$L$500,N17) -> 10 | P17: =O17/$Q$4 -> 0.0641025641 | Q17: =IF(P17=0,0,(P17*((LOG(P17))/LOG(2)))) -> -0.2540688541 | T17: =N17 -> 12121 | U17: =COUNTIF(L7:L32,T17) -> 5 | V17: =U17/(W4-U25) -> 0.2083333333 | W17: =IF(V17=0,0,(V17*((LOG(V17))/LOG(2)))) -> -0.4714655012 | Y17: =N17 -> 12121 | Z17: =COUNTIF(L33:L58,Y17) -> 1 | AA17: =Z17/(AB4-Z25) -> 0.04166666667 | AB17: =IF(AA17=0,0,(AA17*((LOG(AA17))/LOG(2)))) -> -0.1910401042 | AD17: =N17 -> 12121 | AE17: =COUNTIF(L59:L84,AD17) -> 1 | AF17: =AE17/(AG4-AE25) -> 0.04 | AG17: =IF(AF17=0,0,(AF17*((LOG(AF17))/LOG(2)))) -> -0.1857542476 | AI17: =N17 -> 12121 | AJ17: =COUNTIF(L85:L110,AI17) -> 3 | AK17: =AJ17/(AL4-AJ25) -> 0.12 | AL17: =IF(AK17=0,0,(AK17*((LOG(AK17))/LOG(2)))) -> -0.3670672427 | AN17: =N17 -> 12121 | AO17: =COUNTIF(L111:L136,AN17) -> 0 | AP17: =AO17/(AQ4-AO25) -> 0 | AQ17: =IF(AP17=0,0,(AP17*((LOG(AP17))/LOG(2)))) -> 0 | AS17: =N17 -> 12121 | AT17: =COUNTIF(L137:L162,AS17) -> 0 | AU17: =AT17/(AV4-AT25) -> 0 | AV17: =IF(AU17=0,0,(AU17*((LOG(AU17))/LOG(2)))) -> 0
A18: 12 | B18: 1756 | C18: 13 | D18: 1762 | E18: 13 | F18: 1767 | G18: 14 | H18: 1772 | I18: 13 | J18: 1780 | K18: 0 | L18: 11111 | N18: 12122 | O18: =COUNTIF($L$7:$L$500,N18) -> 0 | P18: =O18/$Q$4 -> 0 | Q18: =IF(P18=0,0,(P18*((LOG(P18))/LOG(2)))) -> 0 | T18: =N18 -> 12122 | U18: =COUNTIF(L7:L32,T18) -> 0 | V18: =U18/(W4-U25) -> 0 | W18: =IF(V18=0,0,(V18*((LOG(V18))/LOG(2)))) -> 0 | Y18: =N18 -> 12122 | Z18: =COUNTIF(L33:L58,Y18) -> 0 | AA18: =Z18/(AB4-Z25) -> 0 | AB18: =IF(AA18=0,0,(AA18*((LOG(AA18))/LOG(2)))) -> 0 | AD18: =N18 -> 12122 | AE18: =COUNTIF(L59:L84,AD18) -> 0 | AF18: =AE18/(AG4-AE25) -> 0 | AG18: =IF(AF18=0,0,(AF18*((LOG(AF18))/LOG(2)))) -> 0 | AI18: =N18 -> 12122 | AJ18: =COUNTIF(L85:L110,AI18) -> 0 | AK18: =AJ18/(AL4-AJ25) -> 0 | AL18: =IF(AK18=0,0,(AK18*((LOG(AK18))/LOG(2)))) -> 0 | AN18: =N18 -> 12122 | AO18: =COUNTIF(L111:L136,AN18) -> 0 | AP18: =AO18/(AQ4-AO25) -> 0 | AQ18: =IF(AP18=0,0,(AP18*((LOG(AP18))/LOG(2)))) -> 0 | AS18: =N18 -> 12122 | AT18: =COUNTIF(L137:L162,AS18) -> 0 | AU18: =AT18/(AV4-AT25) -> 0 | AV18: =IF(AU18=0,0,(AU18*((LOG(AU18))/LOG(2)))) -> 0
A19: 12 | B19: 1888 | C19: 13 | D19: 1890 | E19: 13 | F19: 1896 | G19: 23 | H19: 1911 | I19: 13 | J19: 1924 | K19: 0 | L19: 11121 | N19: 12211 | O19: =COUNTIF($L$7:$L$500,N19) -> 0 | P19: =O19/$Q$4 -> 0 | Q19: =IF(P19=0,0,(P19*((LOG(P19))/LOG(2)))) -> 0 | T19: =N19 -> 12211 | U19: =COUNTIF(L7:L32,T19) -> 0 | V19: =U19/(W4-U25) -> 0 | W19: =IF(V19=0,0,(V19*((LOG(V19))/LOG(2)))) -> 0 | Y19: =N19 -> 12211 | Z19: =COUNTIF(L33:L58,Y19) -> 0 | AA19: =Z19/(AB4-Z25) -> 0 | AB19: =IF(AA19=0,0,(AA19*((LOG(AA19))/LOG(2)))) -> 0 | AD19: =N19 -> 12211 | AE19: =COUNTIF(L59:L84,AD19) -> 0 | AF19: =AE19/(AG4-AE25) -> 0 | AG19: =IF(AF19=0,0,(AF19*((LOG(AF19))/LOG(2)))) -> 0 | AI19: =N19 -> 12211 | AJ19: =COUNTIF(L85:L110,AI19) -> 0 | AK19: =AJ19/(AL4-AJ25) -> 0 | AL19: =IF(AK19=0,0,(AK19*((LOG(AK19))/LOG(2)))) -> 0 | AN19: =N19 -> 12211 | AO19: =COUNTIF(L111:L136,AN19) -> 0 | AP19: =AO19/(AQ4-AO25) -> 0 | AQ19: =IF(AP19=0,0,(AP19*((LOG(AP19))/LOG(2)))) -> 0 | AS19: =N19 -> 12211 | AT19: =COUNTIF(L137:L162,AS19) -> 0 | AU19: =AT19/(AV4-AT25) -> 0 | AV19: =IF(AU19=0,0,(AU19*((LOG(AU19))/LOG(2)))) -> 0
A20: 12 | B20: 2022 | C20: 13 | D20: 2043 | E20: 24 | F20: 2056 | G20: 14 | H20: 2068 | I20: 13 | J20: 2076 | K20: 0 | L20: 11211 | N20: 12212 | O20: =COUNTIF($L$7:$L$500,N20) -> 0 | P20: =O20/$Q$4 -> 0 | Q20: =IF(P20=0,0,(P20*((LOG(P20))/LOG(2)))) -> 0 | T20: =N20 -> 12212 | U20: =COUNTIF(L7:L32,T20) -> 0 | V20: =U20/(W4-U25) -> 0 | W20: =IF(V20=0,0,(V20*((LOG(V20))/LOG(2)))) -> 0 | Y20: =N20 -> 12212 | Z20: =COUNTIF(L33:L58,Y20) -> 0 | AA20: =Z20/(AB4-Z25) -> 0 | AB20: =IF(AA20=0,0,(AA20*((LOG(AA20))/LOG(2)))) -> 0 | AD20: =N20 -> 12212 | AE20: =COUNTIF(L59:L84,AD20) -> 0 | AF20: =AE20/(AG4-AE25) -> 0 | AG20: =IF(AF20=0,0,(AF20*((LOG(AF20))/LOG(2)))) -> 0 | AI20: =N20 -> 12212 | AJ20: =COUNTIF(L85:L110,AI20) -> 0 | AK20: =AJ20/(AL4-AJ25) -> 0 | AL20: =IF(AK20=0,0,(AK20*((LOG(AK20))/LOG(2)))) -> 0 | AN20: =N20 -> 12212 | AO20: =COUNTIF(L111:L136,AN20) -> 0 | AP20: =AO20/(AQ4-AO25) -> 0 | AQ20: =IF(AP20=0,0,(AP20*((LOG(AP20))/LOG(2)))) -> 0 | AS20: =N20 -> 12212 | AT20: =COUNTIF(L137:L162,AS20) -> 0 | AU20: =AT20/(AV4-AT25) -> 0 | AV20: =IF(AU20=0,0,(AU20*((LOG(AU20))/LOG(2)))) -> 0
A21: 12 | B21: 2178 | C21: 13 | D21: 2190 | E21: 13 | F21: 2205 | G21: 23 | H21: 2217 | I21: 13 | J21: 2231 | K21: 0 | L21: 11121 | N21: 12221 | O21: =COUNTIF($L$7:$L$500,N21) -> 0 | P21: =O21/$Q$4 -> 0 | Q21: =IF(P21=0,0,(P21*((LOG(P21))/LOG(2)))) -> 0 | T21: =N21 -> 12221 | U21: =COUNTIF(L7:L32,T21) -> 0 | V21: =U21/(W4-U25) -> 0 | W21: =IF(V21=0,0,(V21*((LOG(V21))/LOG(2)))) -> 0 | Y21: =N21 -> 12221 | Z21: =COUNTIF(L33:L58,Y21) -> 0 | AA21: =Z21/(AB4-Z25) -> 0 | AB21: =IF(AA21=0,0,(AA21*((LOG(AA21))/LOG(2)))) -> 0 | AD21: =N21 -> 12221 | AE21: =COUNTIF(L59:L84,AD21) -> 0 | AF21: =AE21/(AG4-AE25) -> 0 | AG21: =IF(AF21=0,0,(AF21*((LOG(AF21))/LOG(2)))) -> 0 | AI21: =N21 -> 12221 | AJ21: =COUNTIF(L85:L110,AI21) -> 0 | AK21: =AJ21/(AL4-AJ25) -> 0 | AL21: =IF(AK21=0,0,(AK21*((LOG(AK21))/LOG(2)))) -> 0 | AN21: =N21 -> 12221 | AO21: =COUNTIF(L111:L136,AN21) -> 0 | AP21: =AO21/(AQ4-AO25) -> 0 | AQ21: =IF(AP21=0,0,(AP21*((LOG(AP21))/LOG(2)))) -> 0 | AS21: =N21 -> 12221 | AT21: =COUNTIF(L137:L162,AS21) -> 0 | AU21: =AT21/(AV4-AT25) -> 0 | AV21: =IF(AU21=0,0,(AU21*((LOG(AU21))/LOG(2)))) -> 0
A22: 12 | B22: 2337 | C22: 13 | D22: 2345 | E22: 24 | F22: 2359 | G22: 14 | H22: 2370 | I22: 24 | J22: 2384 | K22: 0 | L22: 11212 | N22: 12222 | O22: =COUNTIF($L$7:$L$500,N22) -> 0 | P22: =O22/$Q$4 -> 0 | Q22: =IF(P22=0,0,(P22*((LOG(P22))/LOG(2)))) -> 0 | T22: =N22 -> 12222 | U22: =COUNTIF(L7:L32,T22) -> 0 | V22: =U22/(W4-U25) -> 0 | W22: =IF(V22=0,0,(V22*((LOG(V22))/LOG(2)))) -> 0 | Y22: =N22 -> 12222 | Z22: =COUNTIF(L33:L58,Y22) -> 0 | AA22: =Z22/(AB4-Z25) -> 0 | AB22: =IF(AA22=0,0,(AA22*((LOG(AA22))/LOG(2)))) -> 0 | AD22: =N22 -> 12222 | AE22: =COUNTIF(L59:L84,AD22) -> 0 | AF22: =AE22/(AG4-AE25) -> 0 | AG22: =IF(AF22=0,0,(AF22*((LOG(AF22))/LOG(2)))) -> 0 | AI22: =N22 -> 12222 | AJ22: =COUNTIF(L85:L110,AI22) -> 0 | AK22: =AJ22/(AL4-AJ25) -> 0 | AL22: =IF(AK22=0,0,(AK22*((LOG(AK22))/LOG(2)))) -> 0 | AN22: =N22 -> 12222 | AO22: =COUNTIF(L111:L136,AN22) -> 0 | AP22: =AO22/(AQ4-AO25) -> 0 | AQ22: =IF(AP22=0,0,(AP22*((LOG(AP22))/LOG(2)))) -> 0 | AS22: =N22 -> 12222 | AT22: =COUNTIF(L137:L162,AS22) -> 0 | AU22: =AT22/(AV4-AT25) -> 0 | AV22: =IF(AU22=0,0,(AU22*((LOG(AU22))/LOG(2)))) -> 0
A23: 12 | B23: 2484 | C23: 13 | D23: 2506 | E23: 24 | F23: 2519 | G23: 14 | H23: 2532 | I23: 13 | J23: 2541 | K23: 0 | L23: 11211 | N23: 21111 | O23: =COUNTIF($L$7:$L$500,N23) -> 15 | P23: =O23/$Q$4 -> 0.09615384615 | Q23: =IF(P23=0,0,(P23*((LOG(P23))/LOG(2)))) -> -0.3248568869 | T23: =N23 -> 21111 | U23: =COUNTIF(L7:L32,T23) -> 0 | V23: =U23/(W4-U25) -> 0 | W23: =IF(V23=0,0,(V23*((LOG(V23))/LOG(2)))) -> 0 | Y23: =N23 -> 21111 | Z23: =COUNTIF(L33:L58,Y23) -> 3 | AA23: =Z23/(AB4-Z25) -> 0.125 | AB23: =IF(AA23=0,0,(AA23*((LOG(AA23))/LOG(2)))) -> -0.375 | AD23: =N23 -> 21111 | AE23: =COUNTIF(L59:L84,AD23) -> 0 | AF23: =AE23/(AG4-AE25) -> 0 | AG23: =IF(AF23=0,0,(AF23*((LOG(AF23))/LOG(2)))) -> 0 | AI23: =N23 -> 21111 | AJ23: =COUNTIF(L85:L110,AI23) -> 4 | AK23: =AJ23/(AL4-AJ25) -> 0.16 | AL23: =IF(AK23=0,0,(AK23*((LOG(AK23))/LOG(2)))) -> -0.4230169904 | AN23: =N23 -> 21111 | AO23: =COUNTIF(L111:L136,AN23) -> 4 | AP23: =AO23/(AQ4-AO25) -> 0.1538461538 | AQ23: =IF(AP23=0,0,(AP23*((LOG(AP23))/LOG(2)))) -> -0.4154522643 | AS23: =N23 -> 21111 | AT23: =COUNTIF(L137:L162,AS23) -> 4 | AU23: =AT23/(AV4-AT25) -> 0.16 | AV23: =IF(AU23=0,0,(AU23*((LOG(AU23))/LOG(2)))) -> -0.4230169904
A24: 12 | B24: 2646 | C24: 13 | D24: 2651 | E24: 13 | F24: 2672 | G24: 14 | H24: 2683 | I24: 24 | J24: 2696 | K24: 0 | L24: 11112 | N24: 21112 | O24: =COUNTIF($L$7:$L$500,N24) -> 9 | P24: =O24/$Q$4 -> 0.05769230769 | Q24: =IF(P24=0,0,(P24*((LOG(P24))/LOG(2)))) -> -0.2374313779 | T24: =N24 -> 21112 | U24: =COUNTIF(L7:L32,T24) -> 0 | V24: =U24/(W4-U25) -> 0 | W24: =IF(V24=0,0,(V24*((LOG(V24))/LOG(2)))) -> 0 | Y24: =N24 -> 21112 | Z24: =COUNTIF(L33:L58,Y24) -> 1 | AA24: =Z24/(AB4-Z25) -> 0.04166666667 | AB24: =IF(AA24=0,0,(AA24*((LOG(AA24))/LOG(2)))) -> -0.1910401042 | AD24: =N24 -> 21112 | AE24: =COUNTIF(L59:L84,AD24) -> 2 | AF24: =AE24/(AG4-AE25) -> 0.08 | AG24: =IF(AF24=0,0,(AF24*((LOG(AF24))/LOG(2)))) -> -0.2915084952 | AI24: =N24 -> 21112 | AJ24: =COUNTIF(L85:L110,AI24) -> 2 | AK24: =AJ24/(AL4-AJ25) -> 0.08 | AL24: =IF(AK24=0,0,(AK24*((LOG(AK24))/LOG(2)))) -> -0.2915084952 | AN24: =N24 -> 21112 | AO24: =COUNTIF(L111:L136,AN24) -> 0 | AP24: =AO24/(AQ4-AO25) -> 0 | AQ24: =IF(AP24=0,0,(AP24*((LOG(AP24))/LOG(2)))) -> 0 | AS24: =N24 -> 21112 | AT24: =COUNTIF(L137:L162,AS24) -> 4 | AU24: =AT24/(AV4-AT25) -> 0.16 | AV24: =IF(AU24=0,0,(AU24*((LOG(AU24))/LOG(2)))) -> -0.4230169904
A25: 12 | B25: 2810 | C25: 13 | D25: 2829 | E25: 24 | F25: 2842 | G25: 14 | H25: 2854 | I25: 24 | J25: 2868 | K25: 0 | L25: 11212 | N25: 21121 | O25: =COUNTIF($L$7:$L$500,N25) -> 7 | P25: =O25/$Q$4 -> 0.04487179487 | Q25: =IF(P25=0,0,(P25*((LOG(P25))/LOG(2)))) -> -0.2009380197 | T25: =N25 -> 21121 | U25: =COUNTIF(L7:L32,T25) -> 2 | Y25: =N25 -> 21121 | Z25: =COUNTIF(L33:L58,Y25) -> 2 | AD25: =N25 -> 21121 | AE25: =COUNTIF(L59:L84,AD25) -> 1 | AI25: =N25 -> 21121 | AJ25: =COUNTIF(L85:L110,AI25) -> 1 | AN25: =N25 -> 21121 | AO25: =COUNTIF(L111:L136,AN25) -> 0 | AS25: =N25 -> 21121 | AT25: =COUNTIF(L137:L162,AS25) -> 1
